{"text_format":"1","workbook":"xlsx","n_sheets":52,"sheets":["App.2-X_CoS_Flowchart","LDC Info","CustomerClass","CurrentTariff","App.2-A_Capital Projects","App 2-B FixAsset2010-CGAAP","App 2-B FixAsset 2011-CGAAP","App 2-B FixAsset 2012-CGAAP","App 2-B FixAsset 2013-CGAAP","App.2-B_FixAsset 2013-MIFRS","App.2-B_FixAsset 2014-CGAAP","App.2-B_FixAsset 2014-MIFRS","App.2-CA_CGAAP_DepExp_2012","App.2-CB_MIFRS_DepExp_2012","App.2-CC_MIFRS_DepExp_2013","App.2-CD_MIFRS_DepExp_2014","App.2-CG_MIFRS_DepExp_2013","App.2-CH_MIFRS_DepExp_2014","App.2-CI_AltAccStd_DepExp","App.2-D_Overhead","App.2-EA_PP&E Deferral Account","App.2-CF_CGAAP_DepExp_2010","App.2-CF_CGAAP_DepExp_2011","App.2-CF_CGAAP_DepExp_2012","App.2-CF_CGAAP_DepExp_2013","App.2-CF_CGAAP_DepExp_2014","App.2-G_Detailed_OM&A_Expenses","App.2-H_OM&A_Detailed_Analysis","App.2-I_OM&A_Summary_Analys","App.2-J_OM&A_Cost _Drivers","App.2-K_Employee Costs","App.2-L_OM&A_per_Cust_FTEE","App.2-M_Regulatory_Costs","App.2-N_Corp_Cost_Allocation","App.2-R_Loss Factors","App.2-F_Other_Oper_Rev","App.2-T_1592_Tax_Variance","App.2-OB_Debt Instruments","App.2-OA CapStructure-CGAAP","App.2-P_Cost_Allocation","App.2-Q_Cost of Serv. Emb. Dx","App.2-S_Stranded Meters","App.2-U_IFRS Transition Costs","App.2-V_Rev_Reconciliation","DVA Riders","SummarySheet","App.2-W_Bill Impact-Res","App.2-W_Bill Impacts GS<50","App.2-W_Bill Impacts GS>50","App.2-W_Bill Impacts USL","App.2-W_Bill Impacts Sent","App.2-W_Bill Impacts StreetL"],"not_rendered":{"charts":0,"images":1,"macros":1,"external_links":3,"defined_names":58,"comments":6,"pivot_tables":0},"unopened":[],"bounds":{"document_bytes":16777216,"sheet_cells":100000,"rows_first":2000,"rows_last":500,"rows_between":2000,"halvings":0,"cell_chars":16384,"cell_head_chars":4096},"cells_cut":0,"cells_raw":0,"read":"whole","date_system":"1900"}

{"sheet":"App.2-X_CoS_Flowchart","index":0,"n_rows":16,"n_cols":7,"rows_kept":16,"cut":false,"hidden":false,"merged":[[15,1,15,6],[12,1,12,6],[13,1,13,6]]}
[null,null,null,null,null,"File Number:",{"$f":"'LDC Info'!$E$18","v":"EB-2013-0139"}]
[null,null,null,null,null,"Exhibit:"]
[null,null,null,null,null,"Tab:"]
[null,null,null,null,null,"Schedule:"]
[null,null,null,null,null,"Page:"]
[]
[null,null,null,null,null,"Date:"]
[]
[]
[]
[]
[]
[null,"Appendix 2-X"]
[null,"Cost of Service Rate Application Schematic"]
[]
[null,"The Cost of Service Rate Application Schematic is a flowchart appended to Chapter 2 of the Filing Requirements as a guide for the components of an application and how demand and costs interrelate to derive the revenue requirement and then how the revenue requirement is allocated between classes and through fixed/variable splits to derive rates that will be compensatory for the annual revenue requirement, based on the the forecasted demand.  There is no form to be filled out; therefore, this Schedule is not required to be filed. "]

{"sheet":"LDC Info","index":1,"n_rows":38,"n_cols":5,"rows_kept":38,"cut":false,"hidden":false,"merged":[[21,4,21,10],[23,4,23,10],[33,2,33,11],[37,2,37,12],[13,4,13,10],[25,4,25,6],[27,4,27,6],[35,2,35,13],[29,4,29,6],[15,4,15,10],[17,4,17,10],[19,4,19,10]]}
[]
[]
[]
[]
[]
[]
[]
[]
[]
[]
[]
[]
[]
[null,null,null,"Utility Name   ","Hydro Hawkesbury Inc."]
[]
[null,null,null,"Service Territory"]
[]
[null,null,null,"Assigned EB Number","EB-2013-0139"]
[]
[null,null,null,"Name of Contact and Title","Michel Poulin"]
[]
[null,null,null,"Phone Number   ","613-632-6689"]
[]
[null,null,null,"Email Address   ","MichelPoulin@HydroHawkesbury.ca"]
[]
[null,null,null,"Bridge Year",2013]
[]
[null,null,null,"Test Year",2014]
[]
[null,null,null,"Last Rebasing Year",2010]
[]
[null,"Notes"]
[]
[null,null,"Pale green cells represent input cells."]
[]
[null,null,"Pale blue cells represent drop-down lists.  The applicant should select the appropriate item from the drop-down list."]
[]
[null,null,"White cells contain fixed values, automatically generated values or formulae. "]

{"sheet":"CustomerClass","index":2,"n_rows":33,"n_cols":7,"rows_kept":33,"cut":false,"hidden":false,"merged":[[9,0,9,6],[8,0,8,6]]}
[null,null,null,null,null,"File Number:",{"$f":"'LDC Info'!$E$18","v":"EB-2013-0139"}]
[null,null,null,null,null,"Exhibit:"]
[null,null,null,null,null,"Tab:"]
[null,null,null,null,null,"Schedule:"]
[null,null,null,null,null,"Page:"]
[]
[null,null,null,null,null,"Date:"]
[]
["TESI-1"]
["Customer Class"]
[]
[]
["Customer Class Name","Existing","Proposed","Status","MSC\nMetric","Usage Metric","USA #"]
["Residential","YES","YES","Continued","Customer","kWh"]
["General Service < 50 kW","YES","YES","Continued","Customer","kWh"]
["General Service > 50 to 4999 kW","YES","YES","Continued","Customer","kW"]
["Unmetered Scattered Load","YES","YES","Continued","Customer","kWh"]
["Sentinel Lighting","YES","YES","Continued","Connection","kW"]
["Street Lighting ","YES","YES","Continued","Connection","kW"]
["MicroFit","YES","YES","Continued","Customer","Monthly"]
[null,null,null,""]
[null,null,null,""]
[null,null,null,""]
[null,null,null,""]
[null,null,null,""]
[null,null,null,""]
[null,null,null,""]
[null,null,null,""]
[null,null,null,""]
[null,null,null,""]
[null,null,null,""]
[null,null,null,""]
[null,null,null,""]

{"sheet":"CurrentTariff","index":3,"n_rows":143,"n_cols":4,"rows_kept":143,"cut":false,"hidden":false,"merged":[[8,0,8,4],[9,0,9,4]]}
[" ",null,"File Number:",{"$f":"'LDC Info'!$E$18","v":"EB-2013-0139"}]
[null,null,"Exhibit:",8]
[null,null,"Tab:",1]
[null,null,"Schedule:",2]
[null,null,"Page:"]
[]
[null,null,"Date:"]
[]
["TESI-2 "]
["Current Tariff Sheet"]
[]
["Loss Factor"," "]
[]
["Total Loss Factor – Secondary Metered Customer < 5,000 kW",1.0446]
["Total Loss Factor – Secondary Metered Customer > 5,000 kW"]
["Total Loss Factor – Primary Metered Customer < 5,000 kW",1.0342]
["Total Loss Factor – Primary Metered Customer > 5,000 KW"," "]
[]
[{"$f":"CustomerClass!A14","v":"Residential"},"Effective Until mm/dd/yy","rate","Connection Type"]
[]
["Service Charge",null,5.99,"$"]
["Distribution Volumetric Rate",null,8.0999999999999996E-3,"kWh"]
["Rate Rider for Disposition of Residual Historical Smart Meter Costs - effective until April 30, 2014",null,-1.35,"kWh"]
["Rate Rider for Recovery of Smart Meter Incremental Revenue Requirement - in effective until the\neffective date of the next cost of service-based rate order",null,1.39,"kWh"]
["Rate Rider for Smart Metering Entity Charge - effective until October 31, 2018",null,0.79,"kWh"]
["Low Voltage Service Rate",null,4.0000000000000002E-4,"kWh"]
["Rate Rider for Recovery of Incremental Capital Costs",null,2.3999999999999998E-3,"kWh"]
["Rate Rider for Disposition of Deferral/Variance Account (2013) - effective until April 30, 2014",null,1.1000000000000001E-3,"kWh"]
["Rate Rider for Disposition of Global Adjustment Sub-Account (2013) - effective until April 30, 2014 Applicable only for Non-RPP Customers",null,6.0000000000000001E-3,"kWh"]
[]
[]
[]
[]
["Retail Transmission Rate – Network Service Rate",null,6.8999999999999999E-3,"kWh"]
["Retail Transmission Rate – Line and Transformation Connection Service Rate",null,3.0999999999999999E-3,"kWh"]
["Wholesale Market Service Rate",null,4.4000000000000003E-3,"kWh"]
["Rural Rate Protection Charge",null,1.1999999999999999E-3,"kWh"]
["Standard Supply Service – Administrative Charge (if applicable)",null,0.25,"$"]
[]
[{"$f":"CustomerClass!A15","v":"General Service < 50 kW"},"Effective Until mm/dd/yy","rate","Connection Type"]
[]
["Service Charge",null,13.84,"$"]
["Distribution Volumetric Rate",null,5.4999999999999997E-3,"kWh"]
["Rate Rider for Disposition of Residual Historical Smart Meter Costs - effective until April 30, 2014",null,-0.09,"kWh"]
["Rate Rider for Recovery of Smart Meter Incremental Revenue Requirement - in effective until the effective date of the next cost of service-based rate order",null,2.46,"kWh"]
["Rate Rider for Smart Metering Entity Charge - effective until October 31, 2018",null,0.79,"kWh"]
["Low Voltage Service Rate",null,4.0000000000000002E-4,"kWh"]
["Rate Rider for Recovery of Incremental Capital Costs",null,1.6999999999999999E-3,"kWh"]
["Rate Rider for Disposition of Deferral/Variance Account (2013) - effective until April 30, 2014",null,1.1000000000000001E-3,"kWh"]
["Rate Rider for Disposition of Global Adjustment Sub-Account (2013) - effective until April 30, 2014\nApplicable only for Non-RPP Customers",null,6.0000000000000001E-3,"kWh"]
[]
[]
[]
[]
["Retail Transmission Rate – Network Service Rate",null,6.3E-3,"kWh"]
["Retail Transmission Rate – Line and Transformation Connection Service Rate",null,2.7000000000000001E-3,"kWh"]
["Wholesale Market Service Rate",null,4.4000000000000003E-3,"kWh"]
["Rural Rate Protection Charge",null,1.1999999999999999E-3,"kWh"]
["Standard Supply Service – Administrative Charge (if applicable)",null,0.25,"$"]
[]
[{"$f":"CustomerClass!A16","v":"General Service > 50 to 4999 kW"},"Effective Until mm/dd/yy","rate","Connection Type"]
[]
["Service Charge",null,97.35,"$"]
["Distribution Volumetric Rate",null,1.5558000000000001,"kW"]
["Low Voltage Service Rate",null,0.13689999999999999,"kW"]
["Rate Rider for Recovery of Incremental Capital Costs",null,0.32700000000000001,"kW"]
["Rate Rider for Disposition of Deferral/Variance Account (2013) - effective until April 30, 2014",null,0.4219,"kW"]
["Rate Rider for Disposition of Global Adjustment Sub-Account (2013) - effective until April 30, 2014\nApplicable only for Non-RPP Customers",null,2.3612000000000002,"kW"]
[null,null," ","kW"]
[]
[]
[]
[]
[]
[]
["Retail Transmission Rate – Network Service Rate",null,2.5533000000000001,"kW"]
["Retail Transmission Rate – Line and Transformation Connection Service Rate",null,1.1196999999999999,"kW"]
["Wholesale Market Service Rate",null,4.4000000000000003E-3,"kWh"]
["Rural Rate Protection Charge",null,1.1999999999999999E-3,"kWh"]
["Standard Supply Service – Administrative Charge (if applicable)",null,0.25,"$"]
[]
[{"$f":"CustomerClass!A17","v":"Unmetered Scattered Load"},"Effective Until mm/dd/yy","rate","Connection Type"]
[]
["Service Charge",null,6.39,"$"]
["Distribution Volumetric Rate",null,2.0999999999999999E-3,"kWh"]
["Low Voltage Service Rate",null,4.0000000000000002E-4,"kWh"]
["Rate Rider for Recovery of Incremental Capital Costs",null,5.9999999999999995E-4,"kWh"]
["Rate Rider for Disposition of Deferral/Variance Account (2013) - effective until April 30, 2014",null,1.1000000000000001E-3,"kWh"]
["Rate Rider for Disposition of Global Adjustment Sub-Account (2013) - effective until April 30, 2014 Applicable only for Non-RPP Customers",null,6.0000000000000001E-3,"kWh"]
[]
[]
[]
[]
[]
[]
[]
["Retail Transmission Rate – Network Service Rate",null,6.3E-3,"kWh"]
["Retail Transmission Rate – Line and Transformation Connection Service Rate",null,2.7000000000000001E-3,"kWh"]
["Wholesale Market Service Rate",null,4.4000000000000003E-3,"kWh"]
["Rural Rate Protection Charge",null,1.1999999999999999E-3,"kWh"]
["Standard Supply Service – Administrative Charge (if applicable)",null,0.25,"$"]
[]
[{"$f":"CustomerClass!A18","v":"Sentinel Lighting"},"Effective Until mm/dd/yy","rate","Connection Type"]
[]
["Service Charge",null,1.63,"$"]
["Distribution Volumetric Rate",null,3.2284999999999999,"kW"]
["Low Voltage Service Rate",null,0.2162,"kW"]
["Rate Rider for Recovery of Incremental Capital Costs",null,0.74960000000000004,"kW"]
[]
[]
[]
[]
[]
[]
[]
[]
[]
["Retail Transmission Rate – Network Service Rate",null,1.9263999999999999,"kW"]
["Retail Transmission Rate – Line and Transformation Connection Service Rate",null,1.7674000000000001,"kW"]
["Wholesale Market Service Rate",null,4.4000000000000003E-3,"kWh"]
["Rural Rate Protection Charge",null,1.1999999999999999E-3,"kWh"]
["Standard Supply Service – Administrative Charge (if applicable)",null,0.25,"$"]
[]
[{"$f":"CustomerClass!A19","v":"Street Lighting "},"Effective Until mm/dd/yy","rate","Connection Type"]
[]
["Service Charge",null,0.62,"$"]
["Distribution Volumetric Rate",null,6.7744,"kW"]
["Low Voltage Service Rate",null,0.10589999999999999,"kW"]
["Rate Rider for Recovery of Incremental Capital Costs",null,1.5987,"kW"]
["Rate Rider for Disposition of Deferral/Variance Account (2013) - effective until April 30, 2014",null,0.38890000000000002,"kW"]
["Rate Rider for Disposition of Global Adjustment Sub-Account (2013) - effective until April 30, 2014\nApplicable only for Non-RPP Customers",null,2.1766999999999999,"kW"]
[]
[]
[]
[]
[]
[]
[]
["Retail Transmission Rate – Network Service Rate",null,1.9258,"kW"]
["Retail Transmission Rate – Line and Transformation Connection Service Rate",null,0.86560000000000004,"kW"]
["Wholesale Market Service Rate",null,4.4000000000000003E-3,"kWh"]
["Rural Rate Protection Charge",null,1.1999999999999999E-3,"kWh"]
["Standard Supply Service – Administrative Charge (if applicable)",null,0.25,"$"]

{"sheet":"App.2-A_Capital Projects","index":4,"n_rows":165,"n_cols":8,"rows_kept":165,"cut":false,"hidden":false,"merged":[]}
[null,null,null,null,null,null,"File Number:","EB-2012-0000"]
[null,null,null,null,null,null,"Exhibit:",2]
[null,null,null,null,null,null,"Tab:",2]
[null,null,null,null,null,null,"Schedule:",2]
[null,null,null,null,null,null,"Page:"]
[]
[null,null,null,null,null,null,"Date:"]
[]
[]
[]
[]
[]
["projects",2008,2009,2010,2011,2012,"2013 Bridge Year","2014 Test Year"]
["reporting basis"]
["(1815) 1  reclosers (new) ms#1",20663.96]
["(1815) major transformer ( gasing transformer 55t2)\nmaintenance (degas) ",null,47728.62]
["(1815)  add 1 recloser \nbetterment to 55t1 and 55t2  tap changers externally add inhibitor",null,null,52494.8]
["(1815) replacement of arcing contact on both tap changers",null,null,null,55500]
["(1815) meetering and assure all ct's are not affected by operations.\ndismanttle meetering and assure all ct's are not affected by operations.\ninternal tap changer repairs following recongnision that 55t1 is faulty.  change all auxiliary contacts 55t1 and 55t2\n",null,null,null,null,24890]
["(1815) revamp 110 kv station as per oeb approval eb-2011-0173\n& regular expenditures on 55t1 and 55t2 ",null,null,null,null,null,1547900]
["regular expenditures on the new 55t1 and 55t2 and 55t3 ( on pot) ",null,null,null,null,null,null,25000]
["sub-total",{"$f":"SUM(B15:B19)","v":20663.96},{"$f":"SUM(C15:C19)","v":47728.62},52494.8,55500,{"$f":"SUM(F15:F19)","v":24890},{"$f":"SUM(G15:G21)","v":1547900},{"$f":"SUM(H15:H21)","v":25000}]
[""]
["(1820) new recloser 44kv sub",null,23424.54]
["(1820) add inhibitor to 10mva transformer ",null,null,9059.01]
["(1820) 2 new recloser 44kv sub      ( replacement complete), plus 44kv transformer maintenance and inspection, by-pass tap changer. high gas. change rotten x-arms on incoming and outgoind structures at 44 kv sub\nnew fence",null,null,null,66690.820000000007]
["(1820) stone at sub for lineman safety",null,null,null,null,4632.2700000000004]
["(1820) Expenditures of SUB 44KV recorded upon completion and annual maintenance on SUB 44KV structure.",null,null,null,null,null,800000]
["(1820) Expenditures to obtain a report on the anomalies that caused the high combustible gases of transformer 43t1 of SUB 44KV. Obtain a re-vamp solution and quote and if feasible, repair the transformer in order to reach HHI's goal to have proper transformation capacity and mainly redundancy.",null,null,null,null,null,null,60000]
["sub-total",{"$f":"SUM(B24:B29)","v":0},{"$f":"SUM(C24:C29)","v":23424.54},9059.01,66690.820000000007,4632.2700000000004,800000,60000]
[""]
["(1830) riser pole new subdivision",1064.56]
["(1830) pole replacement & riser pole new subdivision\n",null,24399.13]
["(1830) pole replacement, x-arms and hardware several location following annual inspections\n",null,null,28410.75]
["(1830) pole replacement, x-arms and hardware several location following annual inspections\n",null,null,null,27658.52]
["(1830) pole replacement, x-arms and hardware several location following annual inspections plus line extention on west st. for new customer on hwy 17, plus 44kv feeder between 44kv station and spence st.\n",null,null,null,null,80902.080000000002]
["(1830) replace poles, fixtures\n as per asset management plan\n",null,null,null,null,null,99000]
["(1830) replace poles, fixtures\n as per asset management plan\n",null,null,null,null,null,null,89000]
[""]
[""]
[""]
[""]
["sub-total",{"$f":"SUM(B32:B42)","v":1064.56},{"$f":"SUM(C32:C42)","v":24399.13},28410.75,27658.52,{"$f":"SUM(F32:F42)","v":80902.080000000002},99000,89000]
[""]
["(1835) oh conductor (remove copper conductor)",7361.03]
["(1835) oh conductor betterment\nincrease size primary and neutral",null,5117.57]
["(1835) oh conductor betterment\nincrease size primary feeder 43f2 to 336 mcm",null,null,34806.04]
["(1835) oh conductor (cooper) and new in-line switch",null,null,null,3636.3]
["(1835) oh conductor line extention west st. and 44kv feeder betterment",null,null,null,null,69887.63]
["(1835) replace 3/0 o.h. primary \non circuit 43f2 \nwith 336 mcm tulip\ncontinuity of work performed in 2011 and 2012\n",null,null,null,null,null,25000]
["(1835) replace 3/0 o.h. primary on circuit 55f1. part of main st.  pole # 304 to # 332\n with 336 mcm tulip\n",null,null,null,null,null,null,20000]
["sub-total",{"$f":"SUM(B45:B51)","v":7361.03},{"$f":"SUM(C45:C51)","v":5117.57},34806.04,3636.3,69887.63,25000,20000]
[""]
["underground"]
["(1840) conduit (loop system) & (1845) conductor  ( subdivision)",{"$f":"219.86+26378.06","v":26597.920000000002}]
["(1840) conduit  & \n(1845) ug conductor subdivision",null,{"$f":"73.71+10448.85","v":10522.56}]
["(1840) conduit  & \n(1845) ug conductor subdivision east end town &   nelson",null,null,{"$f":"147.42+47660.1","v":47807.519999999997}]
["(1840) conduit  & \n(1845) ug conductor ( single service, no subdivision in 2011) ",null,null,null,585.30999999999995]
["(1840) conduit  & \n(1845) ug conductor ( single service, no subdivision in 2011) "]
["(1840) conduit  & \n(1845) ug conductor ( loop at paul cres.) ",null,null,null,null,4935.66]
["(1840) & ( 1845)subdivision plan submitted for approval in january 2012\nsection on ruppert and jacinthe st\n",null,null,null,null,null,17500]
["(1840) & (1845) subdivision and u.g facilities section on ruppert and jacinthe st.\n\n",null,null,null,null,null,null,18000]
[""]
[""]
["sub-total",{"$f":"SUM(B55:B58)","v":26597.920000000002},{"$f":"SUM(C55:C58)","v":10522.56},47807.519999999997,585.30999999999995,{"$f":"SUM(F55:F64)","v":4935.66},{"$f":"SUM(G55:G64)","v":17500},18000]
[""]
["(1850) line transformers for \nsubdivision and oh services",21908.16]
["(1850) line transformers for \nsubdivision and oh services\nalso re-distribute inventory transformers nto 1850 as per oeb",null,62799.66]
["(1850) line transformers for \nsubdivision ( east end and nelson) and oh services",null,null,24321.22]
["(1850) line transformers 167 kva & equipment",null,null,null,6024.65]
["(1850) line transformers refurbish padmount plus hardware betterment on several  oh transformers ( cut-outs and lightning arresters",null,null,null,null,5619.7]
["(1850) transformers for the proposed subdivision",null,null,null,null,null,28000]
["(1850) transformers for the proposed subdivision\nand ldc needs\n",null,null,null,null,null,null,12500]
["sub-total",{"$f":"SUM(B67:B73)","v":21908.16},{"$f":"SUM(C67:C73)","v":62799.66},24321.22,6024.65,5619.7,28000,12500]
[""]
["(1855) new services ",1600.35]
["(1855) new services ",null,2248.11]
["(1855) new services ",null,null,3574.22]
["(1855) new services ",null,null,null,3350.22]
["(1855) new services ",null,null,null,null,2234.12]
["(1855) new services ",null,null,null,null,null,3000]
["(1855) new services ",null,null,null,null,null,null,3100]
[""]
[""]
[""]
["sub-total",{"$f":"SUM(B76:B85)","v":1600.35},{"$f":"SUM(C76:C85)","v":2248.11},3574.22,3350.22,2234.12,3000,3100]
[""]
["(1860) meters ( conventional & \nintervals meters)",1936.44]
["(1860) meters ( conventional & \nintervals meters)",null,22090.5]
["(1860) meters ( metering sub 110kv)",null,null,null,7796.64]
["(1860 & 1860.01) redistribute capital expenses as per oeb guidelines",null,null,null,null,619033.11]
["(1860-01)  smart meters",null,null,null,null,null,3500]
["(1860-01)  smart meters",null,null,null,null,null,null,3500]
[""]
[""]
[""]
["sub-total",{"$f":"SUM(B87:B96)","v":1936.44},22090.5,0,7796.64,619033.11,3500,3500]
[""]
["(1908) building and fixtures",0]
["(1908) building and fixtures",null,0]
["(1908) building and fixtures",null,null,0]
["(1908) building and fixtures",null,null,null,0]
["(1908) building and fixtures",null,null,null,null,0]
["(1908) building and fixtures\nbuilding 21 years old\neater infiltration into curtain wall.  corrections required &\nreplace carpets in common area and 2 offices  & \nroof inspection report by garlan canada. \nremove existing caulking, termination bars and detoriated butyl tape na dreplace same. also re-seals the seams with new butyl tape and urethane caulking\n\n",null,null,null,null,null,37500]
["replace last 3 furnaces ( 3 out of 5) ",null,null,null,null,null,null,12500]
["sub-total",{"$f":"SUM(B99:B105)","v":0},{"$f":"SUM(C99:C105)","v":0},0,0,0,37500,12500]
[""]
["(1915) office furniture plus 1 fireproof safe\nass. manager's office",7084.26]
["(1915) office chairs + fireproof safe+ 2 printers  furniture plus 1 fireproof safe\nass. manager's office",null,5016.54]
["(1915) telephone head set (csr) and projector",null,null,2126.1999999999998]
["(1915) new fridge employees kitchen",null,null,null,1130.23]
["(1915) regular office equipement and commercial shredder ",null,null,null,null,null,5700]
["(1915) regular office equipement ",null,null,null,null,null,null,3500]
[""]
[""]
[""]
[""]
["sub-total",{"$f":"SUM(B108:B117)","v":7084.26},{"$f":"SUM(C108:C117)","v":5016.54},2126.1999999999998,1130.23,0,5700,3500]
[""]
["(1920) computer -harware\n2 desktop computers ( management)",2222.69]
["(1920) computer -harware\n3 desktop computers (csr)",null,3813.59]
["(1920) computer -harware\n",null,null,3691.2]
["(1920) computer -computer screens +apc smart ( computer protection) and watchgard\n",null,null,null,2103.38]
["(1920) computer - laptop, tablets +  firewall hardware\n",null,null,null,null,2656.32]
["(1920) regular computer equipment and hardware",null,null,null,null,null,3000]
["(1920) regular computer equipment and hardware",null,null,null,null,null,null,3100]
[""]
[""]
[""]
["sub-total",{"$f":"SUM(B119:B129)","v":2222.69},3813.59,3691.2,2103.38,2656.32,3000,3100]
[""]
["(1611 formelly 1925) ets. new cis system\n& destop software \n ",63308.11]
["(1611 formelly 1925) destop software \n ",null,753.73]
["(1611 formelly 1925) software  licensing & i.t. for accpac solutions.\nwindows 7 and ms office software and licenses\n ",null,null,14357.63]
["(1611 formelly 1925) ets ecare module and e-billing, plus hansen software to collect phone calls for oeb reporting\n\n ",null,null,null,8639.34]
["(1611 formelly 1925) accpac upgrades and licensing, plus sm capital cost transfer following oeb guidelines\n ",null,null,null,null,44231.5]
["(1611 formelly 1925) yearly upgrades and licensing requirements accpac, hansen (call log software ) &\nweb presentment &   asset management software to support oeb requirement on asset management plan\n",null,null,null,null,null,28000]
["(1611() yearly upgrades and licensing requirements accpac, hansen ( call log software )",null,null,null,null,null,null,17000]
[""]
[""]
[""]
["sub-total",{"$f":"SUM(B132:B141)","v":63308.11},{"$f":"SUM(C132:C141)","v":753.73},14357.63,8639.34,44231.5,28000,17000]
[""]
["(1930) transportation  equipment\nnew pickup",20449.8]
[""]
[""]
[""]
[""]
[""]
["sub-total",{"$f":"SUM(B144:B149)","v":20449.8},{"$f":"SUM(C144:C149)","v":0},0,0,0,0,0]
[""]
["(1940) tools, shop equipment",708.84]
["(1940) tools, shop equipment",null,1311.34]
["(1940) tools, shop equipment\ncrimping tools ,  road signs & rubber blankets etc",null,null,6006.67]
["(1940) tools, shop equipment plus ug temporary cable & adapters",null,null,null,5063.2700000000004]
["(1940) tools, shop equipment",null,null,null,null,2967]
["(1940) misc tools for line crew",null,null,null,null,null,3000]
["(1940) misc tools for line crew",null,null,null,null,null,null,3100]
["sub-total",{"$f":"SUM(B152:B158)","v":708.84},{"$f":"SUM(C152:C158)","v":1311.34},6006.67,5063.2700000000004,2967,3000,3100]
[""]
["(1950) powered tool ",null,null,null,null,null,2000]
["(1950) powered tool ",null,null,null,null,null,null,2000]
[null,{"$f":"SUM(B161:B162)","v":0},{"$f":"SUM(C161:C162)","v":0},0,0,0,2000,2000]
[]
[null,{"$f":"SUM(B22,B30,B43,B52,B65,B74,B86,B97,B106,B118,B130,B142,B150,B159,B163)","v":174906.12},{"$f":"SUM(C22,C30,C43,C52,C65,C74,C86,C97,C106,C118,C130,C142,C150,C159,C163)","v":209225.89},226655.26000000004,188178.68,861989.39,2603100,272300]

{"sheet":"App 2-B FixAsset2010-CGAAP","index":5,"n_rows":71,"n_cols":14,"rows_kept":71,"cut":false,"hidden":false,"merged":[[68,1,68,13],[8,0,8,13],[9,0,9,13],[13,4,13,7],[62,1,63,13],[65,1,66,13]]}
[null,null,null,null,null,null,null,null,null,null,null,null,"File Number:",{"$f":"'LDC Info'!$E$18","v":"EB-2013-0139"}]
[null,null,null,null,null,null,null,null,null,null,null,null,"Exhibit:",2]
[null,null,null,null,null,null,null,null,null,null,null,null,"Tab:",1]
[null,null,null,null,null,null,null,null,null,null,null,null,"Schedule:",5]
[null,null,null,null,null,null,null,null,null,null,null,null,"Page:",1]
[]
[null,null,null,null,null,null,null,null,null,null,null,null,"Date:"]
[]
["Appendix 2-B"]
["Fixed Asset Continuity Schedule"]
[]
[null,null,null,null,null,"Year ",2010]
[]
[null,null,null,null,"Cost",null,null,null,null,null,"Accumulated Depreciation"]
["CCA Class","OEB","Description","Depreciation Rate","Opening Balance","Additions","Disposals","Closing Balance",null,"Opening Balance","Additions","Disposals","Closing Balance","Net Book Value"]
[12,1611,"Computer Software (Formally known as Account 1925)",null,113795.64,14357.63,null,{"$f":"E16+F16+G16","v":128153.27},null,-50288.639999999999,-23123.63,null,{"$f":"J16+K16+L16","v":-73412.27},{"$f":"H16+M16","v":54741}]
["CEC",1612,"Land Rights (Formally known as Account 1906)",null,8588,0,null,{"$f":"E17+F17+G17","v":8588},null,-2608,0,null,{"$f":"J17+K17+L17","v":-2608},{"$f":"H17+M17","v":5980}]
["N/A",1805,"Land",null,10000,null,null,{"$f":"E18+F18+G18","v":10000},null,0,0,null,{"$f":"J18+K18+L18","v":0},{"$f":"H18+M18","v":10000}]
[47,1808,"Buildings",null,null,null,null,{"$f":"E19+F19+G19","v":0},null,null,null,null,{"$f":"J19+K19+L19","v":0},{"$f":"H19+M19","v":0}]
[13,1810,"Leasehold Improvements",null,null,null,null,0,null,null,null,null,0,0]
[47,1815,"Transformer Station Equipment >50 kV",null,349916.94,52494.8,null,402411.74,null,-68847.94,-8884.7999999999993,null,-77732.740000000005,324679]
[47,1820,"Distribution Station Equipment <50 kV",null,175800.99,9059.01,null,184860,null,-88860.99,-10597.01,null,-99458,85402]
[47,1825,"Storage Battery Equipment",null,null,null,null,0,null,null,null,null,0,0]
[47,1830,"Poles, Towers & Fixtures",null,322655.88,28410.75,null,351066.63,null,-171008.88,-18315.75,null,-189324.63,161742]
[47,1835,"Overhead Conductors & Devices",null,367500.19,34806.04,null,402306.23,null,-198824.19,-22294.04,null,-221118.23,181187.99999999997]
[47,1840,"Underground Conduit",null,113707.7,147.41999999999999,null,113855.12,null,-54220.7,-5937.42,null,-60158.119999999995,53697]
[47,1845,"Underground Conductors & Devices",null,212731.5,47660.1,null,260391.6,null,-84446.5,-11544.1,null,-95990.6,164401]
[47,1850,"Line Transformers",null,372827.19,24321.22,null,397148.41000000003,null,-170766.19,-16654.22,null,-187420.41,209728.00000000003]
[47,1855,"Services (Overhead & Underground)",null,23261.26,3574.22,null,26835.48,null,-5121.26,-1001.22,null,-6122.4800000000005,20713]
[47,1860,"Meters",null,246912.13,null,null,246912.13,null,-140473.13,-15656,null,-156129.13,90783]
[47,1860,"Meters (Smart Meters)",null,null,null,null,0,null,null,null,null,0,0]
["N/A",1905,"Land",null,28299.7,null,null,28299.7,null,0,0,null,0,28299.7]
[47,1908,"Buildings & Fixtures",null,824123.77,null,null,824123.77,null,-169572.77,-16999,null,-186571.77,637552]
[13,1910,"Leasehold Improvements",null,null,null,null,0,null,null,null,null,0,0]
[8,1915,"Office Furniture & Equipment (10 years)",null,30527.53,2126.1999999999998,null,32653.73,null,-12210.53,-2616.1999999999998,null,-14826.73,17827]
[8,1915,"Office Furniture & Equipment (5 years)",null,null,null,null,0,null,null,null,null,0,0]
[10,1920,"Computer Equipment - Hardware",null,46427.21,3691.2,null,50118.409999999996,null,-35048.21,-4725.2,null,-39773.409999999996,10345]
[45,1920,"Computer Equip.-Hardware(Post Mar. 22/04)",null,null,null,null,0,null,null,null,null,0,0]
[45.1,1920,"Computer Equip.-Hardware(Post Mar. 19/07)",null,null,null,null,0,null,null,null,null,0,0]
[10,1930,"Transportation Equipment",null,205345.8,null,null,205345.8,null,-188729.8,-2556,null,-191285.8,14060]
[8,1935,"Stores Equipment",null,null,null,null,0,null,null,null,null,0,0]
[8,1940,"Tools, Shop & Garage Equipment",null,13959.53,6006.67,null,19966.2,null,-7829.53,-1352.67,null,-9182.2000000000007,10784]
[8,1945,"Measurement & Testing Equipment",null,null,null,null,0,null,null,null,null,0,0]
[8,1950,"Power Operated Equipment",null,4363.29,null,null,4363.29,null,-2453.29,-545,null,-2998.29,1365]
[8,1955,"Communications Equipment",null,null,null,null,0,null,null,null,null,0,0]
[8,1955,"Communication Equipment (Smart Meters)",null,null,null,null,0,null,null,null,null,0,0]
[8,1960,"Miscellaneous Equipment ",null,null,null,null,0,null,null,null,null,0,0]
[47,1975,"Load Management Controls Utility Premises",null,null,null,null,0,null,null,null,null,0,0]
[47,1980,"System Supervisor Equipment",null,null,null,null,0,null,null,null,null,0,0]
[47,1985,"Miscellaneous Fixed Assets",null,null,null,null,0,null,null,null,null,0,0]
[47,1995,"Contributions & Grants",null,-70173.64,-74299.97,null,-144473.60999999999,null,3636.64,4290.97,null,7927.6100000000006,-136546]
[null,"etc.",null,null,null,null,null,0,null,null,null,null,0,0]
[]
[null,null,"Total",null,{"$f":"SUM(E16:E53)","v":3400570.6099999994},{"$f":"SUM(F16:F53)","v":152355.29000000007},{"$f":"SUM(G16:G53)","v":0},{"$f":"SUM(H16:H53)","v":3552925.9000000008},null,{"$f":"SUM(J16:J53)","v":-1447673.9100000001},{"$f":"SUM(K16:K53)","v":-158511.29000000004},{"$f":"SUM(L16:L53)","v":0},{"$f":"SUM(M16:M53)","v":-1606185.1999999997},{"$f":"SUM(N16:N53)","v":1946740.7}]
[]
[null,null,null,null,null,null,null,null,null,"Less: Fully Allocated Depreciation"]
[10,null,"Transportation",null,null,null,null,null,null,"Transportation"]
[8,null,"Stores Equipment",null,null,null,null,null,null,"Stores Equipment"]
[null,null,null,null,null,null,null,null,null,"Net Depreciation",null,{"$f":"L54-L57-L58","v":0}]
[]
["Notes:"]
[]
[1,"Tables in the format outlined above covering all fixed asset accounts should be submitted for the Test Year, Bridge Year and all relevant historical years.  At a minimum , the applicant must provide data for the earlier of: 1) all historical years back to its last rebasing; or 2) at least three years of historical actuals, in addition to Bridge Year and Test Year forecasts."]
[]
[]
[2,"The \"CCA Class\" for fixed assets should agree with the CCA Class used for tax purposes in Tax Returns. Fixed Assets sub-components may be used where the underlying asset components are classified under multiple CCA Classes for tax purposes. If an applicant uses any different classes from those shown in the table, an explanation should be provided. (also see note 3 below)."]
[]
[]
[3,"The table may need to be customized for a utility's asset categories or for any new asset accounts announced or authorized by the Board."]
[]
[4,"The depreciation column (D) is not required as the relevant information will be provided in the following 2-C series of appendices."]

{"sheet":"App 2-B FixAsset 2011-CGAAP","index":6,"n_rows":71,"n_cols":14,"rows_kept":71,"cut":false,"hidden":false,"merged":[[68,1,68,13],[8,0,8,13],[9,0,9,13],[13,4,13,7],[62,1,63,13],[65,1,66,13]]}
[null,null,null,null,null,null,null,null,null,null,null,null,"File Number:",{"$f":"'LDC Info'!$E$18","v":"EB-2013-0139"}]
[null,null,null,null,null,null,null,null,null,null,null,null,"Exhibit:",2]
[null,null,null,null,null,null,null,null,null,null,null,null,"Tab:",1]
[null,null,null,null,null,null,null,null,null,null,null,null,"Schedule:",5]
[null,null,null,null,null,null,null,null,null,null,null,null,"Page:",2]
[]
[null,null,null,null,null,null,null,null,null,null,null,null,"Date:"]
[]
["Appendix 2-B"]
["Fixed Asset Continuity Schedule"]
[]
[null,null,null,null,null,"Year ",2011]
[]
[null,null,null,null,"Cost",null,null,null,null,null,"Accumulated Depreciation"]
["CCA Class","OEB","Description","Depreciation Rate","Opening Balance","Additions","Disposals","Closing Balance",null,"Opening Balance","Additions","Disposals","Closing Balance","Net Book Value"]
[12,1611,"Computer Software (Formally known as Account 1925)",null,128153.27,8639.34,null,{"$f":"E16+F16+G16","v":136792.61000000002},null,-73412.27,-23439,null,{"$f":"J16+K16+L16","v":-96851.27},{"$f":"H16+M16","v":39941.340000000011}]
["CEC",1612,"Land Rights (Formally known as Account 1906)",null,8588,0,null,{"$f":"E17+F17+G17","v":8588},null,-2608,0,null,{"$f":"J17+K17+L17","v":-2608},{"$f":"H17+M17","v":5980}]
["N/A",1805,"Land",null,10000,null,null,{"$f":"E18+F18+G18","v":10000},null,0,0,null,{"$f":"J18+K18+L18","v":0},{"$f":"H18+M18","v":10000}]
[47,1808,"Buildings",null,0,null,null,{"$f":"E19+F19+G19","v":0},null,0,null,null,{"$f":"J19+K19+L19","v":0},{"$f":"H19+M19","v":0}]
[13,1810,"Leasehold Improvements",null,0,null,null,0,null,0,null,null,0,0]
[47,1815,"Transformer Station Equipment >50 kV",null,402411.74,55500,null,457911.74,null,-77732.740000000005,-9744,null,-87476.74,370435]
[47,1820,"Distribution Station Equipment <50 kV",null,184860,66690.820000000007,null,251550.82,null,-99458,-11860,null,-111318,140232.82]
[47,1825,"Storage Battery Equipment",null,0,null,null,0,null,0,null,null,0,0]
[47,1830,"Poles, Towers & Fixtures",null,351066.63,27658.52,null,378725.15,null,-189324.63,-18599,null,-207923.63,170801.52000000002]
[47,1835,"Overhead Conductors & Devices",null,402306.23,3636.3,null,405942.52999999997,null,-221118.23,-22027,null,-243145.23,162797.29999999996]
[47,1840,"Underground Conduit",null,113855.12,0,null,113855.12,null,-60158.119999999995,-5942,null,-66100.12,47755]
[47,1845,"Underground Conductors & Devices",null,260391.6,585.30999999999995,null,260976.91,null,-95990.6,-12507,null,-108497.60000000001,152479.31]
[47,1850,"Line Transformers",null,397148.41000000003,6024.65,null,403173.06000000006,null,-187420.41,-15567,null,-202987.41,200185.65000000005]
[47,1855,"Services (Overhead & Underground)",null,26835.48,3350.22,null,30185.7,null,-6122.4800000000005,-1140,null,-7262.4800000000005,22923.22]
[47,1860,"Meters",null,246912.13,7796.64,null,254708.77000000002,null,-156129.13,-15406,null,-171535.13,83173.640000000014]
[47,1860,"Meters (Smart Meters)",null,0,null,null,0,null,0,null,null,0,0]
["N/A",1905,"Land",null,28299.7,0,null,28299.7,null,0,0,null,0,28299.7]
[47,1908,"Buildings & Fixtures",null,824123.77,0,null,824123.77,null,-186571.77,-16999,null,-203570.77,620553]
[13,1910,"Leasehold Improvements",null,0,null,null,0,null,0,null,null,0,0]
[8,1915,"Office Furniture & Equipment (10 years)",null,32653.73,1130.23,null,33783.96,null,-14826.73,-2738,null,-17564.73,16219.23]
[8,1915,"Office Furniture & Equipment (5 years)",null,0,null,null,0,null,0,null,null,0,0]
[10,1920,"Computer Equipment - Hardware",null,50118.409999999996,2103.38,null,52221.789999999994,null,-39773.409999999996,-4392,null,-44165.409999999996,8056.3799999999974]
[45,1920,"Computer Equip.-Hardware(Post Mar. 22/04)",null,0,null,null,0,null,0,null,null,0,0]
[45.1,1920,"Computer Equip.-Hardware(Post Mar. 19/07)",null,0,null,null,0,null,0,null,null,0,0]
[10,1930,"Transportation Equipment",null,205345.8,0,null,205345.8,null,-191285.8,-2556,null,-193841.8,11504]
[8,1935,"Stores Equipment",null,0,null,null,0,null,0,null,null,0,0]
[8,1940,"Tools, Shop & Garage Equipment",null,19966.2,5063.2700000000004,null,25029.47,null,-9182.2000000000007,-1876,null,-11058.2,13971.27]
[8,1945,"Measurement & Testing Equipment",null,0,null,null,0,null,0,null,null,0,0]
[8,1950,"Power Operated Equipment",null,4363.29,0,null,4363.29,null,-2998.29,-545,null,-3543.29,820]
[8,1955,"Communications Equipment",null,0,null,null,0,null,0,null,null,0,0]
[8,1955,"Communication Equipment (Smart Meters)",null,0,null,null,0,null,0,null,null,0,0]
[8,1960,"Miscellaneous Equipment ",null,0,null,null,0,null,0,null,null,0,0]
[47,1975,"Load Management Controls Utility Premises",null,0,null,null,0,null,0,null,null,0,0]
[47,1980,"System Supervisor Equipment",null,0,null,null,0,null,0,null,null,0,0]
[47,1985,"Miscellaneous Fixed Assets",null,0,null,null,0,null,0,null,null,0,0]
[47,1995,"Contributions & Grants",null,-144473.60999999999,0,null,-144473.60999999999,null,7927.6100000000006,5777,null,13704.61,-130768.99999999999]
[null,"etc.",null,null,0,null,null,0,null,0,null,null,0,0]
[]
[null,null,"Total",null,{"$f":"SUM(E16:E53)","v":3552925.9000000008},{"$f":"SUM(F16:F53)","v":188178.68},{"$f":"SUM(G16:G53)","v":0},{"$f":"SUM(H16:H53)","v":3741104.58},null,{"$f":"SUM(J16:J53)","v":-1606185.1999999997},{"$f":"SUM(K16:K53)","v":-159560},{"$f":"SUM(L16:L53)","v":0},{"$f":"SUM(M16:M53)","v":-1765745.1999999997},{"$f":"SUM(N16:N53)","v":1975359.38}]
[]
[null,null,null,null,null,null,null,null,null,"Less: Fully Allocated Depreciation"]
[10,null,"Transportation",null,null,null,null,null,null,"Transportation"]
[8,null,"Stores Equipment",null,null,null,null,null,null,"Stores Equipment"]
[null,null,null,null,null,null,null,null," ","Net Depreciation",null,{"$f":"L54-L57-L58","v":0}]
[]
["Notes:"]
[]
[1,"Tables in the format outlined above covering all fixed asset accounts should be submitted for the Test Year, Bridge Year and all relevant historical years.  At a minimum , the applicant must provide data for the earlier of: 1) all historical years back to its last rebasing; or 2) at least three years of historical actuals, in addition to Bridge Year and Test Year forecasts."]
[]
[]
[2,"The \"CCA Class\" for fixed assets should agree with the CCA Class used for tax purposes in Tax Returns. Fixed Assets sub-components may be used where the underlying asset components are classified under multiple CCA Classes for tax purposes. If an applicant uses any different classes from those shown in the table, an explanation should be provided. (also see note 3 below)."]
[]
[]
[3,"The table may need to be customized for a utility's asset categories or for any new asset accounts announced or authorized by the Board."]
[]
[4,"The depreciation column (D) is not required as the relevant information will be provided in the following 2-C series of appendices."]

{"sheet":"App 2-B FixAsset 2012-CGAAP","index":7,"n_rows":75,"n_cols":16,"rows_kept":75,"cut":false,"hidden":false,"merged":[[72,1,72,15],[8,0,8,15],[9,0,9,15],[13,4,13,8],[66,1,67,15],[69,1,70,15]]}
[null,null,null,null,null,null,null,null,null,null,null,null,null,null,"File Number:",{"$f":"'LDC Info'!$E$18","v":"EB-2013-0139"}]
[null,null,null,null,null,null,null,null,null,null,null,null,null,null,"Exhibit:",2]
[null,null,null,null,null,null,null,null,null,null,null,null,null,null,"Tab:",1]
[null,null,null,null,null,null,null,null,null,null,null,null,null,null,"Schedule:",5]
[null,null,null,null,null,null,null,null,null,null,null,null,null,null,"Page:",3]
[]
[null,null,null,null,null,null,null,null,null,null,null,null,null,null,"Date:"]
[]
["Appendix 2-B"]
["Fixed Asset Continuity Schedule"]
[]
[null,null,null,null,null,"Year ",null,2012]
[]
[null,null,null,null,"Cost",null,null,null,null,null,null,"Accumulated Depreciation"]
["CCA Class","OEB","Description","Depreciation Rate","Opening Balance","Additions","Smart Meter\nAdditions","Disposals","Closing Balance",null,"Opening Balance","Additions","Smart Meter\nAdditions","Disposals","Closing Balance","Net Book Value"]
[12,1611,"Computer Software (Formally known as Account 1925)",null,136792.61000000002,{"$f":"2682.5","v":2682.5},41549,null,{"$f":"E16+F16+G16+H16","v":181024.11000000002},null,-96851.27,{"$f":"-'App.2-CF_CGAAP_DepExp_2012'!L16","v":-28739},-4360.8599999999997,null,{"$f":"K16+L16+M16+N16","v":-129951.13},{"$f":"I16+O16","v":51072.98000000001}]
["CEC",1612,"Land Rights (Formally known as Account 1906)",null,8588,0,null,null,{"$f":"E17+F17+H17","v":8588},null,-2608,{"$f":"-'App.2-CF_CGAAP_DepExp_2012'!L17","v":0},null,null,{"$f":"K17+L17+N17","v":-2608},{"$f":"I17+O17","v":5980}]
["N/A",1805,"Land",null,10000,0,null,null,{"$f":"E18+F18+H18","v":10000},null,0,{"$f":"-'App.2-CF_CGAAP_DepExp_2012'!L18","v":0},null,null,{"$f":"K18+L18+N18","v":0},{"$f":"I18+O18","v":10000}]
[47,1808,"Buildings",null,0,null,null,null,{"$f":"E19+F19+H19","v":0},null,0,{"$f":"-'App.2-CF_CGAAP_DepExp_2012'!L19","v":0},null,null,{"$f":"K19+L19+N19","v":0},{"$f":"I19+O19","v":0}]
[13,1810,"Leasehold Improvements",null,0,null,null,null,0,null,0,{"$f":"-'App.2-CF_CGAAP_DepExp_2012'!L20","v":0},null,null,0,0]
[47,1815,"Transformer Station Equipment >50 kV",null,457911.74,24890,null,null,482801.74,null,-87476.74,{"$f":"-'App.2-CF_CGAAP_DepExp_2012'!L21","v":-10749},null,null,-98225.74,384576]
[47,1820,"Distribution Station Equipment <50 kV",null,251550.82,4632.2700000000004,null,null,256183.09,null,-111318,{"$f":"-'App.2-CF_CGAAP_DepExp_2012'!L22","v":-13048},null,null,-124366,131817.09]
[47,1825,"Storage Battery Equipment",null,0,null,null,null,0,null,0,{"$f":"-'App.2-CF_CGAAP_DepExp_2012'!L23","v":0},null,null,0,0]
[47,1830,"Poles, Towers & Fixtures",null,378725.15,80902.080000000002,null,null,459627.23000000004,null,-207923.63,{"$f":"-'App.2-CF_CGAAP_DepExp_2012'!L24","v":-20770},null,null,-228693.63,230933.60000000003]
[47,1835,"Overhead Conductors & Devices",null,405942.52999999997,69887.63,null,null,475830.16,null,-243145.23,{"$f":"-'App.2-CF_CGAAP_DepExp_2012'!L25","v":-22615},null,null,-265760.23,210069.93]
[47,1840,"Underground Conduit",null,113855.12,0,null,null,113855.12,null,-66100.12,{"$f":"-'App.2-CF_CGAAP_DepExp_2012'!L26","v":-5735},null,null,-71835.12,42020]
[47,1845,"Underground Conductors & Devices",null,260976.91,4935.66,null,null,265912.57,null,-108497.60000000001,{"$f":"-'App.2-CF_CGAAP_DepExp_2012'!L27","v":-12310},null,null,-120807.6,145104.97]
[47,1850,"Line Transformers",null,403173.06000000006,5619.7,null,null,408792.76000000007,null,-202987.41,{"$f":"-'App.2-CF_CGAAP_DepExp_2012'!L28","v":-15664},null,null,-218651.41,190141.35000000006]
[47,1855,"Services (Overhead & Underground)",null,30185.7,2234.12,null,null,32419.82,null,-7262.4800000000005,{"$f":"-'App.2-CF_CGAAP_DepExp_2012'!L29","v":-1252},null,null,-8514.48,23905.34]
[47,1860,"Meters",null,254708.77000000002,134.61000000000001,null,null,254843.38,null,-171535.13,{"$f":"-'App.2-CF_CGAAP_DepExp_2012'!L30","v":-12753},null,null,-184288.13,70555.25]
[47,1860,"Meters (Smart Meters)",null,0,{"$f":"17081.77","v":17081.77},601816.73,null,{"$f":"E31+F31+G31+H31","v":618898.5},null,0,{"$f":"-'App.2-CF_CGAAP_DepExp_2012'!L31","v":-40690},-64642.69,null,{"$f":"K31+L31+M31+N31","v":-105332.69},513565.81]
["N/A",1905,"Land",null,28299.7,0,null,null,28299.7,null,0,{"$f":"-'App.2-CF_CGAAP_DepExp_2012'!L32","v":0},null,null,0,28299.7]
[47,1908,"Buildings & Fixtures",null,824123.77,0,null,null,824123.77,null,-203570.77,{"$f":"-'App.2-CF_CGAAP_DepExp_2012'!L33","v":-16999},null,null,-220569.77,603554]
[13,1910,"Leasehold Improvements",null,0,null,null,null,0,null,0,{"$f":"-'App.2-CF_CGAAP_DepExp_2012'!L34","v":0},null,null,0,0]
[8,1915,"Office Furniture & Equipment (10 years)",null,33783.96,0,null,null,33783.96,null,-17564.73,{"$f":"-'App.2-CF_CGAAP_DepExp_2012'!L35","v":-2755},null,null,-20319.73,13464.23]
[8,1915,"Office Furniture & Equipment (5 years)",null,0,null,null,null,0,null,0,{"$f":"-'App.2-CF_CGAAP_DepExp_2012'!L36","v":0},null,null,0,0]
[10,1920,"Computer Equipment - Hardware",null,52221.789999999994,2656.32,null,null,54878.109999999993,null,-44165.409999999996,{"$f":"-'App.2-CF_CGAAP_DepExp_2012'!L37","v":-3639},null,null,-47804.409999999996,7073.6999999999971]
[45,1920,"Computer Equip.-Hardware(Post Mar. 22/04)",null,0,null,null,null,0,null,0,{"$f":"-'App.2-CF_CGAAP_DepExp_2012'!L38","v":0},null,null,0,0]
[45.1,1920,"Computer Equip.-Hardware(Post Mar. 19/07)",null,0,null,null,null,0,null,0,{"$f":"-'App.2-CF_CGAAP_DepExp_2012'!L39","v":0},null,null,0,0]
[10,1930,"Transportation Equipment",null,205345.8,0,null,-552,204793.8,null,{"$f":"-193842","v":-193842},{"$f":"-'App.2-CF_CGAAP_DepExp_2012'!L40","v":-2556},null,552,-195846,8947.7999999999884]
[8,1935,"Stores Equipment",null,0,null,null,null,0,null,0,{"$f":"-'App.2-CF_CGAAP_DepExp_2012'!L41","v":0},null,null,0,0]
[8,1940,"Tools, Shop & Garage Equipment",null,25029.47,{"$f":"794","v":794},2173,null,{"$f":"E42+F42+G42+H42","v":27996.47},null,-11058.2,{"$f":"-'App.2-CF_CGAAP_DepExp_2012'!L42","v":-2281},-307.3,null,{"$f":"K42+L42+M42+N42","v":-13646.5},14349.970000000001]
[8,1945,"Measurement & Testing Equipment",null,0,null,null,null,0,null,0,{"$f":"-'App.2-CF_CGAAP_DepExp_2012'!L43","v":0},null,null,0,0]
[8,1950,"Power Operated Equipment",null,4363.29,0,null,null,4363.29,null,-3543.29,{"$f":"-'App.2-CF_CGAAP_DepExp_2012'!L44","v":-545.41},null,null,-4088.7,274.59000000000015]
[8,1955,"Communications Equipment",null,0,null,null,null,0,null,0,{"$f":"-'App.2-CF_CGAAP_DepExp_2012'!L45","v":0},null,null,0,0]
[8,1955,"Communication Equipment (Smart Meters)",null,0,null,null,null,0,null,0,{"$f":"-'App.2-CF_CGAAP_DepExp_2012'!L46","v":0},null,null,0,0]
[8,1960,"Miscellaneous Equipment ",null,0,null,null,null,0,null,0,{"$f":"-'App.2-CF_CGAAP_DepExp_2012'!L47","v":0},null,null,0,0]
[47,1975,"Load Management Controls Utility Premises",null,0,null,null,null,0,null,0,{"$f":"-'App.2-CF_CGAAP_DepExp_2012'!L48","v":0},null,null,0,0]
[47,1980,"System Supervisor Equipment",null,0,null,null,null,0,null,0,{"$f":"-'App.2-CF_CGAAP_DepExp_2012'!L49","v":0},null,null,0,0]
[47,1985,"Miscellaneous Fixed Assets",null,0,null,null,null,0,null,0,{"$f":"-'App.2-CF_CGAAP_DepExp_2012'!L50","v":0},null,null,0,0]
[47,1995,"Contributions & Grants",null,-144473.60999999999,-110040.57,null,null,-254514.18,null,13704.61,{"$f":"-'App.2-CF_CGAAP_DepExp_2012'!L51","v":7977.81},null,null,21682.420000000002,-232831.75999999998]
[null,null,null,null,0,null,null,null,0,null,0,null,null,null,{"$f":"K52+L52+N52","v":0},{"$f":"I52+O52","v":0}]
[null,null,null,null,null,null,null,null,0,null,null,null,null,null,0,0]
[null,null,null,null,null,null,null,0,0,null,null,null,null,null,0,0]
[null,null,null,null,null,null,null,0,0,null,null,null,null,null,0,0]
[null,"etc.",null,null,null,null,null,0,0,null,null,null,null,null,0,0]
[]
[null,null,"Total",null,{"$f":"SUM(E16:E57)","v":3741104.58},{"$f":"SUM(F16:F57)","v":106410.09},{"$f":"SUM(G16:G57)","v":645538.73},{"$f":"SUM(H16:H57)","v":-552},{"$f":"SUM(I16:I57)","v":4492501.3999999994},null,{"$f":"SUM(K16:K57)","v":-1765745.3999999997},-205122.6,-69310.850000000006,552,-2039626.8499999996,2452874.5500000003]
[]
[null,null,null,null,null,null,null,null,null,null,"Less: Fully Allocated Depreciation"]
[10,null,"Transportation",null,null,null,null,null,null,null,"Transportation"]
[8,null,"Stores Equipment",null,{"$f":"3741105-E58","v":0.41999999992549419},null,null,null,null,null,"Stores Equipment"]
[null,null,null,null,null,null,null,null,null,null,"Net Depreciation",null,null,{"$f":"N58-N61-N62","v":552}]
[]
["Notes:"]
[]
[1,"Tables in the format outlined above covering all fixed asset accounts should be submitted for the Test Year, Bridge Year and all relevant historical years.  At a minimum , the applicant must provide data for the earlier of: 1) all historical years back to its last rebasing; or 2) at least three years of historical actuals, in addition to Bridge Year and Test Year forecasts."]
[]
[]
[2,"The \"CCA Class\" for fixed assets should agree with the CCA Class used for tax purposes in Tax Returns. Fixed Assets sub-components may be used where the underlying asset components are classified under multiple CCA Classes for tax purposes. If an applicant uses any different classes from those shown in the table, an explanation should be provided. (also see note 3 below)."]
[]
[]
[3,"The table may need to be customized for a utility's asset categories or for any new asset accounts announced or authorized by the Board."]
[]
[4,"The depreciation column (D) is not required as the relevant information will be provided in the following 2-C series of appendices."]

{"sheet":"App 2-B FixAsset 2013-CGAAP","index":8,"n_rows":77,"n_cols":14,"rows_kept":77,"cut":false,"hidden":false,"merged":[[74,1,74,13],[8,0,8,13],[9,0,9,13],[13,4,13,7],[68,1,69,13],[71,1,72,13]]}
[null,null,null,null,null,null,null,null,null,null,null,null,"File Number:",{"$f":"'LDC Info'!$E$18","v":"EB-2013-0139"}]
[null,null,null,null,null,null,null,null,null,null,null,null,"Exhibit:",2]
[null,null,null,null,null,null,null,null,null,null,null,null,"Tab:",1]
[null,null,null,null,null,null,null,null,null,null,null,null,"Schedule:",5]
[null,null,null,null,null,null,null,null,null,null,null,null,"Page:",4]
[]
[null,null,null,null,null,null,null,null,null,null,null,null,"Date:"]
[]
["Appendix 2-B"]
["Fixed Asset Continuity Schedule"]
[]
[null,null,null,null,null,"Year ",2013]
[]
[null,null,null,null,"Cost",null,null,null,null,null,"Accumulated Depreciation"]
["CCA Class","OEB","Description","Depreciation Rate","Opening Balance","Additions","Disposals","Closing Balance",null,"Opening Balance","Additions","Disposals","Closing Balance","Net Book Value"]
[12,1611,"Computer Software (Formally known as Account 1925)",null,181024.11000000002,28000,0,{"$f":"E16+F16+G16","v":209024.11000000002},null,{"$f":"'App 2-B FixAsset 2012-CGAAP'!O16","v":-129951.13},-22727,null,{"$f":"J16+K16+L16","v":-152678.13},{"$f":"H16+M16","v":56345.98000000001}]
["CEC",1612,"Land Rights (Formally known as Account 1906)",null,8588,0,0,{"$f":"E17+F17+G17","v":8588},null,{"$f":"'App 2-B FixAsset 2012-CGAAP'!O17","v":-2608},0,null,{"$f":"J17+K17+L17","v":-2608},{"$f":"H17+M17","v":5980}]
["N/A",1805,"Land",null,10000,0,0,{"$f":"E18+F18+G18","v":10000},null,{"$f":"'App 2-B FixAsset 2012-CGAAP'!O18","v":0},null,null,{"$f":"J18+K18+L18","v":0},{"$f":"H18+M18","v":10000}]
[47,1808,"Buildings",null,0,null,0,{"$f":"E19+F19+G19","v":0},null,{"$f":"'App 2-B FixAsset 2012-CGAAP'!O19","v":0},null,null,{"$f":"J19+K19+L19","v":0},{"$f":"H19+M19","v":0}]
[13,1810,"Leasehold Improvements",null,0,null,0,0,null,{"$f":"'App 2-B FixAsset 2012-CGAAP'!O20","v":0},null,null,0,0]
[47,1815,"Transformer Station Equipment >50 kV",null,482801.74,1547900,0,2030701.74,null,{"$f":"'App 2-B FixAsset 2012-CGAAP'!O21","v":-98225.74},-27030,null,-125255.74,1905446]
[47,1820,"Distribution Station Equipment <50 kV",null,256183.09,800000,0,1056183.0900000001,null,{"$f":"'App 2-B FixAsset 2012-CGAAP'!O22","v":-124366},-17639,null,-142005,914178.09000000008]
[47,1825,"Storage Battery Equipment",null,0,null,0,0,null,{"$f":"'App 2-B FixAsset 2012-CGAAP'!O23","v":0},null,null,0,0]
[47,1830,"Poles, Towers & Fixtures",null,459627.23000000004,99000,0,558627.23,null,{"$f":"'App 2-B FixAsset 2012-CGAAP'!O24","v":-228693.63},-13447,null,-242140.63,316486.59999999998]
[47,1835,"Overhead Conductors & Devices",null,475830.16,25000,0,500830.16,null,{"$f":"'App 2-B FixAsset 2012-CGAAP'!O25","v":-265760.23},-10212,null,-275972.23,224857.93]
[47,1840,"Underground Conduit",null,113855.12,500,0,114355.12,null,{"$f":"'App 2-B FixAsset 2012-CGAAP'!O26","v":-71835.12},-2756,null,-74591.12,39764]
[47,1845,"Underground Conductors & Devices",null,265912.57,17000,0,282912.57,null,{"$f":"'App 2-B FixAsset 2012-CGAAP'!O27","v":-120807.6},-10321,null,-131128.6,151783.97]
[47,1850,"Line Transformers",null,408792.76000000007,28000,-1548,435244.76000000007,null,{"$f":"'App 2-B FixAsset 2012-CGAAP'!O28","v":-218651.41},-10012,1548,-227115.41,208129.35000000006]
[47,1855,"Services (Overhead & Underground)",null,32419.82,3000,0,35419.82,null,{"$f":"'App 2-B FixAsset 2012-CGAAP'!O29","v":-8514.48},-1130,null,-9644.48,25775.34]
[47,1860,"Meters",null,254843.38,null,0,254843.38,null,{"$f":"'App 2-B FixAsset 2012-CGAAP'!O30","v":-184288.13},-9055,null,-193343.13,61500.25]
[47,1860,"Meters (Smart Meters)",null,618898.5,3500,0,622398.5,null,{"$f":"'App 2-B FixAsset 2012-CGAAP'!O31","v":-105332.69},-41377,null,-146709.69,475688.81]
["N/A",1905,"Land",null,28299.7,0,0,28299.7,null,{"$f":"'App 2-B FixAsset 2012-CGAAP'!O32","v":0},null,null,0,28299.7]
[47,1908,"Buildings & Fixtures  -  BUILDING ROOF",null,165167,18040,0,183207,null,-44363,-6968,null,-51331,131876]
[47,1908,"Buildings & Fixtures  -  INTERIOR FIXTURES",null,246040.77,19460,0,265500.77,null,-65297.77,-17053,null,-82350.76999999999,183150.00000000003]
[47,1908,"Buildings & Fixtures  -  STRUCTURE",null,412916,0,0,412916,null,-110908,-8258,null,-119166,293750]
[13,1910,"Leasehold Improvements",null,0,null,0,0,null,{"$f":"'App 2-B FixAsset 2012-CGAAP'!O34","v":0},null,null,0,0]
[8,1915,"Office Furniture & Equipment (10 years)",null,33783.96,5700,0,39483.96,null,{"$f":"'App 2-B FixAsset 2012-CGAAP'!O35","v":-20319.73},-3041,null,-23360.73,16123.23]
[8,1915,"Office Furniture & Equipment (5 years)",null,0,null,0,0,null,{"$f":"'App 2-B FixAsset 2012-CGAAP'!O36","v":0},null,null,0,0]
[10,1920,"Computer Equipment - Hardware",null,54878.109999999993,3000,0,57878.109999999993,null,{"$f":"'App 2-B FixAsset 2012-CGAAP'!O37","v":-47804.409999999996},-2974,null,-50778.409999999996,7099.6999999999971]
[45,1920,"Computer Equip.-Hardware(Post Mar. 22/04)",null,0,null,0,0,null,{"$f":"'App 2-B FixAsset 2012-CGAAP'!O38","v":0},null,null,0,0]
[45.1,1920,"Computer Equip.-Hardware(Post Mar. 19/07)",null,0,null,0,0,null,{"$f":"'App 2-B FixAsset 2012-CGAAP'!O39","v":0},null,null,0,0]
[10,1930,"Transportation Equipment",null,204793.8,0,0,204793.8,null,{"$f":"'App 2-B FixAsset 2012-CGAAP'!O40","v":-195846},-2556,null,-198402,6391.7999999999884]
[8,1935,"Stores Equipment",null,0,null,0,0,null,{"$f":"'App 2-B FixAsset 2012-CGAAP'!O41","v":0},null,null,0,0]
[8,1940,"Tools, Shop & Garage Equipment",null,27996.47,3000,0,30996.47,null,{"$f":"'App 2-B FixAsset 2012-CGAAP'!O42","v":-13646.5},-2443,null,-16089.5,14906.970000000001]
[8,1945,"Measurement & Testing Equipment",null,0,null,0,0,null,{"$f":"'App 2-B FixAsset 2012-CGAAP'!O43","v":0},null,null,0,0]
[8,1950,"Power Operated Equipment",null,4363.29,2000,0,6363.29,null,{"$f":"'App 2-B FixAsset 2012-CGAAP'!O44","v":-4088.7},-400,null,-4488.7,1874.5900000000001]
[8,1955,"Communications Equipment",null,0,null,0,0,null,{"$f":"'App 2-B FixAsset 2012-CGAAP'!O45","v":0},null,null,0,0]
[8,1955,"Communication Equipment (Smart Meters)",null,0,null,0,0,null,{"$f":"'App 2-B FixAsset 2012-CGAAP'!O46","v":0},null,null,0,0]
[8,1960,"Miscellaneous Equipment ",null,0,null,0,0,null,{"$f":"'App 2-B FixAsset 2012-CGAAP'!O47","v":0},null,null,0,0]
[47,1975,"Load Management Controls Utility Premises",null,0,null,0,0,null,{"$f":"'App 2-B FixAsset 2012-CGAAP'!O48","v":0},null,null,0,0]
[47,1980,"System Supervisor Equipment",null,0,null,0,0,null,{"$f":"'App 2-B FixAsset 2012-CGAAP'!O49","v":0},null,null,0,0]
[47,1985,"Miscellaneous Fixed Assets",null,0,null,0,0,null,{"$f":"'App 2-B FixAsset 2012-CGAAP'!O50","v":0},null,null,0,0]
[47,1995,"Contributions & Grants - ACCT 1830",null,-77570.38,0,0,-77570.38,null,2509.38,1724,null,4233.38,-73337]
[47,1995,"Contributions & Grants - ACCT 1835",null,-49660.65,0,0,-49660.65,null,2189.65,828,null,{"$f":"J54+K54+L54","v":3017.65},{"$f":"H54+M54","v":-46643}]
[47,1995,"Contributions & Grants - ACCT 1840",null,-219.86,0,0,-219.86,null,39.86,4,null,43.86,-176]
[47,1995,"Contributions & Grants - ACCT 1845",null,-80350.460000000006,0,0,-80350.460000000006,null,10441.700000000001,2678,null,13119.7,-67230.760000000009]
[47,1995,"Contributions & Grants - ACCT 1850",null,-46712.83,0,0,-46712.83,null,6501.83,1168,null,7669.83,-39043]
[null,"etc.",null,null,null,null,0,0,null,null,null,null,0,0]
[]
[null,null,"Total",null,{"$f":"SUM(E16:E59)","v":4492501.3999999985},{"$f":"SUM(F16:F59)","v":2603100},{"$f":"SUM(G16:G59)","v":-1548},{"$f":"SUM(H16:H59)","v":7094053.4000000004},null,{"$f":"SUM(J16:J59)","v":-2039625.8499999996},{"$f":"SUM(K16:K59)","v":-202997},{"$f":"SUM(L16:L59)","v":1548},{"$f":"SUM(M16:M59)","v":-2241074.8499999996},{"$f":"SUM(N16:N59)","v":4852978.5500000007}]
[]
[null,null,null,null,null,null,null,null,null,"Less: Fully Allocated Depreciation"]
[10,null,"Transportation",null,null,null,null,null,null,"Transportation"]
[8,null,"Stores Equipment",null,null,null,null,null,null,"Stores Equipment"]
[null,null,null,null,null,null,null,null,null,"Net Depreciation",null,{"$f":"L60-L63-L64","v":1548}]
[]
["Notes:"]
[]
[1,"Tables in the format outlined above covering all fixed asset accounts should be submitted for the Test Year, Bridge Year and all relevant historical years.  At a minimum , the applicant must provide data for the earlier of: 1) all historical years back to its last rebasing; or 2) at least three years of historical actuals, in addition to Bridge Year and Test Year forecasts."]
[]
[]
[2,"The \"CCA Class\" for fixed assets should agree with the CCA Class used for tax purposes in Tax Returns. Fixed Assets sub-components may be used where the underlying asset components are classified under multiple CCA Classes for tax purposes. If an applicant uses any different classes from those shown in the table, an explanation should be provided. (also see note 3 below)."]
[]
[]
[3,"The table may need to be customized for a utility's asset categories or for any new asset accounts announced or authorized by the Board."]
[]
[4,"The depreciation column (D) is not required as the relevant information will be provided in the following 2-C series of appendices."]

{"sheet":"App.2-B_FixAsset 2013-MIFRS","index":9,"n_rows":75,"n_cols":14,"rows_kept":75,"cut":false,"hidden":true,"merged":[[72,1,72,13],[8,0,8,13],[9,0,9,13],[13,4,13,7],[66,1,67,13],[69,1,70,13]]}
[null,null,null,null,null,null,null,null,null,null,null,null,"File Number:",{"$f":"'LDC Info'!$E$18","v":"EB-2013-0139"}]
[null,null,null,null,null,null,null,null,null,null,null,null,"Exhibit:"]
[null,null,null,null,null,null,null,null,null,null,null,null,"Tab:"]
[null,null,null,null,null,null,null,null,null,null,null,null,"Schedule:"]
[null,null,null,null,null,null,null,null,null,null,null,null,"Page:"]
[]
[null,null,null,null,null,null,null,null,null,null,null,null,"Date:"]
[]
["Appendix 2-B"]
["Fixed Asset Continuity Schedule"]
[]
[null,null,null,null,null,"Year ",2014]
[]
[null,null,null,null,"Cost",null,null,null,null,null,"Accumulated Depreciation"]
["CCA Class","OEB","Description","Depreciation Rate","Opening Balance","Additions","Disposals","Closing Balance",null,"Opening Balance","Additions","Disposals","Closing Balance","Net Book Value"]
[12,1611,"Computer Software (Formally known as Account 1925)",null,null,null,null,{"$f":"E16+F16+G16","v":0},null,null,null,null,{"$f":"J16+K16+L16","v":0},{"$f":"H16+M16","v":0}]
["CEC",1612,"Land Rights (Formally known as Account 1906)",null,null,null,null,{"$f":"E17+F17+G17","v":0},null,null,null,null,{"$f":"J17+K17+L17","v":0},{"$f":"H17+M17","v":0}]
["N/A",1805,"Land",null,null,null,null,{"$f":"E18+F18+G18","v":0},null,null,null,null,{"$f":"J18+K18+L18","v":0},{"$f":"H18+M18","v":0}]
[47,1808,"Buildings",null,null,null,null,{"$f":"E19+F19+G19","v":0},null,null,null,null,{"$f":"J19+K19+L19","v":0},{"$f":"H19+M19","v":0}]
[13,1810,"Leasehold Improvements",null,null,null,null,0,null,null,null,null,0,0]
[47,1815,"Transformer Station Equipment >50 kV",null,null,null,null,0,null,null,null,null,0,0]
[47,1820,"Distribution Station Equipment <50 kV",null,null,null,null,0,null,null,null,null,0,0]
[47,1825,"Storage Battery Equipment",null,null,null,null,0,null,null,null,null,0,0]
[47,1830,"Poles, Towers & Fixtures",null,null,null,null,0,null,null,null,null,0,0]
[47,1835,"Overhead Conductors & Devices",null,null,null,null,0,null,null,null,null,0,0]
[47,1840,"Underground Conduit",null,null,null,null,0,null,null,null,null,0,0]
[47,1845,"Underground Conductors & Devices",null,null,null,null,0,null,null,null,null,0,0]
[47,1850,"Line Transformers",null,null,null,null,0,null,null,null,null,0,0]
[47,1855,"Services (Overhead & Underground)",null,null,null,null,0,null,null,null,null,0,0]
[47,1860,"Meters",null,null,null,null,0,null,null,null,null,0,0]
[47,1860,"Meters (Smart Meters)",null,null,null,null,0,null,null,null,null,0,0]
["N/A",1905,"Land",null,null,null,null,0,null,null,null,null,0,0]
[47,1908,"Buildings & Fixtures",null,null,null,null,0,null,null,null,null,0,0]
[13,1910,"Leasehold Improvements",null,null,null,null,0,null,null,null,null,0,0]
[8,1915,"Office Furniture & Equipment (10 years)",null,null,null,null,0,null,null,null,null,0,0]
[8,1915,"Office Furniture & Equipment (5 years)",null,null,null,null,0,null,null,null,null,0,0]
[10,1920,"Computer Equipment - Hardware",null,null,null,null,0,null,null,null,null,0,0]
[45,1920,"Computer Equip.-Hardware(Post Mar. 22/04)",null,null,null,null,0,null,null,null,null,0,0]
[45.1,1920,"Computer Equip.-Hardware(Post Mar. 19/07)",null,null,null,null,0,null,null,null,null,0,0]
[10,1930,"Transportation Equipment",null,null,null,null,0,null,null,null,null,0,0]
[8,1935,"Stores Equipment",null,null,null,null,0,null,null,null,null,0,0]
[8,1940,"Tools, Shop & Garage Equipment",null,null,null,null,0,null,null,null,null,0,0]
[8,1945,"Measurement & Testing Equipment",null,null,null,null,0,null,null,null,null,0,0]
[8,1950,"Power Operated Equipment",null,null,null,null,0,null,null,null,null,0,0]
[8,1955,"Communications Equipment",null,null,null,null,0,null,null,null,null,0,0]
[8,1955,"Communication Equipment (Smart Meters)",null,null,null,null,0,null,null,null,null,0,0]
[8,1960,"Miscellaneous Equipment ",null,null,null,null,0,null,null,null,null,0,0]
[47,1975,"Load Management Controls Utility Premises",null,null,null,null,0,null,null,null,null,0,0]
[47,1980,"System Supervisor Equipment",null,null,null,null,0,null,null,null,null,0,0]
[47,1985,"Miscellaneous Fixed Assets",null,null,null,null,0,null,null,null,null,0,0]
[47,1995,"Contributions & Grants",null,null,null,null,0,null,null,null,null,0,0]
[]
[]
[]
[]
[null,"etc.",null,null,null,null,null,0,null,null,null,null,0,0]
[]
[null,null,"Total",null,{"$f":"SUM(E16:E57)","v":0},{"$f":"SUM(F16:F57)","v":0},{"$f":"SUM(G16:G57)","v":0},{"$f":"SUM(H16:H57)","v":0},null,{"$f":"SUM(J16:J57)","v":0},{"$f":"SUM(K16:K57)","v":0},{"$f":"SUM(L16:L57)","v":0},{"$f":"SUM(M16:M57)","v":0},{"$f":"SUM(N16:N57)","v":0}]
[]
[null,null,null,null,null,null,null,null,null,"Less: Fully Allocated Depreciation"]
[10,null,"Transportation",null,null,null,null,null,null,"Transportation"]
[8,null,"Stores Equipment",null,null,null,null,null,null,"Stores Equipment"]
[null,null,null,null,null,null,null,null,null,"Net Depreciation",null,{"$f":"L58-L61-L62","v":0}]
[]
["Notes:"]
[]
[1,"Tables in the format outlined above covering all fixed asset accounts should be submitted for the Test Year, Bridge Year and all relevant historical years.  At a minimum , the applicant must provide data for the earlier of: 1) all historical years back to its last rebasing; or 2) at least three years of historical actuals, in addition to Bridge Year and Test Year forecasts."]
[]
[]
[2,"The \"CCA Class\" for fixed assets should agree with the CCA Class used for tax purposes in Tax Returns. Fixed Assets sub-components may be used where the underlying asset components are classified under multiple CCA Classes for tax purposes. If an applicant uses any different classes from those shown in the table, an explanation should be provided. (also see note 3 below)."]
[]
[]
[3,"The table may need to be customized for a utility's asset categories or for any new asset accounts announced or authorized by the Board."]
[]
[4,"The depreciation column (D) is not required as the relevant information will be provided in the following 2-C series of appendices."]

{"sheet":"App.2-B_FixAsset 2014-CGAAP","index":10,"n_rows":87,"n_cols":18,"rows_kept":87,"cut":false,"hidden":false,"merged":[[13,15,13,16],[9,0,9,13],[8,0,8,13],[68,1,69,13],[74,1,74,13],[13,4,13,7],[71,1,72,13]]}
[null,null,null,null,null,null,null,null,null,null,null,null,"File Number:",{"$f":"'LDC Info'!$E$18","v":"EB-2013-0139"}]
[null,null,null,null,null,null,null,null,null,null,null,null,"Exhibit:",2]
[null,null,null,null,null,null,null,null,null,null,null,null,"Tab:",1]
[null,null,null,null,null,null,null,null,null,null,null,null,"Schedule:",5]
[null,null,null,null,null,null,null,null,null,null,null,null,"Page:",5]
[]
[null,null,null,null,null,null,null,null,null,null,null,null,"Date:"]
[]
["Appendix 2-B"]
["Fixed Asset Continuity Schedule"]
[]
[null,null,null,null,null,"Year ",2014]
[]
[null,null,null,null,"Cost",null,null,null,null,null,"Accumulated Depreciation",null,null,null,null,"Input to Cost Allocation Model"]
["CCA Class","OEB","Description","Depreciation Rate","Opening Balance","Additions","Disposals","Closing Balance",null,"Opening Balance","Additions","Disposals","Closing Balance","Net Book Value",null,"AVGGrossCloBal","AVG AccDep"]
[12,1611,"Computer Software (Formally known as Account 1925)",null,209024.11000000002,17000,null,{"$f":"E16+F16+G16","v":226024.11000000002},null,{"$f":"'App 2-B FixAsset 2013-CGAAP'!M16","v":-152678.13},-20822,null,{"$f":"J16+K16+L16","v":-173500.13},{"$f":"H16+M16","v":52523.98000000001},null,{"$f":"AVERAGE(H16,'App 2-B FixAsset 2013-CGAAP'!H16)","v":217524.11000000002},{"$f":"AVERAGE(M16,'App 2-B FixAsset 2013-CGAAP'!M16)","v":-163089.13}]
["CEC",1612,"Land Rights (Formally known as Account 1906)",null,8588,null,null,{"$f":"E17+F17+G17","v":8588},null,{"$f":"'App 2-B FixAsset 2013-CGAAP'!M17","v":-2608},null,null,{"$f":"J17+K17+L17","v":-2608},{"$f":"H17+M17","v":5980},null,{"$f":"AVERAGE(H17,'App 2-B FixAsset 2013-CGAAP'!H17)","v":8588},{"$f":"AVERAGE(M17,'App 2-B FixAsset 2013-CGAAP'!M17)","v":-2608}]
["N/A",1805,"Land",null,10000,null,null,{"$f":"E18+F18+G18","v":10000},null,{"$f":"'App 2-B FixAsset 2013-CGAAP'!M18","v":0},null,null,{"$f":"J18+K18+L18","v":0},{"$f":"H18+M18","v":10000},null,{"$f":"AVERAGE(H18,'App 2-B FixAsset 2013-CGAAP'!H18)","v":10000},{"$f":"AVERAGE(M18,'App 2-B FixAsset 2013-CGAAP'!M18)","v":0}]
[47,1808,"Buildings",null,0,null,null,{"$f":"E19+F19+G19","v":0},null,{"$f":"'App 2-B FixAsset 2013-CGAAP'!M19","v":0},null,null,{"$f":"J19+K19+L19","v":0},{"$f":"H19+M19","v":0},null,{"$f":"AVERAGE(H19,'App 2-B FixAsset 2013-CGAAP'!H19)","v":0},{"$f":"AVERAGE(M19,'App 2-B FixAsset 2013-CGAAP'!M19)","v":0}]
[13,1810,"Leasehold Improvements",null,0,null,null,0,null,{"$f":"'App 2-B FixAsset 2013-CGAAP'!M20","v":0},null,null,0,0,null,{"$f":"AVERAGE(H20,'App 2-B FixAsset 2013-CGAAP'!H20)","v":0},{"$f":"AVERAGE(M20,'App 2-B FixAsset 2013-CGAAP'!M20)","v":0}]
[47,1815,"Transformer Station Equipment >50 kV",null,2030701.74,25000,null,2055701.74,null,{"$f":"'App 2-B FixAsset 2013-CGAAP'!M21","v":-125255.74},-44507,null,-169762.74,1885939,null,{"$f":"AVERAGE(H21,'App 2-B FixAsset 2013-CGAAP'!H21)","v":2043201.74},{"$f":"AVERAGE(M21,'App 2-B FixAsset 2013-CGAAP'!M21)","v":-147509.24}]
[47,1820,"Distribution Station Equipment <50 kV",null,1056183,60000,null,1116183,null,{"$f":"'App 2-B FixAsset 2013-CGAAP'!M22","v":-142005},-27195,null,-169200,946983,null,{"$f":"AVERAGE(H22,'App 2-B FixAsset 2013-CGAAP'!H22)","v":1086183.0449999999},{"$f":"AVERAGE(M22,'App 2-B FixAsset 2013-CGAAP'!M22)","v":-155602.5}]
[47,1825,"Storage Battery Equipment",null,0,null,null,0,null,{"$f":"'App 2-B FixAsset 2013-CGAAP'!M23","v":0},null,null,0,0,null,{"$f":"AVERAGE(H23,'App 2-B FixAsset 2013-CGAAP'!H23)","v":0},{"$f":"AVERAGE(M23,'App 2-B FixAsset 2013-CGAAP'!M23)","v":0}]
[47,1830,"Poles, Towers & Fixtures",null,558627.23,89000,null,647627.23,null,{"$f":"'App 2-B FixAsset 2013-CGAAP'!M24","v":-242140.63},-14131,null,-256271.63,391355.6,null,{"$f":"AVERAGE(H24,'App 2-B FixAsset 2013-CGAAP'!H24)","v":603127.23},{"$f":"AVERAGE(M24,'App 2-B FixAsset 2013-CGAAP'!M24)","v":-249206.13}]
[47,1835,"Overhead Conductors & Devices",null,500830.16,20000,null,520830.16,null,{"$f":"'App 2-B FixAsset 2013-CGAAP'!M25","v":-275972.23},-10588,null,-286560.23,234269.93,null,{"$f":"AVERAGE(H25,'App 2-B FixAsset 2013-CGAAP'!H25)","v":510830.16},{"$f":"AVERAGE(M25,'App 2-B FixAsset 2013-CGAAP'!M25)","v":-281266.23}]
[47,1840,"Underground Conduit",null,114355.12,500,null,114855.12,null,{"$f":"'App 2-B FixAsset 2013-CGAAP'!M26","v":-74591.12},-2763,null,-77354.12,37501,null,{"$f":"AVERAGE(H26,'App 2-B FixAsset 2013-CGAAP'!H26)","v":114605.12},{"$f":"AVERAGE(M26,'App 2-B FixAsset 2013-CGAAP'!M26)","v":-75972.62}]
[47,1845,"Underground Conductors & Devices",null,282912.57,17500,null,300412.57,null,{"$f":"'App 2-B FixAsset 2013-CGAAP'!M27","v":-131128.6},-10837,null,-141965.6,158446.97,null,{"$f":"AVERAGE(H27,'App 2-B FixAsset 2013-CGAAP'!H27)","v":291662.57},{"$f":"AVERAGE(M27,'App 2-B FixAsset 2013-CGAAP'!M27)","v":-136547.1}]
[47,1850,"Line Transformers",null,435244.76000000007,12500,null,447744.76000000007,null,{"$f":"'App 2-B FixAsset 2013-CGAAP'!M28","v":-227115.41},-10250,null,-237365.41,210379.35000000006,null,{"$f":"AVERAGE(H28,'App 2-B FixAsset 2013-CGAAP'!H28)","v":441494.76000000007},{"$f":"AVERAGE(M28,'App 2-B FixAsset 2013-CGAAP'!M28)","v":-232240.41}]
[47,1855,"Services (Overhead & Underground)",null,35419.82,3100,null,38519.82,null,{"$f":"'App 2-B FixAsset 2013-CGAAP'!M29","v":-9644.48},-1232,null,-10876.48,27643.34,null,{"$f":"AVERAGE(H29,'App 2-B FixAsset 2013-CGAAP'!H29)","v":36969.82},{"$f":"AVERAGE(M29,'App 2-B FixAsset 2013-CGAAP'!M29)","v":-10260.48}]
[47,1860,"Meters",null,254843.38,0,-254843.38,0,null,{"$f":"'App 2-B FixAsset 2013-CGAAP'!M30","v":-193343.13},0,193343.13,0,0,null,{"$f":"AVERAGE(H30,'App 2-B FixAsset 2013-CGAAP'!H30)","v":127421.69},{"$f":"AVERAGE(M30,'App 2-B FixAsset 2013-CGAAP'!M30)","v":-96671.565000000002}]
[47,1860,"Meters (Smart Meters)",null,622398.5,3500,null,625898.5,null,{"$f":"'App 2-B FixAsset 2013-CGAAP'!M31","v":-146709.69},-41610,null,-188319.69,437578.81,null,{"$f":"AVERAGE(H31,'App 2-B FixAsset 2013-CGAAP'!H31)","v":624148.5},{"$f":"AVERAGE(M31,'App 2-B FixAsset 2013-CGAAP'!M31)","v":-167514.69}]
["N/A",1905,"Land",null,28299.7,null,null,28299.7,null,{"$f":"'App 2-B FixAsset 2013-CGAAP'!M32","v":0},null,null,0,28299.7,null,{"$f":"AVERAGE(H32,'App 2-B FixAsset 2013-CGAAP'!H32)","v":28299.7},{"$f":"AVERAGE(M32,'App 2-B FixAsset 2013-CGAAP'!M32)","v":0}]
[47,1908,"Buildings & Fixtures  -  BUILDING ROOF",null,183207,0,null,183207,null,{"$f":"'App 2-B FixAsset 2013-CGAAP'!M33","v":-51331},-7329,null,-58660,124547,null,{"$f":"AVERAGE(H33,'App 2-B FixAsset 2013-CGAAP'!H33)","v":183207},{"$f":"AVERAGE(M33,'App 2-B FixAsset 2013-CGAAP'!M33)","v":-54995.5}]
[47,1908,"Buildings & Fixtures  -  INTERIOR FIXTURES",null,265500.77,12500,null,278000.77,null,-82350.77,-18118,null,{"$f":"J34+K34+L34","v":-100468.77},{"$f":"H34+M34","v":177532},null,{"$f":"AVERAGE(H34,'App 2-B FixAsset 2013-CGAAP'!H34)","v":271750.77},{"$f":"AVERAGE(M34,'App 2-B FixAsset 2013-CGAAP'!M34)","v":-91409.76999999999}]
[47,1908,"Buildings & Fixtures  -  STRUCTURE",null,412916,0,null,412916,null,-119167,-8258,null,-127425,285491,null,{"$f":"AVERAGE(H35,'App 2-B FixAsset 2013-CGAAP'!H35)","v":412916},{"$f":"AVERAGE(M35,'App 2-B FixAsset 2013-CGAAP'!M35)","v":-123295.5}]
[13,1910,"Leasehold Improvements",null,0,null,null,0,null,{"$f":"'App 2-B FixAsset 2013-CGAAP'!M36","v":0},null,null,0,0,null,{"$f":"AVERAGE(H36,'App 2-B FixAsset 2013-CGAAP'!H36)","v":0},{"$f":"AVERAGE(M36,'App 2-B FixAsset 2013-CGAAP'!M36)","v":0}]
[8,1915,"Office Furniture & Equipment (10 years)",null,39483.96,3500,null,42983.96,null,{"$f":"'App 2-B FixAsset 2013-CGAAP'!M37","v":-23360.73},-3128,null,-26488.73,16495.23,null,{"$f":"AVERAGE(H37,'App 2-B FixAsset 2013-CGAAP'!H37)","v":41233.96},{"$f":"AVERAGE(M37,'App 2-B FixAsset 2013-CGAAP'!M37)","v":-24924.73}]
[8,1915,"Office Furniture & Equipment (5 years)",null,0,null,null,0,null,{"$f":"'App 2-B FixAsset 2013-CGAAP'!M38","v":0},null,null,0,0,null,{"$f":"AVERAGE(H38,'App 2-B FixAsset 2013-CGAAP'!H38)","v":0},{"$f":"AVERAGE(M38,'App 2-B FixAsset 2013-CGAAP'!M38)","v":0}]
[10,1920,"Computer Equipment - Hardware",null,57878.109999999993,3100,null,60978.109999999993,null,{"$f":"'App 2-B FixAsset 2013-CGAAP'!M39","v":-50778.409999999996},-2981,null,-53759.409999999996,7218.6999999999971,null,{"$f":"AVERAGE(H39,'App 2-B FixAsset 2013-CGAAP'!H39)","v":59428.109999999993},{"$f":"AVERAGE(M39,'App 2-B FixAsset 2013-CGAAP'!M39)","v":-52268.909999999996}]
[45,1920,"Computer Equip.-Hardware(Post Mar. 22/04)",null,0,null,null,0,null,{"$f":"'App 2-B FixAsset 2013-CGAAP'!M40","v":0},null,null,0,0,null,{"$f":"AVERAGE(H40,'App 2-B FixAsset 2013-CGAAP'!H40)","v":0},{"$f":"AVERAGE(M40,'App 2-B FixAsset 2013-CGAAP'!M40)","v":0}]
[45.1,1920,"Computer Equip.-Hardware(Post Mar. 19/07)",null,0,null,null,0,null,{"$f":"'App 2-B FixAsset 2013-CGAAP'!M41","v":0},null,null,0,0,null,{"$f":"AVERAGE(H41,'App 2-B FixAsset 2013-CGAAP'!H41)","v":0},{"$f":"AVERAGE(M41,'App 2-B FixAsset 2013-CGAAP'!M41)","v":0}]
[10,1930,"Transportation Equipment",null,204793.8,null,null,204793.8,null,{"$f":"'App 2-B FixAsset 2013-CGAAP'!M42","v":-198402},-2556,null,-200958,3835.7999999999884,null,{"$f":"AVERAGE(H42,'App 2-B FixAsset 2013-CGAAP'!H42)","v":204793.8},{"$f":"AVERAGE(M42,'App 2-B FixAsset 2013-CGAAP'!M42)","v":-199680}]
[8,1935,"Stores Equipment",null,0,null,null,0,null,{"$f":"'App 2-B FixAsset 2013-CGAAP'!M43","v":0},null,null,0,0,null,{"$f":"AVERAGE(H43,'App 2-B FixAsset 2013-CGAAP'!H43)","v":0},{"$f":"AVERAGE(M43,'App 2-B FixAsset 2013-CGAAP'!M43)","v":0}]
[8,1940,"Tools, Shop & Garage Equipment",null,30996.47,3100,null,34096.47,null,{"$f":"'App 2-B FixAsset 2013-CGAAP'!M44","v":-16089.5},-2576,null,-18665.5,15430.970000000001,null,{"$f":"AVERAGE(H44,'App 2-B FixAsset 2013-CGAAP'!H44)","v":32546.47},{"$f":"AVERAGE(M44,'App 2-B FixAsset 2013-CGAAP'!M44)","v":-17377.5}]
[8,1945,"Measurement & Testing Equipment",null,0,null,null,0,null,{"$f":"'App 2-B FixAsset 2013-CGAAP'!M45","v":0},null,null,0,0,null,{"$f":"AVERAGE(H45,'App 2-B FixAsset 2013-CGAAP'!H45)","v":0},{"$f":"AVERAGE(M45,'App 2-B FixAsset 2013-CGAAP'!M45)","v":0}]
[8,1950,"Power Operated Equipment",null,6363.29,2000,null,8363.2900000000009,null,{"$f":"'App 2-B FixAsset 2013-CGAAP'!M46","v":-4488.7},-375,null,-4863.7,3499.5900000000011,null,{"$f":"AVERAGE(H46,'App 2-B FixAsset 2013-CGAAP'!H46)","v":7363.2900000000009},{"$f":"AVERAGE(M46,'App 2-B FixAsset 2013-CGAAP'!M46)","v":-4676.2},{"$f":"SUM(Q16:Q46)","v":-2287116.2050000001}]
[8,1955,"Communications Equipment",null,0,null,null,0,null,{"$f":"'App 2-B FixAsset 2013-CGAAP'!M47","v":0},null,null,0,0,null,{"$f":"AVERAGE(H47,'App 2-B FixAsset 2013-CGAAP'!H47)","v":0},{"$f":"AVERAGE(M47,'App 2-B FixAsset 2013-CGAAP'!M47)","v":0}]
[8,1955,"Communication Equipment (Smart Meters)",null,0,null,null,0,null,{"$f":"'App 2-B FixAsset 2013-CGAAP'!M48","v":0},null,null,0,0,null,{"$f":"AVERAGE(H48,'App 2-B FixAsset 2013-CGAAP'!H48)","v":0},{"$f":"AVERAGE(M48,'App 2-B FixAsset 2013-CGAAP'!M48)","v":0}]
[8,1960,"Miscellaneous Equipment ",null,0,null,null,0,null,{"$f":"'App 2-B FixAsset 2013-CGAAP'!M49","v":0},null,null,0,0,null,{"$f":"AVERAGE(H49,'App 2-B FixAsset 2013-CGAAP'!H49)","v":0},{"$f":"AVERAGE(M49,'App 2-B FixAsset 2013-CGAAP'!M49)","v":0}]
[47,1975,"Load Management Controls Utility Premises",null,0,null,null,0,null,{"$f":"'App 2-B FixAsset 2013-CGAAP'!M50","v":0},null,null,0,0,null,{"$f":"AVERAGE(H50,'App 2-B FixAsset 2013-CGAAP'!H50)","v":0},{"$f":"AVERAGE(M50,'App 2-B FixAsset 2013-CGAAP'!M50)","v":0}]
[47,1980,"System Supervisor Equipment",null,0,null,null,0,null,{"$f":"'App 2-B FixAsset 2013-CGAAP'!M51","v":0},null,null,0,0,null,{"$f":"AVERAGE(H51,'App 2-B FixAsset 2013-CGAAP'!H51)","v":0},{"$f":"AVERAGE(M51,'App 2-B FixAsset 2013-CGAAP'!M51)","v":0}]
[47,1985,"Miscellaneous Fixed Assets",null,0,null,null,0,null,{"$f":"'App 2-B FixAsset 2013-CGAAP'!M52","v":0},null,null,0,0,null,{"$f":"AVERAGE(H52,'App 2-B FixAsset 2013-CGAAP'!H52)","v":0},{"$f":"AVERAGE(M52,'App 2-B FixAsset 2013-CGAAP'!M52)","v":0}]
[47,1995,"Contributions & Grants - ACCT 1830",null,-77570.38,0,null,-77570.38,null,{"$f":"'App 2-B FixAsset 2013-CGAAP'!M53","v":4233.38},1724,null,5957.38,-71613,null,{"$f":"AVERAGE(H53,'App 2-B FixAsset 2013-CGAAP'!H53)","v":-77570.38},{"$f":"AVERAGE(M53,'App 2-B FixAsset 2013-CGAAP'!M53)","v":5095.38}]
[47,1995,"Contributions & Grants - ACCT 1835",null,-49660.65,0,null,-49660.65,null,3017.65,828,null,{"$f":"J54+K54+L54","v":3845.65},{"$f":"H54+M54","v":-45815},null,{"$f":"AVERAGE(H54,'App 2-B FixAsset 2013-CGAAP'!H54)","v":-49660.65},{"$f":"AVERAGE(M54,'App 2-B FixAsset 2013-CGAAP'!M54)","v":3431.65}]
[47,1995,"Contributions & Grants - ACCT 1840",null,-219.86,0,null,-219.86,null,43.86,4,null,{"$f":"J55+K55+L55","v":47.86},{"$f":"H55+M55","v":-172},null,{"$f":"AVERAGE(H55,'App 2-B FixAsset 2013-CGAAP'!H55)","v":-219.86},{"$f":"AVERAGE(M55,'App 2-B FixAsset 2013-CGAAP'!M55)","v":45.86}]
[47,1995,"Contributions & Grants - ACCT 1845",null,-80350.460000000006,0,null,-80350.460000000006,null,13119.7,2678,null,{"$f":"J56+K56+L56","v":15797.7},{"$f":"H56+M56","v":-64552.760000000009},null,{"$f":"AVERAGE(H56,'App 2-B FixAsset 2013-CGAAP'!H56)","v":-80350.460000000006},{"$f":"AVERAGE(M56,'App 2-B FixAsset 2013-CGAAP'!M56)","v":14458.7}]
[47,1995,"Contributions & Grants - ACCT 1850",null,-46712.83,0,null,-46712.83,null,7669.83,1168,null,{"$f":"J57+K57+L57","v":8837.83},{"$f":"H57+M57","v":-37875},null,{"$f":"AVERAGE(H57,'App 2-B FixAsset 2013-CGAAP'!H57)","v":-46712.83},{"$f":"AVERAGE(M57,'App 2-B FixAsset 2013-CGAAP'!M57)","v":8253.83}]
[null,null,null,null,0,null,null,null,null,0,null,null,null,null,null,{"$f":"AVERAGE(H58,'App 2-B FixAsset 2013-CGAAP'!H58)","v":0},{"$f":"AVERAGE(M58,'App 2-B FixAsset 2013-CGAAP'!M58)","v":0}]
[]
[null,null,"Total",null,{"$f":"SUM(E16:E59)","v":7094053.3100000005},{"$f":"SUM(F16:F59)","v":272300},{"$f":"SUM(G16:G59)","v":-254843.38},{"$f":"SUM(H16:H59)","v":7111509.9299999997},null,{"$f":"SUM(J16:J59)","v":-2241075.8499999996},{"$f":"SUM(K16:K59)","v":-222854},{"$f":"SUM(L16:L59)","v":193343.13},{"$f":"SUM(M16:M59)","v":-2270586.7200000002},{"$f":"SUM(N16:N59)","v":4840923.2100000009},null,{"$f":"SUM(P16:P59)","v":7102781.665000001},{"$f":"SUM(Q16:Q59)","v":-2255830.7850000001}]
[null,null,null,null,null,null,null,{"$f":"AVERAGE(H60,E60)","v":7102781.6200000001},null,null,{"$f":"AVERAGE(K60,'App 2-B FixAsset 2013-CGAAP'!K60)","v":-212925.5},null,{"$f":"AVERAGE(M60,J60)","v":-2255831.2850000001}]
[null,null,null,null,null,null,null,null,null,"Less: Fully Allocated Depreciation"]
[10,null,"Transportation",null,null,null,null,null,null,"Transportation"]
[8,null,"Stores Equipment",null,null,null,null,null,null,"Stores Equipment"]
[null,null,null,null,null,null,null,null,null,"Net Depreciation",null,{"$f":"L60-L63-L64","v":193343.13}]
[]
["Notes:"]
[]
[1,"Tables in the format outlined above covering all fixed asset accounts should be submitted for the Test Year, Bridge Year and all relevant historical years.  At a minimum , the applicant must provide data for the earlier of: 1) all historical years back to its last rebasing; or 2) at least three years of historical actuals, in addition to Bridge Year and Test Year forecasts."]
[]
[]
[2,"The \"CCA Class\" for fixed assets should agree with the CCA Class used for tax purposes in Tax Returns. Fixed Assets sub-components may be used where the underlying asset components are classified under multiple CCA Classes for tax purposes. If an applicant uses any different classes from those shown in the table, an explanation should be provided. (also see note 3 below)."]
[]
[]
[3,"The table may need to be customized for a utility's asset categories or for any new asset accounts announced or authorized by the Board."]
[]
[4,"The depreciation column (D) is not required as the relevant information will be provided in the following 2-C series of appendices."]
[]
[]
[null,null,{"$f":"+G30+L30","v":-61500.25},"Record in 1555 and recuperate through a separate rider"]
[null,null,null,"or"]
[null,null,null,"Record record $254,843.38 and affect rate base"]
[]
[null,null,1555,61500]
[null,null,1860,null,254843.38]
[null,null,2105,193343.13]
[null,null,null,{"$f":"SUM(D84:D86)","v":254843.13},{"$f":"SUM(E84:E86)","v":254843.38}]

{"sheet":"App.2-B_FixAsset 2014-MIFRS","index":11,"n_rows":75,"n_cols":14,"rows_kept":75,"cut":false,"hidden":true,"merged":[[72,1,72,13],[8,0,8,13],[9,0,9,13],[13,4,13,7],[66,1,67,13],[69,1,70,13]]}
[null,null,null,null,null,null,null,null,null,null,null,null,"File Number:",{"$f":"'LDC Info'!$E$18","v":"EB-2013-0139"}]
[null,null,null,null,null,null,null,null,null,null,null,null,"Exhibit:"]
[null,null,null,null,null,null,null,null,null,null,null,null,"Tab:"]
[null,null,null,null,null,null,null,null,null,null,null,null,"Schedule:"]
[null,null,null,null,null,null,null,null,null,null,null,null,"Page:"]
[]
[null,null,null,null,null,null,null,null,null,null,null,null,"Date:"]
[]
["Appendix 2-B"]
["Fixed Asset Continuity Schedule"]
[]
[null,null,null,null,null,"Year ",2014]
[]
[null,null,null,null,"Cost",null,null,null,null,null,"Accumulated Depreciation"]
["CCA Class","OEB","Description","Depreciation Rate","Opening Balance","Additions","Disposals","Closing Balance",null,"Opening Balance","Additions","Disposals","Closing Balance","Net Book Value"]
[12,1611,"Computer Software (Formally known as Account 1925)",null,null,null,null,{"$f":"E16+F16+G16","v":0},null,null,null,null,{"$f":"J16+K16+L16","v":0},{"$f":"H16+M16","v":0}]
["CEC",1612,"Land Rights (Formally known as Account 1906)",null,null,null,null,{"$f":"E17+F17+G17","v":0},null,null,null,null,{"$f":"J17+K17+L17","v":0},{"$f":"H17+M17","v":0}]
["N/A",1805,"Land",null,null,null,null,{"$f":"E18+F18+G18","v":0},null,null,null,null,{"$f":"J18+K18+L18","v":0},{"$f":"H18+M18","v":0}]
[47,1808,"Buildings",null,null,null,null,{"$f":"E19+F19+G19","v":0},null,null,null,null,{"$f":"J19+K19+L19","v":0},{"$f":"H19+M19","v":0}]
[13,1810,"Leasehold Improvements",null,null,null,null,0,null,null,null,null,0,0]
[47,1815,"Transformer Station Equipment >50 kV",null,null,null,null,0,null,null,null,null,0,0]
[47,1820,"Distribution Station Equipment <50 kV",null,null,null,null,0,null,null,null,null,0,0]
[47,1825,"Storage Battery Equipment",null,null,null,null,0,null,null,null,null,0,0]
[47,1830,"Poles, Towers & Fixtures",null,null,null,null,0,null,null,null,null,0,0]
[47,1835,"Overhead Conductors & Devices",null,null,null,null,0,null,null,null,null,0,0]
[47,1840,"Underground Conduit",null,null,null,null,0,null,null,null,null,0,0]
[47,1845,"Underground Conductors & Devices",null,null,null,null,0,null,null,null,null,0,0]
[47,1850,"Line Transformers",null,null,null,null,0,null,null,null,null,0,0]
[47,1855,"Services (Overhead & Underground)",null,null,null,null,0,null,null,null,null,0,0]
[47,1860,"Meters",null,null,null,null,0,null,null,null,null,0,0]
[47,1860,"Meters (Smart Meters)",null,null,null,null,0,null,null,null,null,0,0]
["N/A",1905,"Land",null,null,null,null,0,null,null,null,null,0,0]
[47,1908,"Buildings & Fixtures",null,null,null,null,0,null,null,null,null,0,0]
[13,1910,"Leasehold Improvements",null,null,null,null,0,null,null,null,null,0,0]
[8,1915,"Office Furniture & Equipment (10 years)",null,null,null,null,0,null,null,null,null,0,0]
[8,1915,"Office Furniture & Equipment (5 years)",null,null,null,null,0,null,null,null,null,0,0]
[10,1920,"Computer Equipment - Hardware",null,null,null,null,0,null,null,null,null,0,0]
[45,1920,"Computer Equip.-Hardware(Post Mar. 22/04)",null,null,null,null,0,null,null,null,null,0,0]
[45.1,1920,"Computer Equip.-Hardware(Post Mar. 19/07)",null,null,null,null,0,null,null,null,null,0,0]
[10,1930,"Transportation Equipment",null,null,null,null,0,null,null,null,null,0,0]
[8,1935,"Stores Equipment",null,null,null,null,0,null,null,null,null,0,0]
[8,1940,"Tools, Shop & Garage Equipment",null,null,null,null,0,null,null,null,null,0,0]
[8,1945,"Measurement & Testing Equipment",null,null,null,null,0,null,null,null,null,0,0]
[8,1950,"Power Operated Equipment",null,null,null,null,0,null,null,null,null,0,0]
[8,1955,"Communications Equipment",null,null,null,null,0,null,null,null,null,0,0]
[8,1955,"Communication Equipment (Smart Meters)",null,null,null,null,0,null,null,null,null,0,0]
[8,1960,"Miscellaneous Equipment ",null,null,null,null,0,null,null,null,null,0,0]
[47,1975,"Load Management Controls Utility Premises",null,null,null,null,0,null,null,null,null,0,0]
[47,1980,"System Supervisor Equipment",null,null,null,null,0,null,null,null,null,0,0]
[47,1985,"Miscellaneous Fixed Assets",null,null,null,null,0,null,null,null,null,0,0]
[47,1995,"Contributions & Grants",null,null,null,null,0,null,null,null,null,0,0]
[null,null,"Smart Meter Additions (from 1555)",null,null,null,null,0,null,null,null,null,{"$f":"J52+K52+L52","v":0},{"$f":"H52+M52","v":0}]
[8,1860,"Meters (Smart Meters)",null,null,null,null,0,null,null,null,null,{"$f":"J53+K53+L53","v":0},{"$f":"H53+M53","v":0}]
[45.1,1920,"Computer Hardware (Smart Meters)",null,null,null,null,0,null,null,null,null,{"$f":"J54+K54+L54","v":0},{"$f":"H54+M54","v":0}]
[12,1925,"Computer Software (Smart Meters)",null,null,null,null,0,null,null,null,null,{"$f":"J55+K55+L55","v":0},{"$f":"H55+M55","v":0}]
[]
[]
[null,null,"Total",null,{"$f":"SUM(E16:E57)","v":0},{"$f":"SUM(F16:F57)","v":0},{"$f":"SUM(G16:G57)","v":0},{"$f":"SUM(H16:H57)","v":0},null,{"$f":"SUM(J16:J57)","v":0},{"$f":"SUM(K16:K57)","v":0},{"$f":"SUM(L16:L57)","v":0},{"$f":"SUM(M16:M57)","v":0},{"$f":"SUM(N16:N57)","v":0}]
[]
[null,null,null,null,null,null,null,null,null,"Less: Fully Allocated Depreciation"]
[10,null,"Transportation",null,null,null,null,null,null,"Transportation"]
[8,null,"Stores Equipment",null,null,null,null,null,null,"Stores Equipment"]
[null,null,null,null,null,null,null,null,null,"Net Depreciation",null,{"$f":"L58-L61-L62","v":0}]
[]
["Notes:"]
[]
[1,"Tables in the format outlined above covering all fixed asset accounts should be submitted for the Test Year, Bridge Year and all relevant historical years.  At a minimum , the applicant must provide data for the earlier of: 1) all historical years back to its last rebasing; or 2) at least three years of historical actuals, in addition to Bridge Year and Test Year forecasts."]
[]
[]
[2,"The \"CCA Class\" for fixed assets should agree with the CCA Class used for tax purposes in Tax Returns. Fixed Assets sub-components may be used where the underlying asset components are classified under multiple CCA Classes for tax purposes. If an applicant uses any different classes from those shown in the table, an explanation should be provided. (also see note 3 below)."]
[]
[]
[3,"The table may need to be customized for a utility's asset categories or for any new asset accounts announced or authorized by the Board."]
[]
[4,"The depreciation column (D) is not required as the relevant information will be provided in the following 2-C series of appendices."]

{"sheet":"App.2-CA_CGAAP_DepExp_2012","index":12,"n_rows":61,"n_cols":12,"rows_kept":61,"cut":false,"hidden":true,"merged":[[10,0,10,11],[8,0,8,11],[9,0,9,11],[57,1,57,11],[60,1,61,11],[58,1,59,9],[13,0,14,0],[13,1,14,1],[13,10,14,10]]}
[null,null,null,null,null,null,null,null,null,null,"File Number:",{"$f":"'LDC Info'!$E$18","v":"EB-2013-0139"}]
[null,null,null,null,null,null,null,null,null,null,"Exhibit:"]
[null,null,null,null,null,null,null,null,null,null,"Tab:"]
[null,null,null,null,null,null,null,null,null,null,"Schedule:"]
[null,null,null,null,null,null,null,null,null,null,"Page:"]
[]
[null,null,null,null,null,null,null,null,null,null,"Date:"]
[]
["Appendix 2-CA"]
["Depreciation and Amortization Expense"]
["Assumes the applicant adopted IFRS for financial reporting purposes January 1, 2012"]
[null,null,"Year",2011,"CGAAP"]
[]
["Account","Description","Opening Regulatory Gross PP&E as at Jan 1, 2011 ","Less Fully Depreciated","Net for Depreciation","Additions","Total for Depreciation","Years","Depreciation Rate","Depreciation Expense","2011 Depreciation Expense per Appendix 2-B Fixed Assets, Column K \n (l)","Variance 2"]
[null,null,"(a)","(b)","(c)","(d)","(e) = (c) + ½ x (d) 1","(f)","(g) = 1 / (f)","(h) = (e) / (f)",null,"(m) = (h) - (l)"]
[1611,"Computer Software (Formally known as Account 1925)",null,null,{"$f":"C16-D16","v":0},null,{"$f":"E16+0.5*F16","v":0},null,{"$f":"IF(H16=0,0,1/H16)","v":0},{"$f":"IF(H16=0,0,G16/H16)","v":0},null,{"$f":"IF(ISERROR(+J16-K16), 0, +J16-K16)","v":0}]
[1612,"Land Rights (Formally known as Account 1906)",null,null,{"$f":"C17-D17","v":0},null,{"$f":"E17+0.5*F17","v":0},null,0,0,null,0]
[1805,"Land",null,null,0,null,0,null,0,0,null,0]
[1808,"Buildings",null,null,0,null,0,null,0,0,null,0]
[1810,"Leasehold Improvements",null,null,0,null,0,null,0,0,null,0]
[1815,"Transformer Station Equipment >50 kV",null,null,0,null,0,null,0,0,null,0]
[1820,"Distribution Station Equipment <50 kV",null,null,0,null,0,null,0,0,null,0]
[1825,"Storage Battery Equipment",null,null,0,null,0,null,0,0,null,0]
[1830,"Poles, Towers & Fixtures",null,null,0,null,0,null,0,0,null,0]
[1835,"Overhead Conductors & Devices",null,null,0,null,0,null,0,0,null,0]
[1840,"Underground Conduit",null,null,0,null,0,null,0,0,null,0]
[1845,"Underground Conductors & Devices",null,null,0,null,0,null,0,0,null,0]
[1850,"Line Transformers",null,null,0,null,0,null,0,0,null,0]
[1855,"Services (Overhead & Underground)",null,null,0,null,0,null,0,0,null,0]
[1860,"Meters",null,null,0,null,0,null,0,0,null,0]
[1860,"Meters (Smart Meters)",null,null,0,null,0,null,0,0,null,0]
[1905,"Land",null,null,0,null,0,null,0,0,null,0]
[1908,"Buildings & Fixtures",null,null,0,null,0,null,0,0,null,0]
[1910,"Leasehold Improvements",null,null,0,null,0,null,0,0,null,0]
[1915,"Office Furniture & Equipment (10 years)",null,null,0,null,0,null,0,0,null,0]
[1915,"Office Furniture & Equipment (5 years)",null,null,0,null,0,null,0,0,null,0]
[1920,"Computer Equipment - Hardware",null,null,0,null,0,null,0,0,null,0]
[1920,"Computer Equip.-Hardware(Post Mar. 22/04)",null,null,0,null,0,null,0,0,null,0]
[1920,"Computer Equip.-Hardware(Post Mar. 19/07)",null,null,0,null,0,null,0,0,null,0]
[1930,"Transportation Equipment",null,null,0,null,0,null,0,0,null,0]
[1935,"Stores Equipment",null,null,0,null,0,null,0,0,null,0]
[1940,"Tools, Shop & Garage Equipment",null,null,0,null,0,null,0,0,null,0]
[1945,"Measurement & Testing Equipment",null,null,0,null,0,null,0,0,null,0]
[1950,"Power Operated Equipment",null,null,0,null,0,null,0,0,null,0]
[1955,"Communications Equipment",null,null,0,null,0,null,0,0,null,0]
[1955,"Communication Equipment (Smart Meters)",null,null,0,null,0,null,0,0,null,0]
[1960,"Miscellaneous Equipment ",null,null,0,null,0,null,0,0,null,0]
[1975,"Load Management Controls Utility Premises",null,null,0,null,0,null,0,0,null,0]
[1980,"System Supervisor Equipment",null,null,0,null,0,null,0,0,null,0]
[1985,"Miscellaneous Fixed Assets",null,null,0,null,0,null,0,0,null,0]
[1995,"Contributions & Grants",null,null,0,null,0,null,0,0,null,0]
["etc.",null,null,null,0,null,0,null,0,0,null,0]
[null,null,null,null,0,null,0,null,0,0,null,0]
[null,"Total",{"$f":"SUM(C16:C53)","v":0},{"$f":"SUM(D16:D53)","v":0},{"$f":"SUM(E16:E53)","v":0},{"$f":"SUM(F16:F53)","v":0},{"$f":"SUM(G16:G53)","v":0},null,null,{"$f":"SUM(J16:J53)","v":0},{"$f":"SUM(K16:K53)","v":0},{"$f":"SUM(L16:L53)","v":0}]
[]
["Notes:"]
[]
[1,"Board policy of the \"half-year\" rule - the applicant must ensure that additions in the year attract a half-year depreciation expense in the first year.  Deviations from this standard practice must be supported in the application."]
[2,"The applicant must provide an explanation of material variances in evidence"]
[]
["General","Applicants must provide a breakdown of depreciation and amortization expense in the above format for all relevant accounts.  Asset Retirement Obligations (AROs), depreciation and accretion expense should be disclosed separately consistent with the Notes of historical Audited Financial Statements."]

{"sheet":"App.2-CB_MIFRS_DepExp_2012","index":13,"n_rows":65,"n_cols":15,"rows_kept":65,"cut":false,"hidden":true,"merged":[[8,0,8,14],[9,0,9,14],[10,0,10,14],[61,1,61,14],[64,1,65,14],[57,1,57,14],[58,1,58,14],[59,1,59,14],[60,1,60,14],[13,0,14,0],[13,1,14,1],[13,10,14,10],[13,13,14,13],[62,1,62,14]]}
[null,null,null,null,null,null,null,null,null,null,null,null,null,"File Number:",{"$f":"'LDC Info'!$E$18","v":"EB-2013-0139"}]
[null,null,null,null,null,null,null,null,null,null,null,null,null,"Exhibit:"]
[null,null,null,null,null,null,null,null,null,null,null,null,null,"Tab:"]
[null,null,null,null,null,null,null,null,null,null,null,null,null,"Schedule:"]
[null,null,null,null,null,null,null,null,null,null,null,null,null,"Page:"]
[]
[null,null,null,null,null,null,null,null,null,null,null,null,null,"Date:"]
[]
["Appendix 2-CB"]
["Depreciation and Amortization Expense"]
["Assumes the applicant adopted IFRS for financial reporting purposes January 1, 2012"]
[null,null,"Year",2011,"MIFRS"]
[]
["Account","Description","Opening NBV as at Jan 1, 2011 5","Additions","Average Remaining Life of Opening NBV 4","Years (new additions only) 3","Depreciation Rate on New Additions","Depreciation Expense on Opening NBV","Depreciation Expense on Additions 1","2011 Depreciation Expense","2011 Depreciation Expense per Appendix 2-B Fixed Assets, Column K \n (l)","Variance 2","Depreciation Expense on 2011 Full Year Additions","Less Depreciation Expense on Assets Fully Depreciated during the year\n(o)","2011 Full Year Depreciation 6"]
[null,null,"(a)","(d)","(i)","(f)","(g) = 1 / (f)","(j) = (a) / (i)","(h)=((d)*0.5)/(f) ","(k) = (j) + (h)",null,"(m) = (k) - (l)","(n) = (d)/(f) ",null,"(p) = (j) + (n) - (o)"]
[1611,"Computer Software (Formally known as Account 1925)",null,null,null,null,{"$f":"IF(F16=0,0,1/F16)","v":0},{"$f":"IF(E16=0,0,+C16/E16)","v":0},{"$f":"IF(F16=0,0,+(D16*0.5)/F16)","v":0},{"$f":"IF(ISERROR(+H16+I16), 0, +H16+I16)","v":0},null,{"$f":"IF(ISERROR(+J16-K16), 0, +J16-K16)","v":0},{"$f":"IF(F16=0,0,+(D16)/F16)","v":0},null,{"$f":"IF(ISERROR(+M16+H16-N16), 0, +M16+H16-N16)","v":0}]
[1612,"Land Rights (Formally known as Account 1906)",null,null,null,null,0,0,0,0,null,0,0,null,{"$f":"IF(ISERROR(+M17+H17-N17), 0, +M17+H17-N17)","v":0}]
[1805,"Land",null,null,null,null,0,0,0,0,null,0,0,null,0]
[1808,"Buildings",null,null,null,null,0,0,0,0,null,0,0,null,0]
[1810,"Leasehold Improvements",null,null,null,null,0,0,0,0,null,0,0,null,0]
[1815,"Transformer Station Equipment >50 kV",null,null,null,null,0,0,0,0,null,0,0,null,0]
[1820,"Distribution Station Equipment <50 kV",null,null,null,null,0,0,0,0,null,0,0,null,0]
[1825,"Storage Battery Equipment",null,null,null,null,0,0,0,0,null,0,0,null,0]
[1830,"Poles, Towers & Fixtures",null,null,null,null,0,0,0,0,null,0,0,null,0]
[1835,"Overhead Conductors & Devices",null,null,null,null,0,0,0,0,null,0,0,null,0]
[1840,"Underground Conduit",null,null,null,null,0,0,0,0,null,0,0,null,0]
[1845,"Underground Conductors & Devices",null,null,null,null,0,0,0,0,null,0,0,null,0]
[1850,"Line Transformers",null,null,null,null,0,0,0,0,null,0,0,null,0]
[1855,"Services (Overhead & Underground)",null,null,null,null,0,0,0,0,null,0,0,null,0]
[1860,"Meters",null,null,null,null,0,0,0,0,null,0,0,null,0]
[1860,"Meters (Smart Meters)",null,null,null,null,0,0,0,0,null,0,0,null,0]
[1905,"Land",null,null,null,null,0,0,0,0,null,0,0,null,0]
[1908,"Buildings & Fixtures",null,null,null,null,0,0,0,0,null,0,0,null,0]
[1910,"Leasehold Improvements",null,null,null,null,0,0,0,0,null,0,0,null,0]
[1915,"Office Furniture & Equipment (10 years)",null,null,null,null,0,0,0,0,null,0,0,null,0]
[1915,"Office Furniture & Equipment (5 years)",null,null,null,null,0,0,0,0,null,0,0,null,0]
[1920,"Computer Equipment - Hardware",null,null,null,null,0,0,0,0,null,0,0,null,0]
[1920,"Computer Equip.-Hardware(Post Mar. 22/04)",null,null,null,null,0,0,0,0,null,0,0,null,0]
[1920,"Computer Equip.-Hardware(Post Mar. 19/07)",null,null,null,null,0,0,0,0,null,0,0,null,0]
[1930,"Transportation Equipment",null,null,null,null,0,0,0,0,null,0,0,null,0]
[1935,"Stores Equipment",null,null,null,null,0,0,0,0,null,0,0,null,0]
[1940,"Tools, Shop & Garage Equipment",null,null,null,null,0,0,0,0,null,0,0,null,0]
[1945,"Measurement & Testing Equipment",null,null,null,null,0,0,0,0,null,0,0,null,0]
[1950,"Power Operated Equipment",null,null,null,null,0,0,0,0,null,0,0,null,0]
[1955,"Communications Equipment",null,null,null,null,0,0,0,0,null,0,0,null,0]
[1955,"Communication Equipment (Smart Meters)",null,null,null,null,0,0,0,0,null,0,0,null,0]
[1960,"Miscellaneous Equipment ",null,null,null,null,0,0,0,0,null,0,0,null,0]
[1975,"Load Management Controls Utility Premises",null,null,null,null,0,0,0,0,null,0,0,null,0]
[1980,"System Supervisor Equipment",null,null,null,null,0,0,0,0,null,0,0,null,0]
[1985,"Miscellaneous Fixed Assets",null,null,null,null,0,0,0,0,null,0,0,null,0]
[1995,"Contributions & Grants",null,null,null,null,0,0,0,0,null,0,0,null,0]
["etc.",null,null,null,null,null,0,0,0,0,null,0,0,null,0]
[null,null,null,null,null,null,0,0,0,0,null,0,0,null,0]
[null,"Total",{"$f":"SUM(C16:C53)","v":0},{"$f":"SUM(D16:D53)","v":0},null,null,null,{"$f":"SUM(H16:H53)","v":0},0,0,0,0,0,{"$f":"SUM(N16:N53)","v":0},0]
[]
["Notes:"]
[]
[1,"Board policy of the \"half-year\" rule - the applicant must ensure that additions in the year attract a half-year depreciation expense in the first year.  Deviations from this standard practice must be supported in the application."]
[2,"The applicant must provide an explanation of material variances in evidence"]
[3,"The applicant should ensure that the years for new additions of assets are the asset useful lives determined by management in accordance with IFRS. "]
[4,"A recalculation should be performed to determine the average remaining life of opening balance of assets (i.e. excluding 2011 additions) under IFRS.  For example, Asset A had a useful life of 20 years under CGAAP.  On January 1, 2011, the date of transition, Asset A was 3 years depreciated. As a result, Asset A would have a remaining service life of 17 years (20 years less 3 years) under CGAAP as of January 1, 2011.  Due to the transition to IFRS, management re-assessed the asset useful lives under IFRS principles and concluded that the revised useful life of Asset A is now 30 years. Therefore, the average remaining useful life of opening balance of Asset A is determined to be 27 years (30 years less 3 years) under IFRS as of January 1, 2011."]
[5," NBV must exclude assets still on the books but which have been fully amortized or depreciated."]
[6,"This column refers to the calculated full year depreciation but excludes the depreciation expense on assets fully depreciated during the year.  This column is used for the purpose of calculating depreciation expense in the following year on the next worksheet."]
[]
["General:","Applicants must provide a breakdown of depreciation and amortization expense in the above format for all relevant accounts.  Asset Retirement Obligations (AROs), depreciation and accretion expense should be disclosed separately consistent with the Notes of historical Audited Financial Statements."]

{"sheet":"App.2-CC_MIFRS_DepExp_2013","index":14,"n_rows":61,"n_cols":11,"rows_kept":61,"cut":false,"hidden":true,"merged":[[60,1,61,10],[13,0,14,0],[13,1,14,1],[13,6,14,6],[10,0,10,10],[13,9,14,9],[8,0,8,10],[56,1,56,10],[57,1,57,10],[58,1,58,10],[9,0,9,10]]}
[null,null,null,null,null,null,null,null,null,"File Number:",{"$f":"'LDC Info'!$E$18","v":"EB-2013-0139"}]
[null,null,null,null,null,null,null,null,null,"Exhibit:"]
[null,null,null,null,null,null,null,null,null,"Tab:"]
[null,null,null,null,null,null,null,null,null,"Schedule:"]
[null,null,null,null,null,null,null,null,null,"Page:"]
[]
[null,null,null,null,null,null,null,null,null,"Date:"]
[]
["Appendix 2-CC"]
["Depreciation and Amortization Expense"]
["Assumes the applicant adopted IFRS for financial reporting purposes January 1, 2012"]
[null,null,2012,"MIFRS"]
[]
["Account","Description","Additions","Years (new additions only)","Depreciation Rate on New Additions","2012 Depreciation Expense 1","2012 Depreciation Expense per Apppendix 2-B Fixed Assets, Column K\n (l)","Variance 2","Depreciation Expense on 2012 Full Year Additions","Less Depreciation Expense on Assets Fully Depreciated during the year\n(o)","2012 Full Year Depreciation 3"]
[null,null,"(d)","(f)","(g) = 1 / (f)","(h)=2011 Full Year Deprecation + ((d)*0.5)/(f) ",null,"(m) = (h) - (l)","(n)=((d))/(f) ",null,"(o) = 2011 Full Year Depreciation  + (n) - (o)"]
[1611,"Computer Software (Formally known as Account 1925)",null,null,{"$f":"IF(D16=0,0,1/D16)","v":0},{"$f":"IF(D16=0,+'App.2-CB_MIFRS_DepExp_2012'!O16,+'App.2-CB_MIFRS_DepExp_2012'!O16+((C16*0.5)/D16))","v":0},null,{"$f":"IF(ISERROR(+F16-G16), 0, +F16-G16)","v":0},{"$f":"IF(D16=0,0,+(C16)/D16)","v":0},null,{"$f":"IF(ISERROR(+I16+'App.2-CB_MIFRS_DepExp_2012'!O16-J16), 0, +I16+'App.2-CB_MIFRS_DepExp_2012'!O16-J16)","v":0}]
[1612,"Land Rights (Formally known as Account 1906)",null,null,0,{"$f":"IF(D17=0,+'App.2-CB_MIFRS_DepExp_2012'!O17,+'App.2-CB_MIFRS_DepExp_2012'!O17+((C17*0.5)/D17))","v":0},null,0,0,null,{"$f":"IF(ISERROR(+I17+'App.2-CB_MIFRS_DepExp_2012'!O17-J17), 0, +I17+'App.2-CB_MIFRS_DepExp_2012'!O17-J17)","v":0}]
[1805,"Land",null,null,0,{"$f":"IF(D18=0,+'App.2-CB_MIFRS_DepExp_2012'!O18,+'App.2-CB_MIFRS_DepExp_2012'!O18+((C18*0.5)/D18))","v":0},null,0,0,null,{"$f":"IF(ISERROR(+I18+'App.2-CB_MIFRS_DepExp_2012'!O18-J18), 0, +I18+'App.2-CB_MIFRS_DepExp_2012'!O18-J18)","v":0}]
[1808,"Buildings",null,null,0,{"$f":"IF(D19=0,+'App.2-CB_MIFRS_DepExp_2012'!O19,+'App.2-CB_MIFRS_DepExp_2012'!O19+((C19*0.5)/D19))","v":0},null,0,0,null,{"$f":"IF(ISERROR(+I19+'App.2-CB_MIFRS_DepExp_2012'!O19-J19), 0, +I19+'App.2-CB_MIFRS_DepExp_2012'!O19-J19)","v":0}]
[1810,"Leasehold Improvements",null,null,0,{"$f":"IF(D20=0,+'App.2-CB_MIFRS_DepExp_2012'!O20,+'App.2-CB_MIFRS_DepExp_2012'!O20+((C20*0.5)/D20))","v":0},null,0,0,null,{"$f":"IF(ISERROR(+I20+'App.2-CB_MIFRS_DepExp_2012'!O20-J20), 0, +I20+'App.2-CB_MIFRS_DepExp_2012'!O20-J20)","v":0}]
[1815,"Transformer Station Equipment >50 kV",null,null,0,{"$f":"IF(D21=0,+'App.2-CB_MIFRS_DepExp_2012'!O21,+'App.2-CB_MIFRS_DepExp_2012'!O21+((C21*0.5)/D21))","v":0},null,0,0,null,{"$f":"IF(ISERROR(+I21+'App.2-CB_MIFRS_DepExp_2012'!O21-J21), 0, +I21+'App.2-CB_MIFRS_DepExp_2012'!O21-J21)","v":0}]
[1820,"Distribution Station Equipment <50 kV",null,null,0,{"$f":"IF(D22=0,+'App.2-CB_MIFRS_DepExp_2012'!O22,+'App.2-CB_MIFRS_DepExp_2012'!O22+((C22*0.5)/D22))","v":0},null,0,0,null,{"$f":"IF(ISERROR(+I22+'App.2-CB_MIFRS_DepExp_2012'!O22-J22), 0, +I22+'App.2-CB_MIFRS_DepExp_2012'!O22-J22)","v":0}]
[1825,"Storage Battery Equipment",null,null,0,{"$f":"IF(D23=0,+'App.2-CB_MIFRS_DepExp_2012'!O23,+'App.2-CB_MIFRS_DepExp_2012'!O23+((C23*0.5)/D23))","v":0},null,0,0,null,{"$f":"IF(ISERROR(+I23+'App.2-CB_MIFRS_DepExp_2012'!O23-J23), 0, +I23+'App.2-CB_MIFRS_DepExp_2012'!O23-J23)","v":0}]
[1830,"Poles, Towers & Fixtures",null,null,0,{"$f":"IF(D24=0,+'App.2-CB_MIFRS_DepExp_2012'!O24,+'App.2-CB_MIFRS_DepExp_2012'!O24+((C24*0.5)/D24))","v":0},null,0,0,null,{"$f":"IF(ISERROR(+I24+'App.2-CB_MIFRS_DepExp_2012'!O24-J24), 0, +I24+'App.2-CB_MIFRS_DepExp_2012'!O24-J24)","v":0}]
[1835,"Overhead Conductors & Devices",null,null,0,{"$f":"IF(D25=0,+'App.2-CB_MIFRS_DepExp_2012'!O25,+'App.2-CB_MIFRS_DepExp_2012'!O25+((C25*0.5)/D25))","v":0},null,0,0,null,{"$f":"IF(ISERROR(+I25+'App.2-CB_MIFRS_DepExp_2012'!O25-J25), 0, +I25+'App.2-CB_MIFRS_DepExp_2012'!O25-J25)","v":0}]
[1840,"Underground Conduit",null,null,0,{"$f":"IF(D26=0,+'App.2-CB_MIFRS_DepExp_2012'!O26,+'App.2-CB_MIFRS_DepExp_2012'!O26+((C26*0.5)/D26))","v":0},null,0,0,null,{"$f":"IF(ISERROR(+I26+'App.2-CB_MIFRS_DepExp_2012'!O26-J26), 0, +I26+'App.2-CB_MIFRS_DepExp_2012'!O26-J26)","v":0}]
[1845,"Underground Conductors & Devices",null,null,0,{"$f":"IF(D27=0,+'App.2-CB_MIFRS_DepExp_2012'!O27,+'App.2-CB_MIFRS_DepExp_2012'!O27+((C27*0.5)/D27))","v":0},null,0,0,null,{"$f":"IF(ISERROR(+I27+'App.2-CB_MIFRS_DepExp_2012'!O27-J27), 0, +I27+'App.2-CB_MIFRS_DepExp_2012'!O27-J27)","v":0}]
[1850,"Line Transformers",null,null,0,{"$f":"IF(D28=0,+'App.2-CB_MIFRS_DepExp_2012'!O28,+'App.2-CB_MIFRS_DepExp_2012'!O28+((C28*0.5)/D28))","v":0},null,0,0,null,{"$f":"IF(ISERROR(+I28+'App.2-CB_MIFRS_DepExp_2012'!O28-J28), 0, +I28+'App.2-CB_MIFRS_DepExp_2012'!O28-J28)","v":0}]
[1855,"Services (Overhead & Underground)",null,null,0,{"$f":"IF(D29=0,+'App.2-CB_MIFRS_DepExp_2012'!O29,+'App.2-CB_MIFRS_DepExp_2012'!O29+((C29*0.5)/D29))","v":0},null,0,0,null,{"$f":"IF(ISERROR(+I29+'App.2-CB_MIFRS_DepExp_2012'!O29-J29), 0, +I29+'App.2-CB_MIFRS_DepExp_2012'!O29-J29)","v":0}]
[1860,"Meters",null,null,0,{"$f":"IF(D30=0,+'App.2-CB_MIFRS_DepExp_2012'!O30,+'App.2-CB_MIFRS_DepExp_2012'!O30+((C30*0.5)/D30))","v":0},null,0,0,null,{"$f":"IF(ISERROR(+I30+'App.2-CB_MIFRS_DepExp_2012'!O30-J30), 0, +I30+'App.2-CB_MIFRS_DepExp_2012'!O30-J30)","v":0}]
[1860,"Meters (Smart Meters)",null,null,0,{"$f":"IF(D31=0,+'App.2-CB_MIFRS_DepExp_2012'!O31,+'App.2-CB_MIFRS_DepExp_2012'!O31+((C31*0.5)/D31))","v":0},null,0,0,null,{"$f":"IF(ISERROR(+I31+'App.2-CB_MIFRS_DepExp_2012'!O31-J31), 0, +I31+'App.2-CB_MIFRS_DepExp_2012'!O31-J31)","v":0}]
[1905,"Land",null,null,0,{"$f":"IF(D32=0,+'App.2-CB_MIFRS_DepExp_2012'!O32,+'App.2-CB_MIFRS_DepExp_2012'!O32+((C32*0.5)/D32))","v":0},null,0,0,null,{"$f":"IF(ISERROR(+I32+'App.2-CB_MIFRS_DepExp_2012'!O32-J32), 0, +I32+'App.2-CB_MIFRS_DepExp_2012'!O32-J32)","v":0}]
[1908,"Buildings & Fixtures",null,null,0,{"$f":"IF(D33=0,+'App.2-CB_MIFRS_DepExp_2012'!O33,+'App.2-CB_MIFRS_DepExp_2012'!O33+((C33*0.5)/D33))","v":0},null,0,0,null,{"$f":"IF(ISERROR(+I33+'App.2-CB_MIFRS_DepExp_2012'!O33-J33), 0, +I33+'App.2-CB_MIFRS_DepExp_2012'!O33-J33)","v":0}]
[1910,"Leasehold Improvements",null,null,0,{"$f":"IF(D34=0,+'App.2-CB_MIFRS_DepExp_2012'!O34,+'App.2-CB_MIFRS_DepExp_2012'!O34+((C34*0.5)/D34))","v":0},null,0,0,null,{"$f":"IF(ISERROR(+I34+'App.2-CB_MIFRS_DepExp_2012'!O34-J34), 0, +I34+'App.2-CB_MIFRS_DepExp_2012'!O34-J34)","v":0}]
[1915,"Office Furniture & Equipment (10 years)",null,null,0,{"$f":"IF(D35=0,+'App.2-CB_MIFRS_DepExp_2012'!O35,+'App.2-CB_MIFRS_DepExp_2012'!O35+((C35*0.5)/D35))","v":0},null,0,0,null,{"$f":"IF(ISERROR(+I35+'App.2-CB_MIFRS_DepExp_2012'!O35-J35), 0, +I35+'App.2-CB_MIFRS_DepExp_2012'!O35-J35)","v":0}]
[1915,"Office Furniture & Equipment (5 years)",null,null,0,{"$f":"IF(D36=0,+'App.2-CB_MIFRS_DepExp_2012'!O36,+'App.2-CB_MIFRS_DepExp_2012'!O36+((C36*0.5)/D36))","v":0},null,0,0,null,{"$f":"IF(ISERROR(+I36+'App.2-CB_MIFRS_DepExp_2012'!O36-J36), 0, +I36+'App.2-CB_MIFRS_DepExp_2012'!O36-J36)","v":0}]
[1920,"Computer Equipment - Hardware",null,null,0,{"$f":"IF(D37=0,+'App.2-CB_MIFRS_DepExp_2012'!O37,+'App.2-CB_MIFRS_DepExp_2012'!O37+((C37*0.5)/D37))","v":0},null,0,0,null,{"$f":"IF(ISERROR(+I37+'App.2-CB_MIFRS_DepExp_2012'!O37-J37), 0, +I37+'App.2-CB_MIFRS_DepExp_2012'!O37-J37)","v":0}]
[1920,"Computer Equip.-Hardware(Post Mar. 22/04)",null,null,0,{"$f":"IF(D38=0,+'App.2-CB_MIFRS_DepExp_2012'!O38,+'App.2-CB_MIFRS_DepExp_2012'!O38+((C38*0.5)/D38))","v":0},null,0,0,null,{"$f":"IF(ISERROR(+I38+'App.2-CB_MIFRS_DepExp_2012'!O38-J38), 0, +I38+'App.2-CB_MIFRS_DepExp_2012'!O38-J38)","v":0}]
[1920,"Computer Equip.-Hardware(Post Mar. 19/07)",null,null,0,{"$f":"IF(D39=0,+'App.2-CB_MIFRS_DepExp_2012'!O39,+'App.2-CB_MIFRS_DepExp_2012'!O39+((C39*0.5)/D39))","v":0},null,0,0,null,{"$f":"IF(ISERROR(+I39+'App.2-CB_MIFRS_DepExp_2012'!O39-J39), 0, +I39+'App.2-CB_MIFRS_DepExp_2012'!O39-J39)","v":0}]
[1930,"Transportation Equipment",null,null,0,{"$f":"IF(D40=0,+'App.2-CB_MIFRS_DepExp_2012'!O40,+'App.2-CB_MIFRS_DepExp_2012'!O40+((C40*0.5)/D40))","v":0},null,0,0,null,{"$f":"IF(ISERROR(+I40+'App.2-CB_MIFRS_DepExp_2012'!O40-J40), 0, +I40+'App.2-CB_MIFRS_DepExp_2012'!O40-J40)","v":0}]
[1935,"Stores Equipment",null,null,0,{"$f":"IF(D41=0,+'App.2-CB_MIFRS_DepExp_2012'!O41,+'App.2-CB_MIFRS_DepExp_2012'!O41+((C41*0.5)/D41))","v":0},null,0,0,null,{"$f":"IF(ISERROR(+I41+'App.2-CB_MIFRS_DepExp_2012'!O41-J41), 0, +I41+'App.2-CB_MIFRS_DepExp_2012'!O41-J41)","v":0}]
[1940,"Tools, Shop & Garage Equipment",null,null,0,{"$f":"IF(D42=0,+'App.2-CB_MIFRS_DepExp_2012'!O42,+'App.2-CB_MIFRS_DepExp_2012'!O42+((C42*0.5)/D42))","v":0},null,0,0,null,{"$f":"IF(ISERROR(+I42+'App.2-CB_MIFRS_DepExp_2012'!O42-J42), 0, +I42+'App.2-CB_MIFRS_DepExp_2012'!O42-J42)","v":0}]
[1945,"Measurement & Testing Equipment",null,null,0,{"$f":"IF(D43=0,+'App.2-CB_MIFRS_DepExp_2012'!O43,+'App.2-CB_MIFRS_DepExp_2012'!O43+((C43*0.5)/D43))","v":0},null,0,0,null,{"$f":"IF(ISERROR(+I43+'App.2-CB_MIFRS_DepExp_2012'!O43-J43), 0, +I43+'App.2-CB_MIFRS_DepExp_2012'!O43-J43)","v":0}]
[1950,"Power Operated Equipment",null,null,0,{"$f":"IF(D44=0,+'App.2-CB_MIFRS_DepExp_2012'!O44,+'App.2-CB_MIFRS_DepExp_2012'!O44+((C44*0.5)/D44))","v":0},null,0,0,null,{"$f":"IF(ISERROR(+I44+'App.2-CB_MIFRS_DepExp_2012'!O44-J44), 0, +I44+'App.2-CB_MIFRS_DepExp_2012'!O44-J44)","v":0}]
[1955,"Communications Equipment",null,null,0,{"$f":"IF(D45=0,+'App.2-CB_MIFRS_DepExp_2012'!O45,+'App.2-CB_MIFRS_DepExp_2012'!O45+((C45*0.5)/D45))","v":0},null,0,0,null,{"$f":"IF(ISERROR(+I45+'App.2-CB_MIFRS_DepExp_2012'!O45-J45), 0, +I45+'App.2-CB_MIFRS_DepExp_2012'!O45-J45)","v":0}]
[1955,"Communication Equipment (Smart Meters)",null,null,0,{"$f":"IF(D46=0,+'App.2-CB_MIFRS_DepExp_2012'!O46,+'App.2-CB_MIFRS_DepExp_2012'!O46+((C46*0.5)/D46))","v":0},null,0,0,null,{"$f":"IF(ISERROR(+I46+'App.2-CB_MIFRS_DepExp_2012'!O46-J46), 0, +I46+'App.2-CB_MIFRS_DepExp_2012'!O46-J46)","v":0}]
[1960,"Miscellaneous Equipment ",null,null,0,{"$f":"IF(D47=0,+'App.2-CB_MIFRS_DepExp_2012'!O47,+'App.2-CB_MIFRS_DepExp_2012'!O47+((C47*0.5)/D47))","v":0},null,0,0,null,{"$f":"IF(ISERROR(+I47+'App.2-CB_MIFRS_DepExp_2012'!O47-J47), 0, +I47+'App.2-CB_MIFRS_DepExp_2012'!O47-J47)","v":0}]
[1975,"Load Management Controls Utility Premises",null,null,0,{"$f":"IF(D48=0,+'App.2-CB_MIFRS_DepExp_2012'!O48,+'App.2-CB_MIFRS_DepExp_2012'!O48+((C48*0.5)/D48))","v":0},null,0,0,null,{"$f":"IF(ISERROR(+I48+'App.2-CB_MIFRS_DepExp_2012'!O48-J48), 0, +I48+'App.2-CB_MIFRS_DepExp_2012'!O48-J48)","v":0}]
[1980,"System Supervisor Equipment",null,null,0,{"$f":"IF(D49=0,+'App.2-CB_MIFRS_DepExp_2012'!O49,+'App.2-CB_MIFRS_DepExp_2012'!O49+((C49*0.5)/D49))","v":0},null,0,0,null,{"$f":"IF(ISERROR(+I49+'App.2-CB_MIFRS_DepExp_2012'!O49-J49), 0, +I49+'App.2-CB_MIFRS_DepExp_2012'!O49-J49)","v":0}]
[1985,"Miscellaneous Fixed Assets",null,null,0,{"$f":"IF(D50=0,+'App.2-CB_MIFRS_DepExp_2012'!O50,+'App.2-CB_MIFRS_DepExp_2012'!O50+((C50*0.5)/D50))","v":0},null,0,0,null,{"$f":"IF(ISERROR(+I50+'App.2-CB_MIFRS_DepExp_2012'!O50-J50), 0, +I50+'App.2-CB_MIFRS_DepExp_2012'!O50-J50)","v":0}]
[1995,"Contributions & Grants",null,null,0,{"$f":"IF(D51=0,+'App.2-CB_MIFRS_DepExp_2012'!O51,+'App.2-CB_MIFRS_DepExp_2012'!O51+((C51*0.5)/D51))","v":0},null,0,0,null,{"$f":"IF(ISERROR(+I51+'App.2-CB_MIFRS_DepExp_2012'!O51-J51), 0, +I51+'App.2-CB_MIFRS_DepExp_2012'!O51-J51)","v":0}]
["etc.",null,null,null,0,{"$f":"IF(D52=0,+'App.2-CB_MIFRS_DepExp_2012'!O52,+'App.2-CB_MIFRS_DepExp_2012'!O52+((C52*0.5)/D52))","v":0},null,0,0,null,{"$f":"IF(ISERROR(+I52+'App.2-CB_MIFRS_DepExp_2012'!O52-J52), 0, +I52+'App.2-CB_MIFRS_DepExp_2012'!O52-J52)","v":0}]
[null,null,null,null,0,{"$f":"IF(D53=0,+'App.2-CB_MIFRS_DepExp_2012'!O53,+'App.2-CB_MIFRS_DepExp_2012'!O53+((C53*0.5)/D53))","v":0},null,0,0,null,{"$f":"IF(ISERROR(+I53+'App.2-CB_MIFRS_DepExp_2012'!O53-J53), 0, +I53+'App.2-CB_MIFRS_DepExp_2012'!O53-J53)","v":0}]
[null,"Total",{"$f":"SUM(C16:C53)","v":0},null,null,{"$f":"SUM(F16:F53)","v":0},0,0,0,0,0]
[]
["Notes:"]
[1,"Board policy of the \"half-year\" rule - the applicant must ensure that additions in the year attract a half-year depreciation expense in the first year.  Deviations from this standard practice must be supported in the application."]
[2,"The applicant must provide an explanation of material variances in evidence"]
[3,"This column refers to the calculated full year depreciation but excludes the depreciation expense on assets fully depreciated during the year.  This column is used for the purpose of calculating depreciation expense in the following year on the next worksheet."]
[]
["General:","Applicants must provide a breakdown of depreciation and amortization expense in the above format for all relevant accounts.  Asset Retirement Obligations (AROs), depreciation and accretion expense should be disclosed separately consistent with the Notes of historical Audited Financial Statements."]

{"sheet":"App.2-CD_MIFRS_DepExp_2014","index":15,"n_rows":61,"n_cols":8,"rows_kept":61,"cut":false,"hidden":true,"merged":[[54,1,54,4],[13,1,14,1],[13,6,14,6],[8,0,8,9],[9,0,9,9],[10,0,10,9],[59,1,59,9],[58,1,58,9],[55,1,55,4],[57,1,57,7],[60,1,61,7]]}
[null,null,null,null,null,null,"File Number:",{"$f":"'LDC Info'!$E$18","v":"EB-2013-0139"}]
[null,null,null,null,null,null,"Exhibit:"]
[null,null,null,null,null,null,"Tab:"]
[null,null,null,null,null,null,"Schedule:"]
[null,null,null,null,null,null,"Page:"]
[]
[null,null,null,null,null,null,"Date:"]
[]
["Appendix 2-CD"]
["Depreciation and Amortization Expense"]
["Assumes the applicant adopted IFRS for financial reporting purposes January 1, 2012"]
[null,null,2013,"MIFRS"]
[]
["Account","Description","Additions","Years (new additions only)","Depreciation Rate on New Additions","2013 Depreciation Expense 1","2013 Depreciation Expense per Appendix 2-B Fixed Assets, Column K\n (l)","Variance 2"]
[null,null,"(d)","(f)","(g) = 1 / (f)","(h)=2012 Full Year Depreciation + ((d)*0.5)/(f) ",null,"(m) = (h) - (l)"]
[1611,"Computer Software (Formally known as Account 1925)",null,null,{"$f":"IF(D16=0,0,1/D16)","v":0},{"$f":"IF(D16=0,'App.2-CC_MIFRS_DepExp_2013'!K16,+'App.2-CC_MIFRS_DepExp_2013'!K16+((C16*0.5)/D16))","v":0},null,{"$f":"IF(ISERROR(+F16-G16), 0, +F16-G16)","v":0}]
[1612,"Land Rights (Formally known as Account 1906)",null,null,0,{"$f":"IF(D17=0,'App.2-CC_MIFRS_DepExp_2013'!K17,+'App.2-CC_MIFRS_DepExp_2013'!K17+((C17*0.5)/D17))","v":0},null,0]
[1805,"Land",null,null,0,{"$f":"IF(D18=0,'App.2-CC_MIFRS_DepExp_2013'!K18,+'App.2-CC_MIFRS_DepExp_2013'!K18+((C18*0.5)/D18))","v":0},null,0]
[1808,"Buildings",null,null,0,{"$f":"IF(D19=0,'App.2-CC_MIFRS_DepExp_2013'!K19,+'App.2-CC_MIFRS_DepExp_2013'!K19+((C19*0.5)/D19))","v":0},null,0]
[1810,"Leasehold Improvements",null,null,0,{"$f":"IF(D20=0,'App.2-CC_MIFRS_DepExp_2013'!K20,+'App.2-CC_MIFRS_DepExp_2013'!K20+((C20*0.5)/D20))","v":0},null,0]
[1815,"Transformer Station Equipment >50 kV",null,null,0,{"$f":"IF(D21=0,'App.2-CC_MIFRS_DepExp_2013'!K21,+'App.2-CC_MIFRS_DepExp_2013'!K21+((C21*0.5)/D21))","v":0},null,0]
[1820,"Distribution Station Equipment <50 kV",null,null,0,{"$f":"IF(D22=0,'App.2-CC_MIFRS_DepExp_2013'!K22,+'App.2-CC_MIFRS_DepExp_2013'!K22+((C22*0.5)/D22))","v":0},null,0]
[1825,"Storage Battery Equipment",null,null,0,{"$f":"IF(D23=0,'App.2-CC_MIFRS_DepExp_2013'!K23,+'App.2-CC_MIFRS_DepExp_2013'!K23+((C23*0.5)/D23))","v":0},null,0]
[1830,"Poles, Towers & Fixtures",null,null,0,{"$f":"IF(D24=0,'App.2-CC_MIFRS_DepExp_2013'!K24,+'App.2-CC_MIFRS_DepExp_2013'!K24+((C24*0.5)/D24))","v":0},null,0]
[1835,"Overhead Conductors & Devices",null,null,0,{"$f":"IF(D25=0,'App.2-CC_MIFRS_DepExp_2013'!K25,+'App.2-CC_MIFRS_DepExp_2013'!K25+((C25*0.5)/D25))","v":0},null,0]
[1840,"Underground Conduit",null,null,0,{"$f":"IF(D26=0,'App.2-CC_MIFRS_DepExp_2013'!K26,+'App.2-CC_MIFRS_DepExp_2013'!K26+((C26*0.5)/D26))","v":0},null,0]
[1845,"Underground Conductors & Devices",null,null,0,{"$f":"IF(D27=0,'App.2-CC_MIFRS_DepExp_2013'!K27,+'App.2-CC_MIFRS_DepExp_2013'!K27+((C27*0.5)/D27))","v":0},null,0]
[1850,"Line Transformers",null,null,0,{"$f":"IF(D28=0,'App.2-CC_MIFRS_DepExp_2013'!K28,+'App.2-CC_MIFRS_DepExp_2013'!K28+((C28*0.5)/D28))","v":0},null,0]
[1855,"Services (Overhead & Underground)",null,null,0,{"$f":"IF(D29=0,'App.2-CC_MIFRS_DepExp_2013'!K29,+'App.2-CC_MIFRS_DepExp_2013'!K29+((C29*0.5)/D29))","v":0},null,0]
[1860,"Meters",null,null,0,{"$f":"IF(D30=0,'App.2-CC_MIFRS_DepExp_2013'!K30,+'App.2-CC_MIFRS_DepExp_2013'!K30+((C30*0.5)/D30))","v":0},null,0]
[1860,"Meters (Smart Meters)",null,null,0,{"$f":"IF(D31=0,'App.2-CC_MIFRS_DepExp_2013'!K31,+'App.2-CC_MIFRS_DepExp_2013'!K31+((C31*0.5)/D31))","v":0},null,0]
[1905,"Land",null,null,0,{"$f":"IF(D32=0,'App.2-CC_MIFRS_DepExp_2013'!K32,+'App.2-CC_MIFRS_DepExp_2013'!K32+((C32*0.5)/D32))","v":0},null,0]
[1908,"Buildings & Fixtures",null,null,0,{"$f":"IF(D33=0,'App.2-CC_MIFRS_DepExp_2013'!K33,+'App.2-CC_MIFRS_DepExp_2013'!K33+((C33*0.5)/D33))","v":0},null,0]
[1910,"Leasehold Improvements",null,null,0,{"$f":"IF(D34=0,'App.2-CC_MIFRS_DepExp_2013'!K34,+'App.2-CC_MIFRS_DepExp_2013'!K34+((C34*0.5)/D34))","v":0},null,0]
[1915,"Office Furniture & Equipment (10 years)",null,null,0,{"$f":"IF(D35=0,'App.2-CC_MIFRS_DepExp_2013'!K35,+'App.2-CC_MIFRS_DepExp_2013'!K35+((C35*0.5)/D35))","v":0},null,0]
[1915,"Office Furniture & Equipment (5 years)",null,null,0,{"$f":"IF(D36=0,'App.2-CC_MIFRS_DepExp_2013'!K36,+'App.2-CC_MIFRS_DepExp_2013'!K36+((C36*0.5)/D36))","v":0},null,0]
[1920,"Computer Equipment - Hardware",null,null,0,{"$f":"IF(D37=0,'App.2-CC_MIFRS_DepExp_2013'!K37,+'App.2-CC_MIFRS_DepExp_2013'!K37+((C37*0.5)/D37))","v":0},null,0]
[1920,"Computer Equip.-Hardware(Post Mar. 22/04)",null,null,0,{"$f":"IF(D38=0,'App.2-CC_MIFRS_DepExp_2013'!K38,+'App.2-CC_MIFRS_DepExp_2013'!K38+((C38*0.5)/D38))","v":0},null,0]
[1920,"Computer Equip.-Hardware(Post Mar. 19/07)",null,null,0,{"$f":"IF(D39=0,'App.2-CC_MIFRS_DepExp_2013'!K39,+'App.2-CC_MIFRS_DepExp_2013'!K39+((C39*0.5)/D39))","v":0},null,0]
[1930,"Transportation Equipment",null,null,0,{"$f":"IF(D40=0,'App.2-CC_MIFRS_DepExp_2013'!K40,+'App.2-CC_MIFRS_DepExp_2013'!K40+((C40*0.5)/D40))","v":0},null,0]
[1935,"Stores Equipment",null,null,0,{"$f":"IF(D41=0,'App.2-CC_MIFRS_DepExp_2013'!K41,+'App.2-CC_MIFRS_DepExp_2013'!K41+((C41*0.5)/D41))","v":0},null,0]
[1940,"Tools, Shop & Garage Equipment",null,null,0,{"$f":"IF(D42=0,'App.2-CC_MIFRS_DepExp_2013'!K42,+'App.2-CC_MIFRS_DepExp_2013'!K42+((C42*0.5)/D42))","v":0},null,0]
[1945,"Measurement & Testing Equipment",null,null,0,{"$f":"IF(D43=0,'App.2-CC_MIFRS_DepExp_2013'!K43,+'App.2-CC_MIFRS_DepExp_2013'!K43+((C43*0.5)/D43))","v":0},null,0]
[1950,"Power Operated Equipment",null,null,0,{"$f":"IF(D44=0,'App.2-CC_MIFRS_DepExp_2013'!K44,+'App.2-CC_MIFRS_DepExp_2013'!K44+((C44*0.5)/D44))","v":0},null,0]
[1955,"Communications Equipment",null,null,0,{"$f":"IF(D45=0,'App.2-CC_MIFRS_DepExp_2013'!K45,+'App.2-CC_MIFRS_DepExp_2013'!K45+((C45*0.5)/D45))","v":0},null,0]
[1955,"Communication Equipment (Smart Meters)",null,null,0,{"$f":"IF(D46=0,'App.2-CC_MIFRS_DepExp_2013'!K46,+'App.2-CC_MIFRS_DepExp_2013'!K46+((C46*0.5)/D46))","v":0},null,0]
[1960,"Miscellaneous Equipment ",null,null,0,{"$f":"IF(D47=0,'App.2-CC_MIFRS_DepExp_2013'!K47,+'App.2-CC_MIFRS_DepExp_2013'!K47+((C47*0.5)/D47))","v":0},null,0]
[1975,"Load Management Controls Utility Premises",null,null,0,{"$f":"IF(D48=0,'App.2-CC_MIFRS_DepExp_2013'!K48,+'App.2-CC_MIFRS_DepExp_2013'!K48+((C48*0.5)/D48))","v":0},null,0]
[1980,"System Supervisor Equipment",null,null,0,{"$f":"IF(D49=0,'App.2-CC_MIFRS_DepExp_2013'!K49,+'App.2-CC_MIFRS_DepExp_2013'!K49+((C49*0.5)/D49))","v":0},null,0]
[1985,"Miscellaneous Fixed Assets",null,null,0,{"$f":"IF(D50=0,'App.2-CC_MIFRS_DepExp_2013'!K50,+'App.2-CC_MIFRS_DepExp_2013'!K50+((C50*0.5)/D50))","v":0},null,0]
[1995,"Contributions & Grants",null,null,0,{"$f":"IF(D51=0,'App.2-CC_MIFRS_DepExp_2013'!K51,+'App.2-CC_MIFRS_DepExp_2013'!K51+((C51*0.5)/D51))","v":0},null,0]
["etc.",null,null,null,0,{"$f":"IF(D52=0,'App.2-CC_MIFRS_DepExp_2013'!K52,+'App.2-CC_MIFRS_DepExp_2013'!K52+((C52*0.5)/D52))","v":0},null,0]
[null,null,null,null,0,{"$f":"IF(D53=0,'App.2-CC_MIFRS_DepExp_2013'!K53,+'App.2-CC_MIFRS_DepExp_2013'!K53+((C53*0.5)/D53))","v":0},null,0]
[null,"Total",{"$f":"SUM(C16:C53)","v":0},null,null,{"$f":"SUM(F16:F53)","v":0},{"$f":"SUM(G16:G53)","v":0},{"$f":"SUM(H16:H53)","v":0}]
[null,"Depreciation expense adjustment resulting from  amortization of Account 1575",null,null,null,0]
[null,"Total Depreciation expense to be included in the test year revenue requirement",null,null,null,{"$f":"+F54+F55","v":0}]
["Notes:"]
[1,"Board policy of the \"half-year\" rule - the applicant must ensure that additions in the year attract a half-year depreciation expense in the first year.  Deviations from this standard practice must be supported in the application."]
[2,"The applicant must provide an explanation of material variances in evidence"]
[]
["General:","Applicants must provide a breakdown of depreciation and amortization expense in the above format for all relevant accounts.  Asset Retirement Obligations (AROs), depreciation and accretion expense should be disclosed separately consistent with the Notes of historical Audited Financial Statements."]

{"sheet":"App.2-CG_MIFRS_DepExp_2013","index":16,"n_rows":65,"n_cols":15,"rows_kept":65,"cut":false,"hidden":true,"merged":[[64,1,66,11],[9,0,9,14],[8,0,8,14],[10,0,10,14],[61,1,61,14],[60,1,60,14],[59,1,59,14],[58,1,58,14],[57,1,57,14],[13,0,14,0],[13,1,14,1],[13,10,14,10],[13,13,14,13],[62,1,62,14]]}
[null,null,null,null,null,null,null,null,null,null,null,null,null,"File Number:",{"$f":"'LDC Info'!$E$18","v":"EB-2013-0139"}]
[null,null,null,null,null,null,null,null,null,null,null,null,null,"Exhibit:"]
[null,null,null,null,null,null,null,null,null,null,null,null,null,"Tab:"]
[null,null,null,null,null,null,null,null,null,null,null,null,null,"Schedule:"]
[null,null,null,null,null,null,null,null,null,null,null,null,null,"Page:"]
[]
[null,null,null,null,null,null,null,null,null,null,null,null,null,"Date:"]
[]
["Appendix 2-CG"]
["Depreciation and Amortization Expense"]
["Assumes the applicant adopted IFRS for financial reporting purposes January 1, 2013"]
[null,null,"Year",2012,"MIFRS"]
[]
["Account","Description","Opening NBV as at Jan 1, 2012 5","Additions","Average Remaining Life of Opening NBV 4","Years (new additions only) 3","Depreciation Rate on New Additions","Depreciation Expense on Opening NBV","Depreciation Expense on Additions 1","2012 Depreciation Expense","2012 Depreciation Expense per Appendix 2-B Fixed Assets, Column K\n (l)","Variance 2","Depreciation Expense on 2012 Full Year Additions","Less Depreciation Expense on Assets Fully Depreciated during the year\n(o)","2012 Full Year Depreciation 6"]
[null,null,"(a)","(d)","(i)","(f)","(g) = 1 / (f)","(j) = (a) / (i)","(h)=((d)*0.5)/(f) ","(k) = (j) + (h)",null,"(m) = (k) - (l)","(n)=((d))/(f) ",null,"(p) = (j) + (n) - (o)"]
[1611,"Computer Software (Formally known as Account 1925)",null,null,null,null,{"$f":"IF(F16=0,0,1/F16)","v":0},{"$f":"IF(E16=0,0,+C16/E16)","v":0},{"$f":"IF(F16=0,0,+(D16*0.5)/F16)","v":0},{"$f":"IF(ISERROR(+H16+I16), 0, +H16+I16)","v":0},null,{"$f":"IF(ISERROR(+J16-K16), 0, +J16-K16)","v":0},{"$f":"IF(F16=0,0,+(D16)/F16)","v":0},null,{"$f":"IF(ISERROR(+M16+H16-N16), 0, +M16+H16-N16)","v":0}]
[1612,"Land Rights (Formally known as Account 1906)",null,null,null,null,0,0,0,0,null,0,0,null,{"$f":"IF(ISERROR(+M17+H17-N17), 0, +M17+H17-N17)","v":0}]
[1805,"Land",null,null,null,null,0,0,0,0,null,0,0,null,0]
[1808,"Buildings",null,null,null,null,0,0,0,0,null,0,0,null,0]
[1810,"Leasehold Improvements",null,null,null,null,0,0,0,0,null,0,0,null,0]
[1815,"Transformer Station Equipment >50 kV",null,null,null,null,0,0,0,0,null,0,0,null,0]
[1820,"Distribution Station Equipment <50 kV",null,null,null,null,0,0,0,0,null,0,0,null,0]
[1825,"Storage Battery Equipment",null,null,null,null,0,0,0,0,null,0,0,null,0]
[1830,"Poles, Towers & Fixtures",null,null,null,null,0,0,0,0,null,0,0,null,0]
[1835,"Overhead Conductors & Devices",null,null,null,null,0,0,0,0,null,0,0,null,0]
[1840,"Underground Conduit",null,null,null,null,0,0,0,0,null,0,0,null,0]
[1845,"Underground Conductors & Devices",null,null,null,null,0,0,0,0,null,0,0,null,0]
[1850,"Line Transformers",null,null,null,null,0,0,0,0,null,0,0,null,0]
[1855,"Services (Overhead & Underground)",null,null,null,null,0,0,0,0,null,0,0,null,0]
[1860,"Meters",null,null,null,null,0,0,0,0,null,0,0,null,0]
[1860,"Meters (Smart Meters)",null,null,null,null,0,0,0,0,null,0,0,null,0]
[1905,"Land",null,null,null,null,0,0,0,0,null,0,0,null,0]
[1908,"Buildings & Fixtures",null,null,null,null,0,0,0,0,null,0,0,null,0]
[1910,"Leasehold Improvements",null,null,null,null,0,0,0,0,null,0,0,null,0]
[1915,"Office Furniture & Equipment (10 years)",null,null,null,null,0,0,0,0,null,0,0,null,0]
[1915,"Office Furniture & Equipment (5 years)",null,null,null,null,0,0,0,0,null,0,0,null,0]
[1920,"Computer Equipment - Hardware",null,null,null,null,0,0,0,0,null,0,0,null,0]
[1920,"Computer Equip.-Hardware(Post Mar. 22/04)",null,null,null,null,0,0,0,0,null,0,0,null,0]
[1920,"Computer Equip.-Hardware(Post Mar. 19/07)",null,null,null,null,0,0,0,0,null,0,0,null,0]
[1930,"Transportation Equipment",null,null,null,null,0,0,0,0,null,0,0,null,0]
[1935,"Stores Equipment",null,null,null,null,0,0,0,0,null,0,0,null,0]
[1940,"Tools, Shop & Garage Equipment",null,null,null,null,0,0,0,0,null,0,0,null,0]
[1945,"Measurement & Testing Equipment",null,null,null,null,0,0,0,0,null,0,0,null,0]
[1950,"Power Operated Equipment",null,null,null,null,0,0,0,0,null,0,0,null,0]
[1955,"Communications Equipment",null,null,null,null,0,0,0,0,null,0,0,null,0]
[1955,"Communication Equipment (Smart Meters)",null,null,null,null,0,0,0,0,null,0,0,null,0]
[1960,"Miscellaneous Equipment ",null,null,null,null,0,0,0,0,null,0,0,null,0]
[1975,"Load Management Controls Utility Premises",null,null,null,null,0,0,0,0,null,0,0,null,0]
[1980,"System Supervisor Equipment",null,null,null,null,0,0,0,0,null,0,0,null,0]
[1985,"Miscellaneous Fixed Assets",null,null,null,null,0,0,0,0,null,0,0,null,0]
[1995,"Contributions & Grants",null,null,null,null,0,0,0,0,null,0,0,null,0]
["etc.",null,null,null,null,null,0,0,0,0,null,0,0,null,0]
[null,null,null,null,null,null,0,0,0,0,null,0,0,null,0]
[null,"Total",{"$f":"SUM(C16:C53)","v":0},{"$f":"SUM(D16:D53)","v":0},null,null,null,{"$f":"SUM(H16:H53)","v":0},0,0,0,0,0,{"$f":"SUM(N16:N53)","v":0},0]
[]
["Notes:"]
[]
[1,"Board policy of the \"half-year\" rule - the applicant must ensure that additions in the year attract a half-year depreciation expense in the first year.  Deviations from this standard practice must be supported in the application."]
[2,"The applicant must provide an explanation of material variances in evidence"]
[3,"The applicant should ensure that the years for new additions of assets are the asset useful lives determined by management in accordance with IFRS. "]
[4,"A recalculation should be performed to determine the average remaining life of opening balance of assets (i.e. excluding 2012 additions) under IFRS.  For example, Asset A had a useful life of 20 years under CGAAP.  On January 1, 2012, the date of transition, Asset A was 3 years depreciated. As a result, Asset A would have a remaining service life of 17 years (20 years less 3 years) under CGAAP as of January 1, 2012.  Due to the transition to IFRS, management re-assessed the asset useful lives under IFRS principles and concluded that the revised useful life of Asset A is now 30 years. Therefore, the average remaining useful life of opening balance of Asset A is determined to be 27 years (30 years less 3 years) under IFRS as of January 1, 2012."]
[5,"NBV must exclude assets still on the books but which have been fully amortized or depreciated."]
[6,"This column refers to the calculated full year depreciation but excludes the depreciation expense on assets fully depreciated during the year.  This column is used for the purpose of calculating depreciation expense in the following year on the next worksheet."]
[]
["General:","Applicants must provide a breakdown of depreciation and amortization expense in the above format for all relevant accounts.  Asset Retirement Obligations (AROs), depreciation and accretion expense should be disclosed separately consistent with the Notes of historical Audited Financial Statements."]

{"sheet":"App.2-CH_MIFRS_DepExp_2014","index":17,"n_rows":63,"n_cols":10,"rows_kept":63,"cut":false,"hidden":true,"merged":[[8,0,8,9],[55,1,55,4],[62,1,63,9],[59,1,59,9],[58,1,58,9],[13,0,14,0],[13,1,14,1],[13,6,14,6],[10,0,10,9],[9,0,9,9]]}
[null,null,null,null,null,null,null,null,"File Number:",{"$f":"'LDC Info'!$E$18","v":"EB-2013-0139"}]
[null,null,null,null,null,null,null,null,"Exhibit:"]
[null,null,null,null,null,null,null,null,"Tab:"]
[null,null,null,null,null,null,null,null,"Schedule:"]
[null,null,null,null,null,null,null,null,"Page:"]
[]
[null,null,null,null,null,null,null,null,"Date:"]
[]
["Appendix 2-CH"]
["Depreciation and Amortization Expense"]
["Assumes the applicant adopted IFRS for financial reporting purposes January 1, 2013"]
[null,null,"Year",2013,"MIFRS"]
[]
["Account","Description","Additions","Years (new additions only)","Depreciation Rate on New Additions","2013 Depreciation Expense 1","2013 Depreciation Expense per Appendix 2-B Fixed Assets, Column K\n (l)","Variance 2"]
[null,null,"(d)","(f)","(g) = 1 / (f)","(h)=2012 Full Year Depreciation + ((d)*0.5)/(f) ",null,"(m) = (h) - (l)"]
[1611,"Computer Software (Formally known as Account 1925)",null,null,{"$f":"IF(D16=0,0,1/D16)","v":0},{"$f":"IF(D16=0,'App.2-CG_MIFRS_DepExp_2013'!O16,+'App.2-CG_MIFRS_DepExp_2013'!O16+((C16*0.5)/D16))","v":0},null,{"$f":"IF(ISERROR(+F16-G16), 0, +F16-G16)","v":0}]
[1612,"Land Rights (Formally known as Account 1906)",null,null,0,{"$f":"IF(D17=0,'App.2-CG_MIFRS_DepExp_2013'!O17,+'App.2-CG_MIFRS_DepExp_2013'!O17+((C17*0.5)/D17))","v":0},null,0]
[1805,"Land",null,null,0,{"$f":"IF(D18=0,'App.2-CG_MIFRS_DepExp_2013'!O18,+'App.2-CG_MIFRS_DepExp_2013'!O18+((C18*0.5)/D18))","v":0},null,0]
[1808,"Buildings",null,null,0,{"$f":"IF(D19=0,'App.2-CG_MIFRS_DepExp_2013'!O19,+'App.2-CG_MIFRS_DepExp_2013'!O19+((C19*0.5)/D19))","v":0},null,0]
[1810,"Leasehold Improvements",null,null,0,{"$f":"IF(D20=0,'App.2-CG_MIFRS_DepExp_2013'!O20,+'App.2-CG_MIFRS_DepExp_2013'!O20+((C20*0.5)/D20))","v":0},null,0]
[1815,"Transformer Station Equipment >50 kV",null,null,0,{"$f":"IF(D21=0,'App.2-CG_MIFRS_DepExp_2013'!O21,+'App.2-CG_MIFRS_DepExp_2013'!O21+((C21*0.5)/D21))","v":0},null,0]
[1820,"Distribution Station Equipment <50 kV",null,null,0,{"$f":"IF(D22=0,'App.2-CG_MIFRS_DepExp_2013'!O22,+'App.2-CG_MIFRS_DepExp_2013'!O22+((C22*0.5)/D22))","v":0},null,0]
[1825,"Storage Battery Equipment",null,null,0,{"$f":"IF(D23=0,'App.2-CG_MIFRS_DepExp_2013'!O23,+'App.2-CG_MIFRS_DepExp_2013'!O23+((C23*0.5)/D23))","v":0},null,0]
[1830,"Poles, Towers & Fixtures",null,null,0,{"$f":"IF(D24=0,'App.2-CG_MIFRS_DepExp_2013'!O24,+'App.2-CG_MIFRS_DepExp_2013'!O24+((C24*0.5)/D24))","v":0},null,0]
[1835,"Overhead Conductors & Devices",null,null,0,{"$f":"IF(D25=0,'App.2-CG_MIFRS_DepExp_2013'!O25,+'App.2-CG_MIFRS_DepExp_2013'!O25+((C25*0.5)/D25))","v":0},null,0]
[1840,"Underground Conduit",null,null,0,{"$f":"IF(D26=0,'App.2-CG_MIFRS_DepExp_2013'!O26,+'App.2-CG_MIFRS_DepExp_2013'!O26+((C26*0.5)/D26))","v":0},null,0]
[1845,"Underground Conductors & Devices",null,null,0,{"$f":"IF(D27=0,'App.2-CG_MIFRS_DepExp_2013'!O27,+'App.2-CG_MIFRS_DepExp_2013'!O27+((C27*0.5)/D27))","v":0},null,0]
[1850,"Line Transformers",null,null,0,{"$f":"IF(D28=0,'App.2-CG_MIFRS_DepExp_2013'!O28,+'App.2-CG_MIFRS_DepExp_2013'!O28+((C28*0.5)/D28))","v":0},null,0]
[1855,"Services (Overhead & Underground)",null,null,0,{"$f":"IF(D29=0,'App.2-CG_MIFRS_DepExp_2013'!O29,+'App.2-CG_MIFRS_DepExp_2013'!O29+((C29*0.5)/D29))","v":0},null,0]
[1860,"Meters",null,null,0,{"$f":"IF(D30=0,'App.2-CG_MIFRS_DepExp_2013'!O30,+'App.2-CG_MIFRS_DepExp_2013'!O30+((C30*0.5)/D30))","v":0},null,0]
[1860,"Meters (Smart Meters)",null,null,0,{"$f":"IF(D31=0,'App.2-CG_MIFRS_DepExp_2013'!O31,+'App.2-CG_MIFRS_DepExp_2013'!O31+((C31*0.5)/D31))","v":0},null,0]
[1905,"Land",null,null,0,{"$f":"IF(D32=0,'App.2-CG_MIFRS_DepExp_2013'!O32,+'App.2-CG_MIFRS_DepExp_2013'!O32+((C32*0.5)/D32))","v":0},null,0]
[1908,"Buildings & Fixtures",null,null,0,{"$f":"IF(D33=0,'App.2-CG_MIFRS_DepExp_2013'!O33,+'App.2-CG_MIFRS_DepExp_2013'!O33+((C33*0.5)/D33))","v":0},null,0]
[1910,"Leasehold Improvements",null,null,0,{"$f":"IF(D34=0,'App.2-CG_MIFRS_DepExp_2013'!O34,+'App.2-CG_MIFRS_DepExp_2013'!O34+((C34*0.5)/D34))","v":0},null,0]
[1915,"Office Furniture & Equipment (10 years)",null,null,0,{"$f":"IF(D35=0,'App.2-CG_MIFRS_DepExp_2013'!O35,+'App.2-CG_MIFRS_DepExp_2013'!O35+((C35*0.5)/D35))","v":0},null,0]
[1915,"Office Furniture & Equipment (5 years)",null,null,0,{"$f":"IF(D36=0,'App.2-CG_MIFRS_DepExp_2013'!O36,+'App.2-CG_MIFRS_DepExp_2013'!O36+((C36*0.5)/D36))","v":0},null,0]
[1920,"Computer Equipment - Hardware",null,null,0,{"$f":"IF(D37=0,'App.2-CG_MIFRS_DepExp_2013'!O37,+'App.2-CG_MIFRS_DepExp_2013'!O37+((C37*0.5)/D37))","v":0},null,0]
[1920,"Computer Equip.-Hardware(Post Mar. 22/04)",null,null,0,{"$f":"IF(D38=0,'App.2-CG_MIFRS_DepExp_2013'!O38,+'App.2-CG_MIFRS_DepExp_2013'!O38+((C38*0.5)/D38))","v":0},null,0]
[1920,"Computer Equip.-Hardware(Post Mar. 19/07)",null,null,0,{"$f":"IF(D39=0,'App.2-CG_MIFRS_DepExp_2013'!O39,+'App.2-CG_MIFRS_DepExp_2013'!O39+((C39*0.5)/D39))","v":0},null,0]
[1930,"Transportation Equipment",null,null,0,{"$f":"IF(D40=0,'App.2-CG_MIFRS_DepExp_2013'!O40,+'App.2-CG_MIFRS_DepExp_2013'!O40+((C40*0.5)/D40))","v":0},null,0]
[1935,"Stores Equipment",null,null,0,{"$f":"IF(D41=0,'App.2-CG_MIFRS_DepExp_2013'!O41,+'App.2-CG_MIFRS_DepExp_2013'!O41+((C41*0.5)/D41))","v":0},null,0]
[1940,"Tools, Shop & Garage Equipment",null,null,0,{"$f":"IF(D42=0,'App.2-CG_MIFRS_DepExp_2013'!O42,+'App.2-CG_MIFRS_DepExp_2013'!O42+((C42*0.5)/D42))","v":0},null,0]
[1945,"Measurement & Testing Equipment",null,null,0,{"$f":"IF(D43=0,'App.2-CG_MIFRS_DepExp_2013'!O43,+'App.2-CG_MIFRS_DepExp_2013'!O43+((C43*0.5)/D43))","v":0},null,0]
[1950,"Power Operated Equipment",null,null,0,{"$f":"IF(D44=0,'App.2-CG_MIFRS_DepExp_2013'!O44,+'App.2-CG_MIFRS_DepExp_2013'!O44+((C44*0.5)/D44))","v":0},null,0]
[1955,"Communications Equipment",null,null,0,{"$f":"IF(D45=0,'App.2-CG_MIFRS_DepExp_2013'!O45,+'App.2-CG_MIFRS_DepExp_2013'!O45+((C45*0.5)/D45))","v":0},null,0]
[1955,"Communication Equipment (Smart Meters)",null,null,0,{"$f":"IF(D46=0,'App.2-CG_MIFRS_DepExp_2013'!O46,+'App.2-CG_MIFRS_DepExp_2013'!O46+((C46*0.5)/D46))","v":0},null,0]
[1960,"Miscellaneous Equipment ",null,null,0,{"$f":"IF(D47=0,'App.2-CG_MIFRS_DepExp_2013'!O47,+'App.2-CG_MIFRS_DepExp_2013'!O47+((C47*0.5)/D47))","v":0},null,0]
[1975,"Load Management Controls Utility Premises",null,null,0,{"$f":"IF(D48=0,'App.2-CG_MIFRS_DepExp_2013'!O48,+'App.2-CG_MIFRS_DepExp_2013'!O48+((C48*0.5)/D48))","v":0},null,0]
[1980,"System Supervisor Equipment",null,null,0,{"$f":"IF(D49=0,'App.2-CG_MIFRS_DepExp_2013'!O49,+'App.2-CG_MIFRS_DepExp_2013'!O49+((C49*0.5)/D49))","v":0},null,0]
[1985,"Miscellaneous Fixed Assets",null,null,0,{"$f":"IF(D50=0,'App.2-CG_MIFRS_DepExp_2013'!O50,+'App.2-CG_MIFRS_DepExp_2013'!O50+((C50*0.5)/D50))","v":0},null,0]
[1995,"Contributions & Grants",null,null,0,{"$f":"IF(D51=0,'App.2-CG_MIFRS_DepExp_2013'!O51,+'App.2-CG_MIFRS_DepExp_2013'!O51+((C51*0.5)/D51))","v":0},null,0]
["etc.",null,null,null,0,{"$f":"IF(D52=0,'App.2-CG_MIFRS_DepExp_2013'!O52,+'App.2-CG_MIFRS_DepExp_2013'!O52+((C52*0.5)/D52))","v":0},null,0]
[null,null,null,null,0,{"$f":"IF(D53=0,'App.2-CG_MIFRS_DepExp_2013'!O53,+'App.2-CG_MIFRS_DepExp_2013'!O53+((C53*0.5)/D53))","v":0},null,0]
[null,"Total",{"$f":"SUM(C16:C53)","v":0},null,null,{"$f":"SUM(F16:F53)","v":0},{"$f":"SUM(G16:G53)","v":0},{"$f":"SUM(H16:H53)","v":0}]
[null,"Depreciation expense adjustment resulting from  amortization of Account 1575",null,null,null,0]
[null,"Total Depreciation expense to be included in the test year revenue requirement",null,null,null,{"$f":"+F55+F54","v":0}]
[]
["Notes:"]
[1,"Board policy of the \"half-year\" rule - the applicant must ensure that additions in the year attract a half-year depreciation expense in the first year.  Deviations from this standard practice must be supported in the application."]
[2,"The applicant must provide an explanation of material variances in evidence"]
[]
[]
["General:","Applicants must provide a breakdown of depreciation and amortization expense in the above format for all relevant accounts.  Asset Retirement Obligations (AROs), depreciation and accretion expense should be disclosed separately consistent with the Notes of historical Audited Financial Statements."]

{"sheet":"App.2-CI_AltAccStd_DepExp","index":18,"n_rows":62,"n_cols":12,"rows_kept":62,"cut":false,"hidden":true,"merged":[[8,0,8,11],[11,4,11,5],[13,0,14,0],[13,1,14,1],[13,10,14,10],[58,1,58,11],[57,1,57,11],[61,1,62,11],[10,0,10,11],[9,0,9,11]]}
[null,null,null,null,null,null,null,null,null,null,"File Number:",{"$f":"'LDC Info'!$E$18","v":"EB-2013-0139"}]
[null,null,null,null,null,null,null,null,null,null,"Exhibit:"]
[null,null,null,null,null,null,null,null,null,null,"Tab:"]
[null,null,null,null,null,null,null,null,null,null,"Schedule:"]
[null,null,null,null,null,null,null,null,null,null,"Page:"]
[]
[null,null,null,null,null,null,null,null,null,null,"Date:"]
[]
["Appendix 2-CI"]
["Depreciation and Amortization Expense"]
["Assumes the applicant adopted an alternate accounting standard other than IFRS for financial reporting purposes.  For applicants adopting an Alternate Accounting Standard for financial reporting purposes January 1, 2012, applicants must complete 4 versions of the table below (2011 CGAAP, 2011 Alternate Accounting Standard, 2012 Alternate Accounting Standard and 2013 Alternate Accounting Standard).  For applicants adopting an Alternate Accounting Standard for financial reporting purposes January 1, 2013, applicants must complete 4 versions of the table below (2011 CGAAP, 2012 CGAAP, 2012 Alternate Accounting Standard and 2013 Alternate Accounting Standard)."]
[null,"Year",null,null,"Accounting Standard"]
[]
["Account","Description","Opening\nRegulatory Gross PP&E","Less Fully Depreciated","Net for Depreciation","Additions","Total for Depreciation","Years","Depreciation Rate","Depreciation Expense","Depreciation Expense per Appendix 2-B Fixed Assets, Column K\n (l)","Variance 2"]
[null,null,"(a)","(b)","(c)","(d)","(e) = (c) + ½ x (d) 1","(f)","(g) = 1 / (f)","(h) = (e) / (f)",null,"(m) = (h) - (l)"]
[1611,"Computer Software (Formally known as Account 1925)",null,null,{"$f":"C16-D16","v":0},null,{"$f":"E16+0.5*F16","v":0},null,{"$f":"IF(H16=0,0,1/H16)","v":0},{"$f":"IF(H16=0,0,G16/H16)","v":0},null,{"$f":"IF(ISERROR(+J16-K16), 0, +J16-K16)","v":0}]
[1612,"Land Rights (Formally known as Account 1906)",null,null,{"$f":"C17-D17","v":0},null,{"$f":"E17+0.5*F17","v":0},null,0,0,null,0]
[1805,"Land",null,null,0,null,0,null,0,0,null,0]
[1808,"Buildings",null,null,0,null,0,null,0,0,null,0]
[1810,"Leasehold Improvements",null,null,0,null,0,null,0,0,null,0]
[1815,"Transformer Station Equipment >50 kV",null,null,0,null,0,null,0,0,null,0]
[1820,"Distribution Station Equipment <50 kV",null,null,0,null,0,null,0,0,null,0]
[1825,"Storage Battery Equipment",null,null,0,null,0,null,0,0,null,0]
[1830,"Poles, Towers & Fixtures",null,null,0,null,0,null,0,0,null,0]
[1835,"Overhead Conductors & Devices",null,null,0,null,0,null,0,0,null,0]
[1840,"Underground Conduit",null,null,0,null,0,null,0,0,null,0]
[1845,"Underground Conductors & Devices",null,null,0,null,0,null,0,0,null,0]
[1850,"Line Transformers",null,null,0,null,0,null,0,0,null,0]
[1855,"Services (Overhead & Underground)",null,null,0,null,0,null,0,0,null,0]
[1860,"Meters",null,null,0,null,0,null,0,0,null,0]
[1860,"Meters (Smart Meters)",null,null,0,null,0,null,0,0,null,0]
[1905,"Land",null,null,0,null,0,null,0,0,null,0]
[1908,"Buildings & Fixtures",null,null,0,null,0,null,0,0,null,0]
[1910,"Leasehold Improvements",null,null,0,null,0,null,0,0,null,0]
[1915,"Office Furniture & Equipment (10 years)",null,null,0,null,0,null,0,0,null,0]
[1915,"Office Furniture & Equipment (5 years)",null,null,0,null,0,null,0,0,null,0]
[1920,"Computer Equipment - Hardware",null,null,0,null,0,null,0,0,null,0]
[1920,"Computer Equip.-Hardware(Post Mar. 22/04)",null,null,0,null,0,null,0,0,null,0]
[1920,"Computer Equip.-Hardware(Post Mar. 19/07)",null,null,0,null,0,null,0,0,null,0]
[1930,"Transportation Equipment",null,null,0,null,0,null,0,0,null,0]
[1935,"Stores Equipment",null,null,0,null,0,null,0,0,null,0]
[1940,"Tools, Shop & Garage Equipment",null,null,0,null,0,null,0,0,null,0]
[1945,"Measurement & Testing Equipment",null,null,0,null,0,null,0,0,null,0]
[1950,"Power Operated Equipment",null,null,0,null,0,null,0,0,null,0]
[1955,"Communications Equipment",null,null,0,null,0,null,0,0,null,0]
[1955,"Communication Equipment (Smart Meters)",null,null,0,null,0,null,0,0,null,0]
[1960,"Miscellaneous Equipment ",null,null,0,null,0,null,0,0,null,0]
[1975,"Load Management Controls Utility Premises",null,null,0,null,0,null,0,0,null,0]
[1980,"System Supervisor Equipment",null,null,0,null,0,null,0,0,null,0]
[1985,"Miscellaneous Fixed Assets",null,null,0,null,0,null,0,0,null,0]
[1995,"Contributions & Grants",null,null,0,null,0,null,0,0,null,0]
["etc.",null,null,null,0,null,0,null,0,0,null,0]
[null,null,null,null,0,null,0,null,0,0,null,0]
[null,"Total",{"$f":"SUM(C16:C53)","v":0},{"$f":"SUM(D16:D53)","v":0},{"$f":"SUM(E16:E53)","v":0},{"$f":"SUM(F16:F53)","v":0},{"$f":"SUM(G16:G53)","v":0},null,null,{"$f":"SUM(J16:J53)","v":0},{"$f":"SUM(K16:K53)","v":0},{"$f":"SUM(L16:L53)","v":0}]
[]
["Notes:"]
[]
[1,"Board policy of the \"half-year\" rule - the applicant must ensure that additions in the year attract a half-year depreciation expense in the first year.  Deviations from this standard practice must be supported in the application."]
[2,"The applicant must provide an explanation of material variances in evidence"]
[]
[]
["General:","Applicants must provide a breakdown of depreciation and amortization expense in the above format for all relevant accounts.  Asset Retirement Obligations (AROs), depreciation and accretion expense should be disclosed separately consistent with the Notes of historical Audited Financial Statements."]

{"sheet":"App.2-D_Overhead","index":19,"n_rows":56,"n_cols":13,"rows_kept":56,"cut":false,"hidden":true,"merged":[[8,0,8,12],[9,0,9,12],[11,0,11,12],[13,0,15,2],[13,10,13,12],[14,10,14,12],[15,10,15,12],[22,0,22,2],[22,10,22,12],[16,0,16,2],[16,10,16,12],[17,0,17,2],[17,10,17,12],[18,0,18,2],[18,10,18,12],[19,0,19,2],[19,10,19,12],[20,0,20,2],[20,10,20,12],[21,10,21,12],[23,0,23,2],[23,10,23,12],[24,0,24,2],[24,10,24,12],[25,0,25,2],[25,10,25,12],[35,0,37,2],[35,10,35,12],[36,10,36,12],[37,10,37,12],[26,0,26,2],[26,10,26,12],[27,0,27,2],[27,10,27,12],[28,0,28,2],[28,10,28,12],[29,0,29,2],[29,10,29,12],[30,0,30,2],[30,10,30,12],[33,0,33,12],[44,0,44,2],[44,10,44,12],[38,0,38,2],[38,10,38,12],[39,0,39,2],[39,10,39,12],[40,0,40,2],[40,10,40,12],[41,0,41,2],[41,10,41,12],[42,0,42,2],[42,10,42,12],[43,10,43,12],[45,0,45,2],[45,10,45,12],[46,0,46,2],[46,10,46,12],[47,0,47,2],[47,10,47,12],[48,0,48,2],[48,10,48,12],[49,0,49,2],[49,10,49,12],[50,0,50,2],[50,10,50,12],[51,0,51,2],[51,10,51,12],[52,0,52,2],[52,10,52,12],[57,0,58,0],[57,1,58,4],[55,1,56,12],[68,0,71,0],[73,0,74,0],[60,0,61,0],[60,1,60,4],[62,0,63,0],[65,0,66,0]]}
[null,null,null,null,null,null,null,null,null,null,null,"File Number:",{"$f":"'LDC Info'!$E$18","v":"EB-2013-0139"}]
[null,null,null,null,null,null,null,null,null,null,null,"Exhibit:"]
[null,null,null,null,null,null,null,null,null,null,null,"Tab:"]
[null,null,null,null,null,null,null,null,null,null,null,"Schedule:"]
[null,null,null,null,null,null,null,null,null,null,null,"Page:"]
[]
[null,null,null,null,null,null,null,null,null,null,null,"Date:"]
[]
["Appendix 2-D"]
["Overhead Expense"]
[]
["The following table should be completed based on the information requested below. An explanation should be provided for any blank entries.  The entries should include overhead costs that are currently capitalized on self-constructed assets under MIFRS or an alternate accounting standard."]
[null,null,null,null,"(A) 1","(B)","(C)","(D)","(E) 1","(F)","(G)"]
["Nature of the Overhead Costs",null,null,null,"Dollar","Dollar","Dollar","Dollar Impact - ","Dollar Impact - ","Directly","Reasons why the overhead costs are allowed to be"]
[null,null,null,null,"Impact on PP&E","Impact on PP&E","Impact on PP&E","PP&E Variance","PP&E Variance","Attributable?","capitalized under MIFRS or an alternate accounting"]
[null,null,null,null,"Historic Year","Bridge Year","Test Year","Test versus Bridge","Test versus Historic","(Y/N)","standard given limitations on capitalized overhead"]
["employee benefits",null,null,null,null,null,null,{"$f":"+G17-F17","v":0},{"$f":"+G17-E17","v":0}]
["costs of site preparation",null,null,null,null,null,null,0,0]
["initial delivery and handling costs",null,null,null,null,null,null,0,0]
["costs of testing whether the asset is functioning properly",null,null,null,null,null,null,0,0]
["professional fees",null,null,null,null,null,null,0,0]
[null,null,null,null,null,null,null,0,0]
["costs of opening a new facility",null,null,null,null,null,null,0,0]
["costs of introducing a new product or service (including costs of advertising and promotional activities)",null,null,null,null,null,null,0,0]
["costs of conducting business in a new location or with a new class of customer (including costs of staff training)",null,null,null,null,null,null,0,0]
["administration and other general overhead costs",null,null,null,null,null,null,0,0]
[null,null,null,null,null,null,null,0,0]
[null,null,null,null,null,null,null,0,0]
[null,null,null,null,null,null,null,0,0]
["Insert description of additional item(s) and new rows if needed.",null,null,null,null,null,null,0,0]
["Total",null,null,null,{"$f":"SUM(E17:E30)","v":0},{"$f":"SUM(F17:F30)","v":0},{"$f":"SUM(G17:G30)","v":0},{"$f":"SUM(H17:H30)","v":0},{"$f":"SUM(I17:I30)","v":0}]
[]
[]
["The following table should be completed based on the information requested below. An explanation should be provided for any blank entries.  The entries should include overhead costs that were capitalized on self-constructed assets under CGAAP but are no longer capitalized under MIFRS or an alternate accounting standard and are included in OM&A."]
[null,null,null,null,"(A) 1","(B)","(C)","(D)","(E) 1","(F)","(G)"]
["Nature of the Overhead Costs",null,null,null,"Dollar","Dollar","Dollar","Dollar Impact - ","Dollar Impact - ","Directly","Reasons why the overhead costs are not allowed to be"]
[null,null,null,null,"Impact on OM&A","Impact on OM&A","Impact on OM&A","OM&A Variance","OM&A Variance","Attributable?","capitalized under MIFRS or an alternate accounting"]
[null,null,null,null,"Historic Year","Bridge Year","Test Year","Test versus Bridge","Test versus Historic","(Y/N)","standard given limitations on capitalized overhead"]
["employee benefits",null,null,null,null,null,null,{"$f":"+G39-F39","v":0},{"$f":"+G39-E39","v":0}]
["costs of site preparation",null,null,null,null,null,null,{"$f":"+G40-F40","v":0},{"$f":"+G40-E40","v":0}]
["initial delivery and handling costs",null,null,null,null,null,null,{"$f":"+G41-F41","v":0},{"$f":"+G41-E41","v":0}]
["costs of testing whether the asset is functioning properly",null,null,null,null,null,null,{"$f":"+G42-F42","v":0},{"$f":"+G42-E42","v":0}]
["professional fees",null,null,null,null,null,null,{"$f":"+G43-F43","v":0},{"$f":"+G43-E43","v":0}]
[]
["costs of opening a new facility",null,null,null,null,null,null,{"$f":"+G45-F45","v":0},{"$f":"+G45-E45","v":0}]
["costs of introducing a new product or service (including costs of advertising and promotional activities)",null,null,null,null,null,null,0,0]
["costs of conducting business in a new location or with a new class of customer (including costs of staff training)",null,null,null,null,null,null,0,0]
["administration and other general overhead costs",null,null,null,null,null,null,0,0]
[null,null,null,null,null,null,null,0,0]
[null,null,null,null,null,null,null,0,0]
[null,null,null,null,null,null,null,0,0]
["Insert description of additional item(s) and new rows if needed.",null,null,null,null,null,null,0,0]
["Total",null,null,null,{"$f":"SUM(E39:E52)","v":0},{"$f":"SUM(F39:F52)","v":0},{"$f":"SUM(G39:G52)","v":0},{"$f":"SUM(H39:H52)","v":0},{"$f":"SUM(I39:I52)","v":0}]
[]
["Notes:"]
[1,"If the applicant chooses to adopt IFRS or an alternate accounting standard for financial reporting purposes in 2013, the applicant does not need to complete Columns A, E.  If the applicant adopts IFRS or an alternate accounting standard for financial reporting purposes in 2012, the applicant must complete all columns."]

{"sheet":"App.2-EA_PP&E Deferral Account","index":20,"n_rows":55,"n_cols":10,"rows_kept":55,"cut":false,"hidden":true,"merged":[[54,0,55,8],[33,1,34,2],[25,1,26,2],[20,1,20,8],[19,1,19,2],[19,5,19,8],[25,5,26,8],[31,5,31,8],[31,1,31,2],[8,0,8,8],[9,0,9,8],[10,0,10,8],[14,0,14,8],[12,0,12,8]]}
[null,null,null,null,null,null,null,"File Number:",{"$f":"'LDC Info'!$E$18","v":"EB-2013-0139"}]
[null,null,null,null,null,null,null,"Exhibit:"]
[null,null,null,null,null,null,null,"Tab:"]
[null,null,null,null,null,null,null,"Schedule:"]
[null,null,null,null,null,null,null,"Page:"]
[]
[null,null,null,null,null,null,null,"Date:"]
[]
["Appendix 2-EA"]
["IFRS-CGAAP Transitional PP&E Amounts"]
["2014 Adopters of IFRS for Financial Reporting Purposes"]
[]
["For applicants that adopt IFRS on January 1, 2014 for financial reporting purposes"]
[]
["Note: this sheet should be filled out if the applicant adopts IFRS for its financial reporting purpose as of January 1, 2012. "]
[]
[null,"2010 Rebasing Year",2011,2012,2013,"2014 Rebasing Year",2015,2016,2017]
["Reporting Basis","CGAAP","IRM","IRM","IRM","MIFRS","IRM","IRM","IRM"]
["Forecast vs. Actual Used in Rebasing Year","Forecast","Actual","Actual","Forecast","Forecast"]
[null,null,null,"$","$"]
["PP&E Values under CGAAP"]
["            Opening net PP&E - Note 1"]
["            Additions"]
["            Depreciation (amounts should be negative)"]
["            Closing net PP&E (1)",null,null,{"$f":"D22+D23+D24","v":0},{"$f":"E22+E23+E24","v":0}]
[]
["PP&E Values under MIFRS (Starts from 2011, the transition year)"]
["            Opening net PP&E  - Note 1"]
["            Additions"]
["            Depreciation (amounts should be negative)"]
["            Closing net PP&E (2)",null,null,{"$f":"SUM(D28:D30)","v":0},{"$f":"SUM(E28:E30)","v":0}]
[]
["Difference in Closing net PP&E, CGAAP vs. MIFRS (Shown as adjustment to rate base on rebasing)",null,null,{"$f":"D25-D31","v":0},{"$f":"E25-E31","v":0}]
[]
["Account 1575 - IFRS-CGAAP Transitional PP&E Amounts"]
["Opening balance ",null,null,0,{"$f":"D40","v":0},{"$f":"E40","v":0},{"$f":"F40","v":0},{"$f":"G40","v":0},{"$f":"H40","v":0}]
["Amounts added in the year",null,null,{"$f":"D33","v":0},{"$f":"E33-D33","v":0}]
["Sub-total",null,null,{"$f":"D36+D37","v":0},0,0,0,0,0]
["Amount of amortization, included in  depreciation expense  - Note 2",null,null,null,null,{"$f":"IF(ISERROR(-E33/I44), 0, -E33/I44)","v":0},{"$f":"+F39","v":0},{"$f":"+F39","v":0},{"$f":"+F39","v":0}]
["          Closing balance in deferral account",null,null,{"$f":"D38+D39","v":0},0,{"$f":"IF(ISERROR(F38+F39), 0, F38+F39)","v":0},0,0,0]
[]
["Effect on Revenue Requirement"]
["Amortization of deferred balance as above - Note 2",null,null,null,null,{"$f":"IF(ISERROR(E33/I44), 0, E33/I44)","v":0},null,"WACC"]
["Return on Rate Base Associated with deferred PP&E balance at WACC  - Note 3 ",null,null,null,null,{"$f":"E33*I43","v":0},null,"Disposition Period - Note 4",4,"Years"]
["     Amount included in Revenue Requirement on rebasing",null,null,null,null,{"$f":"F43+F44","v":0}]
[]
["Notes:"]
["1  For an applicant that adopts IFRS on January 1, 2014, the PP&E values as of January 1, 2013 under both CGAAP and MIFRS should be the same. "]
["2  Amortization of the deferred balance in Account 1575 will start from the rebasing year. "]
["    Assume the utility requests for a certain disposition period, the amortization that should be included in the depreciation expense is calculated as:"]
["   the opening balance of Account 1575 / the approved disposition period"]
["3  Return on rate base associated with deferred balance is calculated as:"]
["     the deferred account opening balance as of 2014 rebasing year x WACC"]
["     * Please note that the calculation should be adjusted once WACC is updated and finalized in the rate application."]
["4  Consistent with the 4 year normal rate cycle, the model is using a 4 year amortization period as a default selection to \"clear\" the PP&E deferral account through a one-time adjustment to ratebase to capture and remove the impact of the accounting policy changes as caused by the transition from CGAAP to MIFRS."]

{"sheet":"App.2-CF_CGAAP_DepExp_2010","index":21,"n_rows":61,"n_cols":16,"rows_kept":61,"cut":false,"hidden":false,"merged":[[57,1,57,12],[58,1,59,10],[60,1,61,12],[8,0,8,12],[9,0,9,12],[10,0,10,12],[13,0,14,0],[13,1,14,1],[13,11,14,11]]}
[null,null,null,null,null,null,null,null,null,null,null,"File Number:",0]
[null,null,null,null,null,null,null,null,null,null,null,"Exhibit:",2]
[null,null,null,null,null,null,null,null,null,null,null,"Tab:",1]
[null,null,null,null,null,null,null,null,null,null,null,"Schedule:",5]
[null,null,null,null,null,null,null,null,null,null,null,"Page:",1]
[]
[null,null,null,null,null,null,null,null,null,null,null,"Date:"]
[]
["Appendix 2-CA"]
["Depreciation and Amortization Expense"]
["Assumes the applicant adopted IFRS for financial reporting purposes January 1, 2015"]
[null,null,"Year",2010,"CGAAP"]
[]
["Account","Description","Opening Regulatory Gross PP&E as at Jan 1, 2012 ","Less Fully Depreciated","Net for Depreciation","Additions","Smart Meter\nAdditions","Total for Depreciation","Years","Depreciation Rate","Depreciation Expense","2012 Depreciation Expense per Appendix 2-B Fixed Assets, Column K \n (l)","Variance 2"]
[null,null,"(a)","(b)","(c)","(d)","(dd)","(e) = (c) + ½ x (d) 1","(f)","(g) = 1 / (f)","(h) = (e) / (f)",null,"(m) = (h) - (l)"]
[1611,"Computer Software (Formally known as Account 1925)",113795.64,5356.3,{"$f":"C16-D16","v":108439.34},14357.63,null,{"$f":"E16+0.5*F16","v":115618.155},5,{"$f":"IF(I16=0,0,1/I16)","v":0.2},{"$f":"IF(I16=0,0,H16/I16)","v":23123.631000000001},23123.63,{"$f":"IF(ISERROR(+K16-L16), 0, +K16-L16)","v":1.0000000002037268E-3}]
[1612,"Land Rights (Formally known as Account 1906)",8588,null,{"$f":"C17-D17","v":8588},0,null,{"$f":"E17+0.5*F17","v":8588},null,0,0,0,0]
[1805,"Land",10000,null,10000,null,null,10000,null,0,0,0,0]
[1808,"Buildings",null,null,0,null,null,0,null,0,0,null,0]
[1810,"Leasehold Improvements",null,null,0,null,null,0,null,0,0,null,0]
[1815,"Transformer Station Equipment >50 kV",349916.94,20772.34,329144.59999999998,52494.8,null,355392,40,2.5000000000000001E-2,8884.7999999999993,8884.7999999999993,0]
[1820,"Distribution Station Equipment <50 kV",175800.99,-137579.81,313380.8,9059.01,null,317910.30499999999,30,3.3333333333333333E-2,10597.010166666667,10597.01,1.6666666670062114E-4]
[1825,"Storage Battery Equipment",null,null,0,null,null,0,null,0,0,null,0]
[1830,"Poles, Towers & Fixtures",322655.88,-121032.5,443688.38,28410.75,null,457893.755,25,0.04,18315.750199999999,18315.75,1.9999999858555384E-4]
[1835,"Overhead Conductors & Devices",367500.19,-172447.79,539947.98,34806.04,null,557351,25,0.04,22294.04,22294.04,0]
[1840,"Underground Conduit",113707.7,-34654.089999999997,148361.78999999998,147.41999999999999,null,148435.49999999997,25,0.04,5937.4199999999992,5937.42,-9.0949470177292824E-13]
[1845,"Underground Conductors & Devices",212731.5,-52040.95,264772.45,47660.1,null,288602.5,25,0.04,11544.1,11544.1,0]
[1850,"Line Transformers",372827.19,-31367.7,404194.89,24321.22,null,416355.5,25,0.04,16654.22,16654.22,0]
[1855,"Services (Overhead & Underground)",23261.26,17.87,23243.39,3574.22,null,25030.5,25,0.04,1001.22,1001.22,0]
[1860,"Meters",246912.13,-144487.87,391400,null,null,391400,25,0.04,15656,15656,0]
[1860,"Meters (Smart Meters)",null,null,0,null,null,0,15,6.6666666666666666E-2,0,null,0]
[1905,"Land",28299.7,null,28299.7,null,null,28299.7,null,0,0,0,0]
[1908,"Buildings & Fixtures",824123.77,-25826.23,849950,null,null,849950,50,0.02,16999,16999,0,null,null,"`"]
[1910,"Leasehold Improvements",null,null,0,null,null,0,null,0,0,null,0]
[1915,"Office Furniture & Equipment (10 years)",30527.53,5428.63,25098.899999999998,2126.1999999999998,null,26161.999999999996,10,0.1,2616.1999999999998,2616.1999999999998,0]
[1915,"Office Furniture & Equipment (5 years)",null,null,0,null,null,0,null,0,0,null,0]
[1920,"Computer Equipment - Hardware",46427.21,24646.81,21780.399999999998,3691.2,null,23625.999999999996,5,0.2,4725.1999999999989,4725.2,-9.0949470177292824E-13]
[1920,"Computer Equip.-Hardware(Post Mar. 22/04)",null,null,0,null,null,0,null,0,0,null,0]
[1920,"Computer Equip.-Hardware(Post Mar. 19/07)",null,null,0,null,null,0,null,0,0,null,0]
[1930,"Transportation Equipment",205345.8,184897.8,20448,null,null,20448,8,0.125,2556,2556,0]
[1935,"Stores Equipment",null,null,0,null,null,0,null,0,0,null,0]
[1940,"Tools, Shop & Garage Equipment",13959.53,3436.17,{"$f":"C42-D42","v":10523.36},6006.67,null,13526.695,10,0.1,1352.6695,1352.67,-5.0000000010186341E-4]
[1945,"Measurement & Testing Equipment",null,null,0,null,null,0,null,0,0,null,0]
[1950,"Power Operated Equipment",4363.29,3.29,4360,null,null,4360,8,0.125,545,545,0]
[1955,"Communications Equipment",null,null,0,null,null,0,null,0,0,null,0]
[1955,"Communication Equipment (Smart Meters)",null,null,0,null,null,0,null,0,0,null,0]
[1960,"Miscellaneous Equipment ",null,null,0,null,null,0,null,0,0,null,0]
[1975,"Load Management Controls Utility Premises",null,null,0,null,null,0,null,0,0,null,0]
[1980,"System Supervisor Equipment",null,null,0,null,null,0,null,0,0,null,0]
[1985,"Miscellaneous Fixed Assets",null,null,0,null,null,0,null,0,0,null,0]
[1995,"Contributions & Grants",-70173.64,-49.37,-70124.27,-74299.97,null,-107274.255,25,0.04,-4290.9701999999997,-4290.97,-1.9999999949504854E-4]
["etc.",null,null,null,0,null,null,0,null,0,0,null,0]
[null,null,null,null,0,0,null,0,null,0,0,null,0]
[null,"Total",{"$f":"SUM(C16:C53)","v":3400570.6099999994},-474927.09999999992,3875497.7100000004,152355.29000000007,0,3951675.355,null,null,{"$f":"SUM(K16:K53)","v":158511.2906666667},{"$f":"SUM(L16:L53)","v":158511.29000000004},{"$f":"SUM(M16:M53)","v":6.6666666407400044E-4}]
[]
["Notes:"]
[]
[1,"Board policy of the \"half-year\" rule - the applicant must ensure that additions in the year attract a half-year depreciation expense in the first year.  Deviations from this standard practice must be supported in the application."]
[2,"The applicant must provide an explanation of material variances in evidence"]
[]
["General","Applicants must provide a breakdown of depreciation and amortization expense in the above format for all relevant accounts.  Asset Retirement Obligations (AROs), depreciation and accretion expense should be disclosed separately consistent with the Notes of historical Audited Financial Statements."]

{"sheet":"App.2-CF_CGAAP_DepExp_2011","index":22,"n_rows":61,"n_cols":16,"rows_kept":61,"cut":false,"hidden":false,"merged":[[57,1,57,12],[58,1,59,10],[60,1,61,12],[8,0,8,12],[9,0,9,12],[10,0,10,12],[13,0,14,0],[13,1,14,1],[13,11,14,11]]}
[null,null,null,null,null,null,null,null,null,null,null,"File Number:",0]
[null,null,null,null,null,null,null,null,null,null,null,"Exhibit:",2]
[null,null,null,null,null,null,null,null,null,null,null,"Tab:",1]
[null,null,null,null,null,null,null,null,null,null,null,"Schedule:",5]
[null,null,null,null,null,null,null,null,null,null,null,"Page:",1]
[]
[null,null,null,null,null,null,null,null,null,null,null,"Date:"]
[]
["Appendix 2-CA"]
["Depreciation and Amortization Expense"]
["Assumes the applicant adopted IFRS for financial reporting purposes January 1, 2015"]
[null,null,"Year",2011,"CGAAP"]
[]
["Account","Description","Opening Regulatory Gross PP&E as at Jan 1, 2012 ","Less Fully Depreciated","Net for Depreciation","Additions","Smart Meter\nAdditions","Total for Depreciation","Years","Depreciation Rate","Depreciation Expense","2012 Depreciation Expense per Appendix 2-B Fixed Assets, Column K \n (l)","Variance 2"]
[null,null,"(a)","(b)","(c)","(d)","(dd)","(e) = (c) + ½ x (d) 1","(f)","(g) = 1 / (f)","(h) = (e) / (f)",null,"(m) = (h) - (l)"]
[1611,"Computer Software (Formally known as Account 1925)",128153.27,15277.94,{"$f":"C16-D16","v":112875.33},8639.34,null,{"$f":"E16+0.5*F16","v":117195},5,{"$f":"IF(I16=0,0,1/I16)","v":0.2},{"$f":"IF(I16=0,0,H16/I16)","v":23439},23439,{"$f":"IF(ISERROR(+K16-L16), 0, +K16-L16)","v":0}]
[1612,"Land Rights (Formally known as Account 1906)",8588,null,{"$f":"C17-D17","v":8588},0,null,{"$f":"E17+0.5*F17","v":8588},null,0,0,0,0]
[1805,"Land",10000,null,10000,null,null,10000,null,0,0,0,0]
[1808,"Buildings",0,null,0,null,null,0,null,0,0,null,0]
[1810,"Leasehold Improvements",0,null,0,null,null,0,null,0,0,null,0]
[1815,"Transformer Station Equipment >50 kV",402411.74,40401.74,362010,55500,null,389760,40,2.5000000000000001E-2,9744,9744,0]
[1820,"Distribution Station Equipment <50 kV",184860,-137594.59,322454.58999999997,66690.820000000007,null,355800,30,3.3333333333333333E-2,11860,11860,0]
[1825,"Storage Battery Equipment",0,null,0,null,null,0,null,0,0,null,0]
[1830,"Poles, Towers & Fixtures",351066.63,-100079.11,451145.74,27658.52,null,464975,25,0.04,18599,18599,0]
[1835,"Overhead Conductors & Devices",402306.23,-146550.62,548856.85,3636.3,null,550675,25,0.04,22027,22027,0]
[1840,"Underground Conduit",113855.12,-34694.879999999997,148550,0,null,148550,25,0.04,5942,5942,0]
[1845,"Underground Conductors & Devices",260391.6,-51990.75,312382.34999999998,585.30999999999995,null,312675.005,25,0.04,12507.0002,12507,2.0000000040454324E-4]
[1850,"Line Transformers",397148.41000000003,10985.74,386162.67000000004,6024.65,null,389174.99500000005,25,0.04,15566.999800000001,15567,-1.9999999858555384E-4]
[1855,"Services (Overhead & Underground)",26835.48,10.59,26824.89,3350.22,null,28500,25,0.04,1140,1140,0]
[1860,"Meters",246912.13,-134339.54999999999,381251.68,7796.64,null,385150,25,0.04,15406,15406,0]
[1860,"Meters (Smart Meters)",0,null,0,null,null,0,15,6.6666666666666666E-2,0,null,0]
[1905,"Land",28299.7,null,28299.7,0,null,28299.7,null,0,0,0,0]
[1908,"Buildings & Fixtures",824123.77,-25826.23,849950,0,null,849950,50,0.02,16999,16999,0,null,null,"`"]
[1910,"Leasehold Improvements",0,null,0,null,null,0,null,0,0,null,0]
[1915,"Office Furniture & Equipment (10 years)",32653.73,5838.85,26814.879999999997,1130.23,null,27379.994999999999,10,0.1,2737.9994999999999,2738,-5.0000000010186341E-4]
[1915,"Office Furniture & Equipment (5 years)",0,null,0,null,null,0,null,0,0,null,0]
[1920,"Computer Equipment - Hardware",50118.409999999996,29210.1,20908.309999999998,2103.38,null,21959.999999999996,5,0.2,4391.9999999999991,4392,-9.0949470177292824E-13]
[1920,"Computer Equip.-Hardware(Post Mar. 22/04)",0,null,0,null,null,0,null,0,0,null,0]
[1920,"Computer Equip.-Hardware(Post Mar. 19/07)",0,null,0,null,null,0,null,0,0,null,0]
[1930,"Transportation Equipment",205345.8,184897.8,20448,0,null,20448,8,0.125,2556,2556,0]
[1935,"Stores Equipment",0,null,0,null,null,0,null,0,0,null,0]
[1940,"Tools, Shop & Garage Equipment",19966.2,3737.84,{"$f":"C42-D42","v":16228.36},5063.2700000000004,null,18759.995000000003,10,0.1,1875.9995000000004,1876,-4.9999999964711606E-4]
[1945,"Measurement & Testing Equipment",0,null,0,null,null,0,null,0,0,null,0]
[1950,"Power Operated Equipment",4363.29,3.29,4360,0,null,4360,8,0.125,545,545,0]
[1955,"Communications Equipment",0,null,0,null,null,0,null,0,0,null,0]
[1955,"Communication Equipment (Smart Meters)",0,null,0,null,null,0,null,0,0,null,0]
[1960,"Miscellaneous Equipment ",0,null,0,null,null,0,null,0,0,null,0]
[1975,"Load Management Controls Utility Premises",0,null,0,null,null,0,null,0,0,null,0]
[1980,"System Supervisor Equipment",0,null,0,null,null,0,null,0,0,null,0]
[1985,"Miscellaneous Fixed Assets",0,null,0,null,null,0,null,0,0,null,0]
[1995,"Contributions & Grants",-144473.60999999999,-48.61,-144425,0,null,-144425,25,0.04,-5777,-5777,0]
["etc.",null,0,null,0,null,null,0,null,0,0,null,0]
[null,null,null,null,0,null,null,0,null,0,0,null,0]
[null,"Total",{"$f":"SUM(C16:C53)","v":3552925.9000000008},-340760.45,3893686.35,188178.68,0,3987775.6900000004,null,null,{"$f":"SUM(K16:K53)","v":159559.99900000001},{"$f":"SUM(L16:L53)","v":159560},{"$f":"SUM(M16:M53)","v":-9.9999999883948476E-4}]
[]
["Notes:"]
[]
[1,"Board policy of the \"half-year\" rule - the applicant must ensure that additions in the year attract a half-year depreciation expense in the first year.  Deviations from this standard practice must be supported in the application."]
[2,"The applicant must provide an explanation of material variances in evidence"]
[]
["General","Applicants must provide a breakdown of depreciation and amortization expense in the above format for all relevant accounts.  Asset Retirement Obligations (AROs), depreciation and accretion expense should be disclosed separately consistent with the Notes of historical Audited Financial Statements."]

{"sheet":"App.2-CF_CGAAP_DepExp_2012","index":23,"n_rows":61,"n_cols":16,"rows_kept":61,"cut":false,"hidden":false,"merged":[[57,1,57,12],[58,1,59,10],[60,1,61,12],[8,0,8,12],[9,0,9,12],[10,0,10,12],[13,0,14,0],[13,1,14,1],[13,11,14,11]]}
[null,null,null,null,null,null,null,null,null,null,null,"File Number:",0]
[null,null,null,null,null,null,null,null,null,null,null,"Exhibit:",2]
[null,null,null,null,null,null,null,null,null,null,null,"Tab:",1]
[null,null,null,null,null,null,null,null,null,null,null,"Schedule:",5]
[null,null,null,null,null,null,null,null,null,null,null,"Page:",1]
[]
[null,null,null,null,null,null,null,null,null,null,null,"Date:"]
[]
["Appendix 2-CA"]
["Depreciation and Amortization Expense"]
["Assumes the applicant adopted IFRS for financial reporting purposes January 1, 2015"]
[null,null,"Year",2012,"CGAAP"]
[]
["Account","Description","Opening Regulatory Gross PP&E as at Jan 1, 2012 ","Less Fully Depreciated","Net for Depreciation","Additions","Smart Meter\nAdditions","Total for Depreciation","Years","Depreciation Rate","Depreciation Expense","2012 Depreciation Expense per Appendix 2-B Fixed Assets, Column K \n (l)","Variance 2"]
[null,null,"(a)","(b)","(c)","(d)","(dd)","(e) = (c) + ½ x (d) 1","(f)","(g) = 1 / (f)","(h) = (e) / (f)",null,"(m) = (h) - (l)"]
[1611,"Computer Software (Formally known as Account 1925)",{"$f":"'App 2-B FixAsset 2012-CGAAP'!E16","v":136792.61000000002},-5561,{"$f":"C16-D16","v":142353.61000000002},{"$f":"'App 2-B FixAsset 2012-CGAAP'!F16","v":2682.5},{"$f":"+'App 2-B FixAsset 2012-CGAAP'!G16","v":41549},{"$f":"E16+0.5*F16","v":143694.86000000002},5,{"$f":"IF(I16=0,0,1/I16)","v":0.2},{"$f":"IF(I16=0,0,H16/I16)","v":28738.972000000002},28739,{"$f":"IF(ISERROR(+K16-L16), 0, +K16-L16)","v":-2.7999999998428393E-2}]
[1612,"Land Rights (Formally known as Account 1906)",{"$f":"'App 2-B FixAsset 2012-CGAAP'!E17","v":8588},8588,{"$f":"C17-D17","v":0},{"$f":"'App 2-B FixAsset 2012-CGAAP'!F17","v":0},null,{"$f":"E17+0.5*F17","v":0},null,0,0,null,0]
[1805,"Land",{"$f":"'App 2-B FixAsset 2012-CGAAP'!E18","v":10000},10000,0,{"$f":"'App 2-B FixAsset 2012-CGAAP'!F18","v":0},null,0,null,0,0,null,0]
[1808,"Buildings",{"$f":"'App 2-B FixAsset 2012-CGAAP'!E19","v":0},null,0,{"$f":"'App 2-B FixAsset 2012-CGAAP'!F19","v":0},null,0,null,0,0,null,0]
[1810,"Leasehold Improvements",{"$f":"'App 2-B FixAsset 2012-CGAAP'!E20","v":0},null,0,{"$f":"'App 2-B FixAsset 2012-CGAAP'!F20","v":0},null,0,null,0,0,null,0]
[1815,"Transformer Station Equipment >50 kV",{"$f":"'App 2-B FixAsset 2012-CGAAP'!E21","v":457911.74},40397,417514.74,{"$f":"'App 2-B FixAsset 2012-CGAAP'!F21","v":24890},null,429959.74,40,2.5000000000000001E-2,10748.9935,10749,-6.4999999995052349E-3]
[1820,"Distribution Station Equipment <50 kV",{"$f":"'App 2-B FixAsset 2012-CGAAP'!E22","v":251550.82},-137573,389123.82,{"$f":"'App 2-B FixAsset 2012-CGAAP'!F22","v":4632.2700000000004},null,391439.95500000002,30,3.3333333333333333E-2,13047.9985,13048,-1.5000000003055902E-3]
[1825,"Storage Battery Equipment",{"$f":"'App 2-B FixAsset 2012-CGAAP'!E23","v":0},null,0,{"$f":"'App 2-B FixAsset 2012-CGAAP'!F23","v":0},null,0,null,0,0,null,0]
[1830,"Poles, Towers & Fixtures",{"$f":"'App 2-B FixAsset 2012-CGAAP'!E24","v":378725.15},-100074,478799.15,{"$f":"'App 2-B FixAsset 2012-CGAAP'!F24","v":80902.080000000002},null,519250.19,25,0.04,20770.007600000001,20770,7.600000000820728E-3]
[1835,"Overhead Conductors & Devices",{"$f":"'App 2-B FixAsset 2012-CGAAP'!E25","v":405942.52999999997},-124489,530431.53,{"$f":"'App 2-B FixAsset 2012-CGAAP'!F25","v":69887.63},null,565375.34499999997,25,0.04,22615.013800000001,22615,1.3800000000628643E-2]
[1840,"Underground Conduit",{"$f":"'App 2-B FixAsset 2012-CGAAP'!E26","v":113855.12},-29520,143375.12,{"$f":"'App 2-B FixAsset 2012-CGAAP'!F26","v":0},null,143375.12,25,0.04,5735.0047999999997,5735,4.7999999997045961E-3]
[1845,"Underground Conductors & Devices",{"$f":"'App 2-B FixAsset 2012-CGAAP'!E27","v":260976.91},-44305,305281.91000000003,{"$f":"'App 2-B FixAsset 2012-CGAAP'!F27","v":4935.66},null,307749.74000000005,25,0.04,12309.989600000003,12310,-1.0399999997389386E-2]
[1850,"Line Transformers",{"$f":"'App 2-B FixAsset 2012-CGAAP'!E28","v":403173.06000000006},14383,388790.06000000006,{"$f":"'App 2-B FixAsset 2012-CGAAP'!F28","v":5619.7},null,391599.91000000003,25,0.04,15663.996400000002,15664,-3.5999999981868314E-3]
[1855,"Services (Overhead & Underground)",{"$f":"'App 2-B FixAsset 2012-CGAAP'!E29","v":30185.7},null,30185.7,{"$f":"'App 2-B FixAsset 2012-CGAAP'!F29","v":2234.12},null,31302.760000000002,25,0.04,1252.1104,1252,0.11040000000002692]
[1860,"Meters",{"$f":"'App 2-B FixAsset 2012-CGAAP'!E30","v":254708.77000000002},-64049,318757.77,{"$f":"'App 2-B FixAsset 2012-CGAAP'!F30","v":134.61000000000001},null,318825.07500000001,25,0.04,12753.003000000001,12753,3.0000000006111804E-3]
[1860,"Meters (Smart Meters)",{"$f":"'App 2-B FixAsset 2012-CGAAP'!E31","v":0},null,{"$f":"C31-D31+601816.73","v":601816.73},{"$f":"'App 2-B FixAsset 2012-CGAAP'!F31","v":17081.77},{"$f":"+'App 2-B FixAsset 2012-CGAAP'!G31","v":601816.73},610357.61499999999,15,6.6666666666666666E-2,40690.507666666665,40690,0.50766666666459059]
[1905,"Land",{"$f":"'App 2-B FixAsset 2012-CGAAP'!E32","v":28299.7},28300,-0.2999999999992724,{"$f":"'App 2-B FixAsset 2012-CGAAP'!F32","v":0},null,-0.2999999999992724,null,0,0,null,0]
[1908,"Buildings & Fixtures",{"$f":"'App 2-B FixAsset 2012-CGAAP'!E33","v":824123.77},-25826,849949.77,{"$f":"'App 2-B FixAsset 2012-CGAAP'!F33","v":0},null,849949.77,50,0.02,16998.9954,16999,-4.6000000002095476E-3,null,null,"`"]
[1910,"Leasehold Improvements",{"$f":"'App 2-B FixAsset 2012-CGAAP'!E34","v":0},null,0,{"$f":"'App 2-B FixAsset 2012-CGAAP'!F34","v":0},null,0,null,0,0,null,0]
[1915,"Office Furniture & Equipment (10 years)",{"$f":"'App 2-B FixAsset 2012-CGAAP'!E35","v":33783.96},6234,27549.96,{"$f":"'App 2-B FixAsset 2012-CGAAP'!F35","v":0},null,27549.96,10,0.1,2754.9960000000001,2755,-3.9999999999054126E-3]
[1915,"Office Furniture & Equipment (5 years)",{"$f":"'App 2-B FixAsset 2012-CGAAP'!E36","v":0},null,0,{"$f":"'App 2-B FixAsset 2012-CGAAP'!F36","v":0},null,0,null,0,0,null,0]
[1920,"Computer Equipment - Hardware",{"$f":"'App 2-B FixAsset 2012-CGAAP'!E37","v":52221.789999999994},35355,16866.789999999994,{"$f":"'App 2-B FixAsset 2012-CGAAP'!F37","v":2656.32},null,18194.949999999993,5,0.2,3638.9899999999989,3639,-1.0000000001127773E-2]
[1920,"Computer Equip.-Hardware(Post Mar. 22/04)",{"$f":"'App 2-B FixAsset 2012-CGAAP'!E38","v":0},null,0,{"$f":"'App 2-B FixAsset 2012-CGAAP'!F38","v":0},null,0,null,0,0,null,0]
[1920,"Computer Equip.-Hardware(Post Mar. 19/07)",{"$f":"'App 2-B FixAsset 2012-CGAAP'!E39","v":0},null,0,{"$f":"'App 2-B FixAsset 2012-CGAAP'!F39","v":0},null,0,null,0,0,null,0]
[1930,"Transportation Equipment",{"$f":"'App 2-B FixAsset 2012-CGAAP'!E40","v":205345.8},{"$f":"184346+552","v":184898},20447.799999999988,{"$f":"'App 2-B FixAsset 2012-CGAAP'!F40","v":0},null,20447.799999999988,8,0.125,2555.9749999999985,2556,-2.5000000001455192E-2]
[1935,"Stores Equipment",{"$f":"'App 2-B FixAsset 2012-CGAAP'!E41","v":0},null,0,{"$f":"'App 2-B FixAsset 2012-CGAAP'!F41","v":0},null,0,null,0,0,null,0]
[1940,"Tools, Shop & Garage Equipment",{"$f":"'App 2-B FixAsset 2012-CGAAP'!E42","v":25029.47},2616,{"$f":"C42-D42","v":22413.47},{"$f":"'App 2-B FixAsset 2012-CGAAP'!F42","v":794},{"$f":"+'App 2-B FixAsset 2012-CGAAP'!G42","v":2173},22810.47,10,0.1,2281.047,2281,4.7000000000025466E-2]
[1945,"Measurement & Testing Equipment",{"$f":"'App 2-B FixAsset 2012-CGAAP'!E43","v":0},null,0,{"$f":"'App 2-B FixAsset 2012-CGAAP'!F43","v":0},null,0,null,0,0,null,0]
[1950,"Power Operated Equipment",{"$f":"'App 2-B FixAsset 2012-CGAAP'!E44","v":4363.29},null,4363.29,{"$f":"'App 2-B FixAsset 2012-CGAAP'!F44","v":0},null,4363.29,8,0.125,545.41125,545.41,1.2500000000272848E-3]
[1955,"Communications Equipment",{"$f":"'App 2-B FixAsset 2012-CGAAP'!E45","v":0},null,0,{"$f":"'App 2-B FixAsset 2012-CGAAP'!F45","v":0},null,0,null,0,0,null,0]
[1955,"Communication Equipment (Smart Meters)",{"$f":"'App 2-B FixAsset 2012-CGAAP'!E46","v":0},null,0,{"$f":"'App 2-B FixAsset 2012-CGAAP'!F46","v":0},null,0,null,0,0,null,0]
[1960,"Miscellaneous Equipment ",{"$f":"'App 2-B FixAsset 2012-CGAAP'!E47","v":0},null,0,{"$f":"'App 2-B FixAsset 2012-CGAAP'!F47","v":0},null,0,null,0,0,null,0]
[1975,"Load Management Controls Utility Premises",{"$f":"'App 2-B FixAsset 2012-CGAAP'!E48","v":0},null,0,{"$f":"'App 2-B FixAsset 2012-CGAAP'!F48","v":0},null,0,null,0,0,null,0]
[1980,"System Supervisor Equipment",{"$f":"'App 2-B FixAsset 2012-CGAAP'!E49","v":0},null,0,{"$f":"'App 2-B FixAsset 2012-CGAAP'!F49","v":0},null,0,null,0,0,null,0]
[1985,"Miscellaneous Fixed Assets",{"$f":"'App 2-B FixAsset 2012-CGAAP'!E50","v":0},null,0,{"$f":"'App 2-B FixAsset 2012-CGAAP'!F50","v":0},null,0,null,0,0,null,0]
[1995,"Contributions & Grants",{"$f":"'App 2-B FixAsset 2012-CGAAP'!E51","v":-144473.60999999999},null,-144473.60999999999,{"$f":"'App 2-B FixAsset 2012-CGAAP'!F51","v":-110040.57},null,-199493.89499999999,25,0.04,-7979.7557999999999,-7977.81,-1.9457999999995081]
["etc.",null,{"$f":"'App 2-B FixAsset 2012-CGAAP'!E52","v":0},null,0,{"$f":"'App 2-B FixAsset 2012-CGAAP'!F52","v":0},null,0,null,0,0,null,0]
[null,null,{"$f":"'App 2-B FixAsset 2012-CGAAP'!E53","v":0},null,0,{"$f":"'App 2-B FixAsset 2012-CGAAP'!F53","v":0},null,0,null,0,0,null,0]
[null,"Total",{"$f":"SUM(C16:C53)","v":3741104.58},-200626,4543547.3099999996,106410.09,645538.73,4596752.3550000014,null,null,{"$f":"SUM(K16:K53)","v":205121.25611666666},{"$f":"SUM(L16:L53)","v":205122.6},{"$f":"SUM(M16:M53)","v":-1.3438833333295861}]
[]
["Notes:"]
[]
[1,"Board policy of the \"half-year\" rule - the applicant must ensure that additions in the year attract a half-year depreciation expense in the first year.  Deviations from this standard practice must be supported in the application."]
[2,"The applicant must provide an explanation of material variances in evidence"]
[]
["General","Applicants must provide a breakdown of depreciation and amortization expense in the above format for all relevant accounts.  Asset Retirement Obligations (AROs), depreciation and accretion expense should be disclosed separately consistent with the Notes of historical Audited Financial Statements."]

{"sheet":"App.2-CF_CGAAP_DepExp_2013","index":24,"n_rows":66,"n_cols":13,"rows_kept":66,"cut":false,"hidden":false,"merged":[[62,1,62,11],[63,1,64,9],[65,1,66,11],[8,0,8,11],[9,0,9,11],[10,0,10,11],[13,0,14,0],[13,1,14,1],[13,10,14,10]]}
[null,null,null,null,null,null,null,null,null,null,"File Number:",0]
[null,null,null,null,null,null,null,null,null,null,"Exhibit:",2]
[null,null,null,null,null,null,null,null,null,null,"Tab:",1]
[null,null,null,null,null,null,null,null,null,null,"Schedule:",6]
[null,null,null,null,null,null,null,null,null,null,"Page:",2]
[]
[null,null,null,null,null,null,null,null,null,null,"Date:"]
[]
["Appendix 2-CA"]
["Depreciation and Amortization Expense"]
["Assumes the applicant adopted IFRS for financial reporting purposes January 1, 2015"]
[null,null,"Year",2013,"CGAAP"]
[]
["Account","Description","Opening Regulatory Gross PP&E as at Jan 1, 2013","Less Fully Depreciated","Net for Depreciation","Additions","Total for Depreciation","Years","Depreciation Rate","Depreciation Expense","2013 Depreciation Expense per Appendix 2-B Fixed Assets, Column K \n (l)","Variance 2"]
[null,null,"(a)","(b)","(c)","(d)","(e) = (c) + ½ x (d) 1","(f)","(g) = 1 / (f)","(h) = (e) / (f)",null,"(m) = (h) - (l)"]
[1611,"Computer Software (Formally known as Account 1925)",{"$f":"'App 2-B FixAsset 2013-CGAAP'!E16","v":181024.11000000002},81389.11,{"$f":"C16-D16","v":99635.000000000015},{"$f":"'App 2-B FixAsset 2013-CGAAP'!F16","v":28000},{"$f":"E16+0.5*F16","v":113635.00000000001},5,{"$f":"IF(H16=0,0,1/H16)","v":0.2},{"$f":"IF(H16=0,0,G16/H16)","v":22727.000000000004},22727,{"$f":"IF(ISERROR(+J16-K16), 0, +J16-K16)","v":3.637978807091713E-12},{"$f":"L16/I16","v":1.8189894035458565E-11}]
[1612,"Land Rights (Formally known as Account 1906)",{"$f":"'App 2-B FixAsset 2013-CGAAP'!E17","v":8588},8588,{"$f":"C17-D17","v":0},{"$f":"'App 2-B FixAsset 2013-CGAAP'!F17","v":0},{"$f":"E17+0.5*F17","v":0},null,0,0,0,0]
[1805,"Land",{"$f":"'App 2-B FixAsset 2013-CGAAP'!E18","v":10000},10000,0,{"$f":"'App 2-B FixAsset 2013-CGAAP'!F18","v":0},0,null,0,0,0,0]
[1808,"Buildings",{"$f":"'App 2-B FixAsset 2013-CGAAP'!E19","v":0},0,0,{"$f":"'App 2-B FixAsset 2013-CGAAP'!F19","v":0},0,null,0,0,null,0]
[1810,"Leasehold Improvements",{"$f":"'App 2-B FixAsset 2013-CGAAP'!E20","v":0},0,0,{"$f":"'App 2-B FixAsset 2013-CGAAP'!F20","v":0},0,null,0,0,null,0]
[1815,"Transformer Station Equipment >50 kV",{"$f":"'App 2-B FixAsset 2013-CGAAP'!E21","v":482801.74},40402,442399.74,{"$f":"'App 2-B FixAsset 2013-CGAAP'!F21","v":1547900},1216349.74,45,2.2222222222222223E-2,27029.994222222223,27030,-5.7777777765295468E-3]
[1820,"Distribution Station Equipment <50 kV",{"$f":"'App 2-B FixAsset 2013-CGAAP'!E22","v":256183.09},-137564,393747.08999999997,{"$f":"'App 2-B FixAsset 2013-CGAAP'!F22","v":800000},793747.09,45,2.2222222222222223E-2,17638.824222222222,17639,-0.1757777777784213]
[1825,"Storage Battery Equipment",{"$f":"'App 2-B FixAsset 2013-CGAAP'!E23","v":0},0,0,{"$f":"'App 2-B FixAsset 2013-CGAAP'!F23","v":0},0,null,0,0,null,0]
[1830,"Poles, Towers & Fixtures",{"$f":"'App 2-B FixAsset 2013-CGAAP'!E24","v":459627.23000000004},-95987.77,555615,{"$f":"'App 2-B FixAsset 2013-CGAAP'!F24","v":99000},605115,45,2.2222222222222223E-2,13447,13447,0]
[1835,"Overhead Conductors & Devices",{"$f":"'App 2-B FixAsset 2013-CGAAP'!E25","v":475830.16},-124389.84,600220,{"$f":"'App 2-B FixAsset 2013-CGAAP'!F25","v":25000},612720,60,1.6666666666666666E-2,10212,10212,0]
[1840,"Underground Conduit",{"$f":"'App 2-B FixAsset 2013-CGAAP'!E26","v":113855.12},-23694.880000000001,137550,{"$f":"'App 2-B FixAsset 2013-CGAAP'!F26","v":500},137800,50,0.02,2756,2756,0]
[1845,"Underground Conductors & Devices",{"$f":"'App 2-B FixAsset 2013-CGAAP'!E27","v":265912.57},-35217.43,301130,{"$f":"'App 2-B FixAsset 2013-CGAAP'!F27","v":17000},309630,30,3.3333333333333333E-2,10321,10321,0]
[1850,"Line Transformers",{"$f":"'App 2-B FixAsset 2013-CGAAP'!E28","v":408792.76000000007},22312.76,386480.00000000006,{"$f":"'App 2-B FixAsset 2013-CGAAP'!F28","v":28000},400480.00000000006,40,2.5000000000000001E-2,10012.000000000002,10012,1.8189894035458565E-12]
[1855,"Services (Overhead & Underground)",{"$f":"'App 2-B FixAsset 2013-CGAAP'!E29","v":32419.82},19.82,32400,{"$f":"'App 2-B FixAsset 2013-CGAAP'!F29","v":3000},33900,30,3.3333333333333333E-2,1130,1130,0]
[1860,"Meters",{"$f":"'App 2-B FixAsset 2013-CGAAP'!E30","v":254843.38},28468.38,226375,{"$f":"'App 2-B FixAsset 2013-CGAAP'!F30","v":0},226375,25,0.04,9055,9055,0]
[1860,"Meters (Smart Meters)",{"$f":"'App 2-B FixAsset 2013-CGAAP'!E31","v":618898.5},0,618898.5,{"$f":"'App 2-B FixAsset 2013-CGAAP'!F31","v":3500},620648.5,15,6.6666666666666666E-2,41376.566666666666,41377,-0.43333333333430346]
[1905,"Land",{"$f":"'App 2-B FixAsset 2013-CGAAP'!E32","v":28299.7},0,28299.7,{"$f":"'App 2-B FixAsset 2013-CGAAP'!F32","v":0},28299.7,null,0,0,null,0]
[1908,"Buildings & Fixtures  -  BUILDING ROOF",{"$f":"'App 2-B FixAsset 2013-CGAAP'!E33","v":165167},0,165167,{"$f":"'App 2-B FixAsset 2013-CGAAP'!F33","v":18040},174187,25,0.04,6967.48,6968,-0.52000000000043656]
[1908,"Buildings & Fixtures  -  INTERIOR FIXTURES",{"$f":"'App 2-B FixAsset 2013-CGAAP'!E34","v":246040.77},0,246040.77,{"$f":"'App 2-B FixAsset 2013-CGAAP'!F34","v":19460},255770.77,15,6.6666666666666666E-2,17051.384666666665,17053,-1.615333333335002]
[1908,"Buildings & Fixtures  -  STRUCTURE",{"$f":"'App 2-B FixAsset 2013-CGAAP'!E35","v":412916},0,412916,{"$f":"'App 2-B FixAsset 2013-CGAAP'!F35","v":0},412916,50,0.02,8258.32,8258,0.31999999999970896]
[1910,"Leasehold Improvements",{"$f":"'App 2-B FixAsset 2013-CGAAP'!E36","v":0},0,0,{"$f":"'App 2-B FixAsset 2013-CGAAP'!F36","v":0},0,null,0,0,null,0]
[1915,"Office Furniture & Equipment (10 years)",{"$f":"'App 2-B FixAsset 2013-CGAAP'!E37","v":33783.96},6223.96,27560,{"$f":"'App 2-B FixAsset 2013-CGAAP'!F37","v":5700},30410,10,0.1,3041,3041,0]
[1915,"Office Furniture & Equipment (5 years)",{"$f":"'App 2-B FixAsset 2013-CGAAP'!E38","v":0},0,0,{"$f":"'App 2-B FixAsset 2013-CGAAP'!F38","v":0},0,null,0,0,null,0]
[1920,"Computer Equipment - Hardware",{"$f":"'App 2-B FixAsset 2013-CGAAP'!E39","v":54878.109999999993},41508.11,13369.999999999993,{"$f":"'App 2-B FixAsset 2013-CGAAP'!F39","v":3000},14869.999999999993,5,0.2,2973.9999999999986,2974,-1.3642420526593924E-12]
[1920,"Computer Equip.-Hardware(Post Mar. 22/04)",{"$f":"'App 2-B FixAsset 2013-CGAAP'!E40","v":0},0,0,{"$f":"'App 2-B FixAsset 2013-CGAAP'!F40","v":0},0,null,0,0,null,0]
[1920,"Computer Equip.-Hardware(Post Mar. 19/07)",{"$f":"'App 2-B FixAsset 2013-CGAAP'!E41","v":0},0,0,{"$f":"'App 2-B FixAsset 2013-CGAAP'!F41","v":0},0,null,0,0,null,0]
[1930,"Transportation Equipment",{"$f":"'App 2-B FixAsset 2013-CGAAP'!E42","v":204793.8},184345.8,20448,{"$f":"'App 2-B FixAsset 2013-CGAAP'!F42","v":0},20448,8,0.125,2556,2556,0]
[1935,"Stores Equipment",{"$f":"'App 2-B FixAsset 2013-CGAAP'!E43","v":0},0,0,{"$f":"'App 2-B FixAsset 2013-CGAAP'!F43","v":0},0,null,0,0,null,0]
[1940,"Tools, Shop & Garage Equipment",{"$f":"'App 2-B FixAsset 2013-CGAAP'!E44","v":27996.47},5066.47,22930,{"$f":"'App 2-B FixAsset 2013-CGAAP'!F44","v":3000},24430,10,0.1,2443,2443,0]
[1945,"Measurement & Testing Equipment",{"$f":"'App 2-B FixAsset 2013-CGAAP'!E45","v":0},0,0,{"$f":"'App 2-B FixAsset 2013-CGAAP'!F45","v":0},0,null,0,0,null,0]
[1950,"Power Operated Equipment",{"$f":"'App 2-B FixAsset 2013-CGAAP'!E46","v":4363.29},2163.29,2200,{"$f":"'App 2-B FixAsset 2013-CGAAP'!F46","v":2000},3200,8,0.125,400,400,0]
[1955,"Communications Equipment",{"$f":"'App 2-B FixAsset 2013-CGAAP'!E47","v":0},0,0,{"$f":"'App 2-B FixAsset 2013-CGAAP'!F47","v":0},0,null,0,0,null,0]
[1955,"Communication Equipment (Smart Meters)",{"$f":"'App 2-B FixAsset 2013-CGAAP'!E48","v":0},0,0,{"$f":"'App 2-B FixAsset 2013-CGAAP'!F48","v":0},0,null,0,0,null,0]
[1960,"Miscellaneous Equipment ",{"$f":"'App 2-B FixAsset 2013-CGAAP'!E49","v":0},0,0,{"$f":"'App 2-B FixAsset 2013-CGAAP'!F49","v":0},0,null,0,0,null,0]
[1975,"Load Management Controls Utility Premises",{"$f":"'App 2-B FixAsset 2013-CGAAP'!E50","v":0},0,0,{"$f":"'App 2-B FixAsset 2013-CGAAP'!F50","v":0},0,null,0,0,null,0]
[1980,"System Supervisor Equipment",{"$f":"'App 2-B FixAsset 2013-CGAAP'!E51","v":0},0,0,{"$f":"'App 2-B FixAsset 2013-CGAAP'!F51","v":0},0,null,0,0,null,0]
[1985,"Miscellaneous Fixed Assets",{"$f":"'App 2-B FixAsset 2013-CGAAP'!E52","v":0},0,0,{"$f":"'App 2-B FixAsset 2013-CGAAP'!F52","v":0},0,null,0,0,null,0]
[1995,"Contributions & Grants - ACCT 1830",{"$f":"'App 2-B FixAsset 2013-CGAAP'!E53","v":-77570.38},0,-77570.38,{"$f":"'App 2-B FixAsset 2013-CGAAP'!F53","v":0},-77570.38,45,2.2222222222222223E-2,-1723.7862222222222,-1724,0.21377777777775009]
[1995,"Contributions & Grants - ACCT 1835",{"$f":"'App 2-B FixAsset 2013-CGAAP'!E54","v":-49660.65},0,-49660.65,{"$f":"'App 2-B FixAsset 2013-CGAAP'!F54","v":0},-49660.65,60,1.6666666666666666E-2,-827.67750000000001,-828,0.32249999999999091]
[1995,"Contributions & Grants - ACCT 1840",{"$f":"'App 2-B FixAsset 2013-CGAAP'!E55","v":-219.86},0,-219.86,{"$f":"'App 2-B FixAsset 2013-CGAAP'!F55","v":0},-219.86,50,0.02,-4.3972000000000007,-4,-0.39720000000000066]
[1995,"Contributions & Grants - ACCT 1845",{"$f":"'App 2-B FixAsset 2013-CGAAP'!E56","v":-80350.460000000006},0,-80350.460000000006,{"$f":"'App 2-B FixAsset 2013-CGAAP'!F56","v":0},-80350.460000000006,30,3.3333333333333333E-2,-2678.3486666666668,-2678,-0.34866666666675883]
[1995,"Contributions & Grants - ACCT 1850",{"$f":"'App 2-B FixAsset 2013-CGAAP'!E57","v":-46712.83},0,-46712.83,{"$f":"'App 2-B FixAsset 2013-CGAAP'!F57","v":0},-46712.83,40,2.5000000000000001E-2,-1167.8207500000001,-1168,0.17924999999991087]
[null,null,null,null,0,null,0,null,0,0,null,0]
[null,"Total",{"$f":"SUM(C16:C58)","v":4492501.3999999985},{"$f":"SUM(D16:D58)","v":13633.780000000021},{"$f":"SUM(E16:E58)","v":4478867.6199999992},{"$f":"SUM(F16:F58)","v":2603100},{"$f":"SUM(G16:G58)","v":5780417.6199999992},null,null,{"$f":"SUM(J16:J58)","v":202994.53943888887},{"$f":"SUM(K16:K58)","v":202997},{"$f":"SUM(L16:L58)","v":-2.4605611111099988}]
[]
["Notes:"]
[]
[1,"Board policy of the \"half-year\" rule - the applicant must ensure that additions in the year attract a half-year depreciation expense in the first year.  Deviations from this standard practice must be supported in the application."]
[2,"The applicant must provide an explanation of material variances in evidence"]
[]
["General","Applicants must provide a breakdown of depreciation and amortization expense in the above format for all relevant accounts.  Asset Retirement Obligations (AROs), depreciation and accretion expense should be disclosed separately consistent with the Notes of historical Audited Financial Statements."]

{"sheet":"App.2-CF_CGAAP_DepExp_2014","index":25,"n_rows":66,"n_cols":13,"rows_kept":66,"cut":false,"hidden":false,"merged":[[62,1,62,11],[63,1,64,9],[65,1,66,11],[8,0,8,11],[9,0,9,11],[10,0,10,11],[13,0,14,0],[13,1,14,1],[13,10,14,10]]}
[null,null,null,null,null,null,null,null,null,null,"File Number:",0]
[null,null,null,null,null,null,null,null,null,null,"Exhibit:",2]
[null,null,null,null,null,null,null,null,null,null,"Tab:",1]
[null,null,null,null,null,null,null,null,null,null,"Schedule:",6]
[null,null,null,null,null,null,null,null,null,null,"Page:",3]
[]
[null,null,null,null,null,null,null,null,null,null,"Date:"]
[]
["Appendix 2-CA"]
["Depreciation and Amortization Expense"]
["Assumes the applicant adopted IFRS for financial reporting purposes January 1, 2015"]
[null,null,"Year",2014,"CGAAP"]
[]
["Account","Description","Opening Regulatory Gross PP&E as at Jan 1, 2014","Less Fully Depreciated","Net for Depreciation","Additions","Total for Depreciation","Years","Depreciation Rate","Depreciation Expense","2014 Depreciation Expense per Appendix 2-B Fixed Assets, Column K \n (l)","Variance 2"]
[null,null,"(a)","(b)","(c)","(d)","(e) = (c) + ½ x (d) 1","(f)","(g) = 1 / (f)","(h) = (e) / (f)",null,"(m) = (h) - (l)"]
[1611,"Computer Software (Formally known as Account 1925)",{"$f":"'App.2-B_FixAsset 2014-CGAAP'!E16","v":209024.11000000002},113414.11,{"$f":"C16-D16","v":95610.000000000015},{"$f":"'App.2-B_FixAsset 2014-CGAAP'!F16","v":17000},{"$f":"E16+0.5*F16","v":104110.00000000001},5,{"$f":"IF(H16=0,0,1/H16)","v":0.2},{"$f":"IF(H16=0,0,G16/H16)","v":20822.000000000004},20822,{"$f":"IF(ISERROR(+J16-K16), 0, +J16-K16)","v":3.637978807091713E-12},{"$f":"+L16/I16","v":1.8189894035458565E-11}]
[1612,"Land Rights (Formally known as Account 1906)",{"$f":"'App.2-B_FixAsset 2014-CGAAP'!E17","v":8588},0,{"$f":"C17-D17","v":8588},{"$f":"'App.2-B_FixAsset 2014-CGAAP'!F17","v":0},{"$f":"E17+0.5*F17","v":8588},null,0,0,null,0]
[1805,"Land",{"$f":"'App.2-B_FixAsset 2014-CGAAP'!E18","v":10000},0,10000,{"$f":"'App.2-B_FixAsset 2014-CGAAP'!F18","v":0},10000,null,0,0,null,0]
[1808,"Buildings",{"$f":"'App.2-B_FixAsset 2014-CGAAP'!E19","v":0},0,0,{"$f":"'App.2-B_FixAsset 2014-CGAAP'!F19","v":0},0,null,0,0,null,0]
[1810,"Leasehold Improvements",{"$f":"'App.2-B_FixAsset 2014-CGAAP'!E20","v":0},0,0,{"$f":"'App.2-B_FixAsset 2014-CGAAP'!F20","v":0},0,null,0,0,null,0]
[1815,"Transformer Station Equipment >50 kV",{"$f":"'App.2-B_FixAsset 2014-CGAAP'!E21","v":2030701.74},40386.74,1990315,{"$f":"'App.2-B_FixAsset 2014-CGAAP'!F21","v":25000},2002815,45,2.2222222222222223E-2,44507,44507,0]
[1820,"Distribution Station Equipment <50 kV",{"$f":"'App.2-B_FixAsset 2014-CGAAP'!E22","v":1056183},-137592,1193775,{"$f":"'App.2-B_FixAsset 2014-CGAAP'!F22","v":60000},1223775,45,2.2222222222222223E-2,27195,27195,0]
[1825,"Storage Battery Equipment",{"$f":"'App.2-B_FixAsset 2014-CGAAP'!E23","v":0},{"$f":"'App.2-B_FixAsset 2014-CGAAP'!G23","v":0},0,{"$f":"'App.2-B_FixAsset 2014-CGAAP'!F23","v":0},0,null,0,0,null,0]
[1830,"Poles, Towers & Fixtures",{"$f":"'App.2-B_FixAsset 2014-CGAAP'!E24","v":558627.23},-32767.77,591395,{"$f":"'App.2-B_FixAsset 2014-CGAAP'!F24","v":89000},635895,45,2.2222222222222223E-2,14131,14131,0]
[1835,"Overhead Conductors & Devices",{"$f":"'App.2-B_FixAsset 2014-CGAAP'!E25","v":500830.16},-124449.84,625280,{"$f":"'App.2-B_FixAsset 2014-CGAAP'!F25","v":20000},635280,60,1.6666666666666666E-2,10588,10588,0]
[1840,"Underground Conduit",{"$f":"'App.2-B_FixAsset 2014-CGAAP'!E26","v":114355.12},-23544.880000000001,137900,{"$f":"'App.2-B_FixAsset 2014-CGAAP'!F26","v":500},138150,50,0.02,2763,2763,0]
[1845,"Underground Conductors & Devices",{"$f":"'App.2-B_FixAsset 2014-CGAAP'!E27","v":282912.57},-33447.43,316360,{"$f":"'App.2-B_FixAsset 2014-CGAAP'!F27","v":17500},325110,30,3.3333333333333333E-2,10837,10837,0]
[1850,"Line Transformers",{"$f":"'App.2-B_FixAsset 2014-CGAAP'!E28","v":435244.76000000007},31494.76,403750.00000000006,{"$f":"'App.2-B_FixAsset 2014-CGAAP'!F28","v":12500},410000.00000000006,40,2.5000000000000001E-2,10250.000000000002,10250,1.8189894035458565E-12]
[1855,"Services (Overhead & Underground)",{"$f":"'App.2-B_FixAsset 2014-CGAAP'!E29","v":35419.82},{"$f":"'App.2-B_FixAsset 2014-CGAAP'!G29","v":0},35419.82,{"$f":"'App.2-B_FixAsset 2014-CGAAP'!F29","v":3100},36969.82,30,3.3333333333333333E-2,1232.3273333333334,1232,0.32733333333339942]
[1860,"Meters",{"$f":"'App.2-B_FixAsset 2014-CGAAP'!E30","v":254843.38},{"$f":"-'App.2-B_FixAsset 2014-CGAAP'!G30","v":254843.38},0,{"$f":"'App.2-B_FixAsset 2014-CGAAP'!F30","v":0},0,25,0.04,0,0,0]
[1860,"Meters (Smart Meters)",{"$f":"'App.2-B_FixAsset 2014-CGAAP'!E31","v":622398.5},{"$f":"'App.2-B_FixAsset 2014-CGAAP'!G31","v":0},622398.5,{"$f":"'App.2-B_FixAsset 2014-CGAAP'!F31","v":3500},624148.5,15,6.6666666666666666E-2,41609.9,41610,-9.9999999998544808E-2]
[1905,"Land",{"$f":"'App.2-B_FixAsset 2014-CGAAP'!E32","v":28299.7},{"$f":"'App.2-B_FixAsset 2014-CGAAP'!G32","v":0},28299.7,{"$f":"'App.2-B_FixAsset 2014-CGAAP'!F32","v":0},28299.7,null,0,0,null,0]
[1908,"Buildings & Fixtures  -  BUILDING ROOF",183207,0,183207,{"$f":"'App.2-B_FixAsset 2014-CGAAP'!F33","v":0},183207,25,0.04,7328.28,7329,-0.72000000000025466]
[1908,"Buildings & Fixtures  -  INTERIOR FIXTURES",265500.77,0,265500.77,{"$f":"'App.2-B_FixAsset 2014-CGAAP'!F34","v":12500},271750.77,15,{"$f":"IF(H34=0,0,1/H34)","v":6.6666666666666666E-2},{"$f":"IF(H34=0,0,G34/H34)","v":18116.718000000001},18118,-1.2819999999992433]
[1908,"Buildings & Fixtures  -  STRUCTURE",412916,0,412916,{"$f":"'App.2-B_FixAsset 2014-CGAAP'!F35","v":0},412916,50,0.02,8258.32,8258,0.31999999999970896]
[1910,"Leasehold Improvements",{"$f":"'App.2-B_FixAsset 2014-CGAAP'!E36","v":0},{"$f":"'App.2-B_FixAsset 2014-CGAAP'!G36","v":0},0,{"$f":"'App.2-B_FixAsset 2014-CGAAP'!F36","v":0},0,null,0,0,null,0]
[1915,"Office Furniture & Equipment (10 years)",{"$f":"'App.2-B_FixAsset 2014-CGAAP'!E37","v":39483.96},9953.9599999999991,29530,{"$f":"'App.2-B_FixAsset 2014-CGAAP'!F37","v":3500},31280,10,0.1,3128,3128,0]
[1915,"Office Furniture & Equipment (5 years)",{"$f":"'App.2-B_FixAsset 2014-CGAAP'!E38","v":0},{"$f":"'App.2-B_FixAsset 2014-CGAAP'!G38","v":0},0,{"$f":"'App.2-B_FixAsset 2014-CGAAP'!F38","v":0},0,null,0,0,null,0]
[1920,"Computer Equipment - Hardware",{"$f":"'App.2-B_FixAsset 2014-CGAAP'!E39","v":57878.109999999993},44523.11,13354.999999999993,{"$f":"'App.2-B_FixAsset 2014-CGAAP'!F39","v":3100},14904.999999999993,5,0.2,2980.9999999999986,2981,-1.3642420526593924E-12]
[1920,"Computer Equip.-Hardware(Post Mar. 22/04)",{"$f":"'App.2-B_FixAsset 2014-CGAAP'!E40","v":0},{"$f":"'App.2-B_FixAsset 2014-CGAAP'!G40","v":0},0,{"$f":"'App.2-B_FixAsset 2014-CGAAP'!F40","v":0},0,null,0,0,null,0]
[1920,"Computer Equip.-Hardware(Post Mar. 19/07)",{"$f":"'App.2-B_FixAsset 2014-CGAAP'!E41","v":0},{"$f":"'App.2-B_FixAsset 2014-CGAAP'!G41","v":0},0,{"$f":"'App.2-B_FixAsset 2014-CGAAP'!F41","v":0},0,null,0,0,null,0]
[1930,"Transportation Equipment",{"$f":"'App.2-B_FixAsset 2014-CGAAP'!E42","v":204793.8},184345.8,20448,{"$f":"'App.2-B_FixAsset 2014-CGAAP'!F42","v":0},20448,8,0.125,2556,2556,0]
[1935,"Stores Equipment",{"$f":"'App.2-B_FixAsset 2014-CGAAP'!E43","v":0},{"$f":"'App.2-B_FixAsset 2014-CGAAP'!G43","v":0},0,{"$f":"'App.2-B_FixAsset 2014-CGAAP'!F43","v":0},0,null,0,0,null,0]
[1940,"Tools, Shop & Garage Equipment",{"$f":"'App.2-B_FixAsset 2014-CGAAP'!E44","v":30996.47},6786.47,24210,{"$f":"'App.2-B_FixAsset 2014-CGAAP'!F44","v":3100},25760,10,0.1,2576,2576,0]
[1945,"Measurement & Testing Equipment",{"$f":"'App.2-B_FixAsset 2014-CGAAP'!E45","v":0},{"$f":"'App.2-B_FixAsset 2014-CGAAP'!G45","v":0},0,{"$f":"'App.2-B_FixAsset 2014-CGAAP'!F45","v":0},0,null,0,0,null,0]
[1950,"Power Operated Equipment",{"$f":"'App.2-B_FixAsset 2014-CGAAP'!E46","v":6363.29},4363.29,2000,{"$f":"'App.2-B_FixAsset 2014-CGAAP'!F46","v":2000},3000,8,0.125,375,375,0]
[1955,"Communications Equipment",{"$f":"'App.2-B_FixAsset 2014-CGAAP'!E47","v":0},{"$f":"'App.2-B_FixAsset 2014-CGAAP'!G47","v":0},0,{"$f":"'App.2-B_FixAsset 2014-CGAAP'!F47","v":0},0,null,0,0,null,0]
[1955,"Communication Equipment (Smart Meters)",{"$f":"'App.2-B_FixAsset 2014-CGAAP'!E48","v":0},{"$f":"'App.2-B_FixAsset 2014-CGAAP'!G48","v":0},0,{"$f":"'App.2-B_FixAsset 2014-CGAAP'!F48","v":0},0,null,0,0,null,0]
[1960,"Miscellaneous Equipment ",{"$f":"'App.2-B_FixAsset 2014-CGAAP'!E49","v":0},{"$f":"'App.2-B_FixAsset 2014-CGAAP'!G49","v":0},0,{"$f":"'App.2-B_FixAsset 2014-CGAAP'!F49","v":0},0,null,0,0,null,0]
[1975,"Load Management Controls Utility Premises",{"$f":"'App.2-B_FixAsset 2014-CGAAP'!E50","v":0},{"$f":"'App.2-B_FixAsset 2014-CGAAP'!G50","v":0},0,{"$f":"'App.2-B_FixAsset 2014-CGAAP'!F50","v":0},0,null,0,0,null,0]
[1980,"System Supervisor Equipment",{"$f":"'App.2-B_FixAsset 2014-CGAAP'!E51","v":0},{"$f":"'App.2-B_FixAsset 2014-CGAAP'!G51","v":0},0,{"$f":"'App.2-B_FixAsset 2014-CGAAP'!F51","v":0},0,null,0,0,null,0]
[1985,"Miscellaneous Fixed Assets",{"$f":"'App.2-B_FixAsset 2014-CGAAP'!E52","v":0},{"$f":"'App.2-B_FixAsset 2014-CGAAP'!G52","v":0},0,{"$f":"'App.2-B_FixAsset 2014-CGAAP'!F52","v":0},0,null,0,0,null,0]
[1995,"Contributions & Grants - ACCT 1830",-77570.38,0,-77570.38,{"$f":"'App.2-B_FixAsset 2014-CGAAP'!F53","v":0},-77570.38,45,2.2222222222222223E-2,-1723.7862222222222,-1724,0.21377777777775009]
[1995,"Contributions & Grants - ACCT 1835",-49660.65,0,-49660.65,{"$f":"'App.2-B_FixAsset 2014-CGAAP'!F54","v":0},-49660.65,60,{"$f":"IF(H54=0,0,1/H54)","v":1.6666666666666666E-2},{"$f":"IF(H54=0,0,G54/H54)","v":-827.67750000000001},-828,0.32249999999999091]
[1995,"Contributions & Grants - ACCT 1840",-219.86,0,-219.86,{"$f":"'App.2-B_FixAsset 2014-CGAAP'!F55","v":0},-219.86,50,0.02,-4.3972000000000007,-4,-0.39720000000000066]
[1995,"Contributions & Grants - ACCT 1845",-80350.460000000006,0,-80350.460000000006,{"$f":"'App.2-B_FixAsset 2014-CGAAP'!F56","v":0},-80350.460000000006,30,3.3333333333333333E-2,-2678.3486666666668,-2678,-0.34866666666675883]
[1995,"Contributions & Grants - ACCT 1850",-46712.83,0,-46712.83,{"$f":"'App.2-B_FixAsset 2014-CGAAP'!F57","v":0},-46712.83,40,2.5000000000000001E-2,-1167.8207500000001,-1168,0.17924999999991087]
[null,null,null,null,null,null,0,null,0,0,null,0]
[null,"Total",{"$f":"SUM(C16:C58)","v":7094053.3100000005},{"$f":"SUM(D16:D58)","v":338309.69999999995},{"$f":"SUM(E16:E58)","v":6755743.6100000003},{"$f":"SUM(F16:F58)","v":272300},{"$f":"SUM(G16:G58)","v":6891893.6100000003},null,null,{"$f":"SUM(J16:J58)","v":222852.51499444441},{"$f":"SUM(K16:K58)","v":222854},{"$f":"SUM(L16:L58)","v":-1.4850055555499493}]
[]
["Notes:"]
[]
[1,"Board policy of the \"half-year\" rule - the applicant must ensure that additions in the year attract a half-year depreciation expense in the first year.  Deviations from this standard practice must be supported in the application."]
[2,"The applicant must provide an explanation of material variances in evidence"]
[]
["General","Applicants must provide a breakdown of depreciation and amortization expense in the above format for all relevant accounts.  Asset Retirement Obligations (AROs), depreciation and accretion expense should be disclosed separately consistent with the Notes of historical Audited Financial Statements."]

{"sheet":"App.2-G_Detailed_OM&A_Expenses","index":26,"n_rows":126,"n_cols":9,"rows_kept":126,"cut":false,"hidden":false,"merged":[[118,0,118,1],[85,0,85,8],[60,0,60,1],[124,1,124,8],[125,1,125,8],[123,1,123,8],[112,0,112,1],[73,0,73,8],[111,0,111,1],[41,0,41,8],[62,0,62,8],[71,0,71,1],[8,0,8,8],[9,0,9,8],[10,0,10,8],[39,0,39,1],[15,0,15,8],[12,5,12,6]]}
[null,null,null,null,null,null,"File Number:",null,{"$f":"'LDC Info'!$E$18","v":"EB-2013-0139"}]
[null,null,null,null,null,null,"Exhibit:",null,4]
[null,null,null,null,null,null,"Tab:",null,1]
[null,null,null,null,null,null,"Schedule:",null,3]
[null,null,null,null,null,null,"Page:"]
[]
[null,null,null,null,null,null,"Date:"]
[]
["Appendix 2-G"]
["Detailed, Account by Account, OM&A Expense Table"]
["(excluding Depreciation and Amortization)"]
[]
[]
["Account","Description",{"$f":"\"Last Rebasing Year (\" & 'LDC Info'!E30 & \" Actuals)\"","v":"Last Rebasing Year (2010 Actuals)"},{"$f":"'LDC Info'!E26-2 & \" Actual\"","v":"2011 Actual"},{"$f":"'LDC Info'!E26-1 & \" Actual\"& CHAR(178)","v":"2012 Actual²"},{"$f":"\"Bridge Year \" & 'LDC Info'!E26& CHAR(179)","v":"Bridge Year 2013³"},{"$f":"\"Bridge Year \" & 'LDC Info'!E26& CHAR(179)","v":"Bridge Year 2013³"},{"$f":"\"Test Year \" & 'LDC Info'!E28","v":"Test Year 2014"},{"$f":"\"Test Year \" & 'LDC Info'!E28","v":"Test Year 2014"}]
["Reporting Basis",null,"CGAAP","CGAAP","CGAAP","CGAAP","MIFRS","CGAAP","MIFRS"]
["Operations"]
[5005,"Operation Supervision and Engineering",0,0,0,0,null,0]
[5010,"Load Dispatching",0,0,0,0,null,0]
[5012,"Station Buildings and Fixtures Expense",0,0,0,0,null,0]
[5014,"Transformer Station Equipment - Operation Labour",3289.9,11350.91,6356,9500,null,10000]
[5015,"Transformer Station Equipment - Operation Supplies and Expenses",8023.04,3779.67,5261,8500,null,9000]
[5016,"Distribution Station Equipment - Operation Labour",4358.8500000000004,10381.08,8507,10000,null,12000]
[5017,"Distribution Station Equipment - Operation Supplies and Expenses",4905.24,2053.11,6400,5000,null,6500]
[5020,"Overhead Distribution Lines and Feeders - Operation Labour",9936.49,9930.66,11028,11500,null,13500]
[5025,"Overhead Distribution Lines and Feeders - Operation Supplies and Expenses",1171.07,1750.8,1404,1500,null,1600]
[5030,"Overhead Sub-transmission Feeders - Operation",0,0,0,0,null,0]
[5035,"Overhead Distribution Transformers - Operation",7628.04,4195.49,5585,8000,null,10000]
[5040,"Underground Distribution Lines and Feeders - Operation Labour",911.05,3095.89,1920,2100,null,2500]
[5045,"Underground Distribution Lines and Feeders - Operation Supplies and Expenses",31.74,31.74,50,50,null,50]
[5050,"Underground Sub-transmission Feeders - Operation",0,0,0,0,null,0]
[5055,"Underground Distribution Transformers - Operation",316.58999999999997,1836.82,1274,3000,null,3500]
[5060,"Street Lighting and Signal System Expense",0,0,0,0,null,0]
[5065,"Meter Expense",33645.26,21738.16,25715,24600,null,26300]
[5070,"Customer Premises - Operation Labour",0,0,0,0,null,0]
[5075,"Customer Premises - Operation Materials and Expenses",0,0,0,0,null,0]
[5085,"Miscellaneous Distribution Expenses",0,0,0,0,null,0]
[5090,"Underground Distribution Lines and Feeders - Rental Paid",0,0,0,0,null,0]
[5095,"Overhead Distribution Lines and Feeders - Rental Paid",886.91,886.91,887,1500,null,1600]
[5096,"Other Rent",0,0,0,0,null,0]
["Total - Operations",null,{"$f":"SUM(C17:C39)","v":75104.179999999993},71031.240000000005,74387,85250,0,96550,0]
["Account","Description",{"$f":"C14","v":"Last Rebasing Year (2010 Actuals)"},"2011 Actual","2012 Actual²","Bridge Year 2013³","Bridge Year 2013³","Test Year 2014","Test Year 2014"]
["Maintenance"]
[5105,"Maintenance Supervision and Engineering",720,0,0,1000,null,1100]
[5110,"Maintenance of Buildings and Fixtures - Distribution Stations",0,0,0,0,null,0]
[5112,"Maintenance of Transformer Station Equipment",0,0,0,0,null,0]
[5114,"Maintenance of Distribution Station Equipment",0,0,0,0,null,0]
[5120,"Maintenance of Poles, Towers and Fixtures",5216.54,3986.57,11552,10000,null,11000]
[5125,"Maintenance of Overhead Conductors and Devices",36894.46,28090.02,35188,34000,null,35000]
[5130,"Maintenance of Overhead Services",28277.95,34875.1,42724,46000,null,50000]
[5135,"Overhead Distribution Lines and Feeders - Right of Way",40522.910000000003,44239.08,62172,65000,null,70000]
[5145,"Maintenance of Underground Conduit",333.17,545.37,1606,1500,null,1500]
[5150,"Maintenance of Underground Conductors and Devices",5407.59,15280.2,4084,8900,null,10300]
[5155,"Maintenance of Underground Services",7402.01,7581.97,7468,8500,null,9900]
[5160,"Maintenance of Line Transformers",7716.53,11805.91,11988,13000,null,15000]
[5165,"Maintenance of Street Lighting and Signal Systems",0,0,0,0,null,0]
[5170,"Sentinel Lights - Labour",0,0,0,0,null,0]
[5172,"Sentinel Lights - Materials and Expenses",0,0,0,0,null,0]
[5175,"Maintenance of Meters",-981.88,1229.42,1963,1800,null,1900]
[5178,"Customer Installations Expenses - Leased Property",0,0,0,0,null,0]
[5195,"Maintenance of Other Installations on Customer Premises",0,0,0,0,null,0]
["Total - Maintenance",null,{"$f":"SUM(C43:C60)","v":131509.28},147633.64000000001,178745,189700,0,205700,0]
["Account","Description",{"$f":"C41","v":"Last Rebasing Year (2010 Actuals)"},{"$f":"D41","v":"2011 Actual"},{"$f":"E41","v":"2012 Actual²"},{"$f":"F41","v":"Bridge Year 2013³"},{"$f":"G41","v":"Bridge Year 2013³"},null,{"$f":"I41","v":"Test Year 2014"}]
["Billing and Collecting"]
[5305,"Supervision",0,0,0,0,null,0]
[5310,"Meter Reading Expense",29863.73,42061.58,35200,38000,null,45000]
[5315,"Customer Billing",175731.13,185552.18,211800,230000,null,245000]
[5320,"Collecting",100396.13,94826.84,97931,102130,null,106250]
[5325,"Collecting - Cash Over and Short",0,5,0,60,null,65]
[5330,"Collection Charges",0,0,0,0,null,0]
[5335,"Bad Debt Expense",19528.13,17496.830000000002,2800,20000,null,30000]
[5340,"Miscellaneous Customer Accounts Expenses",0,0,0,0,null,0]
["Total - Billing and Collecting",null,{"$f":"SUM(C64:C71)","v":325519.12},339942.43,347731,390190,0,426315,0]
["Account","Description",{"$f":"C62","v":"Last Rebasing Year (2010 Actuals)"},{"$f":"D62","v":"2011 Actual"},{"$f":"E62","v":"2012 Actual²"},{"$f":"F62","v":"Bridge Year 2013³"},{"$f":"G62","v":"Bridge Year 2013³"},null,{"$f":"I62","v":"Test Year 2014"}]
["Community Relations"]
[5405,"Supervision",0,0,0,0,null,0]
[5410,"Community Relations - Sundry",100,225,0,200,null,200]
[5415,"Energy Conservation",0,0,0,0,null,0]
[5420,"Community Safety Program",0,0,0,0,null,0]
[5425,"Miscellaneous Customer Service and Informational Expenses",0,0,0,0,null,0]
[5505,"Supervision",0,0,0,0,null,0]
[5510,"Demonstrating and Selling Expense",0,0,0,0,null,0]
[5515,"Advertising Expenses",0,0,0,0,null,0]
[5520,"Miscellaneous Sales Expense",0,0,0,0,null,0]
["Total - Community Relations",null,{"$f":"SUM(C75:C83)","v":100},225,0,200,0,200,0]
["Account","Description",{"$f":"C73","v":"Last Rebasing Year (2010 Actuals)"},{"$f":"D73","v":"2011 Actual"},{"$f":"E73","v":"2012 Actual²"},{"$f":"F73","v":"Bridge Year 2013³"},{"$f":"G73","v":"Bridge Year 2013³"},null,{"$f":"I73","v":"Test Year 2014"}]
["Administrative and General Expenses"]
[5605,"Executive Salaries and Expenses",105990.16,105071.87,105734,109000,null,112000]
[5610,"Management Salaries and Expenses",69180.62,72506.75,74249,76000,null,78000]
[5615,"General Administrative Salaries and Expenses",0,0,0,0,null,0]
[5620,"Office Supplies and Expenses",21409.29,24654.78,22744,27000,null,30000]
[5625,"Administrative Expense Transferred - Credit",0,0,0,0,null,0]
[5630,"Outside Services Employed",11212.5,19494.95,17784,19850,null,20600]
[5635,"Property Insurance",4566.42,4657.8599999999997,4798,7700,null,12000]
[5640,"Injuries and Damages",6177.6,9018,3509,7700,null,8000]
[5645,"OMERS Pensions and Benefits",3249.72,3687.72,3627,3750,null,3900]
[5646,"Employee Pensions and OPEB",0,0,0,0,null,0]
[5647,"Employee Sick Leave",0,0,0,0,null,0]
[5650,"Franchise Requirements",0,0,0,0,null,0]
[5655,"Regulatory Expenses",47004.25,66083.48,128605,138000,null,65400]
[5660,"General Advertising Expenses",0,0,0,0,null,0]
[5665,"Miscellaneous General Expenses",13817.39,13850,14600,15100,null,15700]
[5670,"Rent",0,0,0,0,null,0]
[5672,"Lease Payment Charge",0,0,0,0,null,0]
[5675,"Maintenance of General Plant",25832.76,26746.3,23003,56200,null,45000]
[5680,"Electrical Safety Authority Fees",4914.05,4887.12,4904,5100,null,5300]
[5681,"Special Purpose Charge Expense",22101.26,0,null,0,null,0]
[5685,"Independent Electricity System Operator Fees and Penalties",0,0,null,0,null,0]
[5695,"OM&A Contra Account"]
[6205,"Donations"]
[6205,"Donations, Sub-account LEAP Funding",0,2000,2000,2000,null,2000]
["Total - Administrative and General Expenses",null,{"$f":"SUM(C87:C110)","v":335456.02000000008},{"$f":"SUM(D87:D110)","v":352658.82999999996},405557,467400,0,{"$f":"SUM(H87:H110)","v":397900},0]
["Total OM&A",null,{"$f":"C40+C61+C72+C84+C111","v":867688.60000000009},911491.14,1006420,1132740,0,1126665,0]
["Adjustments for non-recoverable items"]
[5681,"Special Purpose Charge Expense",22101.26]
[6205,"Donations1"]
[]
[]
[]
["Total Recoverable OM&A",null,{"$f":"C112-SUM(C114:C118)","v":845587.34000000008},911491.14,1006420,1132740,0,1126665,0]
[]
["1 Account 6205 - Donations is generally non-recoverable.  However, the sub-account LEAP funding of account 6205 is generally recoverable."]
[]
["Note:"]
[1,"If it has been more than three years since the applicant last filed a cost of service application, additional years of historical actuals should be incorporated into the table, as necessary, to go back to the last cost of service application.  If the applicant last filed a cost of service application less than three years ago, a minimum of three years of actual information is required."]
[2,"If the applicant is adopting IFRS or an alternate accounting standard as of January 1, 2013 for financial reporting purposes, 2012 must be presented on both a CGAAP and MIFRS (or alternate accounting standard) basis."]
[3,"If the applicant is adopting IFRS or an alternate accounting standard as of January 1, 2014 for financial reporting purposes, 2013 must be presented on both a CGAAP and MIFRS (or alternate accounting standard) basis."]

{"sheet":"App.2-H_OM&A_Detailed_Analysis","index":27,"n_rows":128,"n_cols":9,"rows_kept":128,"cut":false,"hidden":false,"merged":[[41,1,41,8],[8,0,8,8],[9,0,9,8],[10,0,10,8],[40,0,40,1],[16,0,16,8],[13,0,14,0],[13,1,14,1],[13,2,14,2],[13,3,14,3],[13,4,14,4],[13,7,13,8],[13,5,13,6],[73,1,73,8],[85,1,85,8],[119,0,119,1],[113,0,113,1],[42,0,42,8],[63,0,63,8],[62,1,62,8],[72,0,72,1],[61,0,61,1],[126,1,126,8],[127,1,127,8],[112,0,112,1],[74,0,74,8],[86,0,86,8]]}
[null,null,null,null,null,null,null,"File Number:",{"$f":"'LDC Info'!$E$18","v":"EB-2013-0139"}]
[null,null,null,null,null,null,null,"Exhibit:",4]
[null,null,null,null,null,null,null,"Tab:",1]
[null,null,null,null,null,null,null,"Schedule:",3]
[null,null,null,null,null,null,null,"Page:"]
[]
[null,null,null,null,null,null,null,"Date:"]
[]
["Appendix 2-H"]
["OM&A Detailed Variance Analysis"]
["(excluding Depreciation and Amortization)"]
[]
[]
["Account","Description",{"$f":"\"Last Board-approved Rebasing Year (\"&'LDC Info'!E30&\" Year)\"","v":"Last Board-approved Rebasing Year (2010 Year)"},"Most Current Actuals               Year 2012",{"$f":"\"Test Year \" & 'LDC Info'!E28","v":"Test Year 2014"},"Test Year Versus Last Rebasing",null,"Test Year Versus Most Current Actuals"]
[null,null,null,null,null,"Variance ($)","Percentage Change (%)","Variance ($)","Percentage Change (%)"]
["Reporting Basis",null,"CGAAP","CGAAP","CGAAP"]
["Operations"]
[5005,"Operation Supervision and Engineering",0,{"$f":"+'App.2-G_Detailed_OM&A_Expenses'!E17","v":0},{"$f":"+'App.2-G_Detailed_OM&A_Expenses'!H17","v":0},{"$f":"E18-C18","v":0},{"$f":"IF(C18=0,\"\",(E18/C18)-1)","v":""},{"$f":"E18-D18","v":0},{"$f":"IF(D18=0,\"\",(E18/D18)-1)","v":""}]
[5010,"Load Dispatching",0,{"$f":"+'App.2-G_Detailed_OM&A_Expenses'!E18","v":0},{"$f":"+'App.2-G_Detailed_OM&A_Expenses'!H18","v":0},{"$f":"E19-C19","v":0},{"$f":"IF(C19=0,\"\",(E19/C19)-1)","v":""},{"$f":"E19-D19","v":0},{"$f":"IF(D19=0,\"\",(E19/D19)-1)","v":""}]
[5012,"Station Buildings and Fixtures Expense",0,{"$f":"+'App.2-G_Detailed_OM&A_Expenses'!E19","v":0},{"$f":"+'App.2-G_Detailed_OM&A_Expenses'!H19","v":0},0,null,0]
[5014,"Transformer Station Equipment - Operation Labour",11695,{"$f":"+'App.2-G_Detailed_OM&A_Expenses'!E20","v":6356},{"$f":"+'App.2-G_Detailed_OM&A_Expenses'!H20","v":10000},-1695,-0.14493373236425822,3644,0.57331655129011949]
[5015,"Transformer Station Equipment - Operation Supplies and Expenses",12944,{"$f":"+'App.2-G_Detailed_OM&A_Expenses'!E21","v":5261},{"$f":"+'App.2-G_Detailed_OM&A_Expenses'!H21","v":9000},-3944,-0.30469715698393074,3739,0.71070138756890322]
[5016,"Distribution Station Equipment - Operation Labour",9672,{"$f":"+'App.2-G_Detailed_OM&A_Expenses'!E22","v":8507},{"$f":"+'App.2-G_Detailed_OM&A_Expenses'!H22","v":12000},2328,0.2406947890818858,3493,0.41060303279652044]
[5017,"Distribution Station Equipment - Operation Supplies and Expenses",66,{"$f":"+'App.2-G_Detailed_OM&A_Expenses'!E23","v":6400},{"$f":"+'App.2-G_Detailed_OM&A_Expenses'!H23","v":6500},6434,97.484848484848484,100,1.5625E-2]
[5020,"Overhead Distribution Lines and Feeders - Operation Labour",10154,{"$f":"+'App.2-G_Detailed_OM&A_Expenses'!E24","v":11028},{"$f":"+'App.2-G_Detailed_OM&A_Expenses'!H24","v":13500},3346,0.32952531022257237,2472,0.22415669205658317]
[5025,"Overhead Distribution Lines and Feeders - Operation Supplies and Expenses",1120,{"$f":"+'App.2-G_Detailed_OM&A_Expenses'!E25","v":1404},{"$f":"+'App.2-G_Detailed_OM&A_Expenses'!H25","v":1600},480,0.4285714285714286,196,0.13960113960113962]
[5030,"Overhead Sub-transmission Feeders - Operation",0,{"$f":"+'App.2-G_Detailed_OM&A_Expenses'!E26","v":0},{"$f":"+'App.2-G_Detailed_OM&A_Expenses'!H26","v":0},0,"",0,""]
[5035,"Overhead Distribution Transformers - Operation",12046,{"$f":"+'App.2-G_Detailed_OM&A_Expenses'!E27","v":5585},{"$f":"+'App.2-G_Detailed_OM&A_Expenses'!H27","v":10000},-2046,-0.16984891250207534,4415,0.79051029543419871]
[5040,"Underground Distribution Lines and Feeders - Operation Labour",2130,{"$f":"+'App.2-G_Detailed_OM&A_Expenses'!E28","v":1920},{"$f":"+'App.2-G_Detailed_OM&A_Expenses'!H28","v":2500},370,0.17370892018779349,580,0.30208333333333326]
[5045,"Underground Distribution Lines and Feeders - Operation Supplies and Expenses",25,{"$f":"+'App.2-G_Detailed_OM&A_Expenses'!E29","v":50},{"$f":"+'App.2-G_Detailed_OM&A_Expenses'!H29","v":50},25,1,0,0]
[5050,"Underground Sub-transmission Feeders - Operation",0,{"$f":"+'App.2-G_Detailed_OM&A_Expenses'!E30","v":0},{"$f":"+'App.2-G_Detailed_OM&A_Expenses'!H30","v":0},0,"",0,""]
[5055,"Underground Distribution Transformers - Operation",2465,{"$f":"+'App.2-G_Detailed_OM&A_Expenses'!E31","v":1274},{"$f":"+'App.2-G_Detailed_OM&A_Expenses'!H31","v":3500},1035,0.41987829614604455,2226,1.7472527472527473]
[5060,"Street Lighting and Signal System Expense",0,{"$f":"+'App.2-G_Detailed_OM&A_Expenses'!E32","v":0},{"$f":"+'App.2-G_Detailed_OM&A_Expenses'!H32","v":0},0,"",0,""]
[5065,"Meter Expense",12032,{"$f":"+'App.2-G_Detailed_OM&A_Expenses'!E33","v":25715},{"$f":"+'App.2-G_Detailed_OM&A_Expenses'!H33","v":26300},14268,1.1858377659574466,585,2.2749368073109011E-2]
[5070,"Customer Premises - Operation Labour",0,{"$f":"+'App.2-G_Detailed_OM&A_Expenses'!E34","v":0},{"$f":"+'App.2-G_Detailed_OM&A_Expenses'!H34","v":0},0,"",0,""]
[5075,"Customer Premises - Operation Materials and Expenses",0,{"$f":"+'App.2-G_Detailed_OM&A_Expenses'!E35","v":0},{"$f":"+'App.2-G_Detailed_OM&A_Expenses'!H35","v":0},0,"",0,""]
[5085,"Miscellaneous Distribution Expenses",0,{"$f":"+'App.2-G_Detailed_OM&A_Expenses'!E36","v":0},{"$f":"+'App.2-G_Detailed_OM&A_Expenses'!H36","v":0},0,"",0,""]
[5090,"Underground Distribution Lines and Feeders - Rental Paid",0,{"$f":"+'App.2-G_Detailed_OM&A_Expenses'!E37","v":0},{"$f":"+'App.2-G_Detailed_OM&A_Expenses'!H37","v":0},0,"",0,""]
[5095,"Overhead Distribution Lines and Feeders - Rental Paid",1114,{"$f":"+'App.2-G_Detailed_OM&A_Expenses'!E38","v":887},{"$f":"+'App.2-G_Detailed_OM&A_Expenses'!H38","v":1600},486,0.43626570915619389,713,0.80383314543404727]
[5096,"Other Rent",{"$f":"#REF!","v":{"$error":"#REF!"}},{"$f":"+'App.2-G_Detailed_OM&A_Expenses'!E39","v":0},{"$f":"+'App.2-G_Detailed_OM&A_Expenses'!H39","v":0},{"$error":"#REF!"},{"$error":"#REF!"},0,""]
["Total - Operations",null,{"$f":"SUM(C18:C40)","v":{"$error":"#REF!"}},{"$f":"SUM(D18:D40)","v":74387},{"$f":"SUM(E18:E40)","v":96550},{"$error":"#REF!"},{"$error":"#REF!"},22163,0.29794184467716134]
["Account","Description"]
["Maintenance"]
[5105,"Maintenance Supervision and Engineering",4815,0,1100,{"$f":"E44-C44","v":-3715},{"$f":"IF(C44=0,\"\",(E44/C44)-1)","v":-0.77154724818276221},{"$f":"E44-D44","v":1100},{"$f":"IF(D44=0,\"\",(E44/D44)-1)","v":""}]
[5110,"Maintenance of Buildings and Fixtures - Distribution Stations",0,0,0,0,"",0,""]
[5112,"Maintenance of Transformer Station Equipment",0,0,0,0,"",0,""]
[5114,"Maintenance of Distribution Station Equipment",0,0,0,0,"",0,""]
[5120,"Maintenance of Poles, Towers and Fixtures",18022,11552,11000,-7022,-0.38963489068915769,-552,-4.7783933518005584E-2]
[5125,"Maintenance of Overhead Conductors and Devices",32799,35188,35000,2201,6.7105704442208536E-2,-188,-5.3427304762987404E-3]
[5130,"Maintenance of Overhead Services",33392,42724,50000,16608,0.4973646382367034,7276,0.17030240614174708]
[5135,"Overhead Distribution Lines and Feeders - Right of Way",44827,62172,70000,25173,0.56155888192384062,7828,0.12590876922087113]
[5145,"Maintenance of Underground Conduit",1198,1606,1500,302,0.25208681135225386,-106,-6.6002490660024948E-2]
[5150,"Maintenance of Underground Conductors and Devices",18596,4084,10300,-8296,-0.44611744461174441,6216,1.5220372184133204]
[5155,"Maintenance of Underground Services",7176,7468,9900,2724,0.37959866220735794,2432,0.32565613283342265]
[5160,"Maintenance of Line Transformers",2362,11988,15000,12638,5.3505503810330231,3012,0.25125125125125125]
[5165,"Maintenance of Street Lighting and Signal Systems",0,0,0,0,"",0,""]
[5170,"Sentinel Lights - Labour",0,0,0,0,"",0,""]
[5172,"Sentinel Lights - Materials and Expenses",0,0,0,0,"",0,""]
[5175,"Maintenance of Meters",8700,1963,1900,-6800,-0.78160919540229878,-63,-3.20937340804891E-2]
[5178,"Customer Installations Expenses - Leased Property",0,0,0,0,"",0,""]
[5195,"Maintenance of Other Installations on Customer Premises",0,0,0,0,"",0,""]
["Total - Maintenance",null,{"$f":"SUM(C44:C61)","v":171887},{"$f":"SUM(D44:D61)","v":178745},{"$f":"SUM(E44:E61)","v":205700},33813,0.19671644743348837,26955,0.15080142101876981]
["Account","Description"]
["Billing and Collecting"]
[5305,"Supervision",0,0,0,{"$f":"E65-C65","v":0},{"$f":"IF(C65=0,\"\",(E65/C65)-1)","v":""},{"$f":"E65-D65","v":0},{"$f":"IF(D65=0,\"\",(E65/D65)-1)","v":""}]
[5310,"Meter Reading Expense",33376,35200,45000,11624,0.34827420901246398,9800,0.27840909090909083]
[5315,"Customer Billing",185880,211800,245000,59120,0.31805465891973306,33200,0.15675165250236067]
[5320,"Collecting",100389,97931,106250,5861,5.8382890555738198E-2,8319,8.4947565122382107E-2]
[5325,"Collecting - Cash Over and Short",0,0,65,65,"",65,""]
[5330,"Collection Charges",0,0,0,0,"",0,""]
[5335,"Bad Debt Expense",7927,2800,30000,22073,2.7845338715781507,27200,9.7142857142857135]
[5340,"Miscellaneous Customer Accounts Expenses",0,0,0,0,"",0,""]
["Total - Billing and Collecting",null,{"$f":"SUM(C65:C72)","v":327572},{"$f":"SUM(D65:D72)","v":347731},{"$f":"SUM(E65:E72)","v":426315},98743,0.30143907293663674,78584,0.22599078022954533]
["Account","Description"]
["Community Relations"]
[5405,"Supervision",0,0,0,{"$f":"E76-C76","v":0},{"$f":"IF(C76=0,\"\",(E76/C76)-1)","v":""},{"$f":"E76-D76","v":0},{"$f":"IF(D76=0,\"\",(E76/D76)-1)","v":""}]
[5410,"Community Relations - Sundry",108,0,200,92,0.85185185185185186,200,""]
[5415,"Energy Conservation",0,0,0,0,"",0,""]
[5420,"Community Safety Program",0,0,0,0,"",0,""]
[5425,"Miscellaneous Customer Service and Informational Expenses",0,0,0,0,"",0,""]
[5505,"Supervision",0,0,0,0,"",0,""]
[5510,"Demonstrating and Selling Expense",0,0,0,0,"",0,""]
[5515,"Advertising Expenses",0,0,0,0,"",0,""]
[5520,"Miscellaneous Sales Expense",0,0,0,0,"",0,""]
["Total - Community Relations",null,{"$f":"SUM(C76:C84)","v":108},{"$f":"SUM(D76:D84)","v":0},{"$f":"SUM(E76:E84)","v":200},92,0.85185185185185186,200,""]
["Account","Description"]
["Administrative and General Expenses"]
[5605,"Executive Salaries and Expenses",107289,105734,112000,{"$f":"E88-C88","v":4711},{"$f":"IF(C88=0,\"\",(E88/C88)-1)","v":4.3909440856005677E-2},{"$f":"E88-D88","v":6266},{"$f":"IF(D88=0,\"\",(E88/D88)-1)","v":5.9261921425463937E-2}]
[5610,"Management Salaries and Expenses",74757,74249,78000,3243,4.3380552991693078E-2,3751,5.0519198911769925E-2]
[5615,"General Administrative Salaries and Expenses",0,0,0,0,"",0,""]
[5620,"Office Supplies and Expenses",21702,22744,30000,8298,0.38236107271219244,7256,0.31902919451283851]
[5625,"Administrative Expense Transferred - Credit",0,0,0,0,"",0,""]
[5630,"Outside Services Employed",28817,17784,20600,-8217,-0.28514418572370481,2816,0.15834457939721092]
[5635,"Property Insurance",4698,4798,12000,7302,1.554278416347382,7202,1.5010421008753649]
[5640,"Injuries and Damages",12427,3509,8000,-4427,-0.35624044419409351,4491,1.2798518096323739]
[5645,"OMERS Pensions and Benefits",3699,3627,3900,201,5.4339010543390076E-2,273,7.5268817204301008E-2]
[5646,"Employee Pensions and OPEB",0,0,0,{"$f":"E97-C97","v":0},{"$f":"IF(C97=0,\"\",(E97/C97)-1)","v":""},{"$f":"E97-D97","v":0},{"$f":"IF(D97=0,\"\",(E97/D97)-1)","v":""}]
[5647,"Employee Sick Leave",0,0,0,{"$f":"E98-C98","v":0},{"$f":"IF(C98=0,\"\",(E98/C98)-1)","v":""},{"$f":"E98-D98","v":0},{"$f":"IF(D98=0,\"\",(E98/D98)-1)","v":""}]
[5650,"Franchise Requirements",0,0,0,0,"",0,""]
[5655,"Regulatory Expenses",67531,128605,65400,-2131,-3.1555878041195862E-2,-63205,-0.49146611718051403]
[5660,"General Advertising Expenses",0,0,0,0,"",0,""]
[5665,"Miscellaneous General Expenses",13520,14600,15700,2180,0.16124260355029585,1100,7.5342465753424737E-2]
[5670,"Rent",0,0,0,{"$f":"E103-C103","v":0},{"$f":"IF(C103=0,\"\",(E103/C103)-1)","v":""},{"$f":"E103-D103","v":0},""]
[5672,"Lease Payment Charge",0,0,0,0,"",0]
[5675,"Maintenance of General Plant",30596,23003,45000,14404,0.47078049418224599,21997,0.95626657392514014]
[5680,"Electrical Safety Authority Fees",5526,4904,5300,-226,-4.0897575099529515E-2,396,8.0750407830342485E-2]
[5681,"Special Purpose Charge Expense",0,0,0,0,"",0]
[5685,"Independent Electricity System Operator Fees and Penalties",0,0,0,0,"",0,""]
[5695,"OM&A Contra Account",0,0,0,0,"",0,""]
[6205,"Donations",0,0,0,{"$f":"E110-C110","v":0},{"$f":"IF(C110=0,\"\",(E110/C110)-1)","v":""},{"$f":"E110-D110","v":0},{"$f":"IF(D110=0,\"\",(E110/D110)-1)","v":""}]
[6205,"Donations, Sub-account LEAP Funding",0,2000,2000,2000,"",0,0]
["Total - Administrative and General Expenses",null,{"$f":"SUM(C88:C111)","v":370562},{"$f":"SUM(D88:D111)","v":405557},{"$f":"SUM(E88:E111)","v":397900},27338,7.3774429110378348E-2,-7657,-1.8880206728030813E-2]
["Total OM&A",null,{"$f":"C112+C85+C73+C62+C41","v":{"$error":"#REF!"}},{"$f":"D112+D85+D73+D62+D41","v":1006420},{"$f":"E112+E85+E73+E62+E41","v":1126665},{"$error":"#REF!"},{"$error":"#REF!"},120245,0.11947795155104224]
["Adjustments for non-recoverable items"]
[5681,"Special Purpose Charge Expense",{"$f":"#REF!","v":{"$error":"#REF!"}},{"$f":"#REF!","v":{"$error":"#REF!"}},{"$f":"#REF!","v":{"$error":"#REF!"}},{"$f":"E115-C115","v":{"$error":"#REF!"}},{"$f":"IF(C115=0,\"\",(E115/C115)-1)","v":{"$error":"#REF!"}},{"$f":"E115-D115","v":{"$error":"#REF!"}},{"$f":"IF(D115=0,\"\",(E115/D115)-1)","v":{"$error":"#REF!"}}]
[6205,"Donations1",null,null,null,{"$f":"E116-C116","v":0},"",{"$f":"E116-D116","v":0},""]
[null,null,null,null,null,{"$f":"E117-C117","v":0},"",{"$f":"E117-D117","v":0},""]
[null,null,null,null,null,{"$f":"E118-C118","v":0},"",{"$f":"E118-D118","v":0},""]
[null,null,null,null,null,{"$f":"E119-C119","v":0},"",{"$f":"E119-D119","v":0},""]
["Total Recoverable OM&A",null,{"$f":"C113-SUM(C115:C119)","v":{"$error":"#REF!"}},{"$f":"D113-SUM(D115:D119)","v":{"$error":"#REF!"}},{"$f":"E113-SUM(E115:E119)","v":{"$error":"#REF!"}},{"$f":"F113-SUM(F115:F119)","v":{"$error":"#REF!"}},{"$error":"#REF!"},{"$f":"H113-SUM(H115:H119)","v":{"$error":"#REF!"}},{"$error":"#REF!"}]
[]
["1 Account 6205 - Donations is generally non-recoverable.  However, the sub-account LEAP funding of account 6205 is generally recoverable."]
[]
[]
["Note:"]
[]
[1,"If the applicant is adopting IFRS or an alternate accounting standard as of January 1, 2013 for financial reporting purposes, Column D \"Most Current Actual Year\" must be provided on CGAAP."]
[2,"If the applicant is adopting IFRS or an alternate accounting standard as of January 1, 2012 for financial reporting purposes, Column D \"Most Current Actual Year\" must be provided on that standard."]

{"sheet":"App.2-I_OM&A_Summary_Analys","index":28,"n_rows":59,"n_cols":12,"rows_kept":59,"cut":false,"hidden":false,"merged":[[61,1,62,5],[56,0,57,11],[8,0,8,6],[9,0,9,6],[12,7,12,8]]}
[null,null,null,null,null,null,null,null,null,null,"File Number:",{"$f":"'LDC Info'!$E$18","v":"EB-2013-0139"}]
[null,null,null,null,null,null,null,null,null,null,"Exhibit:"]
[null,null,null,null,null,null,null,null,null,null,"Tab:"]
[null,null,null,null,null,null,null,null,null,null,"Schedule:"]
[null,null,null,null,null,null,null,null,null,null,"Page:"]
[]
[null,null,null,null,null,null,null,null,null,null,"Date:"]
[]
["Appendix 2-I"]
["Summary of Recoverable OM&A Expenses"]
[]
[]
[null,{"$f":"\"Last Rebasing Year (\" & 'LDC Info'!E30 & \" BA)\"","v":"Last Rebasing Year (2010 BA)"},{"$f":"\"Last Rebasing Year (\" & 'LDC Info'!E30 & \" Actuals)\"","v":"Last Rebasing Year (2010 Actuals)"},{"$f":"'LDC Info'!E26 -2 & \" Actuals\"","v":"2011 Actuals"},{"$f":"'LDC Info'!E26 -1 & \" Actuals\"","v":"2012 Actuals"},{"$f":"'LDC Info'!E26 & \" Bridge Year\"","v":"2013 Bridge Year"},{"$f":"'LDC Info'!E28 & \" Test Year\"","v":"2014 Test Year"}]
["Reporting Basis","CGAAP","CGAAP","CGAAP","CGAAP","CGAAP","CGAAP"]
["Operations",75463,{"$f":"'App.2-G_Detailed_OM&A_Expenses'!C40","v":75104.179999999993},{"$f":"'App.2-G_Detailed_OM&A_Expenses'!D40","v":71031.240000000005},{"$f":"'App.2-G_Detailed_OM&A_Expenses'!E40","v":74387},{"$f":"'App.2-G_Detailed_OM&A_Expenses'!F40","v":85250},{"$f":"'App.2-G_Detailed_OM&A_Expenses'!H40","v":96550}]
["Maintenance",{"$f":"'App.2-H_OM&A_Detailed_Analysis'!C62","v":171887},{"$f":"'App.2-G_Detailed_OM&A_Expenses'!C61","v":131509.28},{"$f":"'App.2-G_Detailed_OM&A_Expenses'!D61","v":147633.64000000001},{"$f":"'App.2-G_Detailed_OM&A_Expenses'!E61","v":178745},{"$f":"'App.2-G_Detailed_OM&A_Expenses'!F61","v":189700},{"$f":"'App.2-G_Detailed_OM&A_Expenses'!H61","v":205700}]
["SubTotal",{"$f":"SUM(B15:B16)","v":247350},206613.46,218664.88,253132,274950,302250]
["%Change (year over year)",null,null,{"$f":"IF(ISERROR((D17-C17)/C17), \"\", (D17-C17)/C17)","v":5.8328339305677442E-2},{"$f":"IF(ISERROR((E17-D17)/D17), \"\", (E17-D17)/D17)","v":0.15762531230438101},{"$f":"IF(ISERROR((F17-E17)/E17), \"\", (F17-E17)/E17)","v":8.61921843149029E-2},{"$f":"IF(ISERROR((G17-F17)/F17), \"\", (G17-F17)/F17)","v":9.9290780141843976E-2}]
["%Change (Test Year vs \nLast Rebasing Year - Actual)",null,null,null,null,null,{"$f":"IF(ISERROR((G17-C17)/C17), \"\", (G17-C17)/C17)","v":0.4628766199452834}]
["Billing and Collecting",{"$f":"'App.2-H_OM&A_Detailed_Analysis'!C73","v":327572},{"$f":"'App.2-G_Detailed_OM&A_Expenses'!C72","v":325519.12},{"$f":"'App.2-G_Detailed_OM&A_Expenses'!D72","v":339942.43},{"$f":"'App.2-G_Detailed_OM&A_Expenses'!E72","v":347731},{"$f":"'App.2-G_Detailed_OM&A_Expenses'!F72","v":390190},{"$f":"'App.2-G_Detailed_OM&A_Expenses'!H72","v":426315}]
["Community Relations",{"$f":"'App.2-H_OM&A_Detailed_Analysis'!C85","v":108},{"$f":"'App.2-G_Detailed_OM&A_Expenses'!C84","v":100},{"$f":"'App.2-G_Detailed_OM&A_Expenses'!D84","v":225},{"$f":"'App.2-G_Detailed_OM&A_Expenses'!E84","v":0},{"$f":"'App.2-G_Detailed_OM&A_Expenses'!F84","v":200},{"$f":"'App.2-G_Detailed_OM&A_Expenses'!H84","v":200}]
["Administrative and General",{"$f":"'App.2-H_OM&A_Detailed_Analysis'!C112","v":370562},{"$f":"'App.2-G_Detailed_OM&A_Expenses'!C111","v":335456.02000000008},{"$f":"'App.2-G_Detailed_OM&A_Expenses'!D111","v":352658.82999999996},{"$f":"'App.2-G_Detailed_OM&A_Expenses'!E111","v":405557},{"$f":"'App.2-G_Detailed_OM&A_Expenses'!F111","v":467400},{"$f":"'App.2-G_Detailed_OM&A_Expenses'!H111","v":397900}]
["SubTotal",{"$f":"SUM(B20:B22)","v":698242},661075.14000000013,692826.26,753288,857790,824415]
["%Change (year over year)",null,null,{"$f":"IF(ISERROR((D23-C23)/C23), \"\", (D23-C23)/C23)","v":4.8029517491763297E-2},{"$f":"IF(ISERROR((E23-D23)/D23), \"\", (E23-D23)/D23)","v":8.7268256835414976E-2},{"$f":"IF(ISERROR((F23-E23)/E23), \"\", (F23-E23)/E23)","v":0.1387278172491796},{"$f":"IF(ISERROR((G23-F23)/F23), \"\", (G23-F23)/F23)","v":-3.8908124366103594E-2}]
["%Change (Test Year vs \nLast Rebasing Year - Actual)",null,null,null,null,null,{"$f":"IF(ISERROR((G23-C23)/C23), \"\", (G23-C23)/C23)","v":0.24708213955829567}]
["Total",{"$f":"SUM(B23,B17)","v":945592},867688.60000000009,911491.14,1006420,1132740,1126665]
["%Change (year over year)",null,null,{"$f":"IF(ISERROR((D26-C26)/C26), \"\", (D26-C26)/C26)","v":5.0481866420741171E-2},{"$f":"IF(ISERROR((E26-D26)/D26), \"\", (E26-D26)/D26)","v":0.10414677206845914},{"$f":"IF(ISERROR((F26-E26)/E26), \"\", (F26-E26)/E26)","v":0.12551419884342521},{"$f":"IF(ISERROR((G26-F26)/F26), \"\", (G26-F26)/F26)","v":-5.3631018592086447E-3}]
[]
[]
[null,{"$f":"B13","v":"Last Rebasing Year (2010 BA)"},"Last Rebasing Year (2010 Actuals)","2011 Actuals","2012 Actuals","2013 Bridge Year","2014 Test Year"]
["Operations",{"$f":"B15","v":75463},75104.179999999993,71031.240000000005,74387,85250,96550]
["Maintenance",171887,131509.28,147633.64000000001,178745,189700,205700]
["Billing and Collecting",{"$f":"B20","v":327572},325519.12,339942.43,347731,390190,426315]
["Community Relations",108,100,225,0,200,200]
["Administrative and General",370562,335456.02000000008,352658.82999999996,405557,467400,397900]
["Total",{"$f":"SUM(B31:B35)","v":945592},867688.60000000009,911491.14,1006420,1132740,1126665]
["%Change (year over year)",null,null,{"$f":"IF(ISERROR((D36-C36)/C36), \"\", (D36-C36)/C36)","v":5.0481866420741171E-2},{"$f":"IF(ISERROR((E36-D36)/D36), \"\", (E36-D36)/D36)","v":0.10414677206845914},{"$f":"IF(ISERROR((F36-E36)/E36), \"\", (F36-E36)/E36)","v":0.12551419884342521},{"$f":"IF(ISERROR((G36-F36)/F36), \"\", (G36-F36)/F36)","v":-5.3631018592086447E-3}]
[]
[]
[null,{"$f":"B13","v":"Last Rebasing Year (2010 BA)"},{"$f":"C13","v":"Last Rebasing Year (2010 Actuals)"},{"$f":"\"Variance \" & 'LDC Info'!E30 & \"  BA – \" & 'LDC Info'!E30 & \" Actuals\"","v":"Variance 2010  BA – 2010 Actuals"},{"$f":"D13","v":"2011 Actuals"},{"$f":"\"Variance \" & 'LDC Info'!E26 -2 & \" Actuals vs. \" &  'LDC Info'!E30 & \" Actuals\"","v":"Variance 2011 Actuals vs. 2010 Actuals"},{"$f":"E13","v":"2012 Actuals"},{"$f":"\"Variance \" & 'LDC Info'!E26 -1 & \" Actuals vs. \" &  'LDC Info'!E26-2 & \" Actuals\"","v":"Variance 2012 Actuals vs. 2011 Actuals"},{"$f":"F13","v":"2013 Bridge Year"},{"$f":"\"Variance \" & 'LDC Info'!E26 & \" Bridge vs. \" & 'LDC Info'!E26 -1 & \" Actuals\"","v":"Variance 2013 Bridge vs. 2012 Actuals"},{"$f":"G13","v":"2014 Test Year"},{"$f":"\"Variance \" & 'LDC Info'!E28 & \" Test vs. \" & 'LDC Info'!E26 & \" Bridge\"","v":"Variance 2014 Test vs. 2013 Bridge"}]
["Operations",{"$f":"B15","v":75463},{"$f":"C15","v":75104.179999999993},{"$f":"B41-C41","v":358.82000000000698},{"$f":"D15","v":71031.240000000005},{"$f":"E41-C41","v":-4072.9399999999878},{"$f":"E15","v":74387},{"$f":"G41-E41","v":3355.7599999999948},{"$f":"F15","v":85250},{"$f":"I41-G41","v":10863},{"$f":"G15","v":96550},{"$f":"K41-I41","v":11300}]
["Maintenance ",{"$f":"B16","v":171887},{"$f":"C16","v":131509.28},{"$f":"B42-C42","v":40377.72},{"$f":"D16","v":147633.64000000001},{"$f":"E42-C42","v":16124.360000000015},{"$f":"E16","v":178745},{"$f":"G42-E42","v":31111.359999999986},{"$f":"F16","v":189700},10955,{"$f":"G16","v":205700},16000]
["Billing and Collecting ",{"$f":"B20","v":327572},325519.12,{"$f":"B43-C43","v":2052.8800000000047},{"$f":"D20","v":339942.43},{"$f":"E43-C43","v":14423.309999999998},{"$f":"E20","v":347731},7788.570000000007,{"$f":"F20","v":390190},42459,{"$f":"G20","v":426315},36125]
["Community Relations ",108,100,{"$f":"B44-C44","v":8},{"$f":"D21","v":225},{"$f":"E44-C44","v":125},{"$f":"E21","v":0},-225,{"$f":"F21","v":200},200,{"$f":"G21","v":200},0]
["Administrative and General ",370562,335456.02000000008,{"$f":"B45-C45","v":35105.979999999923},{"$f":"D22","v":352658.82999999996},{"$f":"E45-C45","v":17202.809999999881},{"$f":"E22","v":405557},52898.170000000042,{"$f":"F22","v":467400},61843,{"$f":"G22","v":397900},-69500]
["Total OM&A Expenses ",{"$f":"SUM(B41:B45)","v":945592},{"$f":"SUM(C41:C45)","v":867688.60000000009},77903.399999999936,911491.14,43802.539999999906,1006420,94928.86000000003,1132740,126320,1126665,-6075]
["Variance from previous year ",null,null,null,{"$f":"E46-C46","v":43802.539999999921},null,{"$f":"G46-E46","v":94928.859999999986},null,{"$f":"I46-G46","v":126320},null,{"$f":"K46-I46","v":-6075}]
["Percent change (year over year) ",null,null,null,{"$f":"IF(ISERROR(E47/C46), \"\", E47/C46)","v":5.0481866420741171E-2},null,{"$f":"IF(ISERROR(G47/E46), \"\", G47/E46)","v":0.10414677206845914},null,{"$f":"IF(ISERROR(I47/G46), \"\", I47/G46)","v":0.12551419884342521},null,{"$f":"IF(ISERROR(K47/I46), \"\", K47/I46)","v":-5.3631018592086447E-3}]
["Percent Change:                                                    Test year vs. Most Current Actual ",null,null,null,null,null,{"$f":"IF(ISERROR((K46-G46)/G46), \"\", (K46-G46)/G46)","v":0.11947795155104231}]
["Simple average of % variance for all years",null,null,null,null,null,{"$f":"IF(ISERROR((K46-C46)/C46), \"\", (K46-C46)/C46)","v":0.29846698458410065},null,null,null,null,{"$f":"IF(ISERROR(AVERAGE(E48,G48,I48,K48)), \"\", AVERAGE(E48,G48,I48,K48))","v":6.8694933868354222E-2}]
["Compound Annual Growth Rate for all years",null,null,null,null,null,{"$f":"IF(ISERROR((K47-C47)/C47), \"\", (K47-C47)/C47)","v":""}]
[{"$f":"\"Compound Growth Rate                                                            (\" & E13 & \" vs. \" & 'LDC Info'!E30 & \" Actuals)\"","v":"Compound Growth Rate                                                            (2012 Actuals vs. 2010 Actuals)"},null,null,null,null,null,{"$f":"IF(ISERROR((G46/C46)^(1/(2010-2008)) - 1), \"\", (G46-C46)/C46)","v":0.15988616192491165}]
[]
["Note:"]
[]
["1     \"BA\" = Board-Approved"]
["2     If it has been more than three years since the applicant last filed a cost of service application, additional years of historical actuals should be incorporated into the table, as necessary, to go back to the last cost of service application.  If the applicant last filed a cost of service application less than three years ago, a minimum of three years of actual information is required."]
[]
["3     Recoverable OM&A that is included on these tables should be identical to the recoverable OM&A that is shown for the corresponding periods on Appendix 2-H."]

{"sheet":"App.2-J_OM&A_Cost _Drivers","index":29,"n_rows":56,"n_cols":9,"rows_kept":56,"cut":false,"hidden":false,"merged":[[9,0,9,5],[10,0,10,5],[51,1,54,5],[55,1,56,5]]}
[null,null,null,null,"File Number:",{"$f":"'LDC Info'!$E$18","v":"EB-2013-0139"}]
[null,null,null,null,"Exhibit:"]
[null,null,null,null,"Tab:"]
[null,null,null,null,"Schedule:"]
[null,null,null,null,"Page:"]
[]
[null,null,null,null,"Date:"]
[]
[]
["Appendix 2-J"]
["OM&A Cost Driver Table"]
[]
["OM&A",{"$f":"\"Last Rebasing Year (\" & 'LDC Info'!E30 & \" Actuals)\"","v":"Last Rebasing Year (2010 Actuals)"},{"$f":"'LDC Info'!E26 -2 & \" Actuals\"","v":"2011 Actuals"},{"$f":"'LDC Info'!E26 -1 & \" Actuals\"","v":"2012 Actuals"},{"$f":"'LDC Info'!E26 & \" Bridge Year\"","v":"2013 Bridge Year"},{"$f":"'LDC Info'!E28 & \" Test Year\"","v":"2014 Test Year"}]
["Reporting Basis"]
["Opening Balance",945592,845587.34,911491.1399999999,1006419.9999999999,1132740]
["5014-Transformer Station Equipment - Operation Labour",null,8061.01,null,3144]
["5015-Transformer Station Equipment - Operation Supplies and Expenses",null,null,null,3239]
["5016-Distribution Station Equipment - Operation Labour",null,6022.23]
["5017-Distribution Station Equipment - Operation Supplies and Expenses",4839.24,null,4346.8899999999994]
["5040-Underground Distribution Lines and Feeders - Operation Labour",null,2184.84]
["5065-Meter Expense",21613.260000000002,null,3976.84]
["5120-Maintenance of Poles, Towers and Fixtures",null,null,7565.43]
["5125-Maintenance of Overhead Conductors and Devices",4095.4599999999991,null,7097.98]
["5130-Maintenance of Overhead Services",null,6597.1499999999978,7848.9000000000015,3276,4000]
["5135-Overhead Distribution Lines and Feeders - Right of Way",null,3716.1699999999983,17932.919999999998,null,5000]
["5150-Maintenance of Underground Conductors and Devices",null,9872.61,null,4816]
["5160-Maintenance of Line Transformers",5354.53,4089.38]
["5175-Maintenance of Meters",null,2211.3000000000002]
["5310-Meter Reading Expense",null,12197.850000000002,null,null,7000]
["5315-Customer Billing",null,9821.0499999999884,26247.820000000007,18200,15000]
["5320-Collecting",null,null,3104.1600000000035,4199,4120]
["5335-Bad Debt Expense",11601.130000000001,null,null,17200,10000]
["5605-Executive Salaries and Expenses",null,null,null,3266,3000]
["5610-Management Salaries and Expenses",null,3326.1300000000047]
["5620-Office Supplies and Expenses",null,3245.489999999998,null,4256,3000]
["5630-Outside Services Employed",null,8282.4500000000007]
["5635-Property Insurance",null,null,null,null,4300]
["5640-Injuries and Damages",null,2840.3999999999996,null,4191]
["5655-Regulatory Expenses",null,19079.229999999996,62521.520000000004,9395]
["5675-Maintenance of General Plant",null,null,null,33197]
["Other",588.34000000000424,6097.71,9274.2300000000032,23465,22305]
["Cost Reduction",-148096.62,-41741.200000000012,-54987.83,-5524,-83800,null," "]
[]
["Total Adjustment ",{"$f":"SUM(B16:B42)","v":-100004.66},{"$f":"SUM(C16:C42)","v":65903.799999999974},{"$f":"SUM(D16:D42)","v":94928.86000000003},{"$f":"SUM(E16:E42)","v":126320},{"$f":"SUM(F16:F42)","v":-6075}]
["Closing Balance",{"$f":"SUM(B15:B42)","v":845587.34},{"$f":"SUM(C15:C42)","v":911491.1399999999},{"$f":"SUM(D15:D42)","v":1006419.9999999999},{"$f":"SUM(E15:E42)","v":1132740},{"$f":"SUM(F15:F42)","v":1126665},null,null," "]
[]
["Notes:"]
[]
[1,"For each year, a detailed explanation for each cost driver and associated amount is"]
[null,"required."]
[2,"The closing balance for each year becomes the opening balance for the next year."]
[3,"If it has been more than three years since the applicant last filed a cost of service application, additional years of historical actuals should be incorporated into the table, as necessary, to go back to the last cost of service application.  If the applicant last filed a cost of service application less than three years ago, a minimum of three years of actual information is required."]
[]
[]
[]
[4,"Opening Balance for \"Last Rebasing Year\" (cell B15) should be equal to the Board-Approved amount."]

{"sheet":"App.2-K_Employee Costs","index":30,"n_rows":92,"n_cols":7,"rows_kept":92,"cut":false,"hidden":false,"merged":[[37,0,37,6],[43,0,43,6],[9,0,9,6],[73,0,73,6],[79,0,79,6],[49,0,49,6],[55,0,55,6],[61,0,61,6],[67,0,67,6],[8,0,8,6],[13,0,13,6],[19,0,19,6],[25,0,25,6],[31,0,31,6]]}
[null,null,null,null,null,"File Number:",{"$f":"'LDC Info'!$E$18","v":"EB-2013-0139"}]
[null,null,null,null,null,"Exhibit:",4]
[null,null,null,null,null,"Tab:",2]
[null,null,null,null,null,"Schedule:",2]
[null,null,null,null,null,"Page:"]
[]
[null,null,null,null,null,"Date:"]
[]
["Appendix 2-K"]
["Employee Costs"]
[]
[null,{"$f":"\"Last Rebasing Year (\" & 'LDC Info'!E30 & \" Board-Approved)\"","v":"Last Rebasing Year (2010 Board-Approved)"},{"$f":"\"Last Rebasing Year (\" & 'LDC Info'!E30 & \" Actuals)\"","v":"Last Rebasing Year (2010 Actuals)"},{"$f":"'LDC Info'!E26 -2 & \" Actuals\"","v":"2011 Actuals"},{"$f":"'LDC Info'!E26 -1 & \" Actuals\"","v":"2012 Actuals"},{"$f":"'LDC Info'!E26 & \" Bridge Year\"","v":"2013 Bridge Year"},{"$f":"'LDC Info'!E28 & \" Test Year\"","v":"2014 Test Year"}]
["Reporting Basis"]
["Number of Employees (FTEs including Part-Time)1"]
["Executive"]
["Management",2,2,2,2,2,2]
["Non-Union"]
["Union",6,6,6,6,6,6]
["Total",{"$f":"SUM(B15:B18)","v":8},8,8,8,8,8]
["Number of Part-Time Employees"]
["Executive"]
["Management"]
["Non-Union"]
["Union"]
["Total",{"$f":"SUM(B21:B24)","v":0},0,0,0,0,0]
["Total Salary and Wages"]
["Executive"]
["Management",null,149986,155200,158784,172127,186043]
["Non-Union"]
["Union",null,314865,322593,324114,349258,343241]
["Total",{"$f":"SUM(B27:B30)","v":0},464851,477793,482898,521385,529284]
["Current Benefits"]
["Executive"]
["Management",null,8502,9067,9569,10411,10901]
["Non-Union"]
["Union",null,32025,34028,35809,38684,40423]
["Total",{"$f":"SUM(B33:B36)","v":0},40527,43095,45378,49095,51324]
["Accrued Pension and Post-Retirement Benefits"]
["Executive"]
["Management",null,10549,12398,14511,16563,18200]
["Non-Union",null,3250,3688,3627,3529,3523]
["Union",null,19394,22680,25374,27044,31512]
["Total"," $-   ",33193,38766,43512,47135,53235]
["Total Benefits (Current + Accrued)"]
["Executive",{"$f":"B33+B39","v":0},0,0,0,0,0]
["Management",0,19051,21465,24080,26974,29101]
["Non-Union",0,3250,3688,3627,3529,3523]
["Union",0,51419,56708,61183,65728,71935]
["Total"," ",73720,81861,88890,96230,104559]
["Total Compensation (Salary, Wages, & Benefits)"]
["Executive",{"$f":"B27+B45","v":0},0,0,0,0,0]
["Management",0,169037,176665,182864,199101,215144]
["Non-Union",0,3250,3688,3627,3529,3523]
["Union",0,366284,379301,385297,414986,415176]
["Total"," ",538571,559654,571788,617615,633843]
["Compensation - Average Yearly Base Wages"]
["Executive"]
["Management",null,74993,77600,79392,86064,93022]
["Non-Union"]
["Union",null,52477,53765,54019,58210,57207]
["Total"]
["Compensation - Average Yearly Overtime"]
["Executive"]
["Management"]
["Non-Union"]
["Union"]
["Total"]
["Compensation - Average Yearly Incentive Pay"]
["Executive"]
["Management"]
["Non-Union"]
["Union"]
["Total"]
["Compensation - Average Yearly Benefits"]
["Executive"]
["Management",null,4251,4533,4785,5205,5451]
["Non-Union"]
["Union",null,5337,5671,5968,6447,6737]
["Total"]
[]
["Total Compensation",{"$f":"SUM(B51:B54)","v":0},538571,559654,571788,617616,633843]
["Total Compensation Capitalized (CGAAP)"]
["Total Compensation Charged to OM&A (CGAAP)",{"$f":"B81-B82","v":0},{"$f":"C81-C82","v":538571},{"$f":"D81-D82","v":559654},{"$f":"E81-E82","v":571788},{"$f":"F81-F82","v":617616}]
[]
["Total Compensation Capitalized (MIFRS)"]
["Total Compensation Charged to OM&A (MIFRS)",null,null,null,{"$f":"E81-E85","v":571788},{"$f":"F81-F85","v":617616},{"$f":"G81-G85","v":633843}]
[]
[]
["1 If an applicant wishes to use headcount, it must also file the same schedule on an FTE basis."]
[]
["Note:"]
["1   Please report compensation on a CGAAP and MIFRS basis for your transition year."]

{"sheet":"App.2-L_OM&A_per_Cust_FTEE","index":31,"n_rows":29,"n_cols":8,"rows_kept":29,"cut":false,"hidden":false,"merged":[[8,0,8,7],[9,0,9,7],[28,1,29,6],[22,1,25,6],[26,1,26,6],[27,1,27,6],[15,0,15,1],[16,0,16,1],[17,0,17,1],[18,0,18,1],[13,0,13,1],[14,0,14,1],[12,0,12,1]]}
[null,null,null,null,null,null,"File Number:",{"$f":"'LDC Info'!$E$18","v":"EB-2013-0139"}]
[null,null,null,null,null,null,"Exhibit:"]
[null,null,null,null,null,null,"Tab:"]
[null,null,null,null,null,null,"Schedule:"]
[null,null,null,null,null,null,"Page:"]
[]
[null,null,null,null,null,null,"Date:"]
[]
["Appendix 2-L"]
["Recoverable OM&A Cost per Customer and per FTEE"]
[]
[null,null,{"$f":"\"Last Rebasing Year (\" & 'LDC Info'!E30 & \" Board-Approved)\"","v":"Last Rebasing Year (2010 Board-Approved)"},{"$f":"\"Last Rebasing Year (\" & 'LDC Info'!E30 & \" Actuals)\"","v":"Last Rebasing Year (2010 Actuals)"},{"$f":"'LDC Info'!E26 -2 & \" Actuals\"","v":"2011 Actuals"},{"$f":"'LDC Info'!E26 -1 & \" Actuals\"","v":"2012 Actuals"},{"$f":"'LDC Info'!E26 & \" Bridge Year\"","v":"2013 Bridge Year"},{"$f":"'LDC Info'!E28 & \" Test Year\"","v":"2014 Test Year"}]
["Reporting Basis",null,"CGAAP","CGAAP","CGAAP","CGAAP","CGAAP","CGAAP"]
["Number of Customers",null,5523,5523,5547,5606,5647,5690]
["Total Recoverable OM&A from Appendix 2-I",null,{"$f":"+'App.2-I_OM&A_Summary_Analys'!B26","v":945592},{"$f":"+'App.2-I_OM&A_Summary_Analys'!C26","v":867688.60000000009},{"$f":"+'App.2-I_OM&A_Summary_Analys'!D26","v":911491.14},{"$f":"+'App.2-I_OM&A_Summary_Analys'!E26","v":1006420},{"$f":"+'App.2-I_OM&A_Summary_Analys'!F26","v":1132740},{"$f":"+'App.2-I_OM&A_Summary_Analys'!G26","v":1126665}]
["OM&A cost per customer",null,{"$f":"+C15/C14","v":171.20984971935542},{"$f":"IF(D14=0,\"\",D15/D14)","v":157.10458084374437},164.32146024878313,179.52550838387441,200.59146449442181,198.00790861159931]
["Number of FTEEs",null,8,8,8,8,8,8]
["Customers/FTEEs",null,{"$f":"IF(C17=0,\"\",C14/C17)","v":690.375},690.375,693.375,700.75,705.875,711.25]
["OM&A Cost per FTEE",null,{"$f":"IF(C17=0,\"\",C15/C17)","v":118199},108461.07500000001,113936.3925,125802.5,141592.5,140833.125]
[]
["Notes:"]
[]
[1,"If it has been more than three years since the applicant last filed a cost of service application, additional years of historical actuals should be incorporated into the table, as necessary, to go back to the last cost of service application.  If the applicant last filed a cost of service application less than three years ago, a minimum of three years of actual information is required."]
[]
[]
[]
[2,"The method of calculating the number of customers must be identified."]
[3,"The method of calculating the number of FTEEs must be identified.  See also Appendix 2-K"]
[4,"The number of customers and the number of FTEEs should correspond to mid-year or average of January 1 and December 31 figures."]

{"sheet":"App.2-M_Regulatory_Costs","index":32,"n_rows":44,"n_cols":17,"rows_kept":44,"cut":false,"hidden":false,"merged":[[12,0,12,1],[13,0,13,1],[8,0,8,10],[9,0,9,10]]}
[null,null,null,null,null,null,null,null,null,"File Number:",{"$f":"'LDC Info'!$E$18","v":"EB-2013-0139"}]
[null,null,null,null,null,null,null,null,null,"Exhibit:"]
[null,null,null,null,null,null,null,null,null,"Tab:"]
[null,null,null,null,null,null,null,null,null,"Schedule:"]
[null,null,null,null,null,null,null,null,null,"Page:"]
[]
[null,null,null,null,null,null,null,null,null,"Date:"]
[]
["Appendix 2-M"]
["Regulatory Cost Schedule"]
[]
[]
["Regulatory Cost Category",null,"USoA Account","USoA Account Balance","Ongoing or One-time Cost? 2","2010 Actual","Most Current Actuals               Year 2012",{"$f":"'LDC Info'!E26 & \" Bridge Year\"","v":"2013 Bridge Year"},"Annual % Change",{"$f":"'LDC Info'!E28 & \" Test Year\"","v":"2014 Test Year"},"Annual % Change",null,"INTERVENOR COSTS"]
["(A)",null,"(B)","(C )","(D)","(E)","(F)","(G)","(H) = [(G)-(F)]/(F)","(I)","(J) = [(I)-(G)]/(G)",null,2010,2011,2012,2013,2014]
[1,"OEB Annual Assessment",5655,null,"On-Going",7976,8268,8600,{"$f":"IF(G15=0,\"\",(H15-G15)/G15)","v":4.0154813739719401E-2},8900,{"$f":"IF(H15=0,\"\",(J15-H15)/H15)","v":3.4883720930232558E-2},null,13536.67,0,7596.5,314.25]
[2,"OEB Section 30 Costs (Applicant-originated)",null,null,null,null,null,null,{"$f":"IF(G16=0,\"\",(H16-G16)/G16)","v":""},null,{"$f":"IF(H16=0,\"\",(J16-H16)/H16)","v":""},null,"2010 COST OF SERVICE EXPENSE"]
[3,"OEB Section 30 Costs (OEB-initiated)  -  COST AWARDS & AN. REGIST. FEE",5655,null,"On-Going",1111,1448,1500,3.591160220994475E-2,1500,0,null,217074.29,"(Acct 1460.000)"]
[4,"Expert Witness costs for regulatory matters",null,null,null,null,null,null,"",null,"",null,2010,2011,2012,2013]
[5,"Legal costs for regulatory matters",null,null,null,null,null,null,"",null,"",null,36177.29,54269,67426,59202]
[6,"Consultants' costs for regulatory matters  -  UP TO DEC. 31, 2010",5655,null,"On-Going",{"$f":"36177-13536.67","v":22640.33},110013,{"$f":"59202+45000+1964.25+334","v":106500.25},-3.1930317326134182E-2,45000,-0.57746578059675913,null,"IRM EXPENSES"]
[7,"Operating expenses associated with staff resources allocated to regulatory matters",null,null,null,null,null,null,"",null,"",null,52147.56,"(Acct 1460.010)"]
[8,"Operating expenses associated with other resources allocated to regulatory matters 1",null,null,null,null,null,null,"",null,"",null,2010,2011,2012,2013]
[9,"Other regulatory agency fees or assessments",null,null,null,0,null,null,"",null,"",null,2662.5,19130.560000000001,28390.25,1964.25]
[10,"Any other costs for regulatory matters (please define)  -  FEE FOR PUBLICATION OF APPLICATION IN LOCAL NEWSPAPERS",5655,null,"On-Going",1740,1280,1400,9.375E-2,null,-1,null,"2014 COST OF SERVICE EXPENSE"]
[11,"Intervenor costs",null,null,null,13536.67,7597,20000,{"$f":"IF(G25=0,\"\",(H25-G25)/G25)","v":1.632618138738976},10000,{"$f":"IF(H25=0,\"\",(J25-H25)/H25)","v":-0.5}]
[12,"Sub-total - Ongoing Costs 3",null,{"$f":"SUMIF($E15:$E25,$E11,D15:D25)","v":0},null,{"$f":"SUM(F15:F25)","v":47004},{"$f":"SUM(G15:G25)","v":128606},{"$f":"SUM(H15:H25)","v":138000.25},7.304674743013545E-2,{"$f":"SUM(J15:J25)","v":65400},-0.52608781505830604,null,null,null,2012,2013,2014]
[13,"Sub-total - One-time Costs 4",null,{"$f":"SUMIF($E15:$E25,$E12,D15:D25)","v":0},null,{"$f":"SUMIF($E15:$E25,$E12,F15:F25)","v":0},{"$f":"SUMIF($E15:$E25,$E12,G15:G25)","v":0},{"$f":"SUMIF($E15:$E25,$E12,H15:H25)","v":0},"",{"$f":"SUMIF($E15:$E25,$E12,J15:J25)","v":0},"",null,null,null,10000,45000,45000]
[14,"Total",null,{"$f":"D26+D27","v":0},null,{"$f":"F26+F27","v":47004},{"$f":"G26+G27","v":128606},{"$f":"H26+H27","v":138000.25},7.304674743013545E-2,{"$f":"J26+J27","v":65400},-0.52608781505830604]
[null,null,null,null,null,null,null,null,null,null,null,null,269221.84999999998,"TOTAL COS & IRM EXPENSES EXCLUDING 2014 COS"]
[null,null,null,null,null,null,null,null,null,null,null,null,-210019.85,"2010 COS EXP. TRANSFERRED TO 5655"]
["1","Please identify the resources involved.",null,null,null,null,null,null,null,null,null,null,59201.999999999971,"GL BALANCE AS OF DEC. 31, 2012"]
["2","Where a category's costs include both one-time and ongoing costs, the applicant should prove a separate breakdown between one-time and ongoing costs."]
["3","Sum of all ongoing costs identified in rows 1 to 11 inclusive."]
["4","Sum of all one-time costs identified in rows 1 to 11 inclusive."]
[]
[]
["Please fill out the following table for all one-time costs related to this cost of service application"]
[]
[null,null,"Historical Year(s)",{"$f":"H13","v":"2013 Bridge Year"},{"$f":"J13","v":"2014 Test Year"}]
[4,"Expert Witness costs for regulatory matters",null,{"$f":"H18","v":0},{"$f":"J18","v":0}]
[6,"Consultants' costs for regulatory matters",null,{"$f":"H20","v":106500.25},{"$f":"J20","v":45000}]
[7,"Operating expenses associated with staff resources allocated to regulatory matters",null,{"$f":"H21","v":0},{"$f":"J21","v":0}]
[8,"Operating expenses associated with other resources allocated to regulatory matters 1",null,{"$f":"H22","v":0},{"$f":"J22","v":0}]
[11,"Intervenor costs",null,{"$f":"H25","v":20000},{"$f":"J25","v":10000}]

{"sheet":"App.2-N_Corp_Cost_Allocation","index":33,"n_rows":43,"n_cols":7,"rows_kept":43,"cut":false,"hidden":true,"merged":[[13,0,13,5],[8,0,8,5],[9,0,9,5],[42,1,43,5],[16,0,17,0],[16,1,17,1],[15,2,17,2],[15,3,17,3],[15,0,15,1],[15,4,16,4],[15,5,16,5],[15,6,16,6],[29,0,29,1],[29,2,31,2],[29,3,31,3],[29,5,30,5],[29,4,30,4],[30,0,31,0],[30,1,31,1],[27,0,27,5]]}
[null,null,null,null,null,"File Number:",{"$f":"'LDC Info'!$E$18","v":"EB-2013-0139"}]
[null,null,null,null,null,"Exhibit:"]
[null,null,null,null,null,"Tab:"]
[null,null,null,null,null,"Schedule:"]
[null,null,null,null,null,"Page:"]
[]
[null,null,null,null,null,"Date:"]
[]
["Appendix 2-N"]
["Shared Services and Corporate Cost Allocation"]
[]
[null,"Year:"]
[]
["Shared Services"]
[]
["Name of Company",null,"Service Offered","Pricing Methdology","Price for the Service","Cost for the Service"]
["From","To"]
[null,null,null,null,"$","$"]
[]
[]
[]
[]
[]
[]
[]
[]
[]
["Corporate Cost Allocation"]
[]
["Name of Company",null,"Service Offered","Pricing Methdology","% of Corporate Costs Allocated","Amount Allocated"]
["From","To"]
[null,null,null,null,"%","$"]
["eg: parent company","eg: regulated entity"]
[]
[]
[]
[]
[]
[]
[]
[]
["Note: "]
[1,"This appendix must be completed in relation to each service provided or received for the Historical (actuals), Bridge and Test years."]

{"sheet":"App.2-R_Loss Factors","index":34,"n_rows":73,"n_cols":8,"rows_kept":73,"cut":false,"hidden":false,"merged":[[8,0,8,7],[9,0,9,7],[11,0,11,7],[13,0,14,1],[13,2,13,6],[13,7,14,7],[15,1,15,7],[24,1,24,7],[26,1,26,7],[54,1,55,7],[36,1,39,7],[43,1,45,7],[47,1,50,7],[57,1,58,7],[60,1,61,7],[32,1,34,7],[71,1,71,7],[63,1,63,7],[65,1,65,7],[67,1,69,6],[52,1,52,7]]}
[null,null,null,null,null,null,"File Number:",{"$f":"'LDC Info'!$E$18","v":"EB-2013-0139"}]
[null,null,null,null,null,null,"Exhibit:",8]
[null,null,null,null,null,null,"Tab:",6]
[null,null,null,null,null,null,"Schedule:",1]
[null,null,null,null,null,null,"Page:"]
[]
[null,null,null,null,null,null,"Date:"]
[]
["Appendix 2-R"]
["Loss Factors"]
[]
[]
[]
[null,null,"Historical Years",null,null,null,null,"5-Year Average"]
[null,null,{"$f":"IF(ISBLANK('LDC Info'!E26-5), \"Year 5\", 'LDC Info'!E26-5)","v":2008},{"$f":"IF(ISBLANK('LDC Info'!E26-4), \"Year 5\", 'LDC Info'!E26-4)","v":2009},{"$f":"IF(ISBLANK('LDC Info'!E26-3), \"Year 5\", 'LDC Info'!E26-3)","v":2010},{"$f":"IF(ISBLANK('LDC Info'!E26-2), \"Year 5\", 'LDC Info'!E26-2)","v":2011},{"$f":"IF(ISBLANK('LDC Info'!E26-1), \"Year 5\", 'LDC Info'!E26-1)","v":2012}]
[null,"Losses Within Distributor's System"]
["A(1)","\"Wholesale\" kWh delivered to distributor (higher value)",195587930,180790858,159288614,161859215,155160223,{"$f":"IF(SUM(C17:G17)=0,0,AVERAGE(C17:G17))","v":170537368}]
["A(2)","\"Wholesale\" kWh delivered to distributor (lower value)",194402877,179654626,158412711,160929367,154311135,{"$f":"IF(SUM(C18:G18)=0,0,AVERAGE(C18:G18))","v":169542143.19999999}]
["B","Portion of \"Wholesale\" kWh delivered to distributor for its Large Use Customer(s)",26758704,0,0,0,0,{"$f":"IF(SUM(C19:G19)=0,0,AVERAGE(C19:G19))","v":5351740.8}]
["C","Net \"Wholesale\" kWh delivered to distributor  = A(2) - B",{"$f":"C18-C19","v":167644173},179654626,158412711,160929367,154311135,164190402.39999998]
["D","\"Retail\" kWh delivered by distributor",185032775,169624607,152090908,154131709,149212313,{"$f":"IF(SUM(C21:G21)=0,0,AVERAGE(C21:G21))","v":162018462.40000001}]
["E","Portion of \"Retail\" kWh delivered by distributor to its Large Use Customer(s)",26758704,0,0,0,0,{"$f":"IF(SUM(C22:G22)=0,0,AVERAGE(C22:G22))","v":5351740.8}]
["F","Net \"Retail\" kWh delivered by distributor = D - E",{"$f":"C21-C22","v":158274071},169624607,152090908,154131709,149212313,156666721.59999999]
["G","Loss Factor in Distributor's system = C / F",{"$f":"IF(C23=0,\"\",C20/C23)","v":1.0592017501085191},1.0591306837928296,1.0415659494912082,1.0441029172005094,1.0341715901153545,1.0480234776292146]
[null,"Losses Upstream of Distributor's System"]
["H","Supply Facilities Loss Factor",1.0060589200000001,1.0062848,1.0054988,1.0057448,1.0054723000000001,{"$f":"IF(SUM(C26:G26)=0,0,AVERAGE(C26:G26))","v":1.0058119240000001}]
[null,"Total Losses"]
["I","Total Loss Factor = G x H",{"$f":"IF(C24=\"\",\"\",C24*C26)","v":1.0656193687762867},1.0657871083143307,1.0472933123342705,1.0501010796392429,1.0398308873079429,1.0541145104314114]
[]
["Notes"]
[]
[]
["A(1)","If directly connected to the IESO-controlled grid, kWh pertains to the virtual meter on the primary or high voltage side of the transformer at the interface with the transmission grid.  This corresponds to the \"With Losses\" kWh value provided by the IESO's MV-WEB.  It is the higher of the two values provided by MV-WEB."]
[]
[]
[]
[null,"If fully embedded within a host distributor, kWh pertains to the virtual meter on the primary or high voltage side of the transformer, at the interface between the host distributor and the transmission grid.  For example, if the host distributor is Hydro One Networks Inc., kWh from the Hydro One Networks' invoice corresponding to \"Total kWh w Losses\" should be reported.  This corresponds to the higher of the two kWh values provided in Hydro One Networks' invoice."]
[]
[]
[]
[]
[null,"If partially embedded, kWh pertains to the sum of the above."]
[]
["A(2)","If directly connected to the IESO-controlled grid, kWh pertains to a metering installation on the secondary or low voltage side of the transformer at the interface with the transmission grid.  This corresponds to the \"Without Losses\" kWh value provided by the IESO's MV-WEB.  It is the lower of the two kWh values provided by MV-WEB."]
[]
[]
[]
[null,"If fully embedded with the host distributor, kWh pertains to an actual or virtual meter at the interface between the embedded distributor and the host distributor.  For example, if the host distributor is Hydro One Networks Inc., kWh from the Hydro One Networks' invoice corresponding to \"Total kWh\" should be reported.  This corresponds to the lower of the two kWh values provided in Hydro One Networks' invoice."]
[]
[]
[]
[]
[null,"If partially embedded, kWh pertains to the sum of the above."]
[]
[null,"Additionally, kWh pertaining to distributed generation directly connected to the distributor's own distribution network should be included in A(2)."]
[]
[]
["B","If a Large Use Customer is metered on the secondary or low voltage side of the transformer, the default loss is 1%                         (i.e., B = 1.01 X E)."]
[]
[]
["D","kWh corresponding to D should equal metered or estimated kWh at the customer’s delivery point."]
[]
[]
["G and I","These loss factors pertain to secondary-metered customers with demand less than 5,000 kW."]
[]
["H","If directly connected to the IESO-controlled grid, SFLF = 1.0045."]
[]
[null,"If fully embedded within a host distributor, SFLF = loss factor re losses in transformer at grid interface X loss factor re losses in host distributor's system.  If the host distributor is Hydro One Networks Inc., SFLF = 1.0060 X 1.0278 = 1.0340. If partially embedded, SFLF should be calculated as the weighted average of above."]
[]
[]
[]
[null,"Distributors that wish to propose a different SFLF should provide appropriate justification for any such proposal including supporting"]
[null,"calculations and any other relevant material."]

{"sheet":"App.2-F_Other_Oper_Rev","index":35,"n_rows":104,"n_cols":9,"rows_kept":104,"cut":false,"hidden":false,"merged":[[102,1,102,8],[103,1,103,8],[93,0,93,1],[46,0,47,8],[92,0,92,1],[98,0,98,1],[94,0,94,1],[95,0,95,1],[96,0,96,1],[97,0,97,1],[51,0,51,1],[52,0,52,1],[53,0,53,1],[54,0,54,1],[56,0,56,1],[57,0,57,1],[36,2,36,8],[37,2,38,8],[30,0,30,1],[31,0,31,1],[34,0,34,1],[35,0,35,1],[36,0,36,1],[37,0,37,1],[29,0,29,1],[8,0,8,8],[9,0,9,8],[26,0,26,8],[27,0,27,1],[28,0,28,1],[62,0,62,1],[63,0,63,1],[55,0,55,1],[58,0,58,1],[41,0,42,8],[64,0,64,1],[65,0,65,1],[66,0,66,1],[67,0,67,1],[68,0,68,1],[82,0,82,1],[83,0,83,1],[77,0,77,1],[78,0,78,1],[72,0,72,1],[73,0,73,1],[74,0,74,1],[75,0,75,1],[76,0,76,1],[84,0,84,1],[85,0,85,1],[86,0,86,1],[87,0,87,1],[88,0,88,1]]}
[null,null,null,null,null,null,null,"File Number:",0]
[null,null,null,null,null,null,null,"Exhibit:",3]
[null,null,null,null,null,null,null,"Tab:",3]
[null,null,null,null,null,null,null,"Schedule:",1]
[null,null,null,null,null,null,null,"Page:"]
[]
[null,null,null,null,null,null,null,"Date:"]
[]
["Appendix 2-F"]
["Other Operating Revenue"]
[]
["USoA #","USoA Description","2010 Actual","2011 Actual","2012 Actual²","2012 Actual²","Bridge Year³","Bridge Year³","Test Year"]
[null,null,null,null,null,null,2013,2013,2014]
[null,"Reporting Basis",null,null,null,null,"CGAAP","MIFRS","CGAAP"]
[4235,"Specific Service Charges",-72825.59,-75517.97,-64162.36,null,-70000,null,-70000]
[4225,"Late Payment Charges",-28329.26,-27264.73,-31973.439999999999,null,-30000,null,-30000]
[4080,"Distribution Services Revenue",-14391.11,-14502.22,-15392.81,null,-15400,null,-15400]
[4082,"Retail Services Revenues"]
[4084,"STR Revenues"]
[4210,"Rent from Electric Property",-16394.48,-16389.439999999999,-16739.439999999999,null,-16739.439999999999,null,-16739.439999999999]
[4325,"Revenues from Jobbing",-34415.03,-8159.1,-22937.11,null,-20000,null,-20000]
[4330,"Costs and Expenses from Jobbing",19817.12,8159.1,14618.53,null,15000,null,15000]
[4390,"Misc Non-Operating Income",-3655.22,-902.68,0,null,0,null,0]
[4405,"Interest and Dividend Income",-12059.97,-36255.440000000002,-39530.410000000003,null,-20000,null,-20000]
[]
[]
[]
["Specific Service Charges",null,{"$f":"SUM(C15)","v":-72825.59},{"$f":"SUM(D15)","v":-75517.97},-64162.36,0,-70000,0,-70000]
["Late Payment Charges",null,{"$f":"C16","v":-28329.26},{"$f":"D16","v":-27264.73},-31973.439999999999,0,-30000,0,-30000]
["Other Operating Revenues",null,{"$f":"SUM(C17:C20)","v":-30785.59},-30891.659999999996,-32132.25,0,-32139.439999999999,0,-32139.439999999999]
["Other Income or Deductions",null,{"$f":"SUM(C21:C24)","v":-30313.1},-37158.120000000003,-47848.990000000005,0,-25000,0,-25000]
["Total",null,{"$f":"SUM(C28:C31)","v":-162253.54},{"$f":"SUM(D28:D31)","v":-170832.47999999998},-176117.04,0,-157139.44,0,{"$f":"SUM(I28:I31)","v":-157139.44}]
[]
["Description",null,"Account(s)"]
["Specific Service Charges:",null,4235]
["Late Payment Charges:",null,4225]
["Other Distribution Revenues:",null,"4080, 4082, 4084, 4090, 4205, 4210, 4215, 4220, 4240, 4245"]
["Other Income and Expenses:",null,"4305, 4310, 4315, 4320, 4325, 4330, 4335, 4340, 4345, 4350, 4355, 4360, 4365, 4370, 4375, 4380, 4385, 4390, 4395, 4398, 4405, 4415"]
[]
[]
["Note: Add all applicable accounts listed above to the table and include all relevant information."]
["The above table assumes adoption of MIFRS as of January 1, 2013.  If the adoption year differs, please adjust the table accordingly."]
[]
[]
["Account Breakdown Details"]
[]
["For each \"Other Operating Revenue\" and \"Other Income or Deductions\" Account, a detailed breakdown of the account components is required.  See the example below for Account 4405, Interest and Dividend Income."]
[]
[]
["4210 - Rent from Electric Property"]
[null,null,"2010 Actual","2011 Actual","2012 Actual²","2012 Actual²","Bridge Year","Bridge Year","Test Year"]
["Reporting Basis",null,"","","",null,"CGAAP","MIFRS","CGAAP"]
["Office Rent",null,-1200,-1200,-1200,0,-1200,0,-1200]
["COGECO Pole Rental",null,-13309.64,-13331.99,-13331.99,0,-13324.539999999999,0,-13324.539999999999]
["BELL Pole Rental - Expense",null,12435.06,12462.45,12462.45,0,12453.320000000002,0,12453.320000000002]
["BELL Pole Rental - Revenue",null,-14169.9,-14169.9,-14169.9,null,-14169.9,null,-14170]
["Conference Room Rental",null,-150,-150,-500,0,-498,0,-498]
[null,null,0,0,0,0,0,0,0]
["Total",null,{"$f":"SUM(C53:C58)","v":-16394.48},-16389.439999999999,-16739.439999999999,0,-16739.119999999995,0,-16739.219999999998]
[]
["4325 - Revenues from Jobbing"]
[null,null,"2010 Actual","2011 Actual","2012 Actual²","2012 Actual²","Bridge Year","Bridge Year","Test Year"]
["Reporting Basis",null,"","","",null,"CGAAP","MIFRS","CGAAP"]
["Miscelleneous jobbing revenues",null,-34415.03,-8159.1,-22937.11,null,-20000,0,-20000]
[null,null,0,0,0,0,0,0,0]
[null,null,0,0,0,0,0,0,0]
[null,null,0,0,0,0,0,0,0]
[null,null,0,0,0,0,0,0,0]
["Total",null,-34415.03,-8159.1,-22937.11,0,{"$f":"SUM(G64:G68)","v":-20000},0,{"$f":"SUM(I64:I68)","v":-20000}]
[]
["4330 - Costs and Expenses from Jobbing"]
[null,null,"2010 Actual","2011 Actual","2012 Actual²","2012 Actual²","Bridge Year","Bridge Year","Test Year"]
["Reporting Basis",null,"","","",null,"CGAAP","MIFRS","CGAAP"]
["Miscelleneous jobbing expenses",null,19817.12,8159.1,14618.53,null,15000,0,15000]
[null,null,0,0,0,0,0,0,0]
[null,null,0,0,0,0,0,0,0]
[null,null,0,0,0,0,0,0,0]
[null,null,0,0,0,0,0,0,0]
["Total",null,19817.12,8159.1,14618.53,0,{"$f":"SUM(G74:G78)","v":15000},0,{"$f":"SUM(I74:I78)","v":15000}]
[]
["4390 - Miscellaneous Non-Operating Income"]
[null,null,"2010 Actual","2011 Actual","2012 Actual²","2012 Actual²","Bridge Year","Bridge Year","Test Year"]
["Reporting Basis",null,"","","",null,"CGAAP","MIFRS","CGAAP"]
["UTILISMART Dividend",null,-1565.75,-482.68,0,0,0,0,0]
["Sale of Scrap",null,-2089.4699999999998,-420,0,0,0,0,0]
[null,null,0,0,0,0,0,0,0]
[null,null,0,0,0,0,0,0,0]
[null,null,0,0,0,0,0,0,0]
["Total",null,-3655.22,-902.68000000000006,0,0,{"$f":"SUM(G84:G88)","v":0},0,{"$f":"SUM(I84:I88)","v":0}]
[]
["4405 - Interest and Divided Income"]
[null,null,"2010 Actual","2011 Actual","2012 Actual²","2012 Actual²","Bridge Year","Bridge Year","Test Year"]
["Reporting Basis",null,"","","",null,"CGAAP","MIFRS","CGAAP"]
["Short-term Investment Interest",null,-10835.1,-1403.91,0,null,0,null,0]
["Bank Deposit Interest",null,-986.89,-4615.8500000000004,-2385.23,null,-2000,null,-2000]
["Miscellaneous Interest Revenue",null,-237.98,-2634.96,-20.83,null,-1000,null,-1000]
["Carrying Charges on RSVA Accts",null,0,-27600.720000000001,-26442.07,null,-17000,null,-17000]
["Write-Off of Accts 1570 & 1571 as per OEB Regulatory Auditors",null,null,null,-10682.28]
["Total",null,-12059.97,-36255.440000000002,-39530.410000000003,0,{"$f":"SUM(G94:G98)","v":-20000},0,{"$f":"SUM(I94:I98)","v":-20000}]
[]
["Notes:"]
[1,"List and specify any other interest revenue"]
[2,"If the applicant is adopting IFRS or an alternate accounting standard as of January 1, 2012 for financial reporting purposes, 2011 must be presented on both a CGAAP and MIFRS (or alternate accounting standard) basis."]
[3,"If the applicant is adopting IFRS or an alternate accounting standard as of January 1, 2013 for financial reporting purposes, 2012 must be presented on both a CGAAP and MIFRS (or alternate accounting standard) basis."]

{"sheet":"App.2-T_1592_Tax_Variance","index":36,"n_rows":51,"n_cols":5,"rows_kept":51,"cut":false,"hidden":true,"merged":[[27,0,27,2],[50,1,51,4],[34,0,35,0],[39,0,40,0],[42,0,43,0],[45,0,48,0],[50,0,51,0],[34,1,35,4],[37,1,37,4],[45,1,48,4],[8,0,8,4],[9,0,9,4],[11,0,11,4],[13,0,15,2],[16,0,16,2],[17,0,17,2],[18,0,18,2],[19,0,19,2],[24,0,24,2],[42,1,43,4],[30,0,30,2],[39,1,40,4],[25,0,25,2],[26,0,26,2],[28,0,28,2],[29,0,29,2],[37,0,38,0],[20,0,20,2],[21,0,21,2],[22,0,22,2],[23,0,23,2]]}
[null,null,"File Number:",null,{"$f":"'LDC Info'!$E$18","v":"EB-2013-0139"}]
[null,null,"Exhibit:"]
[null,null,"Tab:"]
[null,null,"Schedule:"]
[null,null,"Page:"]
[]
[null,null,"Date:"]
[]
["Appendix 2-T"]
["Deferred PILs Account 1592 Balances"]
[]
["The following table should be completed based on the information requested below, in accordance with the notes following the table. An explanation should be provided for any blank entries."]
[]
["Tax Item",null,null,null,"Principal as of"]
[null,null,null,null,"December 31,"]
[null,null,null,null,"20XX"]
["Large Corporation Tax grossed-up proxy from 2006 EDR application PILs model for the period from May 1, 2006 to April 30, 2007"]
["Large Corporation Tax grossed-up proxy from 2006 EDR application PILs model for the period from January 1, 2006 to April 30, 2006 (4/12ths of the approved grossed-up proxy), if not recorded in PILs account 1562"]
["Ontario Capital Tax rate decrease and increase in capital deduction for 2007"]
["Ontario Capital Tax rate decrease and increase in capital deduction for 2008"]
["Ontario Capital Tax rate decrease and increase in capital deduction for 2009"]
["Ontario Capital Tax rate decrease and increase in capital deduction for 2010"]
["Capital Cost Allowance class changes from 2006 EDR application for 2006"]
["Capital Cost Allowance class changes from 2006 EDR application for 2007"]
["Capital Cost Allowance class changes from 2006 EDR application for 2008"]
["Capital Cost Allowance class changes from 2006 EDR application for 2009"]
["Capital Cost Allowance class changes from 2006 EDR application for 2010"]
["Capital Cost Allowance class changes from 2006 EDR application for 2011"]
["Capital Cost Allowance class changes from any prior application not recorded above.  Please provide details and explanation separately."]
["Insert description of additional item(s) and new rows if needed."]
["Total",null,null,null,{"$f":"SUM(E17:E30)","v":0}]
[]
["Notes:"]
[]
[1,"Revise the deferral and variance account continuity schedule to include account 1592 as a group 2 account and enter all relevant information for transactions, adjustments, etc., for all relevant years."]
[]
[]
[2,"Describe each type of tax item that has been recorded in account 1592."]
[]
[3,"Provide the calculations that show how each item was determined and provide any pertinent supporting evidence and documentation."]
[]
[]
[4,"Please state whether or not the applicant followed the guidance provided in the FAQ of July 2007.  If not, please provide an explanation."]
[]
[]
[5,"Identify the account balance as of December 31, 2011 as per the 2011 Audited Financial Statements.  Identify the account balance as of December 31, 2011 as per the April 2012 2.1.7 RRR filing to the Board.  Provide a reconciliation if the balances provided are not identical to each other and to the total shown on the continuity schedule."]
[]
[]
[]
[]
[6,"Complete the above table based on the answers to the previous.  Add rows as required to complete the analysis in an informative manner.  Please provide the completed table as a working Excel spreadsheet."]

{"sheet":"App.2-OB_Debt Instruments","index":37,"n_rows":110,"n_cols":15,"rows_kept":110,"cut":false,"hidden":false,"merged":[[9,0,9,10],[10,0,10,10],[12,0,12,10]]}
[null,null,null,null,null,null,null,null,null,"File Number:",0]
[null,null,null,null,null,null,null,null,null,"Exhibit:"]
[null,null,null,null,null,null,null,null,null,"Tab:"]
[null,null,null,null,null,null,null,null,null,"Schedule:"]
[null,null,null,null,null,null,null,null,null,"Page:"]
[]
[null,null,null,null,null,null,null,null,null,"Date:"]
[]
[]
["Appendix 2-OB"]
["Debt Instruments"]
[]
["This table must be completed for the required years of all historical years, the bridge year and the test year."]
[null,null,null,"Year",2010]
[null,null,null,null,null,null,null,"As of Dec. 31st"]
["Row","Description","Lender","Affiliated or Third-Party Debt?","Fixed or Variable-Rate?","Start Date","Term              (years)","Principal                         ($)","Rate (%)                     (Note 2)","Interest ($)       (Note 1)","ACTUAL INTEREST\nEXPENSE"]
[1,"Convertible Promissory Note","Town of Hawkesbury","Third-Party","Fixed Rate","JANUARY 1, 2010",1,731714.52,6.5000000000000002E-2,{"$f":"+H17*I17","v":47561.443800000001},55273.71]
[2,null,null,null,null,null,null,null,null,0]
[3,null,null,null,null,null,null,null,null,0]
[4,null,null,null,null,null,null,null,null,0]
[5,null,null,null,null,null,null,null,null,0]
[6,null,null,null,null,null,null,null,null,0]
[7,null,null,null,null,null,null,null,null,0]
[8,null,null,null,null,null,null,null,null,0]
[9,null,null,null,null,null,null,null,null,0]
[10,null,null,null,null,null,null,null,null,0]
[11,null,null,null,null,null,null,null,null,0]
[12,null,null,null,null,null,null,null,null,0]
[]
["Total",null,null,null,null,null,null,731714.52,6.5000000000000002E-2,47561.443800000001,55273.71]
[]
[null,null,null,"Year",2011]
[null,null,null,null,null,null,null,"As of Dec. 31st"]
["Row","Description","Lender","Affiliated or Third-Party Debt?","Fixed or Variable-Rate?","Start Date","Term              (years)","Principal                         ($)","Rate (%)                     (Note 2)","Interest ($)       (Note 1)","ACTUAL INTEREST\nEXPENSE"]
[1,"Convertible Promissory Note","Town of Hawkesbury","Third-Party","Fixed Rate","JANUARY 1, 2011",1,500289.76,6.5000000000000002E-2,{"$f":"+H35*I35","v":32518.834400000003},40747.61]
[2,null,null,null,null,null,null,null,null,0]
[3,null,null,null,null,null,null,null,null,0]
[4,null,null,null,null,null,null,null,null,0]
[5,null,null,null,null,null,null,null,null,0]
[6,null,null,null,null,null,null,null,null,0]
[7,null,null,null,null,null,null,null,null,0]
[8,null,null,null,null,null,null,null,null,0]
[9,null,null,null,null,null,null,null,null,0]
[10,null,null,null,null,null,null,null,null,0]
[11,null,null,null,null,null,null,null,null,0]
[12,null,null,null,null,null,null,null,null,0]
[]
["Total",null,null,null,null,null,null,500289.76,6.5000000000000002E-2,32518.834400000003,40747.61]
[]
[null,null,null,"Year",2012]
[null,null,null,null,null,null,null,"As of Dec. 31st"]
["Row","Description","Lender","Affiliated or Third-Party Debt?","Fixed or Variable-Rate?","Start Date","Term              (years)","Principal                         ($)","Rate (%)                     (Note 2)","Interest ($)       (Note 1)","ACTUAL INTEREST\nEXPENSE"]
[1,"Convertible Promissory Note","Town of Hawkesbury","Third-Party","Fixed Rate","JANUARY 1, 2012",1,253366.06,6.5000000000000002E-2,{"$f":"+H53*I53","v":16468.793900000001},25248.66]
[2,"SUB 44KV Loan","Infrastructure Ontario","Third-Party","Fixed Rate","JULY 16, 2012",0.5,741098.39,3.9399999999999998E-2,{"$f":"+H54*I54","v":29199.276566},14702.21]
[3,null,null,null,null,null,null,null,null,0]
[4,null,null,null,null,null,null,null,null,0]
[5,null,null,null,null,null,null,null,null,0]
[6,null,null,null,null,null,null,null,null,0]
[7,null,null,null,null,null,null,null,null,0]
[8,null,null,null,null,null,null,null,null,0]
[9,null,null,null,null,null,null,null,null,0]
[10,null,null,null,null,null,null,null,null,0]
[11,null,null,null,null,null,null,null,null,0]
[12,null,null,null,null,null,null,null,null,0]
[]
["Total",null,null,null,null,null,null,994464.45,4.5922275518245029E-2,45668.070466000005,39950.869999999995]
[]
[null,null,null,"Year",2013]
[null,null,null,null,null,null,null,"As of Dec. 31st"]
["Row","Description","Lender","Affiliated or Third-Party Debt?","Fixed or Variable-Rate?","Start Date","Term              (years)","Principal                         ($)","Rate (%)                     (Note 2)","Interest ($)       (Note 1)","ACTUAL INTEREST\nEXPENSE"]
[1,"Convertible Promissory Note","Town of Hawkesbury","Third-Party","Fixed Rate","JANUARY 1, 2013",1,0,6.5000000000000002E-2,{"$f":"+H71*I71","v":0},8711.7199999999993]
[2,"SUB 44KV Loan","Town of Hawkesbury","Third-Party","Fixed Rate","JANUARY 1, 2013",1,722761.24,3.9399999999999998E-2,{"$f":"+H72*I72","v":28476.792855999996},28870.54]
[3,"SUB 110KV Loan","Town of Hawkesbury","Third-Party","Fixed Rate","JULY 1, 2013",1,1483000,3.9399999999999998E-2,{"$f":"(+H73*I73)/2","v":29215.1},28900," "]
[4,null,null,null,null,null,null,null,null,0]
[5,null,null,null,null,null,null,null,null,0]
[6,null,null,null,null,null,null,null,null,0]
[7,null,null,null,null,null,null,null,null,0]
[8,null,null,null,null,null,null,null,null,0]
[9,null,null,null,null,null,null,null,null,0]
[10,null,null,null,null,null,null,null,null,0]
[11,null,null,null,null,null,null,null,null,0]
[12,null,null,null,null,null,null,null,null,0]
[]
["Total",null,null,null,null,null,null,2205761.2400000002,2.6155094127957378E-2,57691.892855999991,66482.260000000009]
[]
[null,null,null,"Year",2014]
[null,null,null,null,null,null,null,"As of Dec. 31st"]
["Row","Description","Lender","Affiliated or Third-Party Debt?","Fixed or Variable-Rate?","Start Date","Term              (years)","Principal                         ($)","Rate (%)                     (Note 2)","Interest ($)       (Note 1)","ACTUAL INTEREST\nEXPENSE"]
[1,"SUB 44KV Loan","Town of Hawkesbury","Third-Party","Fixed Rate","JANUARY 1, 2014",1,703688.42,3.9399999999999998E-2,{"$f":"+H89*I89","v":27725.323747999999},28134.82]
[2,"SUB 110KV Loan","Town of Hawkesbury","Third-Party","Fixed Rate","JANUARY 1, 2014",1,1449000,3.9399999999999998E-2,{"$f":"+H90*I90","v":57090.6},56400," "," ",null," "]
[3,null,null,null,null,null,null,null,null,0]
[4,null,null,null,null,null,null,null,null,0]
[5,null,null,null,null,null,null,null,null,0]
[6,null,null,null,null,null,null,null,null,0]
[7,null,null,null,null,null,null,null,null,0]
[8,null,null,null,null,null,null,null,null,0]
[9,null,null,null,null,null,null,null,null,0]
[10,null,null,null,null,null,null,null,null,0]
[11,null,null,null,null,null,null,null,null,0]
[12,null,null,null,null,null,null,null,null,0]
[]
["Total",null,null,null,null,null,null,2152688.42,3.9400000000000004E-2,84815.923748000001,84534.82]
[]
[]
[]
["Notes"]
[]
[1,"If financing is in place only part of the year, calculate the pro-rated interest and input in the cell."]
[2,"Input actual or deemed long-term debt rate in accordance with the guidelines in The Report of the Board on the Cost of Capital for Ontario's Regulated Utilities, issued December 11, 2009"]
[3,"Add more lines above row 12 if necessary."]

{"sheet":"App.2-OA CapStructure-CGAAP","index":38,"n_rows":95,"n_cols":15,"rows_kept":95,"cut":false,"hidden":false,"merged":[[12,0,12,14],[34,2,34,14],[31,2,31,14],[33,2,33,14],[9,2,9,14],[10,2,10,14],[14,0,15,0],[15,4,15,8],[18,2,18,14],[81,2,81,14],[82,2,82,14],[49,2,49,14],[50,2,50,14],[63,2,63,15],[65,2,65,14],[66,2,66,14]]}
[null,null,null,null,null,null,null,null,null,null,"File Number:",null,null,null,{"$f":"'LDC Info'!$E$18","v":"EB-2013-0139"}]
[null,null,null,null,null,null,null,null,null,null,"Exhibit:",null,null,null,5]
[null,null,null,null,null,null,null,null,null,null,"Tab:",null,null,null,1]
[null,null,null,null,null,null,null,null,null,null,"Schedule:"]
[null,null,null,null,null,null,null,null,null,null,"Page:"]
[]
[null,null,null,null,null,null,null,null,null,null,"Date:"]
[]
[]
[null,null,"Appendix 2-OA"]
[null,null,"Capital Structure and Cost of Capital"]
[]
["This table must be completed for the required years of all historical years, the bridge year and the test year."]
[]
["Line No."]
[null,null,"Particulars",null,"Capitalization Ratio",null,null,null,null,null,"Cost Rate",null,null,null,"Return"]
[]
[]
[null,null,"Application"]
[null,null,null,null,"(%)",null,null,null,"($)",null,"(%)",null,null,null,"($)"]
[null,null,"Debt"]
[1,null,"  Long-term Debt",null,0.56000000000000005,null,null,null,{"$f":"$I$31*E22","v":3955803.9160696296},null,4.1200000000000001E-2,null,null,null,{"$f":"K22*I22","v":162979.12134206874}]
[2,null,"  Short-term Debt",null,0.04,null,"(1)",null,{"$f":"$I$31*E23","v":282557.42257640208},null,2.07E-2,null,null,null,{"$f":"K23*I23","v":5848.9386473315226}]
[3,null,"Total Debt",null,{"$f":"SUM(E22:E23)","v":0.60000000000000009},null,null,null,{"$f":"SUM(I22:I23)","v":4238361.3386460319},null,{"$f":"IF(E24=0,0,SUMPRODUCT(E22:E23,K22:K23)/E24)","v":3.9833333333333332E-2},null,null,null,{"$f":"SUM(O22:O23)","v":168828.05998940027}]
[]
[null,null,"Equity"]
[4,null,"  Common Equity",null,0.4,null,null,null,{"$f":"$I$31*E27","v":2825574.2257640213},null,8.9800000000000005E-2,null,null,null,{"$f":"K27*I27","v":253736.56547360914}]
[5,null,"  Preferred Shares",null,0,null,null,null,{"$f":"$I$31*E28","v":0},null,0,null,null,null,{"$f":"K28*I28","v":0}]
[6,null,"Total Equity",null,{"$f":"SUM(E27:E28)","v":0.4},null,null,null,{"$f":"SUM(I27:I28)","v":2825574.2257640213},null,{"$f":"IF(E29=0,0,SUMPRODUCT(E27:E28,K27:K28)/E29)","v":8.9799999999999991E-2},null,null,null,{"$f":"SUM(O27:O28)","v":253736.56547360914}]
[]
[7,null,"Total",null,1,null,null,null,7063935.5644100523,null,{"$f":"(K24*E24)+(K29*E29)","v":5.9819999999999998E-2},null,null,null,{"$f":"O24+O29","v":422564.6254630094}]
[null,null,"*Cost of Capital Parameter Updates for 2013 Cost of Service Applications for Rates Effective May 1, 2013"]
[]
[" ",null,2013]
[null,null,"Application"]
[null,null,null,null,"(%)",null,null,null,"($)",null,"(%)",null,null,null,"($)"]
[null,null,"Debt"]
[1,null,"  Long-term Debt",null,0.56000000000000005,null,null,null,{"$f":"I47*E38","v":3489998.30481982},null,5.8700000000000002E-2,null,null,null,{"$f":"K38*I38","v":204862.90049292345}]
[2,null,"  Short-term Debt",null,0.04,null,"(1)",null,{"$f":"I47*E39","v":249285.5932014157},null,2.07E-2,null,null,null,{"$f":"K39*I39","v":5160.2117792693052}]
[3,null,"Total Debt",null,{"$f":"SUM(E38:E39)","v":0.60000000000000009},null,null,null,{"$f":"SUM(I38:I39)","v":3739283.8980212356},null,{"$f":"IF(E40=0,0,SUMPRODUCT(E38:E39,K38:K39)/E40)","v":5.616666666666667E-2},null,null,null,{"$f":"SUM(O38:O39)","v":210023.11227219275}]
[]
[null,null,"Equity"]
[4,null,"  Common Equity",null,0.4,null,null,null,{"$f":"I47*E43","v":2492855.9320141571},null,9.8500000000000004E-2,null,null,null,{"$f":"K43*I43","v":245546.30930339449}]
[5,null,"  Preferred Shares",null,0,null,null,null,{"$f":"$I$47*E44","v":0},null,0,null,null,null,{"$f":"K44*I44","v":0}]
[6,null,"Total Equity",null,{"$f":"SUM(E43:E44)","v":0.4},null,null,null,{"$f":"SUM(I43:I44)","v":2492855.9320141571},null,{"$f":"IF(E45=0,0,SUMPRODUCT(E43:E44,K43:K44)/E45)","v":9.8500000000000004E-2},null,null,null,{"$f":"SUM(O43:O44)","v":245546.30930339449}]
[]
[7,null,"Total",null,1,null,null,null,6232139.8300353922,null,{"$f":"(K40*E40)+(K45*E45)","v":7.3100000000000012E-2},null,null,null,{"$f":"O40+O45","v":455569.42157558724}]
[null,null,"* Cost of Capital Parameter Updates for 2012 Cost of Service Applications for Rates Effective May 1, 2012"]
[]
[" ",null,2012]
[null,null,"Application"]
[null,null,null,null,"(%)",null,null,null,"($)",null,"(%)",null,null,null,"($)"]
[null,null,"Debt"]
[1,null,"  Long-term Debt",null,0.56000000000000005,null,null,null,{"$f":"I63*E54","v":2126369.2906399998},null,5.8700000000000002E-2,null,null,null,{"$f":"K54*I54","v":124817.87736056799}]
[2,null,"  Short-term Debt",null,0.04,null,"(1)",null,{"$f":"I63*E55","v":151883.52075999998},null,2.07E-2,null,null,null,{"$f":"K55*I55","v":3143.9888797319995}]
[3,null,"Total Debt",null,{"$f":"SUM(E54:E55)","v":0.60000000000000009},null,null,null,{"$f":"SUM(I54:I55)","v":2278252.8114},null,{"$f":"IF(E56=0,0,SUMPRODUCT(E54:E55,K54:K55)/E56)","v":5.616666666666667E-2},null,null,null,{"$f":"SUM(O54:O55)","v":127961.86624029999}]
[]
[null,null,"Equity"]
[4,null,"  Common Equity",null,0.4,null,null,null,{"$f":"I63*E59","v":1518835.2075999998},null,9.8500000000000004E-2,null,null,null,{"$f":"K59*I59","v":149605.2679486}]
[5,null,"  Preferred Shares",null,0,null,null,null,{"$f":"$I$47*E60","v":0},null,0,null,null,null,{"$f":"K60*I60","v":0}]
[6,null,"Total Equity",null,{"$f":"SUM(E59:E60)","v":0.4},null,null,null,{"$f":"SUM(I59:I60)","v":1518835.2075999998},null,{"$f":"IF(E61=0,0,SUMPRODUCT(E59:E60,K59:K60)/E61)","v":9.8500000000000004E-2},null,null,null,{"$f":"SUM(O59:O60)","v":149605.2679486}]
[]
[7,null,"Total",null,1,null,null,null,3797088.0189999994,null,{"$f":"(K56*E56)+(K61*E61)","v":7.3100000000000012E-2},null,null,null,{"$f":"O56+O61","v":277567.1341889}]
[null,null,"*Cost of Capital Parameter Updates for 2011 Cost of Service Applications for Rates Effective May 1 2011\nfor Rates Effective May 1, 2011"]
[]
[" ",null,2011]
[null,null,"Application"]
[null,null,null,null,"(%)",null,null,null,"($)",null,"(%)",null,null,null,"($)"]
[null,null,"Debt"]
[1,null,"  Long-term Debt",null,0.56000000000000005,null,null,null,{"$f":"I79*E70","v":2005983.1834},null,5.8700000000000002E-2,null,null,null,{"$f":"K70*I70","v":117751.21286558}]
[2,null,"  Short-term Debt",null,0.04,null,"(1)",null,{"$f":"I79*E71","v":143284.51309999998},null,2.07E-2,null,null,null,{"$f":"K71*I71","v":2965.9894211699998}]
[3,null,"Total Debt",null,{"$f":"SUM(E70:E71)","v":0.60000000000000009},null,null,null,{"$f":"SUM(I70:I71)","v":2149267.6965000001},null,{"$f":"IF(E72=0,0,SUMPRODUCT(E70:E71,K70:K71)/E72)","v":5.616666666666667E-2},null,null,null,{"$f":"SUM(O70:O71)","v":120717.20228675001}]
[]
[null,null,"Equity"]
[4,null,"  Common Equity",null,0.4,null,null,null,{"$f":"I79*E75","v":1432845.1310000001},null,9.8500000000000004E-2,null,null,null,{"$f":"K75*I75","v":141135.24540350001}]
[5,null,"  Preferred Shares",null,0,null,null,null,{"$f":"$I$47*E76","v":0},null,0,null,null,null,{"$f":"K76*I76","v":0}]
[6,null,"Total Equity",null,{"$f":"SUM(E75:E76)","v":0.4},null,null,null,{"$f":"SUM(I75:I76)","v":1432845.1310000001},null,{"$f":"IF(E77=0,0,SUMPRODUCT(E75:E76,K75:K76)/E77)","v":9.8500000000000004E-2},null,null,null,{"$f":"SUM(O75:O76)","v":141135.24540350001}]
[]
[7,null,"Total",null,1,null,null,null,3582112.8274999997,null,{"$f":"(K72*E72)+(K77*E77)","v":7.3100000000000012E-2},null,null,null,{"$f":"O72+O77","v":261852.44769025}]
[]
[]
[" ",null,2010]
[null,null,"Application"]
[null,null,null,null,"(%)",null,null,null,"($)",null,"(%)",null,null,null,"($)"]
[null,null,"Debt"]
[1,null,"  Long-term Debt",null,0.56000000000000005,null,null,null,{"$f":"I95*E86","v":2023375.1490400003},null,5.8700000000000002E-2,null,null,null,{"$f":"K86*I86","v":118772.12124864802}]
[2,null,"  Short-term Debt",null,0.04,null,"(1)",null,{"$f":"I95*E87","v":144526.79636000001},null,2.07E-2,null,null,null,{"$f":"K87*I87","v":2991.7046846520002}]
[3,null,"Total Debt",null,{"$f":"SUM(E86:E87)","v":0.60000000000000009},null,null,null,{"$f":"SUM(I86:I87)","v":2167901.9454000001},null,{"$f":"IF(E88=0,0,SUMPRODUCT(E86:E87,K86:K87)/E88)","v":5.616666666666667E-2},null,null,null,{"$f":"SUM(O86:O87)","v":121763.82593330002}]
[]
[null,null,"Equity"]
[4,null,"  Common Equity",null,0.4,null,null,null,{"$f":"I95*E91","v":1445267.9636000001},null,9.8500000000000004E-2,null,null,null,{"$f":"K91*I91","v":142358.89441460001}]
[5,null,"  Preferred Shares",null,0,null,null,null,{"$f":"$I$47*E92","v":0},null,0,null,null,null,{"$f":"K92*I92","v":0}]
[6,null,"Total Equity",null,{"$f":"SUM(E91:E92)","v":0.4},null,null,null,{"$f":"SUM(I91:I92)","v":1445267.9636000001},null,{"$f":"IF(E93=0,0,SUMPRODUCT(E91:E92,K91:K92)/E93)","v":9.8500000000000004E-2},null,null,null,{"$f":"SUM(O91:O92)","v":142358.89441460001}]
[]
[7,null,"Total",null,1,null,null,null,3613169.909,null,{"$f":"(K88*E88)+(K93*E93)","v":7.3100000000000012E-2},null,null,null,{"$f":"O88+O93","v":264122.72034790006}]

{"sheet":"App.2-P_Cost_Allocation","index":39,"n_rows":117,"n_cols":6,"rows_kept":117,"cut":false,"hidden":false,"merged":[[31,0,32,4],[34,0,36,4],[38,0,39,4],[8,0,8,5],[9,0,9,5],[52,0,52,1],[53,0,53,1],[45,0,46,1],[45,2,46,2],[48,0,48,1],[49,0,49,1],[50,0,50,1],[51,0,51,1],[47,0,47,1],[42,1,42,5],[44,0,44,1],[45,3,46,3],[45,4,46,4],[45,5,46,5],[83,0,83,1],[65,0,65,5],[79,0,79,1],[80,0,80,1],[81,0,81,1],[82,0,82,1],[62,0,63,5],[54,0,54,1],[55,0,55,1],[56,0,56,1],[57,0,57,1],[58,0,58,1],[86,0,86,1],[87,0,87,1],[88,0,88,1],[67,0,68,5],[104,0,104,1],[70,0,71,5],[93,0,94,5],[96,0,96,5],[89,0,89,1],[84,0,84,1],[85,0,85,1],[75,0,77,1],[75,5,77,5],[76,3,77,3],[76,4,77,4],[78,0,78,1],[105,0,105,1],[100,0,102,1],[100,2,100,4],[100,5,101,5],[103,0,103,1],[113,0,113,1],[121,0,123,5],[106,0,106,1],[107,0,107,1],[108,0,108,1],[109,0,109,1],[110,0,110,1],[111,0,111,1],[116,0,119,5],[112,0,112,1]]}
[null,null,null,null,"File Number:",{"$f":"'LDC Info'!$E$18","v":"EB-2013-0139"}]
[null,null,null,null,"Exhibit:"]
[null,null,null,null,"Tab:"]
[null,null,null,null,"Schedule:"]
[null,null,null,null,"Page:"]
[]
[null,null,null,null,"Date:"]
[]
["Appendix 2-P"]
["Cost Allocation"]
[]
["Please complete the following four tables."]
[]
["A)  Allocated Costs"]
[]
["Classes","Costs Allocated from Previous Study","%","Costs Allocated in Test Year Study                    (Column 7A)","%"]
["Residential",774573,{"$f":"IF(B$28=0,\"\",B17/B$28)","v":0.51988638079749561},1093425.4205688743,{"$f":"IF(D$28=0,\"\",D17/D$28)","v":0.61072796136598151}]
["GS < 50 kW",211822,{"$f":"IF(B$28=0,\"\",B18/B$28)","v":0.14217300751935211},216644.71096728696,0.1210059508228154]
["GS > 50 kW (or 50 kW < GS < xxx kW, if applicable)",471811,0.31667526909722804,453272.32312413945,0.25317326324936212]
["GS > xxx kW, if applicable",null,0,null,0]
["Large User, if applicable",null,0,null,0]
["Street Lighting",29336,1.9690057447232647E-2,24762.450255818767,1.3830957721190208E-2]
["Sentinel Lighting",1498,1.0054440297230197E-3,1186.5791148134947,6.6275854773201648E-4]
["Unmetered Scattered Load (USL)",849,5.6984110896852048E-4,1072.6219832574354,5.9910829291890083E-4]
["Other class, if applicable",null,0,null,0]
[null,null,0,null,0]
["Embedded distributor class",null,0,null,0]
["Total",{"$f":"SUM(B17:B27)","v":1489889},{"$f":"SUM(C17:C27)","v":1},{"$f":"SUM(D17:D27)","v":1790364.1060141902},{"$f":"SUM(E17:E27)","v":1.0000000000000002}]
[]
["Notes"]
[]
["1     Customer Classification - If proposed rate classes differ from those in place in the previous Cost Allocation study, modify the rate classes to match the current application as closely as possible."]
[]
[]
["2     Host Distributors -  Provide information on embedded distributor(s) as a separate class, if applicable.   If embedded distributor(s) are billed as customers in a General Service class, include the allocated cost and revenue of the embedded distributor(s) in the applicable class.  Also complete Appendix 2-Q."]
[]
[]
["  "]
["3     Class Revenue Requirements - If using the Board-issued model, in column 7A enter the results from Worksheet O-1, Revenue Requirement (row 40 in the 2013 model).  This excludes costs in deferral and variance accounts.  Note to Embedded Distributor(s), it also does not include Account 4750 - Low Voltage (LV) Costs. "]
[]
[]
[]
["B)  Calculated Class Revenues"]
[]
[null,null,"Column 7B","Column 7C","Column 7D","Column 7E"]
["Classes (same as previous table)",null,"Load Forecast (LF) X current approved rates","L.F. X current approved rates X (1 + d)","LF X proposed rates","Miscellaneous Revenue"]
[]
[{"$f":"A17","v":"Residential"},null,780597.76679999998,1083335.7717224977,1053454.3420612051,124578]
["GS < 50 kW",null,209020.89749999996,273574.8553073915,228362.72867518093,16848]
["GS > 50 kW (or 50 kW < GS < xxx kW, if applicable)",null,307750.3578,389578.86858583638,476217.01516761049,11589]
["GS > xxx kW, if applicable"]
["Large User, if applicable"]
["Street Lighting",null,30200.494152018673,41022.314520750355,29825.856832107649,3929]
["Sentinel Lighting",null,1328.5904899067482,1731.8218060711665,1429.7817336817673,100]
["Unmetered Scattered Load (USL)",null,834.16709999999989,1119.5535204626435,1073.4609932235367,95]
["Other class, if applicable"]
[]
[{"$f":"A27","v":"Embedded distributor class"}]
[{"$f":"A28","v":"Total"},null,{"$f":"SUM(C48:C58)","v":1329732.2738419252},{"$f":"SUM(D48:D58)","v":1790363.1854630099},{"$f":"SUM(E48:E58)","v":1790363.1854630094},{"$f":"SUM(F48:F58)","v":157139}]
[]
["Notes:"]
[]
["1     Columns 7B to 7D - LF means Load Forecast of Annual Billing Quantities (i.e. customers or connections X 12, (kWh or kW, as applicable).  Revenue Quantities should be net of Transfomrer Ownership Allowance.  Exclude revenue from rate adders and rate riders.  "]
[]
[]
["2     Columns 7C and 7D - Column total in each column should equal the Base Revenue Requirement"]
[]
["3     Columns 7C - The Board cost allocation model calculates \"1+d\" in worksheet O-1, cell C21. \"d\" is defined as Revenue Deficiency/ Revenue at Current Rates."]
[]
[]
["4     Columns 7E - If using the Board-issued Cost Allocation model, enter Miscellaneous Revenue as it appears in Worksheet O-1, row 19."]
[]
[]
["C)  Rebalancing Revenue-to-Cost (R/C) Ratios"]
[]
["Class",null,"Previously Approved Ratios","Status Quo Ratios","Proposed Ratios","Policy Range"]
[null,null,"Most Recent Year:","(7C + 7E) / (7A)","(7D + 7E) / (7A)"]
[null,null,"20XX"]
[null,null,"%","%","%","%"]
[{"$f":"A48","v":"Residential"},null,111,{"$f":"IF(D17=0,\"\",(D48+F48)/D17*100)","v":110.47061363307785},{"$f":"IF(D17=0,\"\",(E48+F48)/D17*100)","v":107.73778621758332},"85 - 115"]
["GS < 50 kW",null,111,{"$f":"IF(D18=0,\"\",(D49+F49)/D18*100)","v":134.0549021532517},113.18565202000588,"80 - 120"]
["GS > 50 kW (or 50 kW < GS < xxx kW, if applicable)",null,80,88.504823286103658,107.61875152787856,"80 - 120"]
["GS > xxx kW, if applicable",null,null,"","","80 - 120"]
["Large User, if applicable",null,null,"","","85 - 115"]
["Street Lighting",null,70,181.5301557655327,136.31468809988144,"70 - 120"]
["Sentinel Lighting",null,120,154.37839611386471,128.92370298648117,"80 - 120"]
["Unmetered Scattered Load (USL)",null,80,113.23220476744076,108.93502197997553,"80 - 120"]
["Other class, if applicable",null,null,"",""]
[null,null,null,"",""]
[{"$f":"A58","v":"Embedded distributor class"},null,null,"",""]
[]
["Notes"]
[]
["1     Previously Approved Revenue-to-Cost Ratios - For most applicants, Most Recent Year would be the third year of the IRM 3 period,  e.g. if the applicant rebased in 2009 with further adjustments over 2 years, the Most recent year is 2011.  For applicants that have had rates adjusted only under IRM 2, the Most Recent Year is 2006, and the applicant should enter the ratios from their Informational Filing."]
[]
[]
["2     Status Quo Ratios - The Board's updated Cost Allocation Model yields the Status Quo Ratios in Worksheet O-1.  Status Quo means \"Before Rebalancing\"."]
[]
["D)  Proposed Revenue-to-Cost Ratios"]
[]
["Class",null,"Proposed Revenue-to-Cost Ratios",null,null,"Policy Range"]
[null,null,2013,2014,2015]
[null,null,"%","%","%","%"]
[{"$f":"A80","v":"Residential"},null,{"$f":"E80","v":107.73778621758332},96,null,{"$f":"F80","v":"85 - 115"}]
[{"$f":"A81","v":"GS < 50 kW"},null,{"$f":"E81","v":113.18565202000588},105,null,{"$f":"F81","v":"80 - 120"}]
["GS > 50 kW (or 50 kW < GS < xxx kW, if applicable)",null,107.61875152787856,105,null,"80 - 120"]
["GS > xxx kW, if applicable",null,"",100,null,"80 - 120"]
["Large User, if applicable",null,"",null,null,"85 - 115"]
["Street Lighting",null,136.31468809988144,120,null,"70 - 120"]
["Sentinel Lighting",null,128.92370298648117,120,null,"80 - 120"]
["Unmetered Scattered Load (USL)",null,108.93502197997553,100,null,"80 - 120"]
["Other class, if applicable",null,"",null,null,{"$f":"F88","v":0}]
[null,null,"",null,null,{"$f":"F89","v":0}]
["Embedded distributor class",null,""]
[]
["Note"]
["1     The applicant should complete Table D if it is applying for approval of a revenue to cost ratio in 2012 that is outside the Board’s policy range for any customer class. Table (d) will show the information that the distributor would likely enter in the IRM model) in 2013.  In 2013 Table (d), enter the planned ratios for the classes that will be ‘Change’ and ‘No Change’ in 2013 (in the current Revenue Cost Ratio Adjustment Workform, Worksheet C1.1 ‘Decision – Cost Revenue Adjustment’, column d), and enter TBD for class(es) that will be entered as ‘Rebalance’. "]

{"sheet":"App.2-Q_Cost of Serv. Emb. Dx","index":40,"n_rows":61,"n_cols":7,"rows_kept":61,"cut":false,"hidden":true,"merged":[[59,3,60,3],[59,4,60,4],[54,4,55,4],[8,0,8,6],[9,0,9,6],[16,0,16,1],[16,2,16,3],[54,3,55,3],[9,7,9,11],[12,0,12,6],[11,0,11,6],[14,0,14,1],[14,2,14,3]]}
[null,null,null,null,null,"File Number:",{"$f":"'LDC Info'!$E$18","v":"EB-2013-0139"}]
[null,null,null,null,null,"Exhibit:"]
[null,null,null,null,null,"Tab:"]
[null,null,null,null,null,"Schedule:"]
[null,null,null,null,null,"Page:"]
[]
[null,null,null,null,null,"Date:"]
[]
["Appendix 2-Q"]
["Cost of Serving Embedded Distributor(s) "]
[]
["To be completed by Host Distributors*"]
["(Not required if Host Distributor has an Embedded Distributor rate class, i.e. a separate row in Appendix 2-P.)"]
[]
[]
[]
["Proposed Rate Class for Billing Embedded Distributor(s)"]
[]
["Host's Distribution Facilities used by Embedded Distributor(s)"]
[]
["(1)","(2)","(3)","(4)","(5)","(6) = '(3) + (4)"]
["Asset Class","Total OM&A costs asociated with asset class ","Original cost of asset class ","Accumulated amortization of asset class","Annual amortization of asset class","Net Book Value of asset class"]
["Totals for Host Distributor:","($)","($)","($)","($)"]
["Distribution Stations",null,null,null,null,{"$f":"C24+D24","v":0}]
["Low Voltage Line",null,null,null,null,0]
["LV Line category # 2 (if applcable)",null,null,null,null,0]
["TS (owned by host)",null,null,null,null,0]
["add rows if necessary... ",null,null,null,null,0]
[null,null,null,null,null,0]
[null,null,null,null,null,0]
[]
["(1)","(7)","(8)","(9)","(10)","(11)"]
[{"$f":"A22","v":"Asset Class"},"Total line length or station capacity in asset class","Line length or capacity required to provide LV service to Embedded Distributor(s)","Annual total demand on station/line providing LV services (sum of 12 monthly peaks)","Annual billed Embedded Distributor demand on station/line providing LV services","Embedded Distributor(s)' Responsibility Share "]
["Embedded Distributor's share:","kW or kVa; km","kW or kVA; km","kW or kVA","kW or kVA","percent"]
["Distribution Stations",null,null,null,null,{"$f":"IF(D35=0,0,(C35/B35)*(E35/D35))","v":0}]
["Low Voltage Line",null,null,null,null,{"$f":"IF(D36=0,0,(C36/B36)*(E36/D36))","v":0}]
["LV Line # 2 (if applicable) ",null,null,null,null,{"$f":"IF(D37=0,0,(C37/B37)*(E37/D37))","v":0}]
["TS (owned by host)",null,null,null,null,{"$f":"IF(D38=0,0,(C38/B38)*(E38/D38))","v":0}]
["add rows if necessary ",null,null,null,null,{"$f":"IF(D39=0,0,(C39/B39)*(E39/D39))","v":0}]
[]
["(1)","(12)","(12a)","(13)","(14)","(15)","(16)"]
[{"$f":"A33","v":"Asset Class"},"Return on Assets used to Provide LV services","Taxes/PILs","Annual amortization on assets used to provide LV services","OM&A costs with burden associated with assets used to provide LV services","Total annual cost associated with assets used to provide LV services","Monthly cost associated with the delivery of LV services"]
[null,"($)","($)","($)","($)","($)","$/kW or $/kVA"]
["Distribution Stations",{"$f":"E$55*(F24+B24*E$60)*F35","v":0},{"$f":"(B44-(B$55*C$55*F35*(F24+B24*E58)+B$56*C$56*F35*(F24+B24*E$58)))*E$58/(1-E$58)","v":0},{"$f":"E24*F35","v":0},{"$f":"B24*F35","v":0},{"$f":"SUM(B44:E44)","v":0},{"$f":"IF(E35=0,0,(D44/E35))","v":0}]
["Low Voltage Line",{"$f":"E$55*(F25+B25*E$60)*F36","v":0},{"$f":"(B45-(B$55*C$55*F36*(F25+B25*E59)+B$56*C$56*F36*(F25+B25*E59)))*E$58/(1-E$58)","v":0},{"$f":"E25*F36","v":0},{"$f":"B25*F36","v":0},{"$f":"SUM(B45:E45)","v":0},{"$f":"IF(E36=0,0,(D45/E36))","v":0}]
["LV Line # 2 (if applicable) ",{"$f":"E$55*(F26+B26*E$60)*F37","v":0},{"$f":"(B46-(B$55*C$55*F37*(F26+B26*E60)+B$56*C$56*F37*(F26+B26*E$60)))*E$58/(1-E$58)","v":0},{"$f":"E26*F37","v":0},{"$f":"B26*F37","v":0},{"$f":"SUM(B46:E46)","v":0},{"$f":"IF(E37=0,0,(D46/E37))","v":0}]
["TS (owned by host)",{"$f":"E$55*(F27+B27*E$60)*F38","v":0},{"$f":"(B47-(B$55*C$55*F38*(F27+B27*E61)+B$56*C$56*F38*(F27+B27*E61)))*E$58/(1-E$58)","v":0},{"$f":"E27*F38","v":0},{"$f":"B27*F38","v":0},{"$f":"SUM(B47:E47)","v":0},{"$f":"IF(E38=0,0,(D47/E38))","v":0}]
["add rows if necessary ",{"$f":"E$55*(F28+B28*E$60)*F39","v":0},{"$f":"(B48-(B$55*C$55*F39*(F28+B28*I62)+B$56*C$56*F39*(F28+B28*I62)))*E$58/(1-E$58)","v":0},{"$f":"E28*F39","v":0},{"$f":"B28*F39","v":0},{"$f":"SUM(B48:E48)","v":0},{"$f":"IF(E39=0,0,(D48/E39))","v":0}]
[]
["Total",null,null,null,null,{"$f":"SUM(F44:F48)","v":0},{"$f":"SUM(G44:G48)","v":0}]
[]
["(17)","(18)","(19)","(20)","(21)"]
[null,"Capital Structure","Cost Rate"]
[null,"(%)","(%)",null,"(%)"]
["Long-Term Debt",null,null,"Weighted Average Cost of Capital",{"$f":"IF(B61=0%,0,SUMPRODUCT(B55:B59,C55:C59)/B61)","v":0}]
["Short-term Debt"]
[]
["Common Equity",null,null,"Tax/PILs Rate"]
["Preferred Shares"]
[null,null,null,"Working Capital Allowance Factor"]
["Total",{"$f":"SUM(B55:B59)","v":0}]

{"sheet":"App.2-S_Stranded Meters","index":41,"n_rows":89,"n_cols":8,"rows_kept":89,"cut":false,"hidden":false,"merged":[[88,0,91,7],[81,1,83,7],[85,1,86,7],[66,1,67,7],[73,1,75,7],[77,1,79,7],[69,1,71,7],[59,2,61,7],[63,0,64,7],[34,1,35,7],[37,1,39,7],[41,1,44,7],[46,1,49,7],[54,2,57,7],[8,0,8,7],[9,0,9,7],[26,0,29,7],[31,0,32,7],[51,2,52,7]]}
[null,null,null,null,null,null,"File Number:",{"$f":"'LDC Info'!$E$18","v":"EB-2013-0139"}]
[null,null,null,null,null,null,"Exhibit:"]
[null,null,null,null,null,null,"Tab:"]
[null,null,null,null,null,null,"Schedule:"]
[null,null,null,null,null,null,"Page:"]
[]
[null,null,null,null,null,null,"Date:"]
[]
["Appendix 2-S"]
["Stranded Meter Treatment"]
[]
["Year","Notes","Gross Asset Value","Accumulated Amortization","Contributed Capital (Net of Amortization)","Net Asset","Proceeds on Disposition","Residual Net Book Value"]
[null,null,"(A)","(B)","(C)","(D ) = (A) - (B) - (C)","(E)","(F) = (D) - (E)"]
[2006,null,221805.19,95458.19,null,{"$f":"C14-D14-E14","v":126347},null,{"$f":"F14-G14","v":126347}]
[2007,null,222885.19,110272.19,null,112613,null,112613]
[2008,null,224821.63,125119.63,null,99702,null,99702]
[2009,null,246912.13,140473.13,null,106439,null,106439]
[2010,null,246912.13,156129.13,null,90783,null,90783]
[2011,null,254708.77,171535.13,null,83173.639999999985,null,83173.639999999985]
[2012,"(1)",254843.38,184288.13,null,70555.25,null,70555.25]
[2013,null,254843.38,193343.13,null,61500.25,null,61500.25]
[]
["Notes:"]
[]
["(1)","For 2012, please indicate whether the amounts provided are on a forecast or actual basis."]
[]
["Some distributors have transferred the cost of stranded meters from Account 1860 - Meters to \"Sub-account Stranded Meter Costs of Account 1555\", while in some cases distributors have left these costs in Account 1860.  Depending on which treatment the applicant has chosen. please provide the information under either of the two scenarios (A and B below), as applicable."]
[]
[]
[]
[]
["Scenario A:  If the stranded meter costs were transferred to \"Sub-account Stranded Meter Costs\" of Account 1555, the above table should be completed and the following information should be provided."]
[]
[]
[1,"A description of the accounting treatment followed by the applicant on stranded meter costs for financial accounting and reporting purposes."]
[]
[]
[2,"The amount of the pooled residual net book value of the removed from service stranded meters, less any contributed capital (net of accumulated amortization), and less any net proceeds from sales, which were transferred to this sub-account as of December 31, 2010."]
[]
[]
[]
[3,"A statement as to whether or not, since transferring the removed stranded meter costs to the sub-account, the recording of depreciation expenses was continued in order to reduce the net book value through accumulated depreciation.  If so, the total depreciation expense amount for the period from the time the costs for the stranded meters were transferred to the sub-account to December 31, 2010 should be provided."]
[]
[]
[]
[]
[null,"If no depreciation expenses were recorded to reduce the net book value of stranded meter costs through accumulated depreciation, the total depreciation expense amount that would have been applicable from the time that the stranded meter costs were transferred to the sub-account of Account 1555 to December 31, 2010 should be provided.  In addition, the following information should be provided:"]
[]
[]
[]
[]
[null,"a)","Whether or not carrying charges were recorded for the stranded meter cost balances in the sub-account, and if so, the total carrying charges recorded to December 31, 2010."]
[]
[]
[null,"b)","The estimated amount of the pooled residual net book value of the removed from service meters, less any net proceeds from sales and contributed capital, at the time when the smart meters will have been fully deployed (e.g., as of December 31, 2010).  If the smart meters have been fully deployed, the actual amount should be provided."]
[]
[]
[]
[]
[null,"c)","A description as to how the applicant intends to recover in rates the remaining costs for stranded meters, including the proposed accounting treatment, the proposed disposition period, and the associated bill impacts."]
[]
[]
[]
["Scenario B:  If the stranded meter costs remained recorded in Account 1860, the above table should be completed and the following information should be provided:"]
[]
[]
[1,"A description of the accounting treatment followed by the applicant on stranded meter costs for financial accounting and reporting purposes."]
[]
[]
[2,"The amount of the pooled residual net book value of the removed from service stranded meters, less any contributed capital (net of accumulated amortization), and less any net proceeds from sales, as of December 31, 2010."]
[]
[]
[]
[3,"A statement as to whether or not the recording of depreciation expenses continued in order to reduce the net book value through accumulated depreciation.  If so, provision of the total (cumulative) depreciation expense for the period from the time that the meters became stranded to December 31, 2010."]
[]
[]
[]
[4,"If no depreciation expenses were recorded to reduce the net book value of stranded meters through accumulated depreciation, the total (cumulative) depreciation expense amount that would have been applicable for the period from the time that the meters became stranded to December 31, 2010."]
[]
[]
[]
[5,"The estimated amount of the pooled residual net book value of the removed from service meters, less any net proceeds from sales and contributed capital, at the time when smart meters will have been fully deployed.  If the smart meters have been fully deployed, please provide the actual amount."]
[]
[]
[]
[6,"A description as to how the applicant intends to recover in rates the costs for stranded meters, including the proposed accounting treatment, the proposed disposition period and the associated bill impacts."]
[]
[]
["Distributors should also provide the Net Book Value per class of meter as of December 31, 2010 as well as the number of meters that were removed / stranded.  In preparing this information, distributors should review the Board's letter of January 16, 2007 Stranded Meter Costs Related to the Installation of Smart Meters   which stated that records were to be kept of the type and number of each meter to support the stranded meter costs."]

{"sheet":"App.2-U_IFRS Transition Costs","index":42,"n_rows":36,"n_cols":15,"rows_kept":36,"cut":false,"hidden":false,"merged":[[22,0,22,2],[8,0,8,14],[9,0,9,14],[11,0,11,14],[13,0,15,2],[13,14,15,14],[16,0,16,2],[17,0,17,2],[18,0,18,2],[19,0,19,2],[20,0,20,2],[21,0,21,2],[38,0,39,0],[38,1,39,4],[23,0,23,2],[24,0,24,2],[25,0,25,2],[26,0,26,2],[27,0,27,2],[28,0,28,2],[29,0,29,2],[33,0,34,0],[33,1,34,14],[36,0,37,0],[36,1,36,4],[41,0,42,0],[41,1,42,4],[44,0,47,0],[44,1,47,4],[49,0,50,0],[49,1,50,4]]}
[null,null,null,null,null,null,null,null,null,null,null,null,"File Number:",{"$f":"'LDC Info'!$E$18","v":"EB-2013-0139"}]
[null,null,null,null,null,null,null,null,null,null,null,null,"Exhibit:"]
[null,null,null,null,null,null,null,null,null,null,null,null,"Tab:"]
[null,null,null,null,null,null,null,null,null,null,null,null,"Schedule:"]
[null,null,null,null,null,null,null,null,null,null,null,null,"Page:"]
[]
[null,null,null,null,null,null,null,null,null,null,null,null,"Date:"]
[]
["Appendix 2-U"]
["One-Time Incremental IFRS Transition Costs"]
[]
["The following table should be completed based on the information requested below. An explanation should be provided for any blank entries.  The entries should include one-time incremental IFRS transition costs that are currently included in Account 1508, Other Regulatory Assets, sub-account Deferred IFRS Transition Costs Account, or Account 1508, Other Regulatory Assets, sub-account IFRS Transition Costs Variance Account."]
[]
["Nature of One-Time Incremental IFRS Transition Costs 1",null,null,null,"Audited Actual","Audited Actual","Audited Actual","Audited Carrying","Total Audited","Audited Actual","Audited Carrying","Total Audited","RRR 2.1.7","Variance 2","Reasons why the costs recorded meet the criteria of one-time IFRS administrative incremental costs"]
[null,null,null,null,"Costs Incurred","Costs Incurred","Costs Incurred","Charges","Actual Costs","Costs Incurred","Charges","Actual Costs","Balance"]
[null,null,null,null,2009,2010,2011,"to Dec 31, 2011","to Dec 31, 2011",2012,"to Dec 31, 2012","to Dec 31, 2012","2012-12-31"]
["professional accounting fees",null,null,null,null,null,null,null,0,4066,52.68,{"$f":"SUM(J17:K17)","v":4118.68}]
["professional legal fees",null,null,null,null,null,null,null,0,null,null,{"$f":"SUM(E18:H18)","v":0}]
["salaries, wages and benefits of staff added to support the transition to IFRS",null,null,null,null,null,null,null,0,null,null,0]
["associated staff training and development costs",null,null,null,null,null,1038.17,5.45,1043.6200000000001,null,null,0]
["costs related to system upgrades, or replacements or changes where IFRS was the major reason for conversion",null,null,null,null,null,null,null,0,null,null,0]
[null,null,null,null,null,null,null,null,0,null,null,0]
[null,null,null,null,null,null,null,null,0,null,null,0]
[null,null,null,null,null,null,null,null,0,null,null,0]
[null,null,null,null,null,null,null,null,0,null,null,0]
[null,null,null,null,null,null,null,null,0,null,null,0]
[null,null,null,null,null,null,null,null,0,null,null,0]
[null,null,null,null,null,null,null,null,0,null,null,0]
["Insert description of additional item(s) and new rows if needed.",null,null,null,null,null,null,null,0,null,null,0]
["Total",null,null,null,{"$f":"SUM(E17:E29)","v":0},{"$f":"SUM(F17:F29)","v":0},{"$f":"SUM(G17:G29)","v":1038.17},{"$f":"SUM(H17:H29)","v":5.45},1043.6200000000001,null,null,{"$f":"SUM(L17:L29)","v":4118.68},{"$f":"5104.17+5.45+52.68","v":5162.3},{"$f":"+I30+L30-M30","v":0}]
[]
[]
["Note:"]
[1,"The Deferred IFRS Transition Costs Account and the IFRS Transition Costs Variance Account are exclusively for necessary, incremental transition costs and shall not include ongoing IFRS compliance costs or impacts arising from adopting accounting policy changes that reflect changes in the timing of the recognition of income. The incremental costs in these accounts shall not include costs related to system upgrades, or replacements or changes where IFRS was not the major reason for conversion. In addition, incremental IFRS costs shall not include capital assets or expenditures."]
[]
[2,"Applicants are to provide an explanation of material variances in evidence"]

{"sheet":"App.2-V_Rev_Reconciliation","index":43,"n_rows":34,"n_cols":16,"rows_kept":34,"cut":false,"hidden":false,"merged":[[33,0,34,13],[8,0,8,15],[11,10,12,10],[9,0,9,15],[11,5,11,6],[11,2,11,4],[11,12,12,12],[11,13,12,13],[11,14,12,14],[11,15,12,15],[11,1,12,1],[12,8,12,9],[11,7,11,9]]}
[null,null,null,null,null,null,null,null,null,null,null,null,null,null,"File Number:","='LDC Info'!$E$18"]
[null,null,null,null,null,null,null,null,null,null,null,null,null,null,"Exhibit:",8]
[null,null,null,null,null,null,null,null,null,null,null,null,null,null,"Tab:",1]
[null,null,null,null,null,null,null,null,null,null,null,null,null,null,"Schedule:",5]
[null,null,null,null,null,null,null,null,null,null,null,null,null,null,"Page:"]
[]
[null,null,null,null,null,null,null,null,null,null,null,null,null,null,"Date:"]
[]
["Appendix 2-V"]
["Revenue Reconciliation"]
[]
["Rate Class","Customers/ Connections","Number of Customers/Connections",null,null,"Test Year Consumption",null,"Proposed Rates",null,null,"Revenues at Proposed Rates",null,"Class Specific Revenue Requirement","Transformer Allowance Credit","Total","Difference"]
[null,null,"Start of Test Year","End of Test Year","Average","kWh","kW","Monthly Service Charge","Volumetric"]
[null,null,null,null,null,null,null,null,"kWh","kW"]
[]
["Residential","Customers",4950,4950,4950,52443428,null,10,6.3854777391974659E-3,null,{"$f":"H16*E16*12+I16*F16+J16*G16","v":928876.34206120507},null,928876.34206120507,null,{"$f":"SUM(M16:N16)","v":928876.34206120507},{"$f":"O16-K16","v":0}]
["GS < 50 kW","Customers",634,634,634,18859305,null,15,5.1642798435669254E-3,null,{"$f":"H17*E17*12+I17*F17+J17*G17","v":211514.72867518093},null,211514.72867518093,null,211514.72867518093,0]
["GS > 50 to 4,999 kW","Customers",98,98,98,0,197191,97.35,null,2.3513619544888482,{"$f":"H18*E18*12+I18*F18+J18*G18","v":578151.01516761049},null,464628.01516761049,113523,578151.01516761049,0]
[null,null,null,null,0,null,null,null,null,null,0,null,null,null,0,0]
["Streetlighting","Connections",1215,1215,1215,null,3123.6558443579765,1,null,3.6229525261396618,25896.856832107649,null,25896.856832107649,null,25896.856832107649,0]
["Sentinel Lighting","Connections",21,21,21,null,284.29006966292337,3,null,2.0182967852591123,1329.7817336817673,null,1329.7817336817673,null,1329.7817336817673,0]
["Unmetered Scattered Load","Customers",5,5,5,214651,null,8.5,2.1824309843585014E-3,null,978.46099322353666,null,978.46099322353666,null,978.46099322353666,0]
[null,null,null,null,{"$f":"IF(SUM(C23:D23)=0,0,AVERAGE(C23:D23))","v":0},null,null,null,null,null,0,null,null,null,0,0]
[null,null,null,null,0,null,null,null,null,null,0,null,null,null,0,0]
[null,null,null,null,0,null,null,null,null,null,0,null,null,null,0,0]
[null,null,null,null,0,null,null,null,null,null,0,null,null,null,0,0]
[null,null,null,null,0,null,null,null,null,null,0,null,null,null,0,0]
[null,null,null,null,0,null,null,null,null,null,0,null,null,null,0,0]
[]
["Total",null,null,null,null,null,null,null,null,null,{"$f":"SUM(K16:K28)","v":1746747.1854630094},null,{"$f":"SUM(M16:M28)","v":1633224.1854630094},{"$f":"SUM(N16:N28)","v":113523},{"$f":"M30+N30","v":1746747.1854630094},{"$f":"O30-K30","v":0}]
[]
["Note"]
[]
["1       The class specific revenue requirements in column N must be the amounts used in the final rate design process.  The total of column N should equate to the proposed base revenue requirement"]

{"sheet":"DVA Riders","index":44,"n_rows":66,"n_cols":6,"rows_kept":66,"cut":false,"hidden":false,"merged":[[43,0,44,0],[43,1,44,1],[43,2,44,2],[43,3,44,3],[43,4,44,4],[41,0,41,4],[9,0,9,4],[8,0,8,4],[16,0,17,0],[16,1,17,1],[16,2,17,2],[16,3,17,3],[16,4,17,4]]}
[null,null,null,"File Number:"]
[null,null,null,"Exhibit:"]
[null,null,null,"Tab:"]
[null,null,null,"Schedule:"]
[null,null,null,"Page:"]
[]
[null,null,null,"Date:"]
[]
["TESI-9"]
["Rate Rider Calculation for Deferral / Variance Accounts Balances (excluding Global Adj.)"]
[]
[]
[" Please indicate the Rate Rider Recovery Period (in years)",null,1]
[]
[]
[]
["Rate Class \n(Enter Rate Classes in cells below)","Units","kW / kWh / # of Customers","Allocated Balance (excluding 1588 sub-account)","Rate Rider for Deferral/Variance Accounts"]
[]
["Residential","kWh",51132834,-43993.449346562054,-8.6037572935155628E-4,{"$f":"IF(B19=\"\", \"\", IF(B19=\"# of Customers\", \"per customer per month\", \"$/\"&B19))","v":"$/kWh"}]
["GS<50","kWh",18531353,-18687.832588055102,-1.0084440455079076E-3,{"$f":"IF(B20=\"\", \"\", IF(B20=\"# of Customers\", \"per customer per month\", \"$/\"&B20))","v":"$/kWh"}]
["GS>50","kW",206640,-88856.573165631999,-0.43000664520727833,"$/kW"]
["USL","kWh",214901,-233.38397202726222,-1.086006914938796E-3,"$/kWh"]
["Sentinel","kW",284,-76.670592631755554,-0.269966875463928,"$/kW"]
["Street Lights","kW",3751,567.48966490811927,0.15129023324663271,"$/kW"]
["",null,null,null,null,""]
["",null,null,null,null,""]
["",null,null,null,null,""]
["",null,null,null,null,""]
["",null,null,null,null,""]
["",null,null,null,null,""]
["",null,null,null,null,""]
["",null,null,null,null,""]
["",null,null,null,null,""]
["",null,null,null,null,""]
["",null,null,null,null,""]
["",null,null,null,null,""]
["",null,null,null,null,""]
["",null,null,null,null,""]
["Total"]
[]
[]
["Rate Rider Calculation for RSVA - Power - Sub-account - Global Adjustment"]
[]
["Rate Class \n(Enter Rate Classes in cells below)","Units","kW / kWh / # of Customers","Balance of RSVA - Power - Sub-account - Global Adjustment","Rate Rider for RSVA - Power - Sub-account - Global Adjustment"]
[]
["Residential","kWh",2604189,8638.7185130988182,3.317239460384334E-3,{"$f":"IF(B46=\"\", \"\", IF(B46=\"# of Customers\", \"per customer per month\", \"$/\"&B46))","v":"$/kWh"}]
["GS<50","kWh",70374,233.4474097850871,3.3172394603843336E-3,{"$f":"IF(B47=\"\", \"\", IF(B47=\"# of Customers\", \"per customer per month\", \"$/\"&B47))","v":"$/kWh"}]
["GS>50","kW",206640.00530696515,258330.08600497976,1.2501455641236006,"$/kW"]
["USL","kWh",9584,31.792422988323455,3.317239460384334E-3,"$/kWh"]
["Sentinel","kW",16.101490904117085,19.24994058861029,1.195537773690768,"$/kW"]
["Street Lights","kW",3751.0027665220591,4497.6957085594004,1.199064887048771,"$/kW"]
[{"$f":"A25","v":""},null,null,null,null,""]
["",null,null,null,null,""]
["",null,null,null,null,""]
["",null,null,null,null,""]
["",null,null,null,null,""]
["",null,null,null,null,""]
["",null,null,null,null,""]
["",null,null,null,null,""]
["",null,null,null,null,""]
["",null,null,null,null,""]
["",null,null,null,null,""]
["",null,null,null,null,""]
["",null,null,null,null,""]
["",null,null,null,null,""]
["Total",null,null,{"$f":"SUM(D46:D65)","v":271750.99000000005}]

{"sheet":"SummarySheet","index":45,"n_rows":137,"n_cols":8,"rows_kept":137,"cut":false,"hidden":false,"merged":[[0,7,0,8],[7,0,7,7],[8,0,8,7],[5,8,5,9],[1,7,1,8],[2,7,2,8],[3,7,3,8],[4,7,4,8],[6,7,6,8]]}
[null,null,null,null,null,"File Number:",null,"EB-2013-0139"]
[null,null,null,null,null,"Exhibit:",null,8]
[null,null,null,null,null,"Tab:",null,8]
[null,null,null,null,null,"Schedule:"]
[null,null,null,null,null,"Page:"]
[]
[null,null,null,null,null,"Date:"]
["TESI-10"]
["Existing and Proposed Rate Schedule"]
[]
[]
["Current Rates",null,null,null,"Proposed Rates"]
[{"$f":"IF(ISBLANK(CurrentTariff!A19),\"\",CurrentTariff!A19)","v":"Residential"},{"$f":"IF(ISBLANK(CurrentTariff!C19),\"\",CurrentTariff!C19)","v":"rate"},{"$f":"IF(ISBLANK(CurrentTariff!D19),\"\",CurrentTariff!D19)","v":"Connection Type"},null,{"$f":"A13","v":"Residential"},{"$f":"B13","v":"rate"},{"$f":"C13","v":"Connection Type"}]
[{"$f":"IF(ISBLANK(CurrentTariff!A20),\"\",CurrentTariff!A20)","v":""},{"$f":"IF(ISBLANK(CurrentTariff!C20),\"\",CurrentTariff!C20)","v":""},{"$f":"IF(ISBLANK(CurrentTariff!D20),\"\",CurrentTariff!D20)","v":""}]
[{"$f":"IF(ISBLANK(CurrentTariff!A21),\"\",CurrentTariff!A21)","v":"Service Charge"},{"$f":"IF(ISBLANK(CurrentTariff!C21),\"\",CurrentTariff!C21)","v":5.99},{"$f":"IF(ISBLANK(CurrentTariff!D21),\"\",CurrentTariff!D21)","v":"$"},null,{"$f":"A15","v":"Service Charge"},10,{"$f":"C15","v":"$"}]
[{"$f":"IF(ISBLANK(CurrentTariff!A22),\"\",CurrentTariff!A22)","v":"Distribution Volumetric Rate"},{"$f":"IF(ISBLANK(CurrentTariff!C22),\"\",CurrentTariff!C22)","v":8.0999999999999996E-3},{"$f":"IF(ISBLANK(CurrentTariff!D22),\"\",CurrentTariff!D22)","v":"kWh"},null,{"$f":"A16","v":"Distribution Volumetric Rate"},6.3854777391974659E-3,{"$f":"C16","v":"kWh"}]
[{"$f":"IF(ISBLANK(CurrentTariff!A23),\"\",CurrentTariff!A23)","v":"Rate Rider for Disposition of Residual Historical Smart Meter Costs - effective until April 30, 2014"},{"$f":"IF(ISBLANK(CurrentTariff!C23),\"\",CurrentTariff!C23)","v":-1.35},{"$f":"IF(ISBLANK(CurrentTariff!D23),\"\",CurrentTariff!D23)","v":"kWh"}]
[{"$f":"IF(ISBLANK(CurrentTariff!A24),\"\",CurrentTariff!A24)","v":"Rate Rider for Recovery of Smart Meter Incremental Revenue Requirement - in effective until the\neffective date of the next cost of service-based rate order"},{"$f":"IF(ISBLANK(CurrentTariff!C24),\"\",CurrentTariff!C24)","v":1.39},{"$f":"IF(ISBLANK(CurrentTariff!D24),\"\",CurrentTariff!D24)","v":"kWh"}]
[{"$f":"IF(ISBLANK(CurrentTariff!A25),\"\",CurrentTariff!A25)","v":"Rate Rider for Smart Metering Entity Charge - effective until October 31, 2018"},{"$f":"IF(ISBLANK(CurrentTariff!C25),\"\",CurrentTariff!C25)","v":0.79},{"$f":"IF(ISBLANK(CurrentTariff!D25),\"\",CurrentTariff!D25)","v":"kWh"},null,{"$f":"A19","v":"Rate Rider for Smart Metering Entity Charge - effective until October 31, 2018"},0.79,{"$f":"C19","v":"kWh"}]
[{"$f":"IF(ISBLANK(CurrentTariff!A26),\"\",CurrentTariff!A26)","v":"Low Voltage Service Rate"},{"$f":"IF(ISBLANK(CurrentTariff!C26),\"\",CurrentTariff!C26)","v":4.0000000000000002E-4},{"$f":"IF(ISBLANK(CurrentTariff!D26),\"\",CurrentTariff!D26)","v":"kWh"},null,{"$f":"A20","v":"Low Voltage Service Rate"},6.9999999999999999E-4,{"$f":"C20","v":"kWh"}]
[{"$f":"IF(ISBLANK(CurrentTariff!A27),\"\",CurrentTariff!A27)","v":"Rate Rider for Recovery of Incremental Capital Costs"},{"$f":"IF(ISBLANK(CurrentTariff!C27),\"\",CurrentTariff!C27)","v":2.3999999999999998E-3},{"$f":"IF(ISBLANK(CurrentTariff!D27),\"\",CurrentTariff!D27)","v":"kWh"}]
[{"$f":"IF(ISBLANK(CurrentTariff!A28),\"\",CurrentTariff!A28)","v":"Rate Rider for Disposition of Deferral/Variance Account (2013) - effective until April 30, 2014"},{"$f":"IF(ISBLANK(CurrentTariff!C28),\"\",CurrentTariff!C28)","v":1.1000000000000001E-3},{"$f":"IF(ISBLANK(CurrentTariff!D28),\"\",CurrentTariff!D28)","v":"kWh"},null,"Rate Rider for Disposition of Deferral/Variance Account (2014) - effective until December 31, 2013",-8.6037572935155628E-4,{"$f":"C22","v":"kWh"}]
[{"$f":"IF(ISBLANK(CurrentTariff!A29),\"\",CurrentTariff!A29)","v":"Rate Rider for Disposition of Global Adjustment Sub-Account (2013) - effective until April 30, 2014 Applicable only for Non-RPP Customers"},{"$f":"IF(ISBLANK(CurrentTariff!C29),\"\",CurrentTariff!C29)","v":6.0000000000000001E-3},{"$f":"IF(ISBLANK(CurrentTariff!D29),\"\",CurrentTariff!D29)","v":"kWh"},null,"Rate Rider for Disposition of Global Adjustment Sub-Account (2014) - effective until December 31, 2013 Applicable only for Non-RPP Customers",3.317239460384334E-3,{"$f":"C23","v":"kWh"}]
[{"$f":"IF(ISBLANK(CurrentTariff!A31),\"\",CurrentTariff!A30)","v":""},{"$f":"IF(ISBLANK(CurrentTariff!C30),\"\",CurrentTariff!C30)","v":""},{"$f":"IF(ISBLANK(CurrentTariff!D30),\"\",CurrentTariff!D30)","v":""},null,"Stranded Meter Rate Rider",0.4620724070757754,"$"]
[{"$f":"IF(ISBLANK(CurrentTariff!A31),\"\",CurrentTariff!A31)","v":""},{"$f":"IF(ISBLANK(CurrentTariff!C31),\"\",CurrentTariff!C31)","v":""},{"$f":"IF(ISBLANK(CurrentTariff!D31),\"\",CurrentTariff!D31)","v":""}]
[{"$f":"IF(ISBLANK(CurrentTariff!A32),\"\",CurrentTariff!A32)","v":""},{"$f":"IF(ISBLANK(CurrentTariff!C32),\"\",CurrentTariff!C32)","v":""},{"$f":"IF(ISBLANK(CurrentTariff!D32),\"\",CurrentTariff!D32)","v":""}]
[{"$f":"IF(ISBLANK(CurrentTariff!A33),\"\",CurrentTariff!A33)","v":""},{"$f":"IF(ISBLANK(CurrentTariff!C33),\"\",CurrentTariff!C33)","v":""},{"$f":"IF(ISBLANK(CurrentTariff!D33),\"\",CurrentTariff!D33)","v":""}]
[{"$f":"IF(ISBLANK(CurrentTariff!A34),\"\",CurrentTariff!A34)","v":"Retail Transmission Rate – Network Service Rate"},{"$f":"IF(ISBLANK(CurrentTariff!C34),\"\",CurrentTariff!C34)","v":6.8999999999999999E-3},{"$f":"IF(ISBLANK(CurrentTariff!D34),\"\",CurrentTariff!D34)","v":"kWh"},null,{"$f":"A28","v":"Retail Transmission Rate – Network Service Rate"},6.3398401642345481E-3,{"$f":"C28","v":"kWh"}]
[{"$f":"IF(ISBLANK(CurrentTariff!A35),\"\",CurrentTariff!A35)","v":"Retail Transmission Rate – Line and Transformation Connection Service Rate"},{"$f":"IF(ISBLANK(CurrentTariff!C35),\"\",CurrentTariff!C35)","v":3.0999999999999999E-3},{"$f":"IF(ISBLANK(CurrentTariff!D35),\"\",CurrentTariff!D35)","v":"kWh"},null,{"$f":"A29","v":"Retail Transmission Rate – Line and Transformation Connection Service Rate"},3.0000000000000001E-3,{"$f":"C29","v":"kWh"}]
[{"$f":"IF(ISBLANK(CurrentTariff!A36),\"\",CurrentTariff!A36)","v":"Wholesale Market Service Rate"},{"$f":"IF(ISBLANK(CurrentTariff!C36),\"\",CurrentTariff!C36)","v":4.4000000000000003E-3},{"$f":"IF(ISBLANK(CurrentTariff!D36),\"\",CurrentTariff!D36)","v":"kWh"},null,{"$f":"A30","v":"Wholesale Market Service Rate"},4.4000000000000003E-3,"kWh"]
[{"$f":"IF(ISBLANK(CurrentTariff!A37),\"\",CurrentTariff!A37)","v":"Rural Rate Protection Charge"},{"$f":"IF(ISBLANK(CurrentTariff!C37),\"\",CurrentTariff!C37)","v":1.1999999999999999E-3},{"$f":"IF(ISBLANK(CurrentTariff!D37),\"\",CurrentTariff!D37)","v":"kWh"},null,{"$f":"A31","v":"Rural Rate Protection Charge"},1.1999999999999999E-3,"kWh"]
[{"$f":"IF(ISBLANK(CurrentTariff!A38),\"\",CurrentTariff!A38)","v":"Standard Supply Service – Administrative Charge (if applicable)"},{"$f":"IF(ISBLANK(CurrentTariff!C38),\"\",CurrentTariff!C38)","v":0.25},{"$f":"IF(ISBLANK(CurrentTariff!D38),\"\",CurrentTariff!D38)","v":"$"},null,{"$f":"A32","v":"Standard Supply Service – Administrative Charge (if applicable)"},0.25,"$"]
[{"$f":"IF(ISBLANK(CurrentTariff!A39),\"\",CurrentTariff!A39)","v":""}]
[{"$f":"IF(ISBLANK(CurrentTariff!A40),\"\",CurrentTariff!A40)","v":"General Service < 50 kW"},{"$f":"IF(ISBLANK(CurrentTariff!C40),\"\",CurrentTariff!C40)","v":"rate"},{"$f":"IF(ISBLANK(CurrentTariff!D40),\"\",CurrentTariff!D40)","v":"Connection Type"},null,{"$f":"A34","v":"General Service < 50 kW"},"rate",{"$f":"C34","v":"Connection Type"}]
[{"$f":"IF(ISBLANK(CurrentTariff!A41),\"\",CurrentTariff!A41)","v":""},{"$f":"IF(ISBLANK(CurrentTariff!C41),\"\",CurrentTariff!C41)","v":""},{"$f":"IF(ISBLANK(CurrentTariff!D41),\"\",CurrentTariff!D41)","v":""}]
[{"$f":"IF(ISBLANK(CurrentTariff!A42),\"\",CurrentTariff!A42)","v":"Service Charge"},{"$f":"IF(ISBLANK(CurrentTariff!C42),\"\",CurrentTariff!C42)","v":13.84},{"$f":"IF(ISBLANK(CurrentTariff!D42),\"\",CurrentTariff!D42)","v":"$"},null,{"$f":"A36","v":"Service Charge"},15,{"$f":"C36","v":"$"}]
[{"$f":"IF(ISBLANK(CurrentTariff!A43),\"\",CurrentTariff!A43)","v":"Distribution Volumetric Rate"},{"$f":"IF(ISBLANK(CurrentTariff!C43),\"\",CurrentTariff!C43)","v":5.4999999999999997E-3},{"$f":"IF(ISBLANK(CurrentTariff!D43),\"\",CurrentTariff!D43)","v":"kWh"},null,{"$f":"A37","v":"Distribution Volumetric Rate"},5.1642798435669254E-3,{"$f":"C37","v":"kWh"}]
[{"$f":"IF(ISBLANK(CurrentTariff!A44),\"\",CurrentTariff!A44)","v":"Rate Rider for Disposition of Residual Historical Smart Meter Costs - effective until April 30, 2014"},{"$f":"IF(ISBLANK(CurrentTariff!C44),\"\",CurrentTariff!C44)","v":-0.09},{"$f":"IF(ISBLANK(CurrentTariff!D44),\"\",CurrentTariff!D44)","v":"kWh"}]
[{"$f":"IF(ISBLANK(CurrentTariff!A45),\"\",CurrentTariff!A45)","v":"Rate Rider for Recovery of Smart Meter Incremental Revenue Requirement - in effective until the effective date of the next cost of service-based rate order"},{"$f":"IF(ISBLANK(CurrentTariff!C45),\"\",CurrentTariff!C45)","v":2.46},{"$f":"IF(ISBLANK(CurrentTariff!D45),\"\",CurrentTariff!D45)","v":"kWh"}]
[{"$f":"IF(ISBLANK(CurrentTariff!A46),\"\",CurrentTariff!A46)","v":"Rate Rider for Smart Metering Entity Charge - effective until October 31, 2018"},{"$f":"IF(ISBLANK(CurrentTariff!C46),\"\",CurrentTariff!C46)","v":0.79},{"$f":"IF(ISBLANK(CurrentTariff!D46),\"\",CurrentTariff!D46)","v":"kWh"},null,{"$f":"A40","v":"Rate Rider for Smart Metering Entity Charge - effective until October 31, 2018"},0.79,{"$f":"C40","v":"kWh"}]
[{"$f":"IF(ISBLANK(CurrentTariff!A47),\"\",CurrentTariff!A47)","v":"Low Voltage Service Rate"},{"$f":"IF(ISBLANK(CurrentTariff!C47),\"\",CurrentTariff!C47)","v":4.0000000000000002E-4},{"$f":"IF(ISBLANK(CurrentTariff!D47),\"\",CurrentTariff!D47)","v":"kWh"},null,{"$f":"A41","v":"Low Voltage Service Rate"},5.9999999999999995E-4,{"$f":"C41","v":"kWh"}]
[{"$f":"IF(ISBLANK(CurrentTariff!A48),\"\",CurrentTariff!A48)","v":"Rate Rider for Recovery of Incremental Capital Costs"},{"$f":"IF(ISBLANK(CurrentTariff!C48),\"\",CurrentTariff!C48)","v":1.6999999999999999E-3},{"$f":"IF(ISBLANK(CurrentTariff!D48),\"\",CurrentTariff!D48)","v":"kWh"}]
[{"$f":"IF(ISBLANK(CurrentTariff!A49),\"\",CurrentTariff!A49)","v":"Rate Rider for Disposition of Deferral/Variance Account (2013) - effective until April 30, 2014"},{"$f":"IF(ISBLANK(CurrentTariff!C49),\"\",CurrentTariff!C49)","v":1.1000000000000001E-3},{"$f":"IF(ISBLANK(CurrentTariff!D49),\"\",CurrentTariff!D49)","v":"kWh"},null,"Rate Rider for Disposition of Deferral/Variance Account (2014) - effective until December 31, 2013",-1.0084440455079076E-3,{"$f":"C43","v":"kWh"}]
[{"$f":"IF(ISBLANK(CurrentTariff!A50),\"\",CurrentTariff!A50)","v":"Rate Rider for Disposition of Global Adjustment Sub-Account (2013) - effective until April 30, 2014\nApplicable only for Non-RPP Customers"},{"$f":"IF(ISBLANK(CurrentTariff!C50),\"\",CurrentTariff!C50)","v":6.0000000000000001E-3},{"$f":"IF(ISBLANK(CurrentTariff!D50),\"\",CurrentTariff!D50)","v":"kWh"},null,"Rate Rider for Disposition of Global Adjustment Sub-Account (2014) - effective until December 31, 2013 Applicable only for Non-RPP Customers",3.3172394603843336E-3,{"$f":"C44","v":"kWh"}]
[{"$f":"IF(ISBLANK(CurrentTariff!A51),\"\",CurrentTariff!A51)","v":""},{"$f":"IF(ISBLANK(CurrentTariff!C51),\"\",CurrentTariff!C51)","v":""},{"$f":"IF(ISBLANK(CurrentTariff!D51),\"\",CurrentTariff!D51)","v":""},null,"Stranded Meter Rate Rider",1.6384047716760619,"$"]
[{"$f":"IF(ISBLANK(CurrentTariff!A52),\"\",CurrentTariff!A52)","v":""},{"$f":"IF(ISBLANK(CurrentTariff!C52),\"\",CurrentTariff!C52)","v":""},{"$f":"IF(ISBLANK(CurrentTariff!D52),\"\",CurrentTariff!D52)","v":""}]
[{"$f":"IF(ISBLANK(CurrentTariff!A53),\"\",CurrentTariff!A53)","v":""},{"$f":"IF(ISBLANK(CurrentTariff!C53),\"\",CurrentTariff!C53)","v":""},{"$f":"IF(ISBLANK(CurrentTariff!D53),\"\",CurrentTariff!D53)","v":""}]
[{"$f":"IF(ISBLANK(CurrentTariff!A54),\"\",CurrentTariff!A54)","v":""},{"$f":"IF(ISBLANK(CurrentTariff!C54),\"\",CurrentTariff!C54)","v":""},{"$f":"IF(ISBLANK(CurrentTariff!D54),\"\",CurrentTariff!D54)","v":""}]
[{"$f":"IF(ISBLANK(CurrentTariff!A55),\"\",CurrentTariff!A55)","v":"Retail Transmission Rate – Network Service Rate"},{"$f":"IF(ISBLANK(CurrentTariff!C55),\"\",CurrentTariff!C55)","v":6.3E-3},{"$f":"IF(ISBLANK(CurrentTariff!D55),\"\",CurrentTariff!D55)","v":"kWh"},null,{"$f":"A49","v":"Retail Transmission Rate – Network Service Rate"},5.7000000000000002E-3,{"$f":"C49","v":"kWh"}]
[{"$f":"IF(ISBLANK(CurrentTariff!A56),\"\",CurrentTariff!A56)","v":"Retail Transmission Rate – Line and Transformation Connection Service Rate"},{"$f":"IF(ISBLANK(CurrentTariff!C56),\"\",CurrentTariff!C56)","v":2.7000000000000001E-3},{"$f":"IF(ISBLANK(CurrentTariff!D56),\"\",CurrentTariff!D56)","v":"kWh"},null,{"$f":"A50","v":"Retail Transmission Rate – Line and Transformation Connection Service Rate"},2.5999999999999999E-3,{"$f":"C50","v":"kWh"}]
[{"$f":"IF(ISBLANK(CurrentTariff!A57),\"\",CurrentTariff!A57)","v":"Wholesale Market Service Rate"},{"$f":"IF(ISBLANK(CurrentTariff!C57),\"\",CurrentTariff!C57)","v":4.4000000000000003E-3},{"$f":"IF(ISBLANK(CurrentTariff!D57),\"\",CurrentTariff!D57)","v":"kWh"},null,{"$f":"A51","v":"Wholesale Market Service Rate"},4.4000000000000003E-3,"kWh"]
[{"$f":"IF(ISBLANK(CurrentTariff!A58),\"\",CurrentTariff!A58)","v":"Rural Rate Protection Charge"},{"$f":"IF(ISBLANK(CurrentTariff!C58),\"\",CurrentTariff!C58)","v":1.1999999999999999E-3},{"$f":"IF(ISBLANK(CurrentTariff!D58),\"\",CurrentTariff!D58)","v":"kWh"},null,{"$f":"A52","v":"Rural Rate Protection Charge"},1.1999999999999999E-3,"kWh"]
[{"$f":"IF(ISBLANK(CurrentTariff!A59),\"\",CurrentTariff!A59)","v":"Standard Supply Service – Administrative Charge (if applicable)"},{"$f":"IF(ISBLANK(CurrentTariff!C59),\"\",CurrentTariff!C59)","v":0.25},{"$f":"IF(ISBLANK(CurrentTariff!D59),\"\",CurrentTariff!D59)","v":"$"},null,{"$f":"A53","v":"Standard Supply Service – Administrative Charge (if applicable)"},0.25,"$"]
[]
[{"$f":"IF(ISBLANK(CurrentTariff!A61),\"\",CurrentTariff!A61)","v":"General Service > 50 to 4999 kW"},{"$f":"IF(ISBLANK(CurrentTariff!C61),\"\",CurrentTariff!C61)","v":"rate"},{"$f":"IF(ISBLANK(CurrentTariff!D61),\"\",CurrentTariff!D61)","v":"Connection Type"},null,{"$f":"A55","v":"General Service > 50 to 4999 kW"},"rate",{"$f":"C55","v":"Connection Type"}]
[{"$f":"IF(ISBLANK(CurrentTariff!A62),\"\",CurrentTariff!A62)","v":""},{"$f":"IF(ISBLANK(CurrentTariff!C62),\"\",CurrentTariff!C62)","v":""},{"$f":"IF(ISBLANK(CurrentTariff!D62),\"\",CurrentTariff!D62)","v":""}]
[{"$f":"IF(ISBLANK(CurrentTariff!A63),\"\",CurrentTariff!A63)","v":"Service Charge"},{"$f":"IF(ISBLANK(CurrentTariff!C63),\"\",CurrentTariff!C63)","v":97.35},{"$f":"IF(ISBLANK(CurrentTariff!D63),\"\",CurrentTariff!D63)","v":"$"},null,{"$f":"A57","v":"Service Charge"},97.35,{"$f":"C57","v":"$"}]
[{"$f":"IF(ISBLANK(CurrentTariff!A64),\"\",CurrentTariff!A64)","v":"Distribution Volumetric Rate"},{"$f":"IF(ISBLANK(CurrentTariff!C64),\"\",CurrentTariff!C64)","v":1.5558000000000001},{"$f":"IF(ISBLANK(CurrentTariff!D64),\"\",CurrentTariff!D64)","v":"kW"},null,{"$f":"A58","v":"Distribution Volumetric Rate"},2.3513619544888482,{"$f":"C58","v":"kW"}]
[{"$f":"IF(ISBLANK(CurrentTariff!A65),\"\",CurrentTariff!A65)","v":"Low Voltage Service Rate"},{"$f":"IF(ISBLANK(CurrentTariff!C65),\"\",CurrentTariff!C65)","v":0.13689999999999999},{"$f":"IF(ISBLANK(CurrentTariff!D65),\"\",CurrentTariff!D65)","v":"kW"},null,{"$f":"A59","v":"Low Voltage Service Rate"},0.2472,{"$f":"C59","v":"kW"}]
[{"$f":"IF(ISBLANK(CurrentTariff!A66),\"\",CurrentTariff!A66)","v":"Rate Rider for Recovery of Incremental Capital Costs"},{"$f":"IF(ISBLANK(CurrentTariff!C66),\"\",CurrentTariff!C66)","v":0.32700000000000001},{"$f":"IF(ISBLANK(CurrentTariff!D66),\"\",CurrentTariff!D66)","v":"kW"}]
[{"$f":"IF(ISBLANK(CurrentTariff!A67),\"\",CurrentTariff!A67)","v":"Rate Rider for Disposition of Deferral/Variance Account (2013) - effective until April 30, 2014"},{"$f":"IF(ISBLANK(CurrentTariff!C67),\"\",CurrentTariff!C67)","v":0.4219},{"$f":"IF(ISBLANK(CurrentTariff!D67),\"\",CurrentTariff!D67)","v":"kW"},null,"Rate Rider for Disposition of Deferral/Variance Account (2014) - effective until December 31, 2013",-0.43000664520727833,{"$f":"C61","v":"kW"}]
[{"$f":"IF(ISBLANK(CurrentTariff!A68),\"\",CurrentTariff!A68)","v":"Rate Rider for Disposition of Global Adjustment Sub-Account (2013) - effective until April 30, 2014\nApplicable only for Non-RPP Customers"},{"$f":"IF(ISBLANK(CurrentTariff!C68),\"\",CurrentTariff!C68)","v":2.3612000000000002},{"$f":"IF(ISBLANK(CurrentTariff!D68),\"\",CurrentTariff!D68)","v":"kW"},null,"Rate Rider for Disposition of Global Adjustment Sub-Account (2014) - effective until December 31, 2013 Applicable only for Non-RPP Customers",1.2501455641236006,{"$f":"C62","v":"kW"}]
[{"$f":"IF(ISBLANK(CurrentTariff!A69),\"\",CurrentTariff!A69)","v":""},{"$f":"IF(ISBLANK(CurrentTariff!C69),\"\",CurrentTariff!C69)","v":" "},{"$f":"IF(ISBLANK(CurrentTariff!D69),\"\",CurrentTariff!D69)","v":"kW"}]
[{"$f":"IF(ISBLANK(CurrentTariff!A70),\"\",CurrentTariff!A70)","v":""},{"$f":"IF(ISBLANK(CurrentTariff!C70),\"\",CurrentTariff!C70)","v":""},{"$f":"IF(ISBLANK(CurrentTariff!D70),\"\",CurrentTariff!D70)","v":""}]
[{"$f":"IF(ISBLANK(CurrentTariff!A71),\"\",CurrentTariff!A71)","v":""},{"$f":"IF(ISBLANK(CurrentTariff!C71),\"\",CurrentTariff!C71)","v":""},{"$f":"IF(ISBLANK(CurrentTariff!D71),\"\",CurrentTariff!D71)","v":""}]
[{"$f":"IF(ISBLANK(CurrentTariff!A72),\"\",CurrentTariff!A72)","v":""},{"$f":"IF(ISBLANK(CurrentTariff!C72),\"\",CurrentTariff!C72)","v":""},{"$f":"IF(ISBLANK(CurrentTariff!D72),\"\",CurrentTariff!D72)","v":""}]
[{"$f":"IF(ISBLANK(CurrentTariff!A73),\"\",CurrentTariff!A73)","v":""},{"$f":"IF(ISBLANK(CurrentTariff!C73),\"\",CurrentTariff!C73)","v":""},{"$f":"IF(ISBLANK(CurrentTariff!D73),\"\",CurrentTariff!D73)","v":""}]
[{"$f":"IF(ISBLANK(CurrentTariff!A74),\"\",CurrentTariff!A74)","v":""},{"$f":"IF(ISBLANK(CurrentTariff!C74),\"\",CurrentTariff!C74)","v":""},{"$f":"IF(ISBLANK(CurrentTariff!D74),\"\",CurrentTariff!D74)","v":""}]
[{"$f":"IF(ISBLANK(CurrentTariff!A75),\"\",CurrentTariff!A75)","v":""},{"$f":"IF(ISBLANK(CurrentTariff!C75),\"\",CurrentTariff!C75)","v":""},{"$f":"IF(ISBLANK(CurrentTariff!D75),\"\",CurrentTariff!D75)","v":""}]
[{"$f":"IF(ISBLANK(CurrentTariff!A76),\"\",CurrentTariff!A76)","v":"Retail Transmission Rate – Network Service Rate"},{"$f":"IF(ISBLANK(CurrentTariff!C76),\"\",CurrentTariff!C76)","v":2.5533000000000001},{"$f":"IF(ISBLANK(CurrentTariff!D76),\"\",CurrentTariff!D76)","v":"kW"},null,{"$f":"A70","v":"Retail Transmission Rate – Network Service Rate"},2.3285999999999998,{"$f":"C70","v":"kW"}]
[{"$f":"IF(ISBLANK(CurrentTariff!A77),\"\",CurrentTariff!A77)","v":"Retail Transmission Rate – Line and Transformation Connection Service Rate"},{"$f":"IF(ISBLANK(CurrentTariff!C77),\"\",CurrentTariff!C77)","v":1.1196999999999999},{"$f":"IF(ISBLANK(CurrentTariff!D77),\"\",CurrentTariff!D77)","v":"kW"},null,{"$f":"A71","v":"Retail Transmission Rate – Line and Transformation Connection Service Rate"},1.0752999999999999,{"$f":"C71","v":"kW"}]
[{"$f":"IF(ISBLANK(CurrentTariff!A78),\"\",CurrentTariff!A78)","v":"Wholesale Market Service Rate"},{"$f":"IF(ISBLANK(CurrentTariff!C78),\"\",CurrentTariff!C78)","v":4.4000000000000003E-3},{"$f":"IF(ISBLANK(CurrentTariff!D78),\"\",CurrentTariff!D78)","v":"kWh"},null,{"$f":"A72","v":"Wholesale Market Service Rate"},4.4000000000000003E-3,"kWh"]
[{"$f":"IF(ISBLANK(CurrentTariff!A79),\"\",CurrentTariff!A79)","v":"Rural Rate Protection Charge"},{"$f":"IF(ISBLANK(CurrentTariff!C79),\"\",CurrentTariff!C79)","v":1.1999999999999999E-3},{"$f":"IF(ISBLANK(CurrentTariff!D79),\"\",CurrentTariff!D79)","v":"kWh"},null,{"$f":"A73","v":"Rural Rate Protection Charge"},1.1999999999999999E-3,"kWh"]
[{"$f":"IF(ISBLANK(CurrentTariff!A80),\"\",CurrentTariff!A80)","v":"Standard Supply Service – Administrative Charge (if applicable)"},{"$f":"IF(ISBLANK(CurrentTariff!C80),\"\",CurrentTariff!C80)","v":0.25},{"$f":"IF(ISBLANK(CurrentTariff!D80),\"\",CurrentTariff!D80)","v":"$"},null,{"$f":"A74","v":"Standard Supply Service – Administrative Charge (if applicable)"},0.25,"$"]
[]
[{"$f":"IF(ISBLANK(CurrentTariff!A82),\"\",CurrentTariff!A82)","v":"Unmetered Scattered Load"},{"$f":"IF(ISBLANK(CurrentTariff!C82),\"\",CurrentTariff!C82)","v":"rate"},{"$f":"IF(ISBLANK(CurrentTariff!D82),\"\",CurrentTariff!D82)","v":"Connection Type"},null,{"$f":"A76","v":"Unmetered Scattered Load"},"rate",{"$f":"C76","v":"Connection Type"}]
[{"$f":"IF(ISBLANK(CurrentTariff!A83),\"\",CurrentTariff!A83)","v":""},{"$f":"IF(ISBLANK(CurrentTariff!C83),\"\",CurrentTariff!C83)","v":""},{"$f":"IF(ISBLANK(CurrentTariff!D83),\"\",CurrentTariff!D83)","v":""}]
[{"$f":"IF(ISBLANK(CurrentTariff!A84),\"\",CurrentTariff!A84)","v":"Service Charge"},{"$f":"IF(ISBLANK(CurrentTariff!C84),\"\",CurrentTariff!C84)","v":6.39},{"$f":"IF(ISBLANK(CurrentTariff!D84),\"\",CurrentTariff!D84)","v":"$"},null,{"$f":"A78","v":"Service Charge"},8.5,{"$f":"C78","v":"$"}]
[{"$f":"IF(ISBLANK(CurrentTariff!A85),\"\",CurrentTariff!A85)","v":"Distribution Volumetric Rate"},{"$f":"IF(ISBLANK(CurrentTariff!C85),\"\",CurrentTariff!C85)","v":2.0999999999999999E-3},{"$f":"IF(ISBLANK(CurrentTariff!D85),\"\",CurrentTariff!D85)","v":"kWh"},null,{"$f":"A79","v":"Distribution Volumetric Rate"},2.1824309843585014E-3,{"$f":"C79","v":"kWh"}]
[{"$f":"IF(ISBLANK(CurrentTariff!A86),\"\",CurrentTariff!A86)","v":"Low Voltage Service Rate"},{"$f":"IF(ISBLANK(CurrentTariff!C86),\"\",CurrentTariff!C86)","v":4.0000000000000002E-4},{"$f":"IF(ISBLANK(CurrentTariff!D86),\"\",CurrentTariff!D86)","v":"kWh"},null,{"$f":"A80","v":"Low Voltage Service Rate"},5.9999999999999995E-4,{"$f":"C80","v":"kWh"}]
[{"$f":"IF(ISBLANK(CurrentTariff!A87),\"\",CurrentTariff!A87)","v":"Rate Rider for Recovery of Incremental Capital Costs"},{"$f":"IF(ISBLANK(CurrentTariff!C87),\"\",CurrentTariff!C87)","v":5.9999999999999995E-4},{"$f":"IF(ISBLANK(CurrentTariff!D87),\"\",CurrentTariff!D87)","v":"kWh"}]
[{"$f":"IF(ISBLANK(CurrentTariff!A88),\"\",CurrentTariff!A88)","v":"Rate Rider for Disposition of Deferral/Variance Account (2013) - effective until April 30, 2014"},{"$f":"IF(ISBLANK(CurrentTariff!C88),\"\",CurrentTariff!C88)","v":1.1000000000000001E-3},{"$f":"IF(ISBLANK(CurrentTariff!D88),\"\",CurrentTariff!D88)","v":"kWh"},null,"Rate Rider for Disposition of Deferral/Variance Account (2014) - effective until December 31, 2013",-1.086006914938796E-3,{"$f":"C82","v":"kWh"}]
[{"$f":"IF(ISBLANK(CurrentTariff!A89),\"\",CurrentTariff!A89)","v":"Rate Rider for Disposition of Global Adjustment Sub-Account (2013) - effective until April 30, 2014 Applicable only for Non-RPP Customers"},{"$f":"IF(ISBLANK(CurrentTariff!C89),\"\",CurrentTariff!C89)","v":6.0000000000000001E-3},{"$f":"IF(ISBLANK(CurrentTariff!D89),\"\",CurrentTariff!D89)","v":"kWh"},null,"Rate Rider for Disposition of Global Adjustment Sub-Account (2014) - effective until December 31, 2013 Applicable only for Non-RPP Customers",3.317239460384334E-3,{"$f":"C83","v":"kWh"}]
[{"$f":"IF(ISBLANK(CurrentTariff!A90),\"\",CurrentTariff!A90)","v":""},{"$f":"IF(ISBLANK(CurrentTariff!C90),\"\",CurrentTariff!C90)","v":""},{"$f":"IF(ISBLANK(CurrentTariff!D90),\"\",CurrentTariff!D90)","v":""}]
[{"$f":"IF(ISBLANK(CurrentTariff!A91),\"\",CurrentTariff!A91)","v":""},{"$f":"IF(ISBLANK(CurrentTariff!C91),\"\",CurrentTariff!C91)","v":""},{"$f":"IF(ISBLANK(CurrentTariff!D91),\"\",CurrentTariff!D91)","v":""}]
[{"$f":"IF(ISBLANK(CurrentTariff!A92),\"\",CurrentTariff!A92)","v":""},{"$f":"IF(ISBLANK(CurrentTariff!C92),\"\",CurrentTariff!C92)","v":""},{"$f":"IF(ISBLANK(CurrentTariff!D92),\"\",CurrentTariff!D92)","v":""}]
[{"$f":"IF(ISBLANK(CurrentTariff!A93),\"\",CurrentTariff!A93)","v":""},{"$f":"IF(ISBLANK(CurrentTariff!C93),\"\",CurrentTariff!C93)","v":""},{"$f":"IF(ISBLANK(CurrentTariff!D93),\"\",CurrentTariff!D93)","v":""}]
[{"$f":"IF(ISBLANK(CurrentTariff!A94),\"\",CurrentTariff!A94)","v":""},{"$f":"IF(ISBLANK(CurrentTariff!C94),\"\",CurrentTariff!C94)","v":""},{"$f":"IF(ISBLANK(CurrentTariff!D94),\"\",CurrentTariff!D94)","v":""}]
[{"$f":"IF(ISBLANK(CurrentTariff!A95),\"\",CurrentTariff!A95)","v":""},{"$f":"IF(ISBLANK(CurrentTariff!C95),\"\",CurrentTariff!C95)","v":""},{"$f":"IF(ISBLANK(CurrentTariff!D95),\"\",CurrentTariff!D95)","v":""}]
[{"$f":"IF(ISBLANK(CurrentTariff!A96),\"\",CurrentTariff!A96)","v":""},{"$f":"IF(ISBLANK(CurrentTariff!C96),\"\",CurrentTariff!C96)","v":""},{"$f":"IF(ISBLANK(CurrentTariff!D96),\"\",CurrentTariff!D96)","v":""}]
[{"$f":"IF(ISBLANK(CurrentTariff!A97),\"\",CurrentTariff!A97)","v":"Retail Transmission Rate – Network Service Rate"},{"$f":"IF(ISBLANK(CurrentTariff!C97),\"\",CurrentTariff!C97)","v":6.3E-3},{"$f":"IF(ISBLANK(CurrentTariff!D97),\"\",CurrentTariff!D97)","v":"kWh"},null,{"$f":"A91","v":"Retail Transmission Rate – Network Service Rate"},5.7000000000000002E-3,{"$f":"C91","v":"kWh"}]
[{"$f":"IF(ISBLANK(CurrentTariff!A98),\"\",CurrentTariff!A98)","v":"Retail Transmission Rate – Line and Transformation Connection Service Rate"},{"$f":"IF(ISBLANK(CurrentTariff!C98),\"\",CurrentTariff!C98)","v":2.7000000000000001E-3},{"$f":"IF(ISBLANK(CurrentTariff!D98),\"\",CurrentTariff!D98)","v":"kWh"},null,{"$f":"A92","v":"Retail Transmission Rate – Line and Transformation Connection Service Rate"},2.5999999999999999E-3,{"$f":"C92","v":"kWh"}]
[{"$f":"IF(ISBLANK(CurrentTariff!A99),\"\",CurrentTariff!A99)","v":"Wholesale Market Service Rate"},{"$f":"IF(ISBLANK(CurrentTariff!C99),\"\",CurrentTariff!C99)","v":4.4000000000000003E-3},{"$f":"IF(ISBLANK(CurrentTariff!D99),\"\",CurrentTariff!D99)","v":"kWh"},null,{"$f":"A93","v":"Wholesale Market Service Rate"},4.4000000000000003E-3,"kWh"]
[{"$f":"IF(ISBLANK(CurrentTariff!A100),\"\",CurrentTariff!A100)","v":"Rural Rate Protection Charge"},{"$f":"IF(ISBLANK(CurrentTariff!C100),\"\",CurrentTariff!C100)","v":1.1999999999999999E-3},{"$f":"IF(ISBLANK(CurrentTariff!D100),\"\",CurrentTariff!D100)","v":"kWh"},null,{"$f":"A94","v":"Rural Rate Protection Charge"},1.1999999999999999E-3,"kWh"]
[{"$f":"IF(ISBLANK(CurrentTariff!A101),\"\",CurrentTariff!A101)","v":"Standard Supply Service – Administrative Charge (if applicable)"},{"$f":"IF(ISBLANK(CurrentTariff!C101),\"\",CurrentTariff!C101)","v":0.25},{"$f":"IF(ISBLANK(CurrentTariff!D101),\"\",CurrentTariff!D101)","v":"$"},null,{"$f":"A95","v":"Standard Supply Service – Administrative Charge (if applicable)"},0.25,"$"]
[]
[{"$f":"IF(ISBLANK(CurrentTariff!A103),\"\",CurrentTariff!A103)","v":"Sentinel Lighting"},{"$f":"IF(ISBLANK(CurrentTariff!C103),\"\",CurrentTariff!C103)","v":"rate"},{"$f":"IF(ISBLANK(CurrentTariff!D103),\"\",CurrentTariff!D103)","v":"Connection Type"},null,{"$f":"A97","v":"Sentinel Lighting"},"rate",{"$f":"C97","v":"Connection Type"}]
[{"$f":"IF(ISBLANK(CurrentTariff!A104),\"\",CurrentTariff!A104)","v":""},{"$f":"IF(ISBLANK(CurrentTariff!C104),\"\",CurrentTariff!C104)","v":""},{"$f":"IF(ISBLANK(CurrentTariff!D104),\"\",CurrentTariff!D104)","v":""}]
[{"$f":"IF(ISBLANK(CurrentTariff!A105),\"\",CurrentTariff!A105)","v":"Service Charge"},{"$f":"IF(ISBLANK(CurrentTariff!C105),\"\",CurrentTariff!C105)","v":1.63},{"$f":"IF(ISBLANK(CurrentTariff!D105),\"\",CurrentTariff!D105)","v":"$"},null,{"$f":"A99","v":"Service Charge"},3,{"$f":"C99","v":"$"}]
[{"$f":"IF(ISBLANK(CurrentTariff!A106),\"\",CurrentTariff!A106)","v":"Distribution Volumetric Rate"},{"$f":"IF(ISBLANK(CurrentTariff!C106),\"\",CurrentTariff!C106)","v":3.2284999999999999},{"$f":"IF(ISBLANK(CurrentTariff!D106),\"\",CurrentTariff!D106)","v":"kW"},null,{"$f":"A100","v":"Distribution Volumetric Rate"},2.0182967852591123,{"$f":"C100","v":"kW"}]
[{"$f":"IF(ISBLANK(CurrentTariff!A107),\"\",CurrentTariff!A107)","v":"Low Voltage Service Rate"},{"$f":"IF(ISBLANK(CurrentTariff!C107),\"\",CurrentTariff!C107)","v":0.2162},{"$f":"IF(ISBLANK(CurrentTariff!D107),\"\",CurrentTariff!D107)","v":"kW"},null,{"$f":"A101","v":"Low Voltage Service Rate"},0.39019999999999999,{"$f":"C101","v":"kW"}]
[{"$f":"IF(ISBLANK(CurrentTariff!A108),\"\",CurrentTariff!A108)","v":"Rate Rider for Recovery of Incremental Capital Costs"},{"$f":"IF(ISBLANK(CurrentTariff!C108),\"\",CurrentTariff!C108)","v":0.74960000000000004},{"$f":"IF(ISBLANK(CurrentTariff!D108),\"\",CurrentTariff!D108)","v":"kW"},null,null,null,{"$f":"C102","v":"kW"}]
[{"$f":"IF(ISBLANK(CurrentTariff!A109),\"\",CurrentTariff!A109)","v":""},{"$f":"IF(ISBLANK(CurrentTariff!C109),\"\",CurrentTariff!C109)","v":""},{"$f":"IF(ISBLANK(CurrentTariff!D109),\"\",CurrentTariff!D109)","v":""},null,"Rate Rider for Disposition of Deferral/Variance Account (2014) - effective until December 31, 2013",-0.269966875463928,{"$f":"C102","v":"kW"}]
[{"$f":"IF(ISBLANK(CurrentTariff!A110),\"\",CurrentTariff!A110)","v":""},{"$f":"IF(ISBLANK(CurrentTariff!C110),\"\",CurrentTariff!C110)","v":""},{"$f":"IF(ISBLANK(CurrentTariff!D110),\"\",CurrentTariff!D110)","v":""},null,"Rate Rider for Disposition of Global Adjustment Sub-Account (2014) - effective until December 31, 2013 Applicable only for Non-RPP Customers",1.195537773690768,{"$f":"C102","v":"kW"}]
[{"$f":"IF(ISBLANK(CurrentTariff!A111),\"\",CurrentTariff!A111)","v":""},{"$f":"IF(ISBLANK(CurrentTariff!C111),\"\",CurrentTariff!C111)","v":""},{"$f":"IF(ISBLANK(CurrentTariff!D111),\"\",CurrentTariff!D111)","v":""}]
[{"$f":"IF(ISBLANK(CurrentTariff!A112),\"\",CurrentTariff!A112)","v":""},{"$f":"IF(ISBLANK(CurrentTariff!C112),\"\",CurrentTariff!C112)","v":""},{"$f":"IF(ISBLANK(CurrentTariff!D112),\"\",CurrentTariff!D112)","v":""}]
[{"$f":"IF(ISBLANK(CurrentTariff!A113),\"\",CurrentTariff!A113)","v":""},{"$f":"IF(ISBLANK(CurrentTariff!C113),\"\",CurrentTariff!C113)","v":""},{"$f":"IF(ISBLANK(CurrentTariff!D113),\"\",CurrentTariff!D113)","v":""}]
[{"$f":"IF(ISBLANK(CurrentTariff!A114),\"\",CurrentTariff!A114)","v":""},{"$f":"IF(ISBLANK(CurrentTariff!C114),\"\",CurrentTariff!C114)","v":""},{"$f":"IF(ISBLANK(CurrentTariff!D114),\"\",CurrentTariff!D114)","v":""}]
[{"$f":"IF(ISBLANK(CurrentTariff!A115),\"\",CurrentTariff!A115)","v":""},{"$f":"IF(ISBLANK(CurrentTariff!C115),\"\",CurrentTariff!C115)","v":""},{"$f":"IF(ISBLANK(CurrentTariff!D115),\"\",CurrentTariff!D115)","v":""}]
[{"$f":"IF(ISBLANK(CurrentTariff!A116),\"\",CurrentTariff!A116)","v":""},{"$f":"IF(ISBLANK(CurrentTariff!C116),\"\",CurrentTariff!C116)","v":""},{"$f":"IF(ISBLANK(CurrentTariff!D116),\"\",CurrentTariff!D116)","v":""}]
[{"$f":"IF(ISBLANK(CurrentTariff!A117),\"\",CurrentTariff!A117)","v":""},{"$f":"IF(ISBLANK(CurrentTariff!C117),\"\",CurrentTariff!C117)","v":""},{"$f":"IF(ISBLANK(CurrentTariff!D117),\"\",CurrentTariff!D117)","v":""}]
[{"$f":"IF(ISBLANK(CurrentTariff!A118),\"\",CurrentTariff!A118)","v":"Retail Transmission Rate – Network Service Rate"},{"$f":"IF(ISBLANK(CurrentTariff!C118),\"\",CurrentTariff!C118)","v":1.9263999999999999},{"$f":"IF(ISBLANK(CurrentTariff!D118),\"\",CurrentTariff!D118)","v":"kW"},null,{"$f":"A112","v":"Retail Transmission Rate – Network Service Rate"},1.7568999999999999,{"$f":"C112","v":"kW"}]
[{"$f":"IF(ISBLANK(CurrentTariff!A119),\"\",CurrentTariff!A119)","v":"Retail Transmission Rate – Line and Transformation Connection Service Rate"},{"$f":"IF(ISBLANK(CurrentTariff!C119),\"\",CurrentTariff!C119)","v":1.7674000000000001},{"$f":"IF(ISBLANK(CurrentTariff!D119),\"\",CurrentTariff!D119)","v":"kW"},null,{"$f":"A113","v":"Retail Transmission Rate – Line and Transformation Connection Service Rate"},1.6973,{"$f":"C113","v":"kW"}]
[{"$f":"IF(ISBLANK(CurrentTariff!A120),\"\",CurrentTariff!A120)","v":"Wholesale Market Service Rate"},{"$f":"IF(ISBLANK(CurrentTariff!C120),\"\",CurrentTariff!C120)","v":4.4000000000000003E-3},{"$f":"IF(ISBLANK(CurrentTariff!D120),\"\",CurrentTariff!D120)","v":"kWh"},null,{"$f":"A114","v":"Wholesale Market Service Rate"},4.4000000000000003E-3,"kWh"]
[{"$f":"IF(ISBLANK(CurrentTariff!A121),\"\",CurrentTariff!A121)","v":"Rural Rate Protection Charge"},{"$f":"IF(ISBLANK(CurrentTariff!C121),\"\",CurrentTariff!C121)","v":1.1999999999999999E-3},{"$f":"IF(ISBLANK(CurrentTariff!D121),\"\",CurrentTariff!D121)","v":"kWh"},null,{"$f":"A115","v":"Rural Rate Protection Charge"},1.1999999999999999E-3,"kWh"]
[{"$f":"IF(ISBLANK(CurrentTariff!A122),\"\",CurrentTariff!A122)","v":"Standard Supply Service – Administrative Charge (if applicable)"},{"$f":"IF(ISBLANK(CurrentTariff!C122),\"\",CurrentTariff!C122)","v":0.25},{"$f":"IF(ISBLANK(CurrentTariff!D122),\"\",CurrentTariff!D122)","v":"$"},null,{"$f":"A116","v":"Standard Supply Service – Administrative Charge (if applicable)"},0.25,"$"]
[]
[{"$f":"IF(ISBLANK(CurrentTariff!A124),\"\",CurrentTariff!A124)","v":"Street Lighting "},{"$f":"IF(ISBLANK(CurrentTariff!C124),\"\",CurrentTariff!C124)","v":"rate"},{"$f":"IF(ISBLANK(CurrentTariff!D124),\"\",CurrentTariff!D124)","v":"Connection Type"},null,{"$f":"A118","v":"Street Lighting "},"rate",{"$f":"C118","v":"Connection Type"}]
[{"$f":"IF(ISBLANK(CurrentTariff!A125),\"\",CurrentTariff!A125)","v":""},{"$f":"IF(ISBLANK(CurrentTariff!C125),\"\",CurrentTariff!C125)","v":""},{"$f":"IF(ISBLANK(CurrentTariff!D125),\"\",CurrentTariff!D125)","v":""}]
[{"$f":"IF(ISBLANK(CurrentTariff!A126),\"\",CurrentTariff!A126)","v":"Service Charge"},{"$f":"IF(ISBLANK(CurrentTariff!C126),\"\",CurrentTariff!C126)","v":0.62},{"$f":"IF(ISBLANK(CurrentTariff!D126),\"\",CurrentTariff!D126)","v":"$"},null,{"$f":"A120","v":"Service Charge"},1,{"$f":"C120","v":"$"}]
[{"$f":"IF(ISBLANK(CurrentTariff!A127),\"\",CurrentTariff!A127)","v":"Distribution Volumetric Rate"},{"$f":"IF(ISBLANK(CurrentTariff!C127),\"\",CurrentTariff!C127)","v":6.7744},{"$f":"IF(ISBLANK(CurrentTariff!D127),\"\",CurrentTariff!D127)","v":"kW"},null,{"$f":"A121","v":"Distribution Volumetric Rate"},3.6229525261396618,{"$f":"C121","v":"kW"}]
[{"$f":"IF(ISBLANK(CurrentTariff!A128),\"\",CurrentTariff!A128)","v":"Low Voltage Service Rate"},{"$f":"IF(ISBLANK(CurrentTariff!C128),\"\",CurrentTariff!C128)","v":0.10589999999999999},{"$f":"IF(ISBLANK(CurrentTariff!D128),\"\",CurrentTariff!D128)","v":"kW"},null,{"$f":"A122","v":"Low Voltage Service Rate"},0.19109999999999999,{"$f":"C122","v":"kW"}]
[{"$f":"IF(ISBLANK(CurrentTariff!A129),\"\",CurrentTariff!A129)","v":"Rate Rider for Recovery of Incremental Capital Costs"},{"$f":"IF(ISBLANK(CurrentTariff!C129),\"\",CurrentTariff!C129)","v":1.5987},{"$f":"IF(ISBLANK(CurrentTariff!D129),\"\",CurrentTariff!D129)","v":"kW"},null,null,null,{"$f":"C123","v":"kW"}]
[{"$f":"IF(ISBLANK(CurrentTariff!A130),\"\",CurrentTariff!A130)","v":"Rate Rider for Disposition of Deferral/Variance Account (2013) - effective until April 30, 2014"},{"$f":"IF(ISBLANK(CurrentTariff!C130),\"\",CurrentTariff!C130)","v":0.38890000000000002},{"$f":"IF(ISBLANK(CurrentTariff!D130),\"\",CurrentTariff!D130)","v":"kW"},null,"Rate Rider for Disposition of Deferral/Variance Account (2014) - effective until December 31, 2013",0.15129023324663271,"kW"]
[{"$f":"IF(ISBLANK(CurrentTariff!A131),\"\",CurrentTariff!A131)","v":"Rate Rider for Disposition of Global Adjustment Sub-Account (2013) - effective until April 30, 2014\nApplicable only for Non-RPP Customers"},{"$f":"IF(ISBLANK(CurrentTariff!C131),\"\",CurrentTariff!C131)","v":2.1766999999999999},{"$f":"IF(ISBLANK(CurrentTariff!D131),\"\",CurrentTariff!D131)","v":"kW"},null,"Rate Rider for Disposition of Global Adjustment Sub-Account (2014) - effective until December 31, 2013 Applicable only for Non-RPP Customers",1.199064887048771,"kW"]
[{"$f":"IF(ISBLANK(CurrentTariff!A132),\"\",CurrentTariff!A132)","v":""},{"$f":"IF(ISBLANK(CurrentTariff!C132),\"\",CurrentTariff!C132)","v":""},{"$f":"IF(ISBLANK(CurrentTariff!D132),\"\",CurrentTariff!D132)","v":""}]
[{"$f":"IF(ISBLANK(CurrentTariff!A133),\"\",CurrentTariff!A133)","v":""},{"$f":"IF(ISBLANK(CurrentTariff!C133),\"\",CurrentTariff!C133)","v":""},{"$f":"IF(ISBLANK(CurrentTariff!D133),\"\",CurrentTariff!D133)","v":""}]
[{"$f":"IF(ISBLANK(CurrentTariff!A134),\"\",CurrentTariff!A134)","v":""},{"$f":"IF(ISBLANK(CurrentTariff!C134),\"\",CurrentTariff!C134)","v":""},{"$f":"IF(ISBLANK(CurrentTariff!D134),\"\",CurrentTariff!D134)","v":""}]
[{"$f":"IF(ISBLANK(CurrentTariff!A135),\"\",CurrentTariff!A135)","v":""},{"$f":"IF(ISBLANK(CurrentTariff!C135),\"\",CurrentTariff!C135)","v":""},{"$f":"IF(ISBLANK(CurrentTariff!D135),\"\",CurrentTariff!D135)","v":""}]
[{"$f":"IF(ISBLANK(CurrentTariff!A136),\"\",CurrentTariff!A136)","v":""},{"$f":"IF(ISBLANK(CurrentTariff!C136),\"\",CurrentTariff!C136)","v":""},{"$f":"IF(ISBLANK(CurrentTariff!D136),\"\",CurrentTariff!D136)","v":""}]
[{"$f":"IF(ISBLANK(CurrentTariff!A137),\"\",CurrentTariff!A137)","v":""},{"$f":"IF(ISBLANK(CurrentTariff!C137),\"\",CurrentTariff!C137)","v":""},{"$f":"IF(ISBLANK(CurrentTariff!D137),\"\",CurrentTariff!D137)","v":""}]
[{"$f":"IF(ISBLANK(CurrentTariff!A138),\"\",CurrentTariff!A138)","v":""},{"$f":"IF(ISBLANK(CurrentTariff!C138),\"\",CurrentTariff!C138)","v":""},{"$f":"IF(ISBLANK(CurrentTariff!D138),\"\",CurrentTariff!D138)","v":""}]
[{"$f":"IF(ISBLANK(CurrentTariff!A139),\"\",CurrentTariff!A139)","v":"Retail Transmission Rate – Network Service Rate"},{"$f":"IF(ISBLANK(CurrentTariff!C139),\"\",CurrentTariff!C139)","v":1.9258},{"$f":"IF(ISBLANK(CurrentTariff!D139),\"\",CurrentTariff!D139)","v":"kW"},null,{"$f":"A133","v":"Retail Transmission Rate – Network Service Rate"},1.7564,{"$f":"C133","v":"kW"}]
[{"$f":"IF(ISBLANK(CurrentTariff!A140),\"\",CurrentTariff!A140)","v":"Retail Transmission Rate – Line and Transformation Connection Service Rate"},{"$f":"IF(ISBLANK(CurrentTariff!C140),\"\",CurrentTariff!C140)","v":0.86560000000000004},{"$f":"IF(ISBLANK(CurrentTariff!D140),\"\",CurrentTariff!D140)","v":"kW"},null,{"$f":"A134","v":"Retail Transmission Rate – Line and Transformation Connection Service Rate"},0.83130000000000004,{"$f":"C134","v":"kW"}]
[{"$f":"IF(ISBLANK(CurrentTariff!A141),\"\",CurrentTariff!A141)","v":"Wholesale Market Service Rate"},{"$f":"IF(ISBLANK(CurrentTariff!C141),\"\",CurrentTariff!C141)","v":4.4000000000000003E-3},{"$f":"IF(ISBLANK(CurrentTariff!D141),\"\",CurrentTariff!D141)","v":"kWh"},null,{"$f":"A135","v":"Wholesale Market Service Rate"},4.4000000000000003E-3,"kWh"]
[{"$f":"IF(ISBLANK(CurrentTariff!A142),\"\",CurrentTariff!A142)","v":"Rural Rate Protection Charge"},{"$f":"IF(ISBLANK(CurrentTariff!C142),\"\",CurrentTariff!C142)","v":1.1999999999999999E-3},{"$f":"IF(ISBLANK(CurrentTariff!D142),\"\",CurrentTariff!D142)","v":"kWh"},null,{"$f":"A136","v":"Rural Rate Protection Charge"},1.1999999999999999E-3,"kWh"]
[{"$f":"IF(ISBLANK(CurrentTariff!A143),\"\",CurrentTariff!A143)","v":"Standard Supply Service – Administrative Charge (if applicable)"},{"$f":"IF(ISBLANK(CurrentTariff!C143),\"\",CurrentTariff!C143)","v":0.25},{"$f":"IF(ISBLANK(CurrentTariff!D143),\"\",CurrentTariff!D143)","v":"$"},null,{"$f":"A137","v":"Standard Supply Service – Administrative Charge (if applicable)"},0.25,"$"]

{"sheet":"App.2-W_Bill Impact-Res","index":46,"n_rows":85,"n_cols":20,"rows_kept":85,"cut":false,"hidden":false,"merged":[[2,0,2,10],[9,1,9,14],[10,1,10,14],[13,3,13,14],[17,5,17,7],[17,9,17,11],[17,13,17,14],[67,1,67,3],[18,3,19,3],[18,13,19,13],[18,14,19,14],[60,1,60,3],[61,1,61,3],[66,1,66,3]]}
[null,null,null,null,null,null,null,null,null,null,null,null,null,"File Number:",{"$f":"'LDC Info'!$E$18","v":"EB-2013-0139"},null,null,null,null,1]
[null,null,null,null,null,null,null,null,null,null,null,null,null,"Exhibit:",8]
[null,null,null,null,null,null,null,null,null,null,null,null,null,"Tab:",8]
[null,null,null,null,null,null,null,null,null,null,null,null,null,"Schedule:",2]
[null,null,null,null,null,null,null,null,null,null,null,null,null,"Page:"]
[]
[null,null,null,null,null,null,null,null,null,null,null,null,null,"Date:"]
[]
[]
[null,"Appendix 2-W"]
[null,"Bill Impacts"]
[]
[]
[null,"Customer Class:",null,"Residential"]
[]
[null,null,null,"Consumption",null,800," kWh"]
[]
[null,null,null,null,null,"Current Board-Approved",null,null,null,"Proposed",null,null,null,"Impact",null,null,null,null,null,"Connection Type"]
[null,null,null,"Charge Unit",null,"Rate","Volume","Charge",null,"Rate","Volume","Charge",null,"$ Change","% Change",null,null,null,null,""]
[null,null,null,null,null,"($)",null,"($)",null,"($)",null,"($)",null,null,null,null,null,null,null,"$"]
[null,"Monthly Service Charge",null,"Monthly",null,{"$f":"SummarySheet!B15","v":5.99},1,{"$f":"G21*F21","v":5.99},null,{"$f":"SummarySheet!F15","v":10},1,{"$f":"K21*J21","v":10},null,{"$f":"L21-H21","v":4.01},{"$f":"IF((H21)=0,\"\",(N21/H21))","v":0.669449081803005},null,null,null,null,"kWh"]
[null,"Smart Meter Rate Adder",null,null,null,null,1,{"$f":"G22*F22","v":0},null,null,1,{"$f":"K22*J22","v":0},null,{"$f":"L22-H22","v":0},{"$f":"IF((H22)=0,\"\",(N22/H22))","v":""},null,null,null,null,"kWh"]
[null,"Stranded Meter Rate Rider",null,"Monthly",null,null,1,0,null,{"$f":"SummarySheet!F24","v":0.4620724070757754},1,{"$f":"K23*J23","v":0.4620724070757754},null,{"$f":"L23-H23","v":0.4620724070757754},{"$f":"IF((H23)=0,\"\",(N23/H23))","v":""},null,null,null,null,"kWh"]
[null,"SMIRR",null,"Monthly",null,1.39,1,1.39,null,null,1,0,null,-1.39,-1,null,null,null,null,"kWh"]
[null,"SMDR",null,"Monthly",null,-1.35,1,-1.35,null,null,1,0,null,1.35,-1,null,null,null,null,"kWh"]
[null,null,null,null,null,null,1,0,null,null,1,0,null,0,"",null,null,null,null,"kWh"]
[null,"Distribution Volumetric Rate",null,"per kWh",null,{"$f":"SummarySheet!B16","v":8.0999999999999996E-3},{"$f":"$F$16","v":800},6.4799999999999995,null,{"$f":"SummarySheet!F16","v":6.3854777391974659E-3},{"$f":"$F$16","v":800},5.1083821913579728,null,-1.3716178086420268,-0.21166941491389304,null,null,null,null,"kWh"]
[null,"Smart Meter Disposition Rider",null,"per kWh",null,null,800,0,null,null,{"$f":"$F$16","v":800},0,null,0,"",null,null,null,null,"kWh"]
[null,"LRAM & SSM Rate Rider",null,"per kWh",null,null,800,0,null,null,800,0,null,0,"",null,null,null,null,""]
[null,null,null,"per kWh",null,null,800,{"$f":"G30*F30","v":0},null,null,800,{"$f":"K30*J30","v":0},null,{"$f":"L30-H30","v":0},{"$f":"IF((H30)=0,\"\",(N30/H30))","v":""},null,null,null,null,""]
[null,"Incremental Capital Rate Rider",null,"per kWh",null,2.3999999999999998E-3,800,{"$f":"G31*F31","v":1.92},null,null,800,{"$f":"K31*J31","v":0},null,{"$f":"L31-H31","v":-1.92},{"$f":"IF((H31)=0,\"\",(N31/H31))","v":-1},null,null,null,null,""]
[null,null,null,null,null,null,800,{"$f":"G32*F32","v":0},null,null,800,{"$f":"K32*J32","v":0},null,{"$f":"L32-H32","v":0},{"$f":"IF((H32)=0,\"\",(N32/H32))","v":""},null,null,null,null,""]
[null,null,null,"Monthly",null,null,800,0,null,null,1,0,null,0,"",null,null,null,null,"kWh"]
[null,null,null,null,null,null,800,0,null,null,800,0,null,0,"",null,null,null,null,"kWh"]
[null,null,null,null,null,null,800,0,null,null,800,0,null,0,"",null,null,null,null,"kWh"]
[null,"Low Voltage",null,"per kWh",null,null,800,0,null,{"$f":"SummarySheet!F20","v":6.9999999999999999E-4},800,0.55999999999999994,null,0.55999999999999994,"",null,null,null,null,"kWh"]
[null,"Sub-Total A",null,null,null,null,null,{"$f":"SUM(H21:H36)","v":14.429999999999998},null,null,null,{"$f":"SUM(L21:L36)","v":16.130454598433747},null,1.7004545984337494,0.11784162151308036,null,null,null,null,"$"]
[null,"Deferral/Variance Account Disposition Rate Rider",null,"per kWh",null,1.1000000000000001E-3,{"$f":"$F$16","v":800},{"$f":"G38*F38","v":0.88},null,{"$f":"SummarySheet!F22","v":-8.6037572935155628E-4},{"$f":"$F$16","v":800},{"$f":"K38*J38","v":-0.68830058348124501},null,-1.5683005834812449,{"$f":"IF((H38)=0,\"\",(N38/H38))","v":-1.7821597539559602}]
[null,"Global Adj DVA",null,"per kWh",null,6.0000000000000001E-3,{"$f":"$F$16","v":800},{"$f":"G39*F39","v":4.8},null,{"$f":"SummarySheet!F23","v":3.317239460384334E-3},{"$f":"$F$16","v":800},2.6537915683074673,null,-2.1462084316925325,{"$f":"IF((H39)=0,\"\",(N39/H39))","v":-0.44712675660261098}]
[null,null,null,null,null,null,{"$f":"$F$16","v":800},{"$f":"G40*F40","v":0},null,null,{"$f":"$F$16","v":800},0,null,0,{"$f":"IF((H40)=0,\"\",(N40/H40))","v":""}]
[null,null,null,null,null,null,{"$f":"$F$16","v":800},{"$f":"G41*F41","v":0},null,null,{"$f":"$F$16","v":800},0,null,0,{"$f":"IF((H41)=0,\"\",(N41/H41))","v":""}]
[null,"Low Voltage Service Charge",null,null,null,4.0000000000000002E-4,{"$f":"$F$16","v":800},{"$f":"G42*F42","v":0.32},null,null,{"$f":"$F$16","v":800},0,null,-0.32,{"$f":"IF((H42)=0,\"\",(N42/H42))","v":-1}]
[null,"Smart Meter Entity Charge",null,"Monthly",null,0.79,1,{"$f":"G43*F43","v":0.79},null,0.79,1,0.79,null,0]
[null,"Sub-Total B - Distribution (includes Sub-Total A)",null,null,null,null,null,{"$f":"SUM(H38:H42)+H37","v":20.43},null,null,null,{"$f":"SUM(L38:L42)+L37","v":18.095945583259969},null,-2.334054416740031,{"$f":"IF((H44)=0,\"\",(N44/H44))","v":-0.11424642274792124}]
[null,"RTSR - Network",null,"per kWh",null,6.8999999999999999E-3,{"$f":"F16*(1+F71)","v":808.35680000000002},{"$f":"G45*F45","v":5.5776619199999997},null,{"$f":"SummarySheet!F28","v":6.3398401642345481E-3},{"$f":"F16*(1+J71)","v":808.43279999999993},{"$f":"K45*J45","v":5.1253347355245955},null,-0.45232718447540421,-8.1096199619679399E-2]
[null,"RTSR - Line and Transformation Connection",null,"per kWh",null,3.0999999999999999E-3,{"$f":"G45","v":808.35680000000002},{"$f":"G46*F46","v":2.5059060799999999},null,{"$f":"SummarySheet!F29","v":3.0000000000000001E-3},{"$f":"K45","v":808.43279999999993},{"$f":"K46*J46","v":2.4252984},null,-8.0607679999999959E-2,-3.2167079462132098E-2]
[null,"Sub-Total C - Delivery (including Sub-Total B)",null,null,null,null,null,{"$f":"SUM(H44:H46)","v":28.513567999999999},null,null,null,{"$f":"SUM(L44:L46)","v":25.646578718784564},null,-2.8669892812154352,-0.10054824710872505]
[null,"Wholesale Market Service Charge (WMSC)",null,"per kWh",null,4.4000000000000003E-3,{"$f":"G46","v":808.35680000000002},{"$f":"G48*F48","v":3.5567699200000003},null,{"$f":"F48","v":4.4000000000000003E-3},{"$f":"K46","v":808.43279999999993},{"$f":"K48*J48","v":3.5571043200000001},null,3.3439999999984593E-4,9.4017889130103166E-5]
[null,"Rural and Remote Rate Protection (RRRP)",null,"per kWh",null,1.1999999999999999E-3,{"$f":"G46","v":808.35680000000002},0.97002815999999992,null,{"$f":"F49","v":1.1999999999999999E-3},{"$f":"K46","v":808.43279999999993},0.97011935999999988,null,9.1199999999957981E-5,9.401788913010318E-5]
[null,"Standard Supply Service Charge",null,"Monthly",null,0.25,1,0.25,null,0.25,1,0.25,null,0,0]
[null,"Debt Retirement Charge (DRC)",null,null,null,null,{"$f":"G49","v":808.35680000000002},0,null,null,{"$f":"K49","v":808.43279999999993},0,null,0,""]
[null,"Energy - RPP - Tier 1",null,"per kWh",null,7.4999999999999997E-2,{"$f":"IF($T$1=1,IF($F$16>=600,600,IF($F$16<600,$F$16*(1+$F$71),$F$16-600)),IF($T$1=2,IF($F$16>=1000,1000,IF($F$16<1000,$F$16*(1+$F$71),$F$16-1000))))","v":600},{"$f":"G52*F52","v":45},null,7.4999999999999997E-2,{"$f":"IF($T$1=1,IF($F$16>=600,600,IF($F$16<600,$F$16*(1+$J$71),$F$16-600)),IF($T$1=2,IF($F$16>=1000,1000,IF($F$16<1000,$F$16*(1+$J$71),$F$16-1000))))","v":600},{"$f":"K52*J52","v":45},null,0,0]
[null,"Energy - RPP - Tier 2",null,"per kWh",null,8.7999999999999995E-2,{"$f":"IF($T$1=1,IF($F$16>=600,$F$16*(1+$F$71)-600,IF($F$16<600,0,)), IF($T$1=2,IF($F$16>=1000,$F$16*(1+$F$71)-1000,IF($F$16<1000,0))))","v":208.35680000000002},{"$f":"G53*F53","v":18.335398400000003},null,8.7999999999999995E-2,{"$f":"IF($T$1=1,IF($F$16>=600,$F$16*(1+$J$71)-600,IF($F$16<600,0,)), IF($T$1=2,IF($F$16>=1000,$F$16*(1+$J$71)-1000,IF($F$16<1000,0))))","v":208.43279999999993},{"$f":"K53*J53","v":18.342086399999992},null,6.6879999999898132E-3,3.6475891355542144E-4]
[null,"TOU - Off Peak",null,"per kWh",null,6.5000000000000002E-2,{"$f":"0.64*$F$16*(1+$F$71)","v":517.34835199999998},33.627642879999996,null,6.5000000000000002E-2,{"$f":"0.64*$F$16*(1+$J$71)","v":517.39699199999995},33.630804479999995,null,3.1615999999985434E-3,9.401788913010318E-5]
[null,"TOU - Mid Peak",null,"per kWh",null,0.1,{"$f":"0.18*$F$16*(1+$F$71)","v":145.50422399999999},14.5504224,null,0.1,{"$f":"0.18*$F$16*(1+$J$71)","v":145.51790399999999},14.5517904,null,1.3679999999993697E-3,9.4017889130103166E-5]
[null,"TOU - On Peak",null,"per kWh",null,0.11700000000000001,{"$f":"0.18*$F$16*(1+$F$71)","v":145.50422399999999},17.023994208000001,null,0.11700000000000001,{"$f":"0.18*$F$16*(1+$J$71)","v":145.51790399999999},17.025594768000001,null,1.6005599999999731E-3,9.4017889130144908E-5]
[]
[null,"Total Bill on RPP (before Taxes)",null,null,null,null,null,{"$f":"SUM(H47:H53)","v":96.625764480000001},null,null,null,{"$f":"SUM(L47:L53)","v":93.765888798784545},null,-2.8598756812154562,-2.9597444290413919E-2]
[null,"HST",null,null,null,0.13,null,{"$f":"H58*F59","v":12.561349382400001},null,0.13,null,{"$f":"L58*J59","v":12.189565543841992},null,{"$f":"L59-H59","v":-0.37178383855800945},{"$f":"IF((H59)=0,\"\",(N59/H59))","v":-2.959744429041393E-2}]
[null,"Total Bill (including HST)",null,null,null,null,null,{"$f":"H58+H59","v":109.1871138624},null,null,null,{"$f":"L58+L59","v":105.95545434262654},null,{"$f":"L60-H60","v":-3.2316595197734586},{"$f":"IF((H60)=0,\"\",(N60/H60))","v":-2.9597444290413857E-2}]
[null,"Ontario Clean Energy Benefit 1",null,null,null,null,null,{"$f":"ROUND(-H60*10%,2)","v":-10.92},null,null,null,{"$f":"ROUND(-L60*10%,2)","v":-10.6},null,{"$f":"L61-H61","v":0.32000000000000028},{"$f":"IF((H61)=0,\"\",(N61/H61))","v":-2.9304029304029332E-2}]
[null,"Total Bill on RPP (including OCEB)",null,null,null,null,null,{"$f":"SUM(H60:H61)","v":98.267113862399995},null,null,null,{"$f":"SUM(L60:L61)","v":95.355454342626544},null,{"$f":"L62-H62","v":-2.9116595197734512},{"$f":"IF((H62)=0,\"\",(N62/H62))","v":-2.9630050230747045E-2}]
[]
[null,"Total Bill on TOU (before Taxes)",null,null,null,null,null,{"$f":"SUM(H47:H51,H54:H56)","v":98.492425568000002},null,null,null,{"$f":"SUM(L47:L51,L54:L56)","v":95.631992046784561},null,{"$f":"L64-H64","v":-2.860433521215441},{"$f":"IF((H64)=0,\"\",(N64/H64))","v":-2.9042167503942458E-2}]
[null,"HST",null,null,null,0.13,null,{"$f":"H64*F65","v":12.80401532384},null,0.13,null,{"$f":"L64*J65","v":12.432158966081992},null,-0.37185635775800741,-2.9042167503942465E-2]
[null,"Total Bill (including HST)",null,null,null,null,null,{"$f":"H64+H65","v":111.29644089184001},null,null,null,{"$f":"L64+L65","v":108.06415101286655},null,-3.2322898789734609,-2.9042167503942569E-2]
[null,"Ontario Clean Energy Benefit 1",null,null,null,null,null,{"$f":"ROUND(-H66*10%,2)","v":-11.13},null,null,null,{"$f":"ROUND(-L66*10%,2)","v":-10.81},null,0.32000000000000028,-2.8751123090745755E-2]
[null,"Total Bill on TOU (including OCEB)",null,null,null,null,null,{"$f":"H66+H67","v":100.16644089184001},null,null,null,{"$f":"L66+L67","v":97.254151012866544},null,-2.9122898789734677,-2.9074506921117085E-2]
[]
[]
[null,"Loss Factor (%)",null,null,null,1.0446E-2,null,null,null,1.0541E-2]
[]
["1 Applicable to eligible customers only.  Refer to the Ontario Clean Energy Benefit Act, 2010."]
[]
["Note that the \"Charge $\" columns provide breakdowns of the amounts that each bill component contributes to the total monthly bill at the referenced "]
["consumption level at existing and proposed rates."]
[]
["Applicants must provide bill impacts for residential at 800 kWh and GS<50kW at 2000 kWh. In addition, their filing should cover the range that is relevant"]
["to their service territory, class by class. A general guideline of consumption levels follows:"]
[]
["Residential (kWh) - 100, 250, 500, 800, 1000, 1500, 2000"]
["GS<50kW (kWh) - 1000, 2000, 5000, 10000, 15000"]
["GS>50kW (kW) - 60, 100, 500, 1000"]
["Large User - range appropriate for utility"]
["Lighting Classes and USL - 150 kWh and 1 kW, range appropriate for utility."]

{"sheet":"App.2-W_Bill Impacts GS<50","index":47,"n_rows":85,"n_cols":20,"rows_kept":85,"cut":false,"hidden":false,"merged":[[2,0,2,10],[9,1,9,14],[10,1,10,14],[13,3,13,14],[17,5,17,7],[17,9,17,11],[17,13,17,14],[67,1,67,3],[18,3,19,3],[18,13,19,13],[18,14,19,14],[60,1,60,3],[61,1,61,3],[66,1,66,3]]}
[null,null,null,null,null,null,null,null,null,null,null,null,null,"File Number:",{"$f":"'LDC Info'!$E$18","v":"EB-2013-0139"},null,null,null,null,1]
[null,null,null,null,null,null,null,null,null,null,null,null,null,"Exhibit:",8]
[null,null,null,null,null,null,null,null,null,null,null,null,null,"Tab:",8]
[null,null,null,null,null,null,null,null,null,null,null,null,null,"Schedule:",2]
[null,null,null,null,null,null,null,null,null,null,null,null,null,"Page:"]
[]
[null,null,null,null,null,null,null,null,null,null,null,null,null,"Date:"]
[]
[]
[null,"Appendix 2-W"]
[null,"Bill Impacts"]
[]
[]
[null,"Customer Class:",null,{"$f":"SummarySheet!A34","v":"General Service < 50 kW"}]
[]
[null,null,null,"Consumption",null,2000," kWh"]
[]
[null,null,null,null,null,"Current Board-Approved",null,null,null,"Proposed",null,null,null,"Impact"]
[null,null,null,"Charge Unit",null,"Rate","Volume","Charge",null,"Rate","Volume","Charge",null,"$ Change","% Change",null,null,null,null,"Connection Type"]
[null,null,null,null,null,"($)",null,"($)",null,"($)",null,"($)",null,null,null,null,null,null,null,""]
[null,"Monthly Service Charge",null,"Monthly",null,13.84,1,{"$f":"G21*F21","v":13.84},null,{"$f":"SummarySheet!F36","v":15},1,{"$f":"K21*J21","v":15},null,{"$f":"L21-H21","v":1.1600000000000001},{"$f":"IF((H21)=0,\"\",(N21/H21))","v":8.3815028901734118E-2},null,null,null,null,"$"]
[null,"Smart Meter Rate Adder",null,null,null,null,1,{"$f":"G22*F22","v":0},null,null,1,{"$f":"K22*J22","v":0},null,{"$f":"L22-H22","v":0},{"$f":"IF((H22)=0,\"\",(N22/H22))","v":""},null,null,null,null,"kWh"]
[null,"Stranded Meter Rate Rider",null,"Monthly",null,null,1,0,null,{"$f":"SummarySheet!F45","v":1.6384047716760619},1,{"$f":"K23*J23","v":1.6384047716760619},null,{"$f":"L23-H23","v":1.6384047716760619},{"$f":"IF((H23)=0,\"\",(N23/H23))","v":""},null,null,null,null,"kWh"]
[null,"SMIRR",null,"Monthly",null,2.46,1,2.46,null,null,1,0,null,-2.46,-1,null,null,null,null,"kWh"]
[null,"SMDR",null,"Monthly",null,-0.09,1,-0.09,null,null,1,0,null,0.09,-1,null,null,null,null,"kWh"]
[null,null,null,null,null,null,1,0,null,null,1,0,null,0,"",null,null,null,null,"kWh"]
[null,"Distribution Volumetric Rate",null,"per kWh",null,5.4999999999999997E-3,{"$f":"$F$16","v":2000},11,null,{"$f":"SummarySheet!F37","v":5.1642798435669254E-3},{"$f":"$F$16","v":2000},10.328559687133851,null,-0.67144031286614947,-6.1040028442377221E-2,null,null,null,null,"kWh"]
[null,"Smart Meter Disposition Rider",null,null,null,null,2000,0,null,null,{"$f":"$F$16","v":2000},0,null,0,"",null,null,null,null,"kWh"]
[null,"LRAM & SSM Rate Rider",null,null,null,null,2000,0,null,null,2000,0,null,0,"",null,null,null,null,"kWh"]
[null,null,null,null,null,null,2000,{"$f":"G30*F30","v":0},null,null,2000,{"$f":"K30*J30","v":0},null,{"$f":"L30-H30","v":0},{"$f":"IF((H30)=0,\"\",(N30/H30))","v":""},null,null,null,null,""]
[null,"Incremental Capital Rate Rider",null,"per kW",null,1.6999999999999999E-3,2000,{"$f":"G31*F31","v":3.4},null,null,2000,{"$f":"K31*J31","v":0},null,{"$f":"L31-H31","v":-3.4},{"$f":"IF((H31)=0,\"\",(N31/H31))","v":-1},null,null,null,null,""]
[null,null,null,null,null,null,2000,{"$f":"G32*F32","v":0},null,null,2000,{"$f":"K32*J32","v":0},null,{"$f":"L32-H32","v":0},{"$f":"IF((H32)=0,\"\",(N32/H32))","v":""},null,null,null,null,""]
[null,null,null,null,null,null,2000,0,null,null,2000,0,null,0,"",null,null,null,null,""]
[null,null,null,null,null,null,2000,0,null,null,2000,0,null,0,"",null,null,null,null,"kWh"]
[null,null,null,null,null,null,2000,0,null,null,2000,0,null,0,"",null,null,null,null,"kWh"]
[null,null,null,null,null,null,2000,0,null,null,2000,0,null,0,"",null,null,null,null,"kWh"]
[null,"Sub-Total A",null,null,null,null,null,{"$f":"SUM(H21:H36)","v":30.61},null,null,null,{"$f":"SUM(L21:L36)","v":26.966964458809912},null,-3.6430355411900877,-0.11901455541293982,null,null,null,null,"kWh"]
[null,"Deferral/Variance Account Disposition Rate Rider",null,"per kWh",null,1.1000000000000001E-3,{"$f":"$F$16","v":2000},{"$f":"G38*F38","v":2.2000000000000002},null,{"$f":"SummarySheet!F43","v":-1.0084440455079076E-3},{"$f":"$F$16","v":2000},{"$f":"K38*J38","v":-2.0168880910158151},null,-4.2168880910158153,{"$f":"IF((H38)=0,\"\",(N38/H38))","v":-1.9167673140980976},null,null,null,null,"$"]
[null,"Global Adj DVA",null,"per kWh",null,6.0000000000000001E-3,{"$f":"$F$16","v":2000},{"$f":"G39*F39","v":12},null,{"$f":"SummarySheet!F44","v":3.3172394603843336E-3},{"$f":"$F$16","v":2000},6.6344789207686672,null,-5.3655210792313328,{"$f":"IF((H39)=0,\"\",(N39/H39))","v":-0.44712675660261109}]
[null,null,null,null,null,null,{"$f":"$F$16","v":2000},{"$f":"G40*F40","v":0},null,null,{"$f":"$F$16","v":2000},0,null,0,{"$f":"IF((H40)=0,\"\",(N40/H40))","v":""}]
[null,null,null,null,null,null,{"$f":"$F$16","v":2000},{"$f":"G41*F41","v":0},null,null,{"$f":"$F$16","v":2000},0,null,0,{"$f":"IF((H41)=0,\"\",(N41/H41))","v":""}]
[null,"Low Voltage Service Charge",null,"per kWh",null,4.0000000000000002E-4,{"$f":"$F$16","v":2000},{"$f":"G42*F42","v":0.8},null,{"$f":"SummarySheet!F41","v":5.9999999999999995E-4},{"$f":"$F$16","v":2000},1.2,null,0.39999999999999991,{"$f":"IF((H42)=0,\"\",(N42/H42))","v":0.49999999999999989}]
[null,"Smart Meter Entity Charge",null,"Monthly",null,0.79,1,{"$f":"G43*F43","v":0.79},null,0.79,2000,1580,null,1579.21]
[null,"Sub-Total B - Distribution (includes Sub-Total A)",null,null,null,null,null,{"$f":"SUM(H38:H42)+H37","v":45.61},null,null,null,{"$f":"SUM(L38:L42)+L37","v":32.784555288562764},null,-12.825444711437235,{"$f":"IF((H44)=0,\"\",(N44/H44))","v":-0.28119808619682601}]
[null,"RTSR - Network",null,"per kWh",null,6.3E-3,{"$f":"F16*(1+F71)","v":2020.8919999999998},{"$f":"G45*F45","v":12.731619599999998},null,{"$f":"SummarySheet!F49","v":5.7000000000000002E-3},{"$f":"F16*(1+J71)","v":2021.0819999999999},{"$f":"K45*J45","v":11.5201674},null,-1.2114521999999983,-9.5153031433644036E-2]
[null,"RTSR - Line and Transformation Connection",null,"per kWh",null,2.7000000000000001E-3,{"$f":"G45","v":2020.8919999999998},{"$f":"G46*F46","v":5.4564083999999999},null,{"$f":"SummarySheet!F50","v":2.5999999999999999E-3},{"$f":"K45","v":2021.0819999999999},{"$f":"K46*J46","v":5.2548131999999992},null,-0.20159520000000075,-3.6946501291948888E-2]
[null,"Sub-Total C - Delivery (including Sub-Total B)",null,null,null,null,null,{"$f":"SUM(H44:H46)","v":63.798028000000002},null,null,null,{"$f":"SUM(L44:L46)","v":49.559535888562763},null,-14.238492111437239,-0.22318075586031028]
[null,"Wholesale Market Service Charge (WMSC)",null,"per kWh",null,4.4000000000000003E-3,{"$f":"G46","v":2020.8919999999998},{"$f":"G48*F48","v":8.8919248},null,4.4000000000000003E-3,{"$f":"K46","v":2021.0819999999999},{"$f":"K48*J48","v":8.8927607999999996},null,8.3599999999961483E-4,9.401788913010318E-5]
[null,"Rural and Remote Rate Protection (RRRP)",null,"per kWh",null,1.1999999999999999E-3,{"$f":"G46","v":2020.8919999999998},2.4250703999999996,null,1.1999999999999999E-3,{"$f":"K46","v":2021.0819999999999},2.4252983999999995,null,2.2799999999989495E-4,9.4017889130103193E-5]
[null,"Standard Supply Service Charge",null,"Monthly",null,0.25,1,0.25,null,0.25,1,0.25,null,0,0]
[null,"Debt Retirement Charge (DRC)",null,null,null,null,{"$f":"G49","v":2020.8919999999998},0,null,null,{"$f":"K49","v":2021.0819999999999},0,null,0,""]
[null,"Energy - RPP - Tier 1",null,"per kWh",null,7.4999999999999997E-2,{"$f":"IF($T$1=1,IF($F$16>=600,600,IF($F$16<600,$F$16*(1+$F$71),$F$16-600)),IF($T$1=2,IF($F$16>=1000,1000,IF($F$16<1000,$F$16*(1+$F$71),$F$16-1000))))","v":600},{"$f":"G52*F52","v":45},null,7.4999999999999997E-2,{"$f":"IF($T$1=1,IF($F$16>=600,600,IF($F$16<600,$F$16*(1+$J$71),$F$16-600)),IF($T$1=2,IF($F$16>=1000,1000,IF($F$16<1000,$F$16*(1+$J$71),$F$16-1000))))","v":600},{"$f":"K52*J52","v":45},null,0,0]
[null,"Energy - RPP - Tier 2",null,"per kWh",null,8.7999999999999995E-2,{"$f":"IF($T$1=1,IF($F$16>=600,$F$16*(1+$F$71)-600,IF($F$16<600,0,)), IF($T$1=2,IF($F$16>=1000,$F$16*(1+$F$71)-1000,IF($F$16<1000,0))))","v":1420.8919999999998},{"$f":"G53*F53","v":125.03849599999998},null,8.7999999999999995E-2,{"$f":"IF($T$1=1,IF($F$16>=600,$F$16*(1+$J$71)-600,IF($F$16<600,0,)), IF($T$1=2,IF($F$16>=1000,$F$16*(1+$J$71)-1000,IF($F$16<1000,0))))","v":1421.0819999999999},{"$f":"K53*J53","v":125.05521599999999},null,1.6720000000006507E-2,1.3371881888283837E-4]
[null,"TOU - Off Peak",null,"per kWh",null,6.5000000000000002E-2,{"$f":"0.64*$F$16*(1+$F$71)","v":1293.3708799999999},84.069107200000005,null,6.5000000000000002E-2,{"$f":"0.64*$F$16*(1+$J$71)","v":1293.4924799999999},84.077011200000001,null,7.9039999999963584E-3,9.4017889130103166E-5]
[null,"TOU - Mid Peak",null,"per kWh",null,0.1,{"$f":"0.18*$F$16*(1+$F$71)","v":363.76056},36.376055999999998,null,0.1,{"$f":"0.18*$F$16*(1+$J$71)","v":363.79476},36.379476000000004,null,3.4200000000055297E-3,9.4017889130298512E-5]
[null,"TOU - On Peak",null,"per kWh",null,0.11700000000000001,{"$f":"0.18*$F$16*(1+$F$71)","v":363.76056},42.559985520000005,null,0.11700000000000001,{"$f":"0.18*$F$16*(1+$J$71)","v":363.79476},42.563986920000005,null,4.0013999999999328E-3,9.4017889130144894E-5]
[]
[null,"Total Bill on RPP (before Taxes)",null,null,null,null,null,{"$f":"SUM(H47:H53)","v":245.40351919999998},null,null,null,{"$f":"SUM(L47:L53)","v":231.18281108856274},null,-14.220708111437233,-5.7948264791783943E-2]
[null,"HST",null,null,null,0.13,null,{"$f":"H58*F59","v":31.902457495999997},null,0.13,null,{"$f":"L58*J59","v":30.053765441513157},null,{"$f":"L59-H59","v":-1.8486920544868397},{"$f":"IF((H59)=0,\"\",(N59/H59))","v":-5.7948264791783922E-2}]
[null,"Total Bill (including HST)",null,null,null,null,null,{"$f":"H58+H59","v":277.30597669599996},null,null,null,{"$f":"L58+L59","v":261.23657653007592},null,{"$f":"L60-H60","v":-16.069400165924037},{"$f":"IF((H60)=0,\"\",(N60/H60))","v":-5.7948264791783811E-2}]
[null,"Ontario Clean Energy Benefit 1",null,null,null,null,null,{"$f":"ROUND(-H60*10%,2)","v":-27.73},null,null,null,{"$f":"ROUND(-L60*10%,2)","v":-26.12},null,{"$f":"L61-H61","v":1.6099999999999994},{"$f":"IF((H61)=0,\"\",(N61/H61))","v":-5.8059862964298575E-2}]
[null,"Total Bill on RPP (including OCEB)",null,null,null,null,null,{"$f":"SUM(H60:H61)","v":249.57597669599997},null,null,null,{"$f":"SUM(L60:L61)","v":235.11657653007592},null,{"$f":"L62-H62","v":-14.459400165924052},{"$f":"IF((H62)=0,\"\",(N62/H62))","v":-5.7935865291780693E-2}]
[]
[null,"Total Bill on TOU (before Taxes)",null,null,null,null,null,{"$f":"SUM(H47:H51,H54:H56)","v":238.37017192000002},null,null,null,{"$f":"SUM(L47:L51,L54:L56)","v":224.14806920856279},null,{"$f":"L64-H64","v":-14.22210271143723},{"$f":"IF((H64)=0,\"\",(N64/H64))","v":-5.9663936124568238E-2}]
[null,"HST",null,null,null,0.13,null,{"$f":"H64*F65","v":30.988122349600005},null,0.13,null,{"$f":"L64*J65","v":29.139248997113164},null,-1.8488733524868408,-5.9663936124568259E-2]
[null,"Total Bill (including HST)",null,null,null,null,null,{"$f":"H64+H65","v":269.35829426960004},null,null,null,{"$f":"L64+L65","v":253.28731820567594},null,-16.070976063924093,-5.9663936124568315E-2]
[null,"Ontario Clean Energy Benefit 1",null,null,null,null,null,{"$f":"ROUND(-H66*10%,2)","v":-26.94},null,null,null,{"$f":"ROUND(-L66*10%,2)","v":-25.33},null,1.610000000000003,-5.9762435040831584E-2]
[null,"Total Bill on TOU (including OCEB)",null,null,null,null,null,{"$f":"H66+H67","v":242.41829426960004},null,null,null,{"$f":"L66+L67","v":227.95731820567596},null,-14.460976063924079,-5.9652989917673586E-2]
[]
[]
[null,"Loss Factor (%)",null,null,null,1.0446E-2,null,null,null,1.0541E-2]
[]
["1 Applicable to eligible customers only.  Refer to the Ontario Clean Energy Benefit Act, 2010."]
[]
["Note that the \"Charge $\" columns provide breakdowns of the amounts that each bill component contributes to the total monthly bill at the referenced "]
["consumption level at existing and proposed rates."]
[]
["Applicants must provide bill impacts for residential at 800 kWh and GS<50kW at 2000 kWh. In addition, their filing should cover the range that is relevant"]
["to their service territory, class by class. A general guideline of consumption levels follows:"]
[]
["Residential (kWh) - 100, 250, 500, 800, 1000, 1500, 2000"]
["GS<50kW (kWh) - 1000, 2000, 5000, 10000, 15000"]
["GS>50kW (kW) - 60, 100, 500, 1000"]
["Large User - range appropriate for utility"]
["Lighting Classes and USL - 150 kWh and 1 kW, range appropriate for utility."]

{"sheet":"App.2-W_Bill Impacts GS>50","index":48,"n_rows":85,"n_cols":20,"rows_kept":85,"cut":false,"hidden":false,"merged":[[2,0,2,10],[9,1,9,14],[10,1,10,14],[13,3,13,14],[17,5,17,7],[17,9,17,11],[17,13,17,14],[67,1,67,3],[18,3,19,3],[18,13,19,13],[18,14,19,14],[60,1,60,3],[61,1,61,3],[66,1,66,3]]}
[null,null,null,null,null,null,null,null,null,null,null,null,null,"File Number:",{"$f":"'LDC Info'!$E$18","v":"EB-2013-0139"},null,null,null,null,1]
[null,null,null,null,null,null,null,null,null,null,null,null,null,"Exhibit:",8]
[null,null,null,null,null,null,null,null,null,null,null,null,null,"Tab:",8]
[null,null,null,null,null,null,null,null,null,null,null,null,null,"Schedule:",2]
[null,null,null,null,null,null,null,null,null,null,null,null,null,"Page:"]
[]
[null,null,null,null,null,null,null,null,null,null,null,null,null,"Date:"]
[]
[]
[null,"Appendix 2-W"]
[null,"Bill Impacts"]
[]
[]
[null,"Customer Class:",null,{"$f":"SummarySheet!A55","v":"General Service > 50 to 4999 kW"}]
[]
[null,null,null,"Consumption",null,240," kW"]
[]
[null,null,null,null,null,"Current Board-Approved",null,null,null,"Proposed",null,null,null,"Impact"]
[null,null,null,"Charge Unit",null,"Rate","Volume","Charge",null,"Rate","Volume","Charge",null,"$ Change","% Change"]
[null,null,null,null,null,"($)",null,"($)",null,"($)",null,"($)"]
[null,"Monthly Service Charge",null,"Monthly",null,97.35,1,{"$f":"G21*F21","v":97.35},null,{"$f":"SummarySheet!F57","v":97.35},1,{"$f":"K21*J21","v":97.35},null,{"$f":"L21-H21","v":0},{"$f":"IF((H21)=0,\"\",(N21/H21))","v":0}]
[null,"Smart Meter Rate Adder",null,null,null,null,1,{"$f":"G22*F22","v":0},null,null,1,{"$f":"K22*J22","v":0},null,{"$f":"L22-H22","v":0},{"$f":"IF((H22)=0,\"\",(N22/H22))","v":""}]
[null,null,null,null,null,null,1,0,null,null,1,{"$f":"K23*J23","v":0},null,{"$f":"L23-H23","v":0},{"$f":"IF((H23)=0,\"\",(N23/H23))","v":""}]
[null,null,null,null,null,null,1,0,null,null,1,0,null,0,""]
[null,null,null,null,null,null,1,0,null,null,1,0,null,0,""]
[null,null,null,null,null,null,1,0,null,null,1,0,null,0,""]
[null,"Distribution Volumetric Rate",null,"per kW",null,1.5558000000000001,{"$f":"$F$16","v":240},373.392,null,{"$f":"SummarySheet!F58","v":2.3513619544888482},{"$f":"$F$16","v":240},564.32686907732352,null,190.93486907732353,0.51135232966245536]
[null,"Smart Meter Disposition Rider",null,null,null,null,240,0,null,null,{"$f":"$F$16","v":240},0,null,0,""]
[null,"LRAM & SSM Rate Rider",null,null,null,null,240,0,null,null,240,0,null,0,""]
[null,null,null,null,null,null,240,{"$f":"G30*F30","v":0},null,null,240,{"$f":"K30*J30","v":0},null,{"$f":"L30-H30","v":0},{"$f":"IF((H30)=0,\"\",(N30/H30))","v":""}]
[null,"Incremental Capital Rate Rider",null,"per kW",null,1.327,240,{"$f":"G31*F31","v":318.48},null,null,240,{"$f":"K31*J31","v":0},null,{"$f":"L31-H31","v":-318.48},{"$f":"IF((H31)=0,\"\",(N31/H31))","v":-1}]
[null,null,null,null,null,null,240,{"$f":"G32*F32","v":0},null,null,240,{"$f":"K32*J32","v":0},null,{"$f":"L32-H32","v":0},{"$f":"IF((H32)=0,\"\",(N32/H32))","v":""}]
[null,null,null,null,null,null,240,0,null,null,240,0,null,0,""]
[null,null,null,null,null,null,240,0,null,null,240,0,null,0,""]
[null,null,null,null,null,null,240,0,null,null,240,0,null,0,""]
[null,null,null,null,null,null,240,0,null,null,240,0,null,0,""]
[null,"Sub-Total A",null,null,null,null,null,{"$f":"SUM(H21:H36)","v":789.22199999999998},null,null,null,{"$f":"SUM(L21:L36)","v":661.67686907732354},null,-127.54513092267644,-0.16160868668470524]
[null,"Deferral/Variance Account Disposition Rate Rider",null,"per kW",null,0.4219,{"$f":"$F$16","v":240},{"$f":"G38*F38","v":101.256},null,{"$f":"SummarySheet!F61","v":-0.43000664520727833},{"$f":"$F$16","v":240},{"$f":"K38*J38","v":-103.2015948497468},null,-204.45759484974678,{"$f":"IF((H38)=0,\"\",(N38/H38))","v":-2.0192146129587063}]
[null,"Global Adj DVA",null,"per kW",null,2.3612000000000002,{"$f":"$F$16","v":240},{"$f":"G39*F39","v":566.6880000000001},null,{"$f":"SummarySheet!F62","v":1.2501455641236006},{"$f":"$F$16","v":240},300.03493538966416,null,-266.65306461033595,{"$f":"IF((H39)=0,\"\",(N39/H39))","v":-0.47054651697289496}]
[null,null,null,null,null,null,{"$f":"$F$16","v":240},{"$f":"G40*F40","v":0},null,null,{"$f":"$F$16","v":240},0,null,0,{"$f":"IF((H40)=0,\"\",(N40/H40))","v":""}]
[null,null,null,null,null,null,{"$f":"$F$16","v":240},{"$f":"G41*F41","v":0},null,null,{"$f":"$F$16","v":240},0,null,0,{"$f":"IF((H41)=0,\"\",(N41/H41))","v":""}]
[null,"Low Voltage Service Charge",null,"per kW",null,0.13689999999999999,{"$f":"$F$16","v":240},{"$f":"G42*F42","v":32.856000000000002},null,{"$f":"SummarySheet!F59","v":0.2472},{"$f":"$F$16","v":240},59.328000000000003,null,26.472000000000001,{"$f":"IF((H42)=0,\"\",(N42/H42))","v":0.80569758948137327}]
[null,"Smart Meter Entity Charge",null,null,null,null,null,null,null,null,240,0,null,0]
[null,"Sub-Total B - Distribution (includes Sub-Total A)",null,null,null,null,null,{"$f":"SUM(H38:H42)+H37","v":1490.0219999999999},null,null,null,{"$f":"SUM(L38:L42)+L37","v":917.83820961724086},null,-572.18379038275907,{"$f":"IF((H44)=0,\"\",(N44/H44))","v":-0.38401029674914805}]
[null,"RTSR - Network",null,null,null,2.5533000000000001,{"$f":"F16*(1+F71)","v":242.50703999999999},{"$f":"G45*F45","v":619.19322523200003},null,{"$f":"SummarySheet!F70","v":2.3285999999999998},{"$f":"F16*(1+J71)","v":242.52983999999998},{"$f":"K45*J45","v":564.75498542399987},null,-54.438239808000162,-8.7918015878812594E-2]
[null,"RTSR - Line and Transformation Connection",null,null,null,1.1196999999999999,{"$f":"G45","v":242.50703999999999},{"$f":"G46*F46","v":271.53513268799998},null,{"$f":"SummarySheet!F71","v":1.0752999999999999},{"$f":"K45","v":242.52983999999998},{"$f":"K46*J46","v":260.79233695199997},null,-10.742795736000005,-3.9563188857567544E-2]
[null,"Sub-Total C - Delivery (including Sub-Total B)",null,null,null,null,null,{"$f":"SUM(H44:H46)","v":2380.7503579200002},null,null,null,{"$f":"SUM(L44:L46)","v":1743.3855319932406},null,-637.36482592675952,-0.26771594249957759]
[null,"Wholesale Market Service Charge (WMSC)",null,"per kWh",null,4.4000000000000003E-3,{"$f":"G46","v":242.50703999999999},{"$f":"G48*F48","v":1.0670309760000001},null,4.4000000000000003E-3,{"$f":"K46","v":242.52983999999998},{"$f":"K48*J48","v":1.0671312959999999},null,1.0031999999982055E-4,9.4017889129978307E-5]
[null,"Rural and Remote Rate Protection (RRRP)",null,"per kWh",null,1.1999999999999999E-3,{"$f":"G46","v":242.50703999999999},0.29100844799999998,null,1.1999999999999999E-3,{"$f":"K46","v":242.52983999999998},0.29103580799999995,null,2.7359999999976292E-5,9.4017889130065029E-5]
[null,"Standard Supply Service Charge",null,"Monthly",null,0.25,1,0.25,null,0.25,1,0.25,null,0,0]
[null,"Debt Retirement Charge (DRC)",null,null,null,null,{"$f":"G49","v":242.50703999999999},0,null,null,{"$f":"K49","v":242.52983999999998},0,null,0,""]
[null,"Energy - RPP - Tier 1",null,null,null,7.4999999999999997E-2,{"$f":"IF($T$1=1,IF($F$16>=600,600,IF($F$16<600,$F$16*(1+$F$71),$F$16-600)),IF($T$1=2,IF($F$16>=1000,1000,IF($F$16<1000,$F$16*(1+$F$71),$F$16-1000))))","v":242.50703999999999},{"$f":"G52*F52","v":18.188027999999999},null,7.4999999999999997E-2,{"$f":"IF($T$1=1,IF($F$16>=600,600,IF($F$16<600,$F$16*(1+$J$71),$F$16-600)),IF($T$1=2,IF($F$16>=1000,1000,IF($F$16<1000,$F$16*(1+$J$71),$F$16-1000))))","v":242.52983999999998},{"$f":"K52*J52","v":18.189737999999998},null,1.7099999999992122E-3,9.401788913010318E-5]
[null,"Energy - RPP - Tier 2",null,null,null,8.7999999999999995E-2,{"$f":"IF($T$1=1,IF($F$16>=600,$F$16*(1+$F$71)-600,IF($F$16<600,0,)), IF($T$1=2,IF($F$16>=1000,$F$16*(1+$F$71)-1000,IF($F$16<1000,0))))","v":0},{"$f":"G53*F53","v":0},null,8.7999999999999995E-2,{"$f":"IF($T$1=1,IF($F$16>=600,$F$16*(1+$J$71)-600,IF($F$16<600,0,)), IF($T$1=2,IF($F$16>=1000,$F$16*(1+$J$71)-1000,IF($F$16<1000,0))))","v":0},{"$f":"K53*J53","v":0},null,0,""]
[null,"TOU - Off Peak",null,null,null,6.5000000000000002E-2,{"$f":"0.64*$F$16*(1+$F$71)","v":155.20450559999998},10.088292864,null,6.5000000000000002E-2,{"$f":"0.64*$F$16*(1+$J$71)","v":155.21909759999997},10.089241343999998,null,9.4847999999814192E-4,9.4017889129962315E-5]
[null,"TOU - Mid Peak",null,null,null,0.1,{"$f":"0.18*$F$16*(1+$F$71)","v":43.651267199999992},4.3651267199999992,null,0.1,{"$f":"0.18*$F$16*(1+$J$71)","v":43.65537119999999},4.365537119999999,null,4.1039999999981092E-4,9.4017889130103193E-5]
[null,"TOU - On Peak",null,null,null,0.11700000000000001,{"$f":"0.18*$F$16*(1+$F$71)","v":43.651267199999992},5.107198262399999,null,0.11700000000000001,{"$f":"0.18*$F$16*(1+$J$71)","v":43.65537119999999},5.1076784303999991,null,4.8016800000016957E-4,9.4017889130179711E-5]
[]
[null,"Total Bill on RPP (before Taxes)",null,null,null,null,null,{"$f":"SUM(H47:H53)","v":2400.546425344},null,null,null,{"$f":"SUM(L47:L53)","v":1763.1834370972408},null,-637.36298824675919,-0.26550746176692858]
[null,"HST",null,null,null,0.13,null,{"$f":"H58*F59","v":312.07103529471999},null,0.13,null,{"$f":"L58*J59","v":229.2138468226413},null,{"$f":"L59-H59","v":-82.85718847207869},{"$f":"IF((H59)=0,\"\",(N59/H59))","v":-0.26550746176692858}]
[null,"Total Bill (including HST)",null,null,null,null,null,{"$f":"H58+H59","v":2712.6174606387199},null,null,null,{"$f":"L58+L59","v":1992.3972839198821},null,{"$f":"L60-H60","v":-720.22017671883782},{"$f":"IF((H60)=0,\"\",(N60/H60))","v":-0.26550746176692858}]
[null,"Ontario Clean Energy Benefit 1",null,null,null,null,null,{"$f":"ROUND(-H60*10%,2)","v":-271.26},null,null,null,{"$f":"ROUND(-L60*10%,2)","v":-199.24},null,{"$f":"L61-H61","v":72.019999999999982},{"$f":"IF((H61)=0,\"\",(N61/H61))","v":-0.26550173265501725}]
[null,"Total Bill on RPP (including OCEB)",null,null,null,null,null,{"$f":"SUM(H60:H61)","v":2441.3574606387201},null,null,null,{"$f":"SUM(L60:L61)","v":1793.157283919882},null,{"$f":"L62-H62","v":-648.20017671883807},{"$f":"IF((H62)=0,\"\",(N62/H62))","v":-0.26550809833036604}]
[]
[null,"Total Bill on TOU (before Taxes)",null,null,null,null,null,{"$f":"SUM(H47:H51,H54:H56)","v":2401.9190151903995},null,null,null,{"$f":"SUM(L47:L51,L54:L56)","v":1764.5561559916407},null,{"$f":"L64-H64","v":-637.36285919875877},{"$f":"IF((H64)=0,\"\",(N64/H64))","v":-0.26535568233895479}]
[null,"HST",null,null,null,0.13,null,{"$f":"H64*F65","v":312.24947197475194},null,0.13,null,{"$f":"L64*J65","v":229.3923002789133},null,-82.857171695838645,-0.26535568233895479]
[null,"Total Bill (including HST)",null,null,null,null,null,{"$f":"H64+H65","v":2714.1684871651514},null,null,null,{"$f":"L64+L65","v":1993.9484562705541},null,-720.22003089459736,-0.26535568233895479]
[null,"Ontario Clean Energy Benefit 1",null,null,null,null,null,{"$f":"ROUND(-H66*10%,2)","v":-271.42},null,null,null,{"$f":"ROUND(-L66*10%,2)","v":-199.39},null,72.03000000000003,-0.26538206469678]
[null,"Total Bill on TOU (including OCEB)",null,null,null,null,null,{"$f":"H66+H67","v":2442.7484871651513},null,null,null,{"$f":"L66+L67","v":1794.558456270554},null,-648.19003089459738,-0.26535275092804672]
[]
[]
[null,"Loss Factor (%)",null,null,null,{"$f":"'App.2-W_Bill Impacts GS<50'!F71","v":1.0446E-2},null,null,null,{"$f":"'App.2-W_Bill Impacts GS<50'!J71","v":1.0541E-2}]
[]
["1 Applicable to eligible customers only.  Refer to the Ontario Clean Energy Benefit Act, 2010."]
[]
["Note that the \"Charge $\" columns provide breakdowns of the amounts that each bill component contributes to the total monthly bill at the referenced "]
["consumption level at existing and proposed rates."]
[]
["Applicants must provide bill impacts for residential at 800 kWh and GS<50kW at 2000 kWh. In addition, their filing should cover the range that is relevant"]
["to their service territory, class by class. A general guideline of consumption levels follows:"]
[]
["Residential (kWh) - 100, 250, 500, 800, 1000, 1500, 2000"]
["GS<50kW (kWh) - 1000, 2000, 5000, 10000, 15000"]
["GS>50kW (kW) - 60, 100, 500, 1000"]
["Large User - range appropriate for utility"]
["Lighting Classes and USL - 150 kWh and 1 kW, range appropriate for utility."]

{"sheet":"App.2-W_Bill Impacts USL","index":49,"n_rows":85,"n_cols":20,"rows_kept":85,"cut":false,"hidden":false,"merged":[[2,0,2,10],[9,1,9,14],[10,1,10,14],[13,3,13,14],[17,5,17,7],[17,9,17,11],[17,13,17,14],[67,1,67,3],[18,3,19,3],[18,13,19,13],[18,14,19,14],[60,1,60,3],[61,1,61,3],[66,1,66,3]]}
[null,null,null,null,null,null,null,null,null,null,null,null,null,"File Number:",{"$f":"'LDC Info'!$E$18","v":"EB-2013-0139"},null,null,null,null,1]
[null,null,null,null,null,null,null,null,null,null,null,null,null,"Exhibit:",8]
[null,null,null,null,null,null,null,null,null,null,null,null,null,"Tab:",8]
[null,null,null,null,null,null,null,null,null,null,null,null,null,"Schedule:",2]
[null,null,null,null,null,null,null,null,null,null,null,null,null,"Page:"]
[]
[null,null,null,null,null,null,null,null,null,null,null,null,null,"Date:"]
[]
[]
[null,"Appendix 2-W"]
[null,"Bill Impacts"]
[]
[]
[null,"Customer Class:",null,{"$f":"SummarySheet!A76","v":"Unmetered Scattered Load"}]
[]
[null,null,null,"Consumption",null,4600," kWh"]
[]
[null,null,null,null,null,"Current Board-Approved",null,null,null,"Proposed",null,null,null,"Impact"]
[null,null,null,"Charge Unit",null,"Rate","Volume","Charge",null,"Rate","Volume","Charge",null,"$ Change","% Change"]
[null,null,null,null,null,"($)",null,"($)",null,"($)",null,"($)"]
[null,"Monthly Service Charge",null,"Monthly",null,6.39,1,{"$f":"G21*F21","v":6.39},null,{"$f":"SummarySheet!F78","v":8.5},1,{"$f":"K21*J21","v":8.5},null,{"$f":"L21-H21","v":2.1100000000000003},{"$f":"IF((H21)=0,\"\",(N21/H21))","v":0.33020344287949926}]
[null,"Smart Meter Rate Adder",null,null,null,null,1,{"$f":"G22*F22","v":0},null,null,1,{"$f":"K22*J22","v":0},null,{"$f":"L22-H22","v":0},{"$f":"IF((H22)=0,\"\",(N22/H22))","v":""}]
[null,null,null,null,null,null,1,0,null,null,1,{"$f":"K23*J23","v":0},null,{"$f":"L23-H23","v":0},{"$f":"IF((H23)=0,\"\",(N23/H23))","v":""}]
[null,null,null,null,null,null,1,0,null,null,1,0,null,0,""]
[null,null,null,null,null,null,1,0,null,null,1,0,null,0,""]
[null,null,null,null,null,null,1,0,null,null,1,0,null,0,""]
[null,"Distribution Volumetric Rate",null,"per kWh",null,2.0999999999999999E-3,{"$f":"$F$16","v":4600},9.66,null,{"$f":"SummarySheet!F79","v":2.1824309843585014E-3},{"$f":"$F$16","v":4600},10.039182528049107,null,0.37918252804910679,3.9252849694524514E-2]
[null,"Smart Meter Disposition Rider",null,null,null,null,4600,0,null,null,{"$f":"$F$16","v":4600},0,null,0,""]
[null,"LRAM & SSM Rate Rider",null,null,null,null,4600,0,null,null,4600,0,null,0,""]
[null,null,null,null,null,null,4600,{"$f":"G30*F30","v":0},null,null,4600,{"$f":"K30*J30","v":0},null,{"$f":"L30-H30","v":0},{"$f":"IF((H30)=0,\"\",(N30/H30))","v":""}]
[null,"Incremental Capital Rate Rider",null,"per kWh",null,5.9999999999999995E-4,4600,{"$f":"G31*F31","v":2.76},null,null,4600,{"$f":"K31*J31","v":0},null,{"$f":"L31-H31","v":-2.76},{"$f":"IF((H31)=0,\"\",(N31/H31))","v":-1}]
[null,null,null,null,null,null,4600,{"$f":"G32*F32","v":0},null,null,4600,{"$f":"K32*J32","v":0},null,{"$f":"L32-H32","v":0},{"$f":"IF((H32)=0,\"\",(N32/H32))","v":""}]
[null,null,null,null,null,null,4600,0,null,null,4600,0,null,0,""]
[null,null,null,null,null,null,4600,0,null,null,4600,0,null,0,""]
[null,null,null,null,null,null,4600,0,null,null,4600,0,null,0,""]
[null,null,null,null,null,null,4600,0,null,null,4600,0,null,0,""]
[null,"Sub-Total A",null,null,null,null,null,{"$f":"SUM(H21:H36)","v":18.810000000000002},null,null,null,{"$f":"SUM(L21:L36)","v":18.539182528049107},null,-0.27081747195089534,-1.4397526419505332E-2]
[null,"Deferral/Variance Account Disposition Rate Rider",null,"per kWh",null,1.1000000000000001E-3,{"$f":"$F$16","v":4600},{"$f":"G38*F38","v":5.0600000000000005},null,{"$f":"SummarySheet!F82","v":-1.086006914938796E-3},{"$f":"$F$16","v":4600},{"$f":"K38*J38","v":-4.9956318087184615},null,-10.055631808718463,{"$f":"IF((H38)=0,\"\",(N38/H38))","v":-1.9872790135807237}]
[null,"Global Adj DVA",null,"per kWh",null,6.0000000000000001E-3,{"$f":"$F$16","v":4600},{"$f":"G39*F39","v":27.6},null,{"$f":"SummarySheet!F83","v":3.317239460384334E-3},{"$f":"$F$16","v":4600},15.259301517767936,null,-12.340698482232066,{"$f":"IF((H39)=0,\"\",(N39/H39))","v":-0.44712675660261103}]
[null,null,null,null,null,null,{"$f":"$F$16","v":4600},{"$f":"G40*F40","v":0},null,null,{"$f":"$F$16","v":4600},0,null,0,{"$f":"IF((H40)=0,\"\",(N40/H40))","v":""}]
[null,null,null,null,null,null,{"$f":"$F$16","v":4600},{"$f":"G41*F41","v":0},null,null,{"$f":"$F$16","v":4600},0,null,0,{"$f":"IF((H41)=0,\"\",(N41/H41))","v":""}]
[null,"Low Voltage Service Charge",null,"per kWh",null,4.0000000000000002E-4,{"$f":"$F$16","v":4600},{"$f":"G42*F42","v":1.84},null,{"$f":"SummarySheet!F80","v":5.9999999999999995E-4},{"$f":"$F$16","v":4600},2.76,null,0.91999999999999971,{"$f":"IF((H42)=0,\"\",(N42/H42))","v":0.49999999999999983}]
[null,"Smart Meter Entity Charge",null,null,null,null,null,null,null,null,4600,0,null,0]
[null,"Sub-Total B - Distribution (includes Sub-Total A)",null,null,null,null,null,{"$f":"SUM(H38:H42)+H37","v":53.310000000000009},null,null,null,{"$f":"SUM(L38:L42)+L37","v":31.562852237098582},null,-21.747147762901427,{"$f":"IF((H44)=0,\"\",(N44/H44))","v":-0.40793749320768002}]
[null,"RTSR - Network",null,"per kWh",null,6.3E-3,{"$f":"F16*(1+F71)","v":4648.0515999999998},{"$f":"G45*F45","v":29.282725079999999},null,{"$f":"SummarySheet!F91","v":5.7000000000000002E-3},{"$f":"F16*(1+J71)","v":4648.4885999999997},{"$f":"K45*J45","v":26.496385019999998},null,-2.7863400600000006,-9.5153031433644175E-2]
[null,"RTSR - Line and Transformation Connection",null,"per kWh",null,2.7000000000000001E-3,{"$f":"G45","v":4648.0515999999998},{"$f":"G46*F46","v":12.54973932},null,{"$f":"SummarySheet!F92","v":2.5999999999999999E-3},{"$f":"K45","v":4648.4885999999997},{"$f":"K46*J46","v":12.086070359999999},null,-0.46366896000000146,-3.6946501291948861E-2]
[null,"Sub-Total C - Delivery (including Sub-Total B)",null,null,null,null,null,{"$f":"SUM(H44:H46)","v":95.142464400000009},null,null,null,{"$f":"SUM(L44:L46)","v":70.145307617098581},null,-24.997156782901428,-0.2627339636464307]
[null,"Wholesale Market Service Charge (WMSC)",null,"per kWh",null,4.4000000000000003E-3,{"$f":"G46","v":4648.0515999999998},{"$f":"G48*F48","v":20.451427039999999},null,4.4000000000000003E-3,{"$f":"K46","v":4648.4885999999997},{"$f":"K48*J48","v":20.453349840000001},null,1.9228000000026668E-3,9.4017889130276896E-5]
[null,"Rural and Remote Rate Protection (RRRP)",null,"per kWh",null,1.1999999999999999E-3,{"$f":"G46","v":4648.0515999999998},5.5776619199999988,null,1.1999999999999999E-3,{"$f":"K46","v":4648.4885999999997},5.5781863199999995,null,5.2440000000064657E-4,9.4017889130262435E-5]
[null,"Standard Supply Service Charge",null,"per kWh",null,0.25,1,0.25,null,0.25,1,0.25,null,0,0]
[null,"Debt Retirement Charge (DRC)",null,null,null,null,{"$f":"G49","v":4648.0515999999998},0,null,null,{"$f":"K49","v":4648.4885999999997},0,null,0,""]
[null,"Energy - RPP - Tier 1",null,null,null,7.4999999999999997E-2,{"$f":"IF($T$1=1,IF($F$16>=600,600,IF($F$16<600,$F$16*(1+$F$71),$F$16-600)),IF($T$1=2,IF($F$16>=1000,1000,IF($F$16<1000,$F$16*(1+$F$71),$F$16-1000))))","v":600},{"$f":"G52*F52","v":45},null,7.4999999999999997E-2,{"$f":"IF($T$1=1,IF($F$16>=600,600,IF($F$16<600,$F$16*(1+$J$71),$F$16-600)),IF($T$1=2,IF($F$16>=1000,1000,IF($F$16<1000,$F$16*(1+$J$71),$F$16-1000))))","v":600},{"$f":"K52*J52","v":45},null,0,0]
[null,"Energy - RPP - Tier 2",null,null,null,8.7999999999999995E-2,{"$f":"IF($T$1=1,IF($F$16>=600,$F$16*(1+$F$71)-600,IF($F$16<600,0,)), IF($T$1=2,IF($F$16>=1000,$F$16*(1+$F$71)-1000,IF($F$16<1000,0))))","v":4048.0515999999998},{"$f":"G53*F53","v":356.22854079999996},null,8.7999999999999995E-2,{"$f":"IF($T$1=1,IF($F$16>=600,$F$16*(1+$J$71)-600,IF($F$16<600,0,)), IF($T$1=2,IF($F$16>=1000,$F$16*(1+$J$71)-1000,IF($F$16<1000,0))))","v":4048.4885999999997},{"$f":"K53*J53","v":356.26699679999996},null,3.8455999999996493E-2,1.0795316937164541E-4]
[null,"TOU - Off Peak",null,null,null,6.5000000000000002E-2,{"$f":"0.64*$F$16*(1+$F$71)","v":2974.7530239999996},193.35894655999999,null,6.5000000000000002E-2,{"$f":"0.64*$F$16*(1+$J$71)","v":2975.0327039999997},193.37712575999998,null,1.8179199999991624E-2,9.401788913010318E-5]
[null,"TOU - Mid Peak",null,null,null,0.1,{"$f":"0.18*$F$16*(1+$F$71)","v":836.64928799999996},83.664928799999998,null,0.1,{"$f":"0.18*$F$16*(1+$J$71)","v":836.72794799999997},83.672794800000005,null,7.866000000007034E-3,9.401788913023056E-5]
[null,"TOU - On Peak",null,null,null,0.11700000000000001,{"$f":"0.18*$F$16*(1+$F$71)","v":836.64928799999996},97.887966696000007,null,0.11700000000000001,{"$f":"0.18*$F$16*(1+$J$71)","v":836.72794799999997},97.897169915999996,null,9.2032199999891873E-3,9.4017889130036027E-5]
[]
[null,"Total Bill on RPP (before Taxes)",null,null,null,null,null,{"$f":"SUM(H47:H53)","v":522.65009415999998},null,null,null,{"$f":"SUM(L47:L53)","v":497.69384057709851},null,-24.956253582901468,-4.7749448171459735E-2]
[null,"HST",null,null,null,0.13,null,{"$f":"H58*F59","v":67.944512240799995},null,0.13,null,{"$f":"L58*J59","v":64.700199275022811},null,{"$f":"L59-H59","v":-3.2443129657771834},{"$f":"IF((H59)=0,\"\",(N59/H59))","v":-4.7749448171459624E-2}]
[null,"Total Bill (including HST)",null,null,null,null,null,{"$f":"H58+H59","v":590.59460640079999},null,null,null,{"$f":"L58+L59","v":562.3940398521213},null,{"$f":"L60-H60","v":-28.200566548678694},{"$f":"IF((H60)=0,\"\",(N60/H60))","v":-4.7749448171459791E-2}]
[null,"Ontario Clean Energy Benefit 1",null,null,null,null,null,{"$f":"ROUND(-H60*10%,2)","v":-59.06},null,null,null,{"$f":"ROUND(-L60*10%,2)","v":-56.24},null,{"$f":"L61-H61","v":2.8200000000000003},{"$f":"IF((H61)=0,\"\",(N61/H61))","v":-4.774805282763292E-2}]
[null,"Total Bill on RPP (including OCEB)",null,null,null,null,null,{"$f":"SUM(H60:H61)","v":531.53460640079993},null,null,null,{"$f":"SUM(L60:L61)","v":506.15403985212129},null,{"$f":"L62-H62","v":-25.380566548678644},{"$f":"IF((H62)=0,\"\",(N62/H62))","v":-4.7749603211235891E-2}]
[]
[null,"Total Bill on TOU (before Taxes)",null,null,null,null,null,{"$f":"SUM(H47:H51,H54:H56)","v":496.33339541600003},null,null,null,{"$f":"SUM(L47:L51,L54:L56)","v":471.37393425309858},null,{"$f":"L64-H64","v":-24.959461162901448},{"$f":"IF((H64)=0,\"\",(N64/H64))","v":-5.0287692493433303E-2}]
[null,"HST",null,null,null,0.13,null,{"$f":"H64*F65","v":64.52334140408},null,0.13,null,{"$f":"L64*J65","v":61.278611452902815},null,-3.2447299511771845,-5.0287692493433248E-2]
[null,"Total Bill (including HST)",null,null,null,null,null,{"$f":"H64+H65","v":560.85673682008007},null,null,null,{"$f":"L64+L65","v":532.65254570600143},null,-28.20419111407864,-5.0287692493433303E-2]
[null,"Ontario Clean Energy Benefit 1",null,null,null,null,null,{"$f":"ROUND(-H66*10%,2)","v":-56.09},null,null,null,{"$f":"ROUND(-L66*10%,2)","v":-53.27},null,2.8200000000000003,-5.0276341593866999E-2]
[null,"Total Bill on TOU (including OCEB)",null,null,null,null,null,{"$f":"H66+H67","v":504.76673682008004},null,null,null,{"$f":"L66+L67","v":479.38254570600145},null,-25.38419111407859,-5.0288953812593587E-2]
[]
[]
[null,"Loss Factor (%)",null,null,null,{"$f":"'App.2-W_Bill Impacts GS>50'!F71","v":1.0446E-2},null,null,null,{"$f":"'App.2-W_Bill Impacts GS>50'!J71","v":1.0541E-2}]
[]
["1 Applicable to eligible customers only.  Refer to the Ontario Clean Energy Benefit Act, 2010."]
[]
["Note that the \"Charge $\" columns provide breakdowns of the amounts that each bill component contributes to the total monthly bill at the referenced "]
["consumption level at existing and proposed rates."]
[]
["Applicants must provide bill impacts for residential at 800 kWh and GS<50kW at 2000 kWh. In addition, their filing should cover the range that is relevant"]
["to their service territory, class by class. A general guideline of consumption levels follows:"]
[]
["Residential (kWh) - 100, 250, 500, 800, 1000, 1500, 2000"]
["GS<50kW (kWh) - 1000, 2000, 5000, 10000, 15000"]
["GS>50kW (kW) - 60, 100, 500, 1000"]
["Large User - range appropriate for utility"]
["Lighting Classes and USL - 150 kWh and 1 kW, range appropriate for utility."]

{"sheet":"App.2-W_Bill Impacts Sent","index":50,"n_rows":85,"n_cols":20,"rows_kept":85,"cut":false,"hidden":false,"merged":[[2,0,2,10],[9,1,9,14],[10,1,10,14],[13,3,13,14],[17,5,17,7],[17,9,17,11],[17,13,17,14],[67,1,67,3],[18,3,19,3],[18,13,19,13],[18,14,19,14],[60,1,60,3],[61,1,61,3],[66,1,66,3]]}
[null,null,null,null,null,null,null,null,null,null,null,null,null,"File Number:",{"$f":"'LDC Info'!$E$18","v":"EB-2013-0139"},null,null,null,null,1]
[null,null,null,null,null,null,null,null,null,null,null,null,null,"Exhibit:",8]
[null,null,null,null,null,null,null,null,null,null,null,null,null,"Tab:",8]
[null,null,null,null,null,null,null,null,null,null,null,null,null,"Schedule:",2]
[null,null,null,null,null,null,null,null,null,null,null,null,null,"Page:"]
[]
[null,null,null,null,null,null,null,null,null,null,null,null,null,"Date:"]
[]
[]
[null,"Appendix 2-W"]
[null,"Bill Impacts"]
[]
[]
[null,"Customer Class:",null,{"$f":"SummarySheet!A97","v":"Sentinel Lighting"}]
[]
[null,null,null,"Consumption",null,1.3," kW"]
[]
[null,null,null,null,null,"Current Board-Approved",null,null,null,"Proposed",null,null,null,"Impact"]
[null,null,null,"Charge Unit",null,"Rate","Volume","Charge",null,"Rate","Volume","Charge",null,"$ Change","% Change"]
[null,null,null,null,null,"($)",null,"($)",null,"($)",null,"($)"]
[null,"Monthly Service Charge",null,"Monthly",null,1.63,1,{"$f":"G21*F21","v":1.63},null,{"$f":"SummarySheet!F120","v":1},1,{"$f":"K21*J21","v":1},null,{"$f":"L21-H21","v":-0.62999999999999989},{"$f":"IF((H21)=0,\"\",(N21/H21))","v":-0.38650306748466251}]
[null,"Smart Meter Rate Adder",null,null,null,null,1,{"$f":"G22*F22","v":0},null,null,1,{"$f":"K22*J22","v":0},null,{"$f":"L22-H22","v":0},{"$f":"IF((H22)=0,\"\",(N22/H22))","v":""}]
[null,null,null,null,null,null,1,0,null,null,1,{"$f":"K23*J23","v":0},null,{"$f":"L23-H23","v":0},{"$f":"IF((H23)=0,\"\",(N23/H23))","v":""}]
[null,null,null,null,null,null,1,0,null,null,1,0,null,0,""]
[null,null,null,null,null,null,1,0,null,null,1,0,null,0,""]
[null,null,null,null,null,null,1,0,null,null,1,0,null,0,""]
[null,"Distribution Volumetric Rate",null,"per kW",null,3.2284999999999999,{"$f":"$F$16","v":1.3},4.1970499999999999,null,{"$f":"SummarySheet!F121","v":3.6229525261396618},{"$f":"$F$16","v":1.3},4.7098382839815605,null,0.51278828398156051,0.12217826425264425]
[null,"Smart Meter Disposition Rider",null,null,null,null,1.3,0,null,null,{"$f":"$F$16","v":1.3},0,null,0,""]
[null,"LRAM & SSM Rate Rider",null,null,null,null,1.3,0,null,null,1.3,0,null,0,""]
[null,null,null,null,null,null,1.3,{"$f":"G30*F30","v":0},null,null,1.3,{"$f":"K30*J30","v":0},null,{"$f":"L30-H30","v":0},{"$f":"IF((H30)=0,\"\",(N30/H30))","v":""}]
[null,"Incremental Capital Rate Rider",null,"per kW",null,0.74960000000000004,1.3,{"$f":"G31*F31","v":0.97448000000000012},null,null,1.3,{"$f":"K31*J31","v":0},null,{"$f":"L31-H31","v":-0.97448000000000012},{"$f":"IF((H31)=0,\"\",(N31/H31))","v":-1}]
[null,null,null,null,null,null,1.3,{"$f":"G32*F32","v":0},null,null,1.3,{"$f":"K32*J32","v":0},null,{"$f":"L32-H32","v":0},{"$f":"IF((H32)=0,\"\",(N32/H32))","v":""}]
[null,null,null,null,null,null,1.3,0,null,null,1.3,0,null,0,""]
[null,null,null,null,null,null,1.3,0,null,null,1.3,0,null,0,""]
[null,null,null,null,null,null,1.3,0,null,null,1.3,0,null,0,""]
[null,null,null,null,null,null,1.3,0,null,null,1.3,0,null,0,""]
[null,"Sub-Total A",null,null,null,null,null,{"$f":"SUM(H21:H36)","v":6.8015299999999996},null,null,null,{"$f":"SUM(L21:L36)","v":5.7098382839815605},null,-1.0916917160184392,-0.16050678538776411]
[null,"Deferral/Variance Account Disposition Rate Rider",null,"per kW",null,null,{"$f":"$F$16","v":1.3},{"$f":"G38*F38","v":0},null,{"$f":"SummarySheet!F124","v":0.15129023324663271},{"$f":"$F$16","v":1.3},{"$f":"K38*J38","v":0.19667730322062252},null,0.19667730322062252,{"$f":"IF((H38)=0,\"\",(N38/H38))","v":""}]
[null,"Global Adj DVA",null,"per kW",null,null,{"$f":"$F$16","v":1.3},{"$f":"G39*F39","v":0},null,{"$f":"SummarySheet!F125","v":1.199064887048771},{"$f":"$F$16","v":1.3},1.5587843531634025,null,1.5587843531634025,{"$f":"IF((H39)=0,\"\",(N39/H39))","v":""}]
[null,null,null,null,null,null,{"$f":"$F$16","v":1.3},{"$f":"G40*F40","v":0},null,null,{"$f":"$F$16","v":1.3},0,null,0,{"$f":"IF((H40)=0,\"\",(N40/H40))","v":""}]
[null,null,null,null,null,null,{"$f":"$F$16","v":1.3},{"$f":"G41*F41","v":0},null,null,{"$f":"$F$16","v":1.3},0,null,0,{"$f":"IF((H41)=0,\"\",(N41/H41))","v":""}]
[null,"Low Voltage Service Charge",null,"per kW",null,0.2162,{"$f":"$F$16","v":1.3},{"$f":"G42*F42","v":0.28106000000000003},null,{"$f":"SummarySheet!F122","v":0.19109999999999999},{"$f":"$F$16","v":1.3},0.24843000000000001,null,-3.263000000000002E-2,{"$f":"IF((H42)=0,\"\",(N42/H42))","v":-0.11609620721554123}]
[null,"Smart Meter Entity Charge",null,null,null,null,null,null,null,null,1.3,0,null,0]
[null,"Sub-Total B - Distribution (includes Sub-Total A)",null,null,null,null,null,{"$f":"SUM(H38:H42)+H37","v":7.0825899999999997},null,null,null,{"$f":"SUM(L38:L42)+L37","v":7.7137299403655852},null,0.63113994036558552,{"$f":"IF((H44)=0,\"\",(N44/H44))","v":8.9111460689604446E-2}]
[null,"RTSR - Network",null,"per kW",null,1.9263999999999999,{"$f":"F16*(1+F71)","v":1.3135798000000001},{"$f":"G45*F45","v":2.5304801267200001},null,{"$f":"SummarySheet!F133","v":1.7564},{"$f":"F16*(1+J71)","v":1.3137033},{"$f":"K45*J45","v":2.3073884761199999},null,-0.22309165060000025,-8.8161787260969682E-2]
[null,"RTSR - Line and Transformation Connection",null,"per kW",null,1.7674000000000001,{"$f":"G45","v":1.3135798000000001},{"$f":"G46*F46","v":2.3216209385200002},null,{"$f":"SummarySheet!F134","v":0.83130000000000004},{"$f":"K45","v":1.3137033},{"$f":"K46*J46","v":1.0920815532900001},null,-1.2295393852300001,-0.52960384911664937]
[null,"Sub-Total C - Delivery (including Sub-Total B)",null,null,null,null,null,{"$f":"SUM(H44:H46)","v":11.934691065240001},null,null,null,{"$f":"SUM(L44:L46)","v":11.113199969775586},null,-0.82149109546441501,-6.8832204451192064E-2]
[null,"Wholesale Market Service Charge (WMSC)",null,"per kWh",null,4.4000000000000003E-3,{"$f":"G46","v":1.3135798000000001},{"$f":"G48*F48","v":5.7797511200000009E-3},null,4.4000000000000003E-3,{"$f":"K46","v":1.3137033},{"$f":"K48*J48","v":5.7802945200000006E-3},null,5.4339999999968719E-7,9.4017889130092351E-5]
[null,"Rural and Remote Rate Protection (RRRP)",null,"per kWh",null,1.1999999999999999E-3,{"$f":"G46","v":1.3135798000000001},1.5762957599999999E-3,null,1.1999999999999999E-3,{"$f":"K46","v":1.3137033},1.5764439599999999E-3,null,1.4820000000001325E-7,9.4017889130154896E-5]
[null,"Standard Supply Service Charge",null,"Monthly",null,0.25,1,0.25,null,0.25,1,0.25,null,0,0]
[null,"Debt Retirement Charge (DRC)",null,null,null,null,{"$f":"G49","v":1.3135798000000001},0,null,null,{"$f":"K49","v":1.3137033},0,null,0,""]
[null,"Energy - RPP - Tier 1",null,null,null,7.4999999999999997E-2,{"$f":"IF($T$1=1,IF($F$16>=600,600,IF($F$16<600,$F$16*(1+$F$71),$F$16-600)),IF($T$1=2,IF($F$16>=1000,1000,IF($F$16<1000,$F$16*(1+$F$71),$F$16-1000))))","v":1.3135798000000001},{"$f":"G52*F52","v":9.8518485000000003E-2},null,7.4999999999999997E-2,{"$f":"IF($T$1=1,IF($F$16>=600,600,IF($F$16<600,$F$16*(1+$J$71),$F$16-600)),IF($T$1=2,IF($F$16>=1000,1000,IF($F$16<1000,$F$16*(1+$J$71),$F$16-1000))))","v":1.3137033},{"$f":"K52*J52","v":9.8527747499999999E-2},null,9.2624999999957325E-6,9.4017889130103166E-5]
[null,"Energy - RPP - Tier 2",null,null,null,8.7999999999999995E-2,{"$f":"IF($T$1=1,IF($F$16>=600,$F$16*(1+$F$71)-600,IF($F$16<600,0,)), IF($T$1=2,IF($F$16>=1000,$F$16*(1+$F$71)-1000,IF($F$16<1000,0))))","v":0},{"$f":"G53*F53","v":0},null,8.7999999999999995E-2,{"$f":"IF($T$1=1,IF($F$16>=600,$F$16*(1+$J$71)-600,IF($F$16<600,0,)), IF($T$1=2,IF($F$16>=1000,$F$16*(1+$J$71)-1000,IF($F$16<1000,0))))","v":0},{"$f":"K53*J53","v":0},null,0,""]
[null,"TOU - Off Peak",null,null,null,6.5000000000000002E-2,{"$f":"0.64*$F$16*(1+$F$71)","v":0.84069107200000004},5.4644919680000008E-2,null,6.5000000000000002E-2,{"$f":"0.64*$F$16*(1+$J$71)","v":0.84077011199999996},5.4650057279999997E-2,null,5.1375999999894728E-6,9.4017889129953831E-5]
[null,"TOU - Mid Peak",null,null,null,0.1,{"$f":"0.18*$F$16*(1+$F$71)","v":0.23644436399999996},2.3644436399999996E-2,null,0.1,{"$f":"0.18*$F$16*(1+$J$71)","v":0.23646659399999997},2.3646659399999999E-2,null,2.223000000002584E-6,9.4017889130255795E-5]
[null,"TOU - On Peak",null,null,null,0.11700000000000001,{"$f":"0.18*$F$16*(1+$F$71)","v":0.23644436399999996},2.7663990587999999E-2,null,0.11700000000000001,{"$f":"0.18*$F$16*(1+$J$71)","v":0.23646659399999997},2.7666591498E-2,null,2.6009100000008722E-6,9.401788913017803E-5]
[]
[null,"Total Bill on RPP (before Taxes)",null,null,null,null,null,{"$f":"SUM(H47:H53)","v":12.290565597120001},null,null,null,{"$f":"SUM(L47:L53)","v":11.469084455755585},null,-0.82148114136441563,-6.6838351325093623E-2]
[null,"HST",null,null,null,0.13,null,{"$f":"H58*F59","v":1.5977735276256002},null,0.13,null,{"$f":"L58*J59","v":1.490980979248226},null,{"$f":"L59-H59","v":-0.10679254837737417},{"$f":"IF((H59)=0,\"\",(N59/H59))","v":-6.6838351325093706E-2}]
[null,"Total Bill (including HST)",null,null,null,null,null,{"$f":"H58+H59","v":13.888339124745601},null,null,null,{"$f":"L58+L59","v":12.960065435003811},null,{"$f":"L60-H60","v":-0.92827368974178981},{"$f":"IF((H60)=0,\"\",(N60/H60))","v":-6.6838351325093623E-2}]
[null,"Ontario Clean Energy Benefit 1",null,null,null,null,null,{"$f":"ROUND(-H60*10%,2)","v":-1.39},null,null,null,{"$f":"ROUND(-L60*10%,2)","v":-1.3},null,{"$f":"L61-H61","v":8.9999999999999858E-2},{"$f":"IF((H61)=0,\"\",(N61/H61))","v":-6.4748201438848824E-2}]
[null,"Total Bill on RPP (including OCEB)",null,null,null,null,null,{"$f":"SUM(H60:H61)","v":12.4983391247456},null,null,null,{"$f":"SUM(L60:L61)","v":11.66006543500381},null,{"$f":"L62-H62","v":-0.83827368974178995},{"$f":"IF((H62)=0,\"\",(N62/H62))","v":-6.7070806878818209E-2}]
[]
[null,"Total Bill on TOU (before Taxes)",null,null,null,null,null,{"$f":"SUM(H47:H51,H54:H56)","v":12.298000458788},null,null,null,{"$f":"SUM(L47:L51,L54:L56)","v":11.476520016433586},null,{"$f":"L64-H64","v":-0.82148044235441375},{"$f":"IF((H64)=0,\"\",(N64/H64))","v":-6.6797886787147903E-2}]
[null,"HST",null,null,null,0.13,null,{"$f":"H64*F65","v":1.5987400596424399},null,0.13,null,{"$f":"L64*J65","v":1.4919476021363662},null,-0.10679245750607369,-6.6797886787147848E-2]
[null,"Total Bill (including HST)",null,null,null,null,null,{"$f":"H64+H65","v":13.896740518430439},null,null,null,{"$f":"L64+L65","v":12.968467618569953},null,-0.92827289986048633,-6.679788678714782E-2]
[null,"Ontario Clean Energy Benefit 1",null,null,null,null,null,{"$f":"ROUND(-H66*10%,2)","v":-1.39},null,null,null,{"$f":"ROUND(-L66*10%,2)","v":-1.3},null,8.9999999999999858E-2,-6.4748201438848824E-2]
[null,"Total Bill on TOU (including OCEB)",null,null,null,null,null,{"$f":"H66+H67","v":12.506740518430439},null,null,null,{"$f":"L66+L67","v":11.668467618569952},null,-0.83827289986048648,-6.7025688957500454E-2]
[]
[]
[null,"Loss Factor (%)",null,null,null,{"$f":"'App.2-W_Bill Impacts USL'!F71","v":1.0446E-2},null,null,null,{"$f":"'App.2-W_Bill Impacts USL'!J71","v":1.0541E-2}]
[]
["1 Applicable to eligible customers only.  Refer to the Ontario Clean Energy Benefit Act, 2010."]
[]
["Note that the \"Charge $\" columns provide breakdowns of the amounts that each bill component contributes to the total monthly bill at the referenced "]
["consumption level at existing and proposed rates."]
[]
["Applicants must provide bill impacts for residential at 800 kWh and GS<50kW at 2000 kWh. In addition, their filing should cover the range that is relevant"]
["to their service territory, class by class. A general guideline of consumption levels follows:"]
[]
["Residential (kWh) - 100, 250, 500, 800, 1000, 1500, 2000"]
["GS<50kW (kWh) - 1000, 2000, 5000, 10000, 15000"]
["GS>50kW (kW) - 60, 100, 500, 1000"]
["Large User - range appropriate for utility"]
["Lighting Classes and USL - 150 kWh and 1 kW, range appropriate for utility."]

{"sheet":"App.2-W_Bill Impacts StreetL","index":51,"n_rows":85,"n_cols":20,"rows_kept":85,"cut":false,"hidden":false,"merged":[[18,13,19,13],[18,14,19,14],[2,0,2,10],[17,5,17,7],[17,9,17,11],[17,13,17,14],[13,3,13,14],[9,1,9,14],[10,1,10,14],[60,1,60,3],[66,1,66,3],[67,1,67,3],[61,1,61,3],[18,3,19,3]]}
[null,null,null,null,null,null,null,null,null,null,null,null,null,"File Number:",{"$f":"'LDC Info'!$E$18","v":"EB-2013-0139"},null,null,null,null,1]
[null,null,null,null,null,null,null,null,null,null,null,null,null,"Exhibit:",8]
[null,null,null,null,null,null,null,null,null,null,null,null,null,"Tab:",8]
[null,null,null,null,null,null,null,null,null,null,null,null,null,"Schedule:",2]
[null,null,null,null,null,null,null,null,null,null,null,null,null,"Page:"]
[]
[null,null,null,null,null,null,null,null,null,null,null,null,null,"Date:"]
[]
[]
[null,"Appendix 2-W"]
[null,"Bill Impacts"]
[]
[]
[null,"Customer Class:",null,{"$f":"SummarySheet!A118","v":"Street Lighting "}]
[]
[null,null,null,"Consumption",null,0.23," kWh"]
[]
[null,null,null,null,null,"Current Board-Approved",null,null,null,"Proposed",null,null,null,"Impact"]
[null,null,null,"Charge Unit",null,"Rate","Volume","Charge",null,"Rate","Volume","Charge",null,"$ Change","% Change"]
[null,null,null,null,null,"($)",null,"($)",null,"($)",null,"($)"]
[null,"Monthly Service Charge",null,"Monthly",null,0.62,1,{"$f":"G21*F21","v":0.62},null,{"$f":"SummarySheet!F120","v":1},1,{"$f":"K21*J21","v":1},null,{"$f":"L21-H21","v":0.38},{"$f":"IF((H21)=0,\"\",(N21/H21))","v":0.61290322580645162}]
[null,"Smart Meter Rate Adder",null,null,null,null,1,{"$f":"G22*F22","v":0},null,null,1,{"$f":"K22*J22","v":0},null,{"$f":"L22-H22","v":0},{"$f":"IF((H22)=0,\"\",(N22/H22))","v":""}]
[null,null,null,null,null,null,1,0,null,null,1,{"$f":"K23*J23","v":0},null,{"$f":"L23-H23","v":0},{"$f":"IF((H23)=0,\"\",(N23/H23))","v":""}]
[null,null,null,null,null,null,1,0,null,null,1,0,null,0,""]
[null,null,null,null,null,null,1,0,null,null,1,0,null,0,""]
[null,null,null,null,null,null,1,0,null,null,1,0,null,0,""]
[null,"Distribution Volumetric Rate",null,"per kW",null,6.7744,{"$f":"$F$16","v":0.23},1.5581120000000002,null,{"$f":"SummarySheet!F121","v":3.6229525261396618},{"$f":"$F$16","v":0.23},0.83327908101212222,null,-0.72483291898787794,-0.46519949720423043]
[null,"Smart Meter Disposition Rider",null,null,null,null,0.23,0,null,null,{"$f":"$F$16","v":0.23},0,null,0,""]
[null,"LRAM & SSM Rate Rider",null,null,null,null,0.23,0,null,null,0.23,0,null,0,""]
[null,null,null,null,null,null,0.23,{"$f":"G30*F30","v":0},null,null,0.23,{"$f":"K30*J30","v":0},null,{"$f":"L30-H30","v":0},{"$f":"IF((H30)=0,\"\",(N30/H30))","v":""}]
[null,"Incremental Capital Rate Rider",null,"per kW",null,1.5987,0.23,{"$f":"G31*F31","v":0.367701},null,null,0.23,{"$f":"K31*J31","v":0},null,{"$f":"L31-H31","v":-0.367701},{"$f":"IF((H31)=0,\"\",(N31/H31))","v":-1}]
[null,null,null,null,null,null,0.23,{"$f":"G32*F32","v":0},null,null,0.23,{"$f":"K32*J32","v":0},null,{"$f":"L32-H32","v":0},{"$f":"IF((H32)=0,\"\",(N32/H32))","v":""}]
[null,null,null,null,null,null,0.23,0,null,null,0.23,0,null,0,""]
[null,null,null,null,null,null,0.23,0,null,null,0.23,0,null,0,""]
[null,null,null,null,null,null,0.23,0,null,null,0.23,0,null,0,""]
[null,null,null,null,null,null,0.23,0,null,null,0.23,0,null,0,""]
[null,"Sub-Total A",null,null,null,null,null,{"$f":"SUM(H21:H36)","v":2.5458129999999999},null,null,null,{"$f":"SUM(L21:L36)","v":1.8332790810121222},null,-0.71253391898787766,-0.27988462584953322]
[null,"Deferral/Variance Account Disposition Rate Rider",null,"per kW",null,0.38979999999999998,{"$f":"$F$16","v":0.23},{"$f":"G38*F38","v":8.9653999999999998E-2},null,{"$f":"SummarySheet!F124","v":0.15129023324663271},{"$f":"$F$16","v":0.23},{"$f":"K38*J38","v":3.4796753646725527E-2},null,{"$f":"L38-H38","v":-5.4857246353274471E-2},{"$f":"IF((H38)=0,\"\",(N38/H38))","v":-0.61187728772028549}]
[null,"Global Adj DVA",null,"per kW",null,2.1766999999999999,{"$f":"$F$16","v":0.23},{"$f":"G39*F39","v":0.500641},null,{"$f":"SummarySheet!F125","v":1.199064887048771},{"$f":"$F$16","v":0.23},0.27578492402121735,null,-0.22485607597878265,{"$f":"IF((H39)=0,\"\",(N39/H39))","v":-0.44913635914514122}]
[null,null,null,null,null,null,{"$f":"$F$16","v":0.23},{"$f":"G40*F40","v":0},null,null,{"$f":"$F$16","v":0.23},0,null,0,{"$f":"IF((H40)=0,\"\",(N40/H40))","v":""}]
[null,null,null,null,null,null,{"$f":"$F$16","v":0.23},{"$f":"G41*F41","v":0},null,null,{"$f":"$F$16","v":0.23},0,null,0,{"$f":"IF((H41)=0,\"\",(N41/H41))","v":""}]
[null,"Low Voltage Service Charge",null,"per kW",null,0.10589999999999999,{"$f":"$F$16","v":0.23},{"$f":"G42*F42","v":2.4357E-2},null,{"$f":"SummarySheet!F122","v":0.19109999999999999},{"$f":"$F$16","v":0.23},4.3952999999999999E-2,null,1.9595999999999999E-2,{"$f":"IF((H42)=0,\"\",(N42/H42))","v":0.80453257790368271}]
[null,"Smart Meter Entity Charge",null,null,null,null,null,null,null,null,0.23,0,null,0]
[null,"Sub-Total B - Distribution (includes Sub-Total A)",null,null,null,null,null,{"$f":"SUM(H38:H42)+H37","v":3.1604649999999999},null,null,null,{"$f":"SUM(L38:L42)+L37","v":2.1878137586800652},null,{"$f":"L44-H44","v":-0.97265124131993463},{"$f":"IF((H44)=0,\"\",(N44/H44))","v":-0.30775573889283214}]
[null,"RTSR - Network",null,"per kW",null,1.9258,{"$f":"F16*(1+F71)","v":0.23240258},{"$f":"G45*F45","v":0.447560888564},null,{"$f":"SummarySheet!F133","v":1.7564},{"$f":"F16*(1+J71)","v":0.23242442999999999},{"$f":"K45*J45","v":0.40823026885199998},null,-3.9330619712000026E-2,-8.7877696011803882E-2]
[null,"RTSR - Line and Transformation Connection",null,"per kW",null,0.86560000000000004,{"$f":"G45","v":0.23240258},{"$f":"G46*F46","v":0.201167673248},null,{"$f":"SummarySheet!F134","v":0.83130000000000004},{"$f":"K45","v":0.23242442999999999},{"$f":"K46*J46","v":0.19321442865899999},null,-7.9532445890000136E-3,-3.9535400795709531E-2]
[null,"Sub-Total C - Delivery (including Sub-Total B)",null,null,null,null,null,{"$f":"SUM(H44:H46)","v":3.8091935618119996},null,null,null,{"$f":"SUM(L44:L46)","v":2.7892584561910652},null,-1.0199351056209345,-0.2677561770150006]
[null,"Wholesale Market Service Charge (WMSC)",null,"per kWh",null,4.4000000000000003E-3,{"$f":"G46","v":0.23240258},{"$f":"G48*F48","v":1.022571352E-3},null,4.4000000000000003E-3,{"$f":"K46","v":0.23242442999999999},{"$f":"K48*J48","v":1.0226674920000001E-3},null,9.6140000000084769E-8,9.4017889130229381E-5]
[null,"Rural and Remote Rate Protection (RRRP)",null,"per kWh",null,1.1999999999999999E-3,{"$f":"G46","v":0.23240258},2.7888309599999995E-4,null,1.1999999999999999E-3,{"$f":"K46","v":0.23242442999999999},2.7890931599999997E-4,null,2.6220000000018191E-8,9.4017889130211735E-5]
[null,"Standard Supply Service Charge",null,"Monthly",null,0.25,1,0.25,null,0.25,1,0.25,null,0,0]
[null,"Debt Retirement Charge (DRC)",null,null,null,null,{"$f":"G49","v":0.23240258},0,null,null,{"$f":"K49","v":0.23242442999999999},0,null,0,""]
[null,"Energy - RPP - Tier 1",null,null,null,7.4999999999999997E-2,{"$f":"IF($T$1=1,IF($F$16>=600,600,IF($F$16<600,$F$16*(1+$F$71),$F$16-600)),IF($T$1=2,IF($F$16>=1000,1000,IF($F$16<1000,$F$16*(1+$F$71),$F$16-1000))))","v":0.23240258},{"$f":"G52*F52","v":1.74301935E-2},null,7.4999999999999997E-2,{"$f":"IF($T$1=1,IF($F$16>=600,600,IF($F$16<600,$F$16*(1+$J$71),$F$16-600)),IF($T$1=2,IF($F$16>=1000,1000,IF($F$16<1000,$F$16*(1+$J$71),$F$16-1000))))","v":0.23242442999999999},{"$f":"K52*J52","v":1.7431832249999998E-2},null,1.6387499999978572E-6,9.4017889130023559E-5]
[null,"Energy - RPP - Tier 2",null,null,null,8.7999999999999995E-2,{"$f":"IF($T$1=1,IF($F$16>=600,$F$16*(1+$F$71)-600,IF($F$16<600,0,)), IF($T$1=2,IF($F$16>=1000,$F$16*(1+$F$71)-1000,IF($F$16<1000,0))))","v":0},{"$f":"G53*F53","v":0},null,8.7999999999999995E-2,{"$f":"IF($T$1=1,IF($F$16>=600,$F$16*(1+$J$71)-600,IF($F$16<600,0,)), IF($T$1=2,IF($F$16>=1000,$F$16*(1+$J$71)-1000,IF($F$16<1000,0))))","v":0},{"$f":"K53*J53","v":0},null,0,""]
[null,"TOU - Off Peak",null,null,null,6.5000000000000002E-2,{"$f":"0.64*$F$16*(1+$F$71)","v":0.14873765119999999},9.6679473280000001E-3,null,6.5000000000000002E-2,{"$f":"0.64*$F$16*(1+$J$71)","v":0.14875163519999998},9.6688562879999988E-3,null,9.0895999999875132E-7,9.4017889130017338E-5]
[null,"TOU - Mid Peak",null,null,null,0.1,{"$f":"0.18*$F$16*(1+$F$71)","v":4.1832464399999998E-2},4.1832464399999998E-3,null,0.1,{"$f":"0.18*$F$16*(1+$J$71)","v":4.1836397399999996E-2},4.1836397399999999E-3,null,3.9330000000011023E-7,9.401788913017284E-5]
[null,"TOU - On Peak",null,null,null,0.11700000000000001,{"$f":"0.18*$F$16*(1+$F$71)","v":4.1832464399999998E-2},4.8943983347999997E-3,null,0.11700000000000001,{"$f":"0.18*$F$16*(1+$J$71)","v":4.1836397399999996E-2},4.8948584958000002E-3,null,4.6016100000052795E-7,9.4017889130254358E-5]
[]
[null,"Total Bill on RPP (before Taxes)",null,null,null,null,null,{"$f":"SUM(H47:H53)","v":4.0779252097599992},null,null,null,{"$f":"SUM(L47:L53)","v":3.0579918652490652},null,-1.019933344510934,-0.25011085099595554]
[null,"HST",null,null,null,0.13,null,{"$f":"H58*F59","v":0.53013027726879991},null,0.13,null,{"$f":"L58*J59","v":0.39753894248237848},null,{"$f":"L59-H59","v":-0.13259133478642143},{"$f":"IF((H59)=0,\"\",(N59/H59))","v":-0.25011085099595559}]
[null,"Total Bill (including HST)",null,null,null,null,null,{"$f":"H58+H59","v":4.6080554870287989},null,null,null,{"$f":"L58+L59","v":3.4555308077314435},null,{"$f":"L60-H60","v":-1.1525246792973554},{"$f":"IF((H60)=0,\"\",(N60/H60))","v":-0.25011085099595559}]
[null,"Ontario Clean Energy Benefit 1",null,null,null,null,null,{"$f":"ROUND(-H60*10%,2)","v":-0.46},null,null,null,{"$f":"ROUND(-L60*10%,2)","v":-0.35},null,{"$f":"L61-H61","v":0.11000000000000004},{"$f":"IF((H61)=0,\"\",(N61/H61))","v":-0.23913043478260879}]
[null,"Total Bill on RPP (including OCEB)",null,null,null,null,null,{"$f":"SUM(H60:H61)","v":4.1480554870287989},null,null,null,{"$f":"SUM(L60:L61)","v":3.1055308077314434},null,{"$f":"L62-H62","v":-1.0425246792973555},{"$f":"IF((H62)=0,\"\",(N62/H62))","v":-0.25132852792287574}]
[]
[null,"Total Bill on TOU (before Taxes)",null,null,null,null,null,{"$f":"SUM(H47:H51,H54:H56)","v":4.0792406083627997},null,null,null,{"$f":"SUM(L47:L51,L54:L56)","v":3.0593073875228654},null,{"$f":"L64-H64","v":-1.0199332208399343},{"$f":"IF((H64)=0,\"\",(N64/H64))","v":-0.2500301695244409}]
[null,"HST",null,null,null,0.13,null,{"$f":"H64*F65","v":0.53030127908716396},null,0.13,null,{"$f":"L64*J65","v":0.39770996037797252},null,-0.13259131870919144,-0.2500301695244409]
[null,"Total Bill (including HST)",null,null,null,null,null,{"$f":"H64+H65","v":4.6095418874499634},null,null,null,{"$f":"L64+L65","v":3.4570173479008379},null,-1.1525245395491255,-0.25003016952444085]
[null,"Ontario Clean Energy Benefit 1",null,null,null,null,null,{"$f":"ROUND(-H66*10%,2)","v":-0.46},null,null,null,{"$f":"ROUND(-L66*10%,2)","v":-0.35},null,0.11000000000000004,-0.23913043478260879]
[null,"Total Bill on TOU (including OCEB)",null,null,null,null,null,{"$f":"H66+H67","v":4.1495418874499634},null,null,null,{"$f":"L66+L67","v":3.1070173479008378},null,-1.0425245395491256,-0.25123846627556107]
[]
[]
[null,"Loss Factor (%)",null,null,null,{"$f":"'App.2-W_Bill Impacts Sent'!F71","v":1.0446E-2},null,null,null,{"$f":"'App.2-W_Bill Impacts Sent'!J71","v":1.0541E-2}]
[]
["1 Applicable to eligible customers only.  Refer to the Ontario Clean Energy Benefit Act, 2010."]
[]
["Note that the \"Charge $\" columns provide breakdowns of the amounts that each bill component contributes to the total monthly bill at the referenced "]
["consumption level at existing and proposed rates."]
[]
["Applicants must provide bill impacts for residential at 800 kWh and GS<50kW at 2000 kWh. In addition, their filing should cover the range that is relevant"]
["to their service territory, class by class. A general guideline of consumption levels follows:"]
[]
["Residential (kWh) - 100, 250, 500, 800, 1000, 1500, 2000"]
["GS<50kW (kWh) - 1000, 2000, 5000, 10000, 15000"]
["GS>50kW (kW) - 60, 100, 500, 1000"]
["Large User - range appropriate for utility"]
["Lighting Classes and USL - 150 kWh and 1 kW, range appropriate for utility."]